Workbook

Sheet Planilha Orçamentária
A1: Ministério da Integração e do Desenvolvimento Regional
A2: Companhia de desenvolvimento dos Vales do São Francisco e do Parnaíba
A4: PLANILHA ORÇAMENTÁRIA - ORÇAMENTO NÃO DESONERADO
A5: OBRA: | B5: =UPPER("SERVIÇOS DE MANUTENÇÃO E OBRAS CIVIS NA BARRAGEM TRANQUEIRA") -> SERVIÇOS DE MANUTENÇÃO E OBRAS CIVIS NA BARRAGEM TRANQUEIRA | F5: BDI (serv.): | H5: ='BDI serv'!D22 -> 0.2378 | I5: Bancos
A6: LOCAL: | B6: BARRAGEM TRANQUEIRA, DORMENTES-PE | F6: BDI (forn.): | H6: ='BDI forn'!E6 -> 0.136 | I6: 02/2024 - SINAPI/PE
A7: DATA BASE: | B7: 2024-02-01 | E7: Encargos sociais Horistas: | H7: ='Encargos Sociais'!E47 -> 1.1398 | I7: 10/2023 - SICRO/PE
A8: PRAZO: | B8: 120 DIAS | E8: Encargos sociais - Mensalista: | H8: ='Encargos Sociais'!F47 -> 0.7
A9: ITEM | B9: REFERÊNCIA | D9: DESCRIÇÃO | E9: UNID. | F9: QUANT. | G9: CUSTO UNITÁRIO | H9: PREÇO UNITÁRIO | I9: PREÇO TOTAL | J9: TIPO de BDI | K9: CLASSIF
B10: FONTE | C10: CÓDIGO
A11: 1 | D11: ADMINISTRAÇÃO DA OBRA | I11: =SUM(I12:I12) -> 143091.3634 | K11: ss | L11: COMENTÁRIOS
A12: 1.1 | B12: PRÓPRIA | C12: CPU.01 | D12: Administração Local | E12: MÊS | F12: 4 | G12: =SUMIFS(CPU!$H:$H,CPU!$B:$B,'Planilha Orçamentária'!$A12,CPU!$I:$I,"ss")+SUMIFS(CPU!$H:$H,CPU!$B:$B,'Planilha Orçamentária'!$A12,CPU!$I:$I,"mdo")+SUMIF('Comp SINAPI PE 02-2024 Onerado'!G:G,'Planilha Orçamentária'!C12,'Comp SINAPI PE 02-2024 Onerado'!K:K)+SUMIF('Ins SINAPI PE 02-2024 Onerado'!A:A,'Planilha Orçamentária'!C12,'Ins SINAPI PE 02-2024 Onerado'!E:E) -> 28900.34 | H12: =IF(J12="SERV",G12*(1+$H$5),G12*(1+$H$6)) -> 35772.84085 | I12: =IF(J12="SERV",G12*F12*(1+$H$5),G12*F12*(1+$H$6)) -> 143091.3634 | J12: serv | K12: s
A14: 2 | D14: SERVIÇOS PRELIMINARES | I14: =SUM(I15,I17,I19) -> 34883.65484 | K14: ss
A15: 2.1 | D15: Mobilização e desmobilização | I15: =SUM(I16) -> 4615.620042
A16: 2.1.1 | B16: PRÓPRIA | C16: CPU.02 | D16: Mobilização e desmobilização de instalação do canteiro | E16: UN | F16: 1 | G16: =SUMIFS(CPU!$H:$H,CPU!$B:$B,'Planilha Orçamentária'!$A16,CPU!$I:$I,"ss")+SUMIFS(CPU!$H:$H,CPU!$B:$B,'Planilha Orçamentária'!$A16,CPU!$I:$I,"mdo")+SUMIF('Comp SINAPI PE 02-2024 Onerado'!G:G,'Planilha Orçamentária'!C16,'Comp SINAPI PE 02-2024 Onerado'!K:K)+SUMIF('Ins SINAPI PE 02-2024 Onerado'!A:A,'Planilha Orçamentária'!C16,'Ins SINAPI PE 02-2024 Onerado'!E:E) -> 3728.89 | H16: =IF(J16="SERV",G16*(1+$H$5),G16*(1+$H$6)) -> 4615.620042 | I16: =IF(J16="SERV",G16*F16*(1+$H$5),G16*F16*(1+$H$6)) -> 4615.620042 | J16: serv | K16: s
A17: 2.2 | D17: Canteiro de obras | I17: =SUM(I18:I18) -> 29282.27564
A18: 2.2.1 | B18: PRÓPRIA | C18: CPU.03 | D18: Execução de canteiro de obras, inclusive, limpeza, refeitório, sanitários e central de formas | E18: M2 | F18: ='Memorial de cálculo'!H36 -> 28.5 | G18: =SUMIFS(CPU!$H:$H,CPU!$B:$B,'Planilha Orçamentária'!$A18,CPU!$I:$I,"ss")+SUMIFS(CPU!$H:$H,CPU!$B:$B,'Planilha Orçamentária'!$A18,CPU!$I:$I,"mdo")+SUMIF('Comp SINAPI PE 02-2024 Onerado'!G:G,'Planilha Orçamentária'!C18,'Comp SINAPI PE 02-2024 Onerado'!K:K)+SUMIF('Ins SINAPI PE 02-2024 Onerado'!A:A,'Planilha Orçamentária'!C18,'Ins SINAPI PE 02-2024 Onerado'!E:E) -> 830.06 | H18: =IF(J18="SERV",G18*(1+$H$5),G18*(1+$H$6)) -> 1027.448268 | I18: =IF(J18="SERV",G18*F18*(1+$H$5),G18*F18*(1+$H$6)) -> 29282.27564 | J18: serv | K18: s
A19: 2.3 | D19: Sinalização | I19: =SUM(I20:I20) -> 985.759164
A20: 2.3.1 | B20: PRÓPRIA | C20: CPU.04 | D20: =PROPER("PLACA DE OBRA EM CHAPA DE ACO GALVANIZADO") -> Placa De Obra Em Chapa De Aco Galvanizado | E20: M2 | F20: ='Memorial de cálculo'!H41 -> 2 | G20: =SUMIFS(CPU!$H:$H,CPU!$B:$B,'Planilha Orçamentária'!$A20,CPU!$I:$I,"ss")+SUMIFS(CPU!$H:$H,CPU!$B:$B,'Planilha Orçamentária'!$A20,CPU!$I:$I,"mdo")+SUMIF('Comp SINAPI PE 02-2024 Onerado'!G:G,'Planilha Orçamentária'!C20,'Comp SINAPI PE 02-2024 Onerado'!K:K)+SUMIF('Ins SINAPI PE 02-2024 Onerado'!A:A,'Planilha Orçamentária'!C20,'Ins SINAPI PE 02-2024 Onerado'!E:E) -> 398.19 | H20: =IF(J20="SERV",G20*(1+$H$5),G20*(1+$H$6)) -> 492.879582 | I20: =IF(J20="SERV",G20*F20*(1+$H$5),G20*F20*(1+$H$6)) -> 985.759164 | J20: serv | K20: s
A22: 3 | D22: CORTE DA VEGETAÇÃO E REMOÇÃO DAS RAIZES | I22: =SUM(I23) -> 131483.5102 | K22: ss
A23: 3.1 | D23: Remoção da vegetação | I23: =SUM(I24:I25) -> 131483.5102 | K23: s
A24: 3.1.1 | B24: PRÓPRIA | C24: CPU.05 | D24: Limpeza de vegetação | E24: M2 | F24: ='Memorial de cálculo'!H45 -> 10600 | G24: =SUMIFS(CPU!$H:$H,CPU!$B:$B,'Planilha Orçamentária'!$A24,CPU!$I:$I,"ss")+SUMIFS(CPU!$H:$H,CPU!$B:$B,'Planilha Orçamentária'!$A24,CPU!$I:$I,"mdo")+SUMIF('Comp SINAPI PE 02-2024 Onerado'!G:G,'Planilha Orçamentária'!C24,'Comp SINAPI PE 02-2024 Onerado'!K:K)+SUMIF('Ins SINAPI PE 02-2024 Onerado'!A:A,'Planilha Orçamentária'!C24,'Ins SINAPI PE 02-2024 Onerado'!E:E) -> 9.51 | H24: =IF(J24="SERV",G24*(1+$H$5),G24*(1+$H$6)) -> 11.771478 | I24: =IF(J24="SERV",G24*F24*(1+$H$5),G24*F24*(1+$H$6)) -> 124777.6668 | J24: serv | K24: s
A25: 3.1.2 | B25: PRÓPRIA | C25: CPU.06 | D25: Corte de tronco e remoção de raiz | E25: UN | F25: ='Memorial de cálculo'!H50 -> 15 | G25: =SUMIFS(CPU!$H:$H,CPU!$B:$B,'Planilha Orçamentária'!$A25,CPU!$I:$I,"ss")+SUMIFS(CPU!$H:$H,CPU!$B:$B,'Planilha Orçamentária'!$A25,CPU!$I:$I,"mdo")+SUMIF('Comp SINAPI PE 02-2024 Onerado'!G:G,'Planilha Orçamentária'!C25,'Comp SINAPI PE 02-2024 Onerado'!K:K)+SUMIF('Ins SINAPI PE 02-2024 Onerado'!A:A,'Planilha Orçamentária'!C25,'Ins SINAPI PE 02-2024 Onerado'!E:E) -> 361.17 | H25: =IF(J25="SERV",G25*(1+$H$5),G25*(1+$H$6)) -> 447.056226 | I25: =IF(J25="SERV",G25*F25*(1+$H$5),G25*F25*(1+$H$6)) -> 6705.84339 | J25: serv | K25: s
A27: 4 | D27: RECOMPOSIÇÃO DE EROSÕES NO ATERRO | I27: =SUM(I28) -> 158976.843 | K27: ss | L27: Inclui taludes e crista
A28: 4.1 | D28: Recuperação do Talude de Jusante | I28: =SUM(I29) -> 158976.843
A29: 4.1.1 | B29: PRÓPRIA | C29: CPU.07 | D29: Recuperação do aterro da barragem, inclusive, escavação e compactação | E29: M3 | F29: ='Memorial de cálculo'!H57 -> 500 | G29: =SUMIFS(CPU!$H:$H,CPU!$B:$B,'Planilha Orçamentária'!$A29,CPU!$I:$I,"ss")+SUMIFS(CPU!$H:$H,CPU!$B:$B,'Planilha Orçamentária'!$A29,CPU!$I:$I,"mdo")+SUMIF('Comp SINAPI PE 02-2024 Onerado'!G:G,'Planilha Orçamentária'!C29,'Comp SINAPI PE 02-2024 Onerado'!K:K)+SUMIF('Ins SINAPI PE 02-2024 Onerado'!A:A,'Planilha Orçamentária'!C29,'Ins SINAPI PE 02-2024 Onerado'!E:E) -> 256.87 | H29: =IF(J29="SERV",G29*(1+$H$5),G29*(1+$H$6)) -> 317.953686 | I29: =IF(J29="SERV",G29*F29*(1+$H$5),G29*F29*(1+$H$6)) -> 158976.843 | J29: serv | K29: s
A31: 5 | D31: REGULARIZAÇÃO E PAVIMENTAÇÃO DA CRISTA | I31: =SUM(I32,I35,I37) -> 98220.42024 | K31: ss
A32: 5.1 | D32: Limpeza e regularização da crista | I32: =SUM(I33:I34) -> 18920.76324
A33: 5.1.1 | B33: PRÓPRIA | C33: CPU.08 | D33: Demolição de guias e sarjetas | E33: M | F33: ='Memorial de cálculo'!H64 -> 340 | G33: =SUMIFS(CPU!$H:$H,CPU!$B:$B,'Planilha Orçamentária'!$A33,CPU!$I:$I,"ss")+SUMIFS(CPU!$H:$H,CPU!$B:$B,'Planilha Orçamentária'!$A33,CPU!$I:$I,"mdo")+SUMIF('Comp SINAPI PE 02-2024 Onerado'!G:G,'Planilha Orçamentária'!C33,'Comp SINAPI PE 02-2024 Onerado'!K:K)+SUMIF('Ins SINAPI PE 02-2024 Onerado'!A:A,'Planilha Orçamentária'!C33,'Ins SINAPI PE 02-2024 Onerado'!E:E) -> 35.22 | H33: =IF(J33="SERV",G33*(1+$H$5),G33*(1+$H$6)) -> 43.595316 | I33: =IF(J33="SERV",G33*F33*(1+$H$5),G33*F33*(1+$H$6)) -> 14822.40744 | J33: serv | K33: s
A34: 5.1.2 | B34: PRÓPRIA | C34: CPU.09 | D34: Regularização e compactação da crista | E34: M2 | F34: ='Memorial de cálculo'!H69 -> 700 | G34: =SUMIFS(CPU!$H:$H,CPU!$B:$B,'Planilha Orçamentária'!$A34,CPU!$I:$I,"ss")+SUMIFS(CPU!$H:$H,CPU!$B:$B,'Planilha Orçamentária'!$A34,CPU!$I:$I,"mdo")+SUMIF('Comp SINAPI PE 02-2024 Onerado'!G:G,'Planilha Orçamentária'!C34,'Comp SINAPI PE 02-2024 Onerado'!K:K)+SUMIF('Ins SINAPI PE 02-2024 Onerado'!A:A,'Planilha Orçamentária'!C34,'Ins SINAPI PE 02-2024 Onerado'!E:E) -> 4.73 | H34: =IF(J34="SERV",G34*(1+$H$5),G34*(1+$H$6)) -> 5.854794 | I34: =IF(J34="SERV",G34*F34*(1+$H$5),G34*F34*(1+$H$6)) -> 4098.3558 | J34: serv | K34: s
A35: 5.2 | D35: Instalação de drenagem e meio-fio da crista | I35: =I36 -> 47829.8298 | N35: m³ | O35: m³ | P35: t
A36: 5.2.1 | B36: PRÓPRIA | C36: CPU.10 | D36: Guia e meio fio conjudados de concreto, moldada In Loco, 45cm base (15 cm Base da Guia +30 cm Base da Sarjeta) x 22 cm Altura | E36: M | F36: ='Memorial de cálculo'!H74 -> 340 | G36: =SUMIFS(CPU!$H:$H,CPU!$B:$B,'Planilha Orçamentária'!$A36,CPU!$I:$I,"ss")+SUMIFS(CPU!$H:$H,CPU!$B:$B,'Planilha Orçamentária'!$A36,CPU!$I:$I,"mdo")+SUMIF('Comp SINAPI PE 02-2024 Onerado'!G:G,'Planilha Orçamentária'!C36,'Comp SINAPI PE 02-2024 Onerado'!K:K)+SUMIF('Ins SINAPI PE 02-2024 Onerado'!A:A,'Planilha Orçamentária'!C36,'Ins SINAPI PE 02-2024 Onerado'!E:E) -> 113.65 | H36: =IF(J36="SERV",G36*(1+$H$5),G36*(1+$H$6)) -> 140.67597 | I36: =IF(J36="SERV",G36*F36*(1+$H$5),G36*F36*(1+$H$6)) -> 47829.8298 | J36: serv | K36: s
A37: 5.3 | D37: Implantação de meio fio e Revestimento com BGTC | I37: =SUM(I38:I38) -> 31469.8272
A38: 5.3.1 | B38: PRÓPRIA | C38: CPU.11 | D38: Execução e compactação para pavimentação de brita graduada simples tratada com cimento | E38: M3 | F38: ='Memorial de cálculo'!H81 -> 70 | G38: =SUMIFS(CPU!$H:$H,CPU!$B:$B,'Planilha Orçamentária'!$A38,CPU!$I:$I,"ss")+SUMIFS(CPU!$H:$H,CPU!$B:$B,'Planilha Orçamentária'!$A38,CPU!$I:$I,"mdo")+SUMIF('Comp SINAPI PE 02-2024 Onerado'!G:G,'Planilha Orçamentária'!C38,'Comp SINAPI PE 02-2024 Onerado'!K:K)+SUMIF('Ins SINAPI PE 02-2024 Onerado'!A:A,'Planilha Orçamentária'!C38,'Ins SINAPI PE 02-2024 Onerado'!E:E) -> 363.2 | H38: =IF(J38="SERV",G38*(1+$H$5),G38*(1+$H$6)) -> 449.56896 | I38: =IF(J38="SERV",G38*F38*(1+$H$5),G38*F38*(1+$H$6)) -> 31469.8272 | J38: serv | K38: s
A40: 6 | D40: =UPPER("Manutenção no talude de montante") -> MANUTENÇÃO NO TALUDE DE MONTANTE | I40: =SUM(I41) -> 43616.03677 | K40: ss
A41: 6.1 | D41: Enrocamento c/ pedra de mão para proteção do talude | I41: =SUM(I42:I42) -> 43616.03677
A42: 6.1.1 | B42: PROPRIA | C42: CPU.12 | D42: Enrocamento c/ pedra de mão c/ fornecimento e assentamento | E42: M3 | F42: ='Memorial de cálculo'!H87 -> 66 | G42: =SUMIFS(CPU!$H:$H,CPU!$B:$B,'Planilha Orçamentária'!$A42,CPU!$I:$I,"ss")+SUMIFS(CPU!$H:$H,CPU!$B:$B,'Planilha Orçamentária'!$A42,CPU!$I:$I,"mdo")+SUMIF('Comp SINAPI PE 02-2024 Onerado'!G:G,'Planilha Orçamentária'!C42,'Comp SINAPI PE 02-2024 Onerado'!K:K)+SUMIF('Ins SINAPI PE 02-2024 Onerado'!A:A,'Planilha Orçamentária'!C42,'Ins SINAPI PE 02-2024 Onerado'!E:E) -> 533.89 | H42: =IF(J42="SERV",G42*(1+$H$5),G42*(1+$H$6)) -> 660.849042 | I42: =IF(J42="SERV",G42*F42*(1+$H$5),G42*F42*(1+$H$6)) -> 43616.03677 | J42: serv | K42: s
A44: 7 | D44: =UPPER("Drenagem superficial do talude jusante") -> DRENAGEM SUPERFICIAL DO TALUDE JUSANTE | I44: =SUM(I45,I47) -> 16346.43631 | K44: ss
A45: 7.1 | D45: Canaleta para descida d'água | I45: =SUM(I46) -> 15767.22018
A46: 7.1.1 | B46: SINAPI | C46: CPU.13 | D46: Recuperacao e instalação de novas canaletas e descida d'água - Fornecimento e instalação | E46: M | F46: ='Memorial de cálculo'!H93 -> 85 | G46: =SUMIFS(CPU!$H:$H,CPU!$B:$B,'Planilha Orçamentária'!$A46,CPU!$I:$I,"ss")+SUMIFS(CPU!$H:$H,CPU!$B:$B,'Planilha Orçamentária'!$A46,CPU!$I:$I,"mdo")+SUMIF('Comp SINAPI PE 02-2024 Onerado'!G:G,'Planilha Orçamentária'!C46,'Comp SINAPI PE 02-2024 Onerado'!K:K)+SUMIF('Ins SINAPI PE 02-2024 Onerado'!A:A,'Planilha Orçamentária'!C46,'Ins SINAPI PE 02-2024 Onerado'!E:E) -> 149.86 | H46: =IF(J46="SERV",G46*(1+$H$5),G46*(1+$H$6)) -> 185.496708 | I46: =IF(J46="SERV",G46*F46*(1+$H$5),G46*F46*(1+$H$6)) -> 15767.22018 | J46: serv | K46: s
A47: 7.2 | D47: Entrada para descida d'água | I47: =SUM(I48:I48) -> 579.216132
A48: 7.2.1 | B48: PROPRIA | C48: CPU.14 | D48: Entrada para descida d'água | E48: UN | F48: ='Memorial de cálculo'!H99 -> 6 | G48: =SUMIFS(CPU!$H:$H,CPU!$B:$B,'Planilha Orçamentária'!$A48,CPU!$I:$I,"ss")+SUMIFS(CPU!$H:$H,CPU!$B:$B,'Planilha Orçamentária'!$A48,CPU!$I:$I,"mdo")+SUMIF('Comp SINAPI PE 02-2024 Onerado'!G:G,'Planilha Orçamentária'!C48,'Comp SINAPI PE 02-2024 Onerado'!K:K)+SUMIF('Ins SINAPI PE 02-2024 Onerado'!A:A,'Planilha Orçamentária'!C48,'Ins SINAPI PE 02-2024 Onerado'!E:E) -> 77.99 | H48: =IF(J48="SERV",G48*(1+$H$5),G48*(1+$H$6)) -> 96.536022 | I48: =IF(J48="SERV",G48*F48*(1+$H$5),G48*F48*(1+$H$6)) -> 579.216132 | J48: serv | K48: s
A50: 8 | D50: =UPPER("Proteção superficial do talude de jusante") -> PROTEÇÃO SUPERFICIAL DO TALUDE DE JUSANTE | I50: =SUM(I51) -> 77409.5364
A51: 8.1 | D51: Proteção vegetal | I51: =SUM(I52) -> 77409.5364
A52: 8.1.1 | B52: PROPRIA | C52: CPU.15 | D52: Plantio de grama para proteção, inclusive adubação | E52: M2 | F52: ='Memorial de cálculo'!H107 -> 2100 | G52: =SUMIFS(CPU!$H:$H,CPU!$B:$B,'Planilha Orçamentária'!$A52,CPU!$I:$I,"ss")+SUMIFS(CPU!$H:$H,CPU!$B:$B,'Planilha Orçamentária'!$A52,CPU!$I:$I,"mdo")+SUMIF('Comp SINAPI PE 02-2024 Onerado'!G:G,'Planilha Orçamentária'!C52,'Comp SINAPI PE 02-2024 Onerado'!K:K)+SUMIF('Ins SINAPI PE 02-2024 Onerado'!A:A,'Planilha Orçamentária'!C52,'Ins SINAPI PE 02-2024 Onerado'!E:E) -> 29.78 | H52: =IF(J52="SERV",G52*(1+$H$5),G52*(1+$H$6)) -> 36.861684 | I52: =IF(J52="SERV",G52*F52*(1+$H$5),G52*F52*(1+$H$6)) -> 77409.5364 | J52: serv | K52: s
A54: 9 | D54: MURO DE ALVENARIA DE PEDRA ARGAMASSADA | I54: =SUM(I55) -> 42621.7863 | K54: ss
A55: 9.1 | D55: Proteção vegetal | I55: =SUM(I56:I56) -> 42621.7863
A56: 9.1.1 | B56: SINAPI | C56: CPU.16 | D56: Execução de Muro com Pedra argamassada com cimento e areia 1:3 | E56: m | F56: ='Memorial de cálculo'!H114 -> 50 | G56: =SUMIFS(CPU!$H:$H,CPU!$B:$B,'Planilha Orçamentária'!$A56,CPU!$I:$I,"ss")+SUMIFS(CPU!$H:$H,CPU!$B:$B,'Planilha Orçamentária'!$A56,CPU!$I:$I,"mdo")+SUMIF('Comp SINAPI PE 02-2024 Onerado'!G:G,'Planilha Orçamentária'!C56,'Comp SINAPI PE 02-2024 Onerado'!K:K)+SUMIF('Ins SINAPI PE 02-2024 Onerado'!A:A,'Planilha Orçamentária'!C56,'Ins SINAPI PE 02-2024 Onerado'!E:E) -> 688.67 | H56: =IF(J56="SERV",G56*(1+$H$5),G56*(1+$H$6)) -> 852.435726 | I56: =IF(J56="SERV",G56*F56*(1+$H$5),G56*F56*(1+$H$6)) -> 42621.7863 | J56: serv | K56: s
A58: 10 | D58: SERVIÇOS COMPLEMENTARES | I58: =SUM(I59,I61,I63) -> 59726.52365 | K58: ss
A59: 10.1 | D59: Instalação de placas de aviso | I59: =SUM(I60) -> 1971.518328
A60: 10.1.1 | B60: PRÓPRIA | C60: CPU.04 | D60: PLACA DE OBRA EM CHAPA DE ACO GALVANIZADO | E60: M3 | F60: 4 | G60: =CPU!H45 -> 398.19 | H60: =IF(J60="SERV",G60*(1+$H$5),G60*(1+$H$6)) -> 492.879582 | I60: =IF(J60="SERV",G60*F60*(1+$H$5),G60*F60*(1+$H$6)) -> 1971.518328 | J60: serv | K60: s | L60: 4 placas de 1 m²
A61: 10.2 | D61: Instalação de mourões para medida de cota d’água | I61: =SUM(I62) -> 4455.33732
A62: 10.2.1 | B62: PRÓPRIA | C62: CPU.17 | D62: Instalação de mourões para medida de cota d’água | E62: UN | F62: ='Memorial de cálculo'!H125 -> 10 | G62: =SUMIFS(CPU!$H:$H,CPU!$B:$B,'Planilha Orçamentária'!$A62,CPU!$I:$I,"ss")+SUMIFS(CPU!$H:$H,CPU!$B:$B,'Planilha Orçamentária'!$A62,CPU!$I:$I,"mdo")+SUMIF('Comp SINAPI PE 02-2024 Onerado'!G:G,'Planilha Orçamentária'!C62,'Comp SINAPI PE 02-2024 Onerado'!K:K)+SUMIF('Ins SINAPI PE 02-2024 Onerado'!A:A,'Planilha Orçamentária'!C62,'Ins SINAPI PE 02-2024 Onerado'!E:E) -> 359.94 | H62: 445.533732 | I62: =IF(J62="SERV",G62*F62*(1+$H$5),G62*F62*(1+$H$6)) -> 4455.33732 | J62: serv | K62: s
A63: 10.3 | D63: Cercas de proteção | I63: =SUM(I64) -> 53299.668
A64: 10.3.1 | B64: PRÓPRIA | C64: CPU.18 | D64: Instalação de cercas com mourões de concreto H=3, espaçamento 2,5m e cravado 0,5m, com 4 fios de arame farpado Nº14 classe 250 | E64: M | F64: ='Memorial de cálculo'!H130 -> 400 | G64: =SUMIFS(CPU!$H:$H,CPU!$B:$B,'Planilha Orçamentária'!$A64,CPU!$I:$I,"ss")+SUMIFS(CPU!$H:$H,CPU!$B:$B,'Planilha Orçamentária'!$A64,CPU!$I:$I,"mdo")+SUMIF('Comp SINAPI PE 02-2024 Onerado'!G:G,'Planilha Orçamentária'!C64,'Comp SINAPI PE 02-2024 Onerado'!K:K)+SUMIF('Ins SINAPI PE 02-2024 Onerado'!A:A,'Planilha Orçamentária'!C64,'Ins SINAPI PE 02-2024 Onerado'!E:E) -> 107.65 | H64: =IF(J64="SERV",G64*(1+$H$5),G64*(1+$H$6)) -> 133.24917 | I64: =IF(J64="SERV",G64*F64*(1+$H$5),G64*F64*(1+$H$6)) -> 53299.668 | J64: serv | K64: s
A66: 11 | D66: RECUPERAÇÃO DAS ESTRUTURAS DO VERTEDOURO | I66: =SUM(I67,I69,I71) -> 134918.0339
A67: 11.1 | D67: Recuperação da soleira | I67: =SUM(I68) -> 38941.99257
A68: 11.1.1 | B68: PRÓPRIA | C68: CPU.19 | D68: Recuperação da superfície de concreto da soleira | E68: M2 | F68: ='Memorial de cálculo'!H136 -> 65 | G68: =SUMIFS(CPU!$H:$H,CPU!$B:$B,'Planilha Orçamentária'!$A68,CPU!$I:$I,"ss")+SUMIFS(CPU!$H:$H,CPU!$B:$B,'Planilha Orçamentária'!$A68,CPU!$I:$I,"mdo")+SUMIF('Comp SINAPI PE 02-2024 Onerado'!G:G,'Planilha Orçamentária'!C68,'Comp SINAPI PE 02-2024 Onerado'!K:K)+SUMIF('Ins SINAPI PE 02-2024 Onerado'!A:A,'Planilha Orçamentária'!C68,'Ins SINAPI PE 02-2024 Onerado'!E:E) -> 484.01 | H68: =IF(J68="SERV",G68*(1+$H$5),G68*(1+$H$6)) -> 599.107578 | I68: =IF(J68="SERV",G68*F68*(1+$H$5),G68*F68*(1+$H$6)) -> 38941.99257 | J68: serv | K68: s
A69: 11.2 | D69: Recuperação do muro lateral direito | I69: =SUM(I70) -> 62861.42544
A70: 11.2.1 | B70: PRÓPRIA | C70: CPU.20 | D70: Recuperação da superficie de concreto do muro lateral | E70: M2 | F70: ='Memorial de cálculo'!H141 -> 55 | G70: =SUMIFS(CPU!$H:$H,CPU!$B:$B,'Planilha Orçamentária'!$A70,CPU!$I:$I,"ss")+SUMIFS(CPU!$H:$H,CPU!$B:$B,'Planilha Orçamentária'!$A70,CPU!$I:$I,"mdo")+SUMIF('Comp SINAPI PE 02-2024 Onerado'!G:G,'Planilha Orçamentária'!C70,'Comp SINAPI PE 02-2024 Onerado'!K:K)+SUMIF('Ins SINAPI PE 02-2024 Onerado'!A:A,'Planilha Orçamentária'!C70,'Ins SINAPI PE 02-2024 Onerado'!E:E) -> 923.36 | H70: =IF(J70="SERV",G70*(1+$H$5),G70*(1+$H$6)) -> 1142.935008 | I70: =IF(J70="SERV",G70*F70*(1+$H$5),G70*F70*(1+$H$6)) -> 62861.42544 | J70: serv | K70: s
A71: 11.3 | D71: Recomposição de erosão no canal de restituição | I71: =SUM(I72) -> 33114.61584
A72: 11.3.1 | B72: PRÓPRIA | C72: CPU.21 | D72: Regularização do terreno e lançamento de aterro e enrocamento | E72: M3 | F72: ='Memorial de cálculo'!H146 -> 80 | G72: =SUMIFS(CPU!$H:$H,CPU!$B:$B,'Planilha Orçamentária'!$A72,CPU!$I:$I,"ss")+SUMIFS(CPU!$H:$H,CPU!$B:$B,'Planilha Orçamentária'!$A72,CPU!$I:$I,"mdo")+SUMIF('Comp SINAPI PE 02-2024 Onerado'!G:G,'Planilha Orçamentária'!C72,'Comp SINAPI PE 02-2024 Onerado'!K:K)+SUMIF('Ins SINAPI PE 02-2024 Onerado'!A:A,'Planilha Orçamentária'!C72,'Ins SINAPI PE 02-2024 Onerado'!E:E) -> 334.41 | H72: =IF(J72="SERV",G72*(1+$H$5),G72*(1+$H$6)) -> 413.932698 | I72: =IF(J72="SERV",G72*F72*(1+$H$5),G72*F72*(1+$H$6)) -> 33114.61584 | J72: serv | K72: s
D74: TOTAL Sem BDI: | I74: =SUMPRODUCT(F11:F72,G11:G72) -> 760457.38
D75: BDI: | I75: =(I11+I14+I22+I27+I31+I40+I44+I50+I54+I58+I66)-I74 -> 180836.765 | K75: verificacao
D76: TOTAL COM BDI: | I76: =SUM(I74:I75) -> 941294.145 | K76: =I54+I50+I44+I40+I31+I27+I22+I14+I11+I58+I66 -> 941294.145 | L76: =IF(I76=K76,"ok","conferir soma") -> ok
K77: =I74*H5 -> 180836.765 | L77: =IF(I75=K77,"ok","conferir soma") -> ok

Sheet Planilha Orçamentária Desoner (hidden)
A1: Ministério da Integração e do Desenvolvimento Regional
A2: Companhia de desenvolvimento dos Vales do São Francisco e do Parnaíba
A4: PLANILHA ORÇAMENTÁRIA - ORÇAMENTO DESONERADO
A5: OBRA: | B5: =UPPER("SERVIÇOS DE MANUTENÇÃO E OBRAS CIVIS NA ESTRUTURA DA BARRAGEM E EQUIPAMENTO HIDROMECÂNICO") -> SERVIÇOS DE MANUTENÇÃO E OBRAS CIVIS NA ESTRUTURA DA BARRAGEM E EQUIPAMENTO HIDROMECÂNICO | G5: BDI (serv.): | H5: ='BDI serv Desonerado'!D22 -> 0.3351 | I5: Bancos
A6: LOCAL: | B6: BARRAGEM POÇO DO MAGRO, GUANAMBI/BA | G6: BDI (forn.): | H6: ='BDI forn Desonerado'!D22 -> 0.212 | I6: 05/2023 - SINAPI/BA
A7: DATA BASE: | B7: 2023-05-01 | E7: Encargos sociais Horistas: | H7: ='Encargos Sociais'!C47 -> 0.8435 | I7: 01/2023 - SICRO/BA
A8: PRAZO: | B8: 120 DIAS | E8: Encargos sociais - Mensalista: | H8: ='Encargos Sociais'!D47 -> 0.4641 | I8: 04/2023 - ORSE
A9: ITEM | B9: REFERÊNCIA | D9: DESCRIÇÃO | E9: UNID. | F9: QUANT. | G9: CUSTO UNITÁRIO | H9: PREÇO UNITÁRIO | I9: PREÇO TOTAL | J9: TIPO de BDI | K9: CLASSIF
B10: FONTE | C10: CÓDIGO
A11: 1 | D11: ADMINISTRAÇÃO LOCAL | I11: =SUM(I12:I12) -> 41837.86849 | K11: ss
A12: 1.1 | B12: PRÓPRIA | C12: CPU.01 | D12: ADMINISTRAÇÃO LOCAL | E12: MÊS | F12: ='Planilha Orçamentária'!F12 -> 4 | G12: =SUMIFS('CPU DES'!$H:$H,'CPU DES'!$B:$B,'Planilha Orçamentária Desoner'!$A12,'CPU DES'!$I:$I,"ss")+SUMIFS('CPU DES'!$H:$H,'CPU DES'!$B:$B,'Planilha Orçamentária Desoner'!$A12,'CPU DES'!$I:$I,"mdo")+SUMIF('Comp SINAPI BA 05-2023 Desoner'!G:G,'Planilha Orçamentária Desoner'!C12,'Comp SINAPI BA 05-2023 Desoner'!K:K)+SUMIF('Ins SINAPI BA 05-2023 Desoner'!A:A,'Planilha Orçamentária Desoner'!C12,'Ins SINAPI BA 05-2023 Desoner'!E:E) -> 7834.22 | H12: =IF(J12="SERV",G12*(1+$H$5),G12*(1+$H$6)) -> 10459.46712 | I12: =IF(J12="SERV",G12*F12*(1+$H$5),G12*F12*(1+$H$6)) -> 41837.86849 | J12: serv | K12: s
A14: 2 | D14: SERVIÇOS PRELIMINARES | I14: =SUM(I15,I21) ->  | K14: ss
A15: 2.1 | D15: Canteiro de obras | I15: =SUM(I16:I20) ->  | K15: s
A16: 2.1.1 | B16: SINAPI | C16: 98525 | D16: =PROPER(IF(K16="i",VLOOKUP(C16,'Ins SINAPI BA 05-2023 Desoner'!$A$8:$E$5189,2,0),VLOOKUP(C16,'Comp SINAPI BA 05-2023 Desoner'!$G$7:$K$7500,2,0))) -> Limpeza Mecanizada De Camada Vegetal, Vegetação E Pequenas Árvores (Diâmetro De Tronco Menor Que 0,20 M), Com Trator De Esteiras.Af_05/2018 | E16: =LOWER(IF(K16="i",VLOOKUP(C16,'Ins SINAPI BA 05-2023 Desoner'!$A$8:$E$5189,3,0),VLOOKUP(C16,'Comp SINAPI BA 05-2023 Desoner'!$G$7:$K$7500,3,0))) -> m2 | F16: ='Planilha Orçamentária'!F18 -> 28.5 | G16: =SUMIFS('CPU DES'!$H:$H,'CPU DES'!$B:$B,'Planilha Orçamentária Desoner'!$A16,'CPU DES'!$I:$I,"ss")+SUMIFS('CPU DES'!$H:$H,'CPU DES'!$B:$B,'Planilha Orçamentária Desoner'!$A16,'CPU DES'!$I:$I,"mdo")+SUMIF('Comp SINAPI BA 05-2023 Desoner'!G:G,'Planilha Orçamentária Desoner'!C16,'Comp SINAPI BA 05-2023 Desoner'!K:K)+SUMIF('Ins SINAPI BA 05-2023 Desoner'!A:A,'Planilha Orçamentária Desoner'!C16,'Ins SINAPI BA 05-2023 Desoner'!E:E) -> 0.37 | H16: =IF(J16="SERV",G16*(1+$H$5),G16*(1+$H$6)) -> 0.493987 | I16: =IF(J16="SERV",G16*F16*(1+$H$5),G16*F16*(1+$H$6)) -> 14.0786295 | J16: serv | K16: s
A17: 2.1.2 | B17: SINAPI | C17: 94975 | D17: =PROPER(IF(K17="i",VLOOKUP(C17,'Ins SINAPI BA 05-2023 Desoner'!$A$8:$E$5189,2,0),VLOOKUP(C17,'Comp SINAPI BA 05-2023 Desoner'!$G$7:$K$7500,2,0))) -> Concreto Fck = 15Mpa, Traço 1:3,4:3,5 (Em Massa Seca De Cimento/ Areia Média/ Brita 1) - Preparo Manual. Af_05/2021 | E17: =LOWER(IF(K17="i",VLOOKUP(C17,'Ins SINAPI BA 05-2023 Desoner'!$A$8:$E$5189,3,0),VLOOKUP(C17,'Comp SINAPI BA 05-2023 Desoner'!$G$7:$K$7500,3,0))) -> m3 | F17: ='Planilha Orçamentária'!#REF! ->  | G17: =SUMIFS('CPU DES'!$H:$H,'CPU DES'!$B:$B,'Planilha Orçamentária Desoner'!$A17,'CPU DES'!$I:$I,"ss")+SUMIFS('CPU DES'!$H:$H,'CPU DES'!$B:$B,'Planilha Orçamentária Desoner'!$A17,'CPU DES'!$I:$I,"mdo")+SUMIF('Comp SINAPI BA 05-2023 Desoner'!G:G,'Planilha Orçamentária Desoner'!C17,'Comp SINAPI BA 05-2023 Desoner'!K:K)+SUMIF('Ins SINAPI BA 05-2023 Desoner'!A:A,'Planilha Orçamentária Desoner'!C17,'Ins SINAPI BA 05-2023 Desoner'!E:E) -> 510.11 | H17: =IF(J17="SERV",G17*(1+$H$5),G17*(1+$H$6)) -> 681.047861 | I17: =IF(J17="SERV",G17*F17*(1+$H$5),G17*F17*(1+$H$6)) ->  | J17: serv | K17: s
A18: 2.1.3 | B18: SINAPI | C18: 93210 | D18: =PROPER(IF(K18="i",VLOOKUP(C18,'Ins SINAPI BA 05-2023 Desoner'!$A$8:$E$5189,2,0),VLOOKUP(C18,'Comp SINAPI BA 05-2023 Desoner'!$G$7:$K$7500,2,0))) -> Execução De Refeitório Em Canteiro De Obra Em Chapa De Madeira Compensada, Não Incluso Mobiliário E Equipamentos. Af_02/2016 | E18: =LOWER(IF(K18="i",VLOOKUP(C18,'Ins SINAPI BA 05-2023 Desoner'!$A$8:$E$5189,3,0),VLOOKUP(C18,'Comp SINAPI BA 05-2023 Desoner'!$G$7:$K$7500,3,0))) -> m2 | F18: ='Planilha Orçamentária'!#REF! ->  | G18: =SUMIFS('CPU DES'!$H:$H,'CPU DES'!$B:$B,'Planilha Orçamentária Desoner'!$A18,'CPU DES'!$I:$I,"ss")+SUMIFS('CPU DES'!$H:$H,'CPU DES'!$B:$B,'Planilha Orçamentária Desoner'!$A18,'CPU DES'!$I:$I,"mdo")+SUMIF('Comp SINAPI BA 05-2023 Desoner'!G:G,'Planilha Orçamentária Desoner'!C18,'Comp SINAPI BA 05-2023 Desoner'!K:K)+SUMIF('Ins SINAPI BA 05-2023 Desoner'!A:A,'Planilha Orçamentária Desoner'!C18,'Ins SINAPI BA 05-2023 Desoner'!E:E) -> 602.5 | H18: 804.39775 | J18: serv | K18: s
A19: 2.1.4 | B19: SINAPI | C19: 93212 | D19: =PROPER(IF(K19="i",VLOOKUP(C19,'Ins SINAPI BA 05-2023 Desoner'!$A$8:$E$5189,2,0),VLOOKUP(C19,'Comp SINAPI BA 05-2023 Desoner'!$G$7:$K$7500,2,0))) -> Execução De Sanitário E Vestiário Em Canteiro De Obra Em Chapa De Madeira Compensada, Não Incluso Mobiliário. Af_02/2016 | E19: =LOWER(IF(K19="i",VLOOKUP(C19,'Ins SINAPI BA 05-2023 Desoner'!$A$8:$E$5189,3,0),VLOOKUP(C19,'Comp SINAPI BA 05-2023 Desoner'!$G$7:$K$7500,3,0))) -> m2 | F19: ='Planilha Orçamentária'!#REF! ->  | G19: =SUMIFS('CPU DES'!$H:$H,'CPU DES'!$B:$B,'Planilha Orçamentária Desoner'!$A19,'CPU DES'!$I:$I,"ss")+SUMIFS('CPU DES'!$H:$H,'CPU DES'!$B:$B,'Planilha Orçamentária Desoner'!$A19,'CPU DES'!$I:$I,"mdo")+SUMIF('Comp SINAPI BA 05-2023 Desoner'!G:G,'Planilha Orçamentária Desoner'!C19,'Comp SINAPI BA 05-2023 Desoner'!K:K)+SUMIF('Ins SINAPI BA 05-2023 Desoner'!A:A,'Planilha Orçamentária Desoner'!C19,'Ins SINAPI BA 05-2023 Desoner'!E:E) -> 1003.35 | H19: 1339.572585 | J19: serv | K19: s
A20: 2.1.5 | B20: SINAPI | C20: 93583 | D20: =PROPER(IF(K20="i",VLOOKUP(C20,'Ins SINAPI BA 05-2023 Desoner'!$A$8:$E$5189,2,0),VLOOKUP(C20,'Comp SINAPI BA 05-2023 Desoner'!$G$7:$K$7500,2,0))) -> Execução De Central De Fôrmas, Produção De Argamassa Ou Concreto Em Canteiro De Obra, Não Incluso Mobiliário E Equipamentos. Af_04/2016 | E20: =LOWER(IF(K20="i",VLOOKUP(C20,'Ins SINAPI BA 05-2023 Desoner'!$A$8:$E$5189,3,0),VLOOKUP(C20,'Comp SINAPI BA 05-2023 Desoner'!$G$7:$K$7500,3,0))) -> m2 | F20: ='Planilha Orçamentária'!#REF! ->  | G20: =SUMIFS('CPU DES'!$H:$H,'CPU DES'!$B:$B,'Planilha Orçamentária Desoner'!$A20,'CPU DES'!$I:$I,"ss")+SUMIFS('CPU DES'!$H:$H,'CPU DES'!$B:$B,'Planilha Orçamentária Desoner'!$A20,'CPU DES'!$I:$I,"mdo")+SUMIF('Comp SINAPI BA 05-2023 Desoner'!G:G,'Planilha Orçamentária Desoner'!C20,'Comp SINAPI BA 05-2023 Desoner'!K:K)+SUMIF('Ins SINAPI BA 05-2023 Desoner'!A:A,'Planilha Orçamentária Desoner'!C20,'Ins SINAPI BA 05-2023 Desoner'!E:E) -> 463.26 | H20: 618.498426 | J20: serv | K20: s
A21: 2.2 | D21: Sinalização | I21: =SUM(I22:I22) -> 1175.15502 | K21: s
A22: 2.2.1 | B22: PRÓPRIA | C22: CPU.02 | D22: PLACA DE OBRA EM CHAPA DE ACO GALVANIZADO | E22: m² | F22: ='Planilha Orçamentária'!F20 -> 2 | G22: =SUMIFS('CPU DES'!$H:$H,'CPU DES'!$B:$B,'Planilha Orçamentária Desoner'!$A22,'CPU DES'!$I:$I,"ss")+SUMIFS('CPU DES'!$H:$H,'CPU DES'!$B:$B,'Planilha Orçamentária Desoner'!$A22,'CPU DES'!$I:$I,"mdo")+SUMIF('Comp SINAPI BA 05-2023 Desoner'!G:G,'Planilha Orçamentária Desoner'!C22,'Comp SINAPI BA 05-2023 Desoner'!K:K)+SUMIF('Ins SINAPI BA 05-2023 Desoner'!A:A,'Planilha Orçamentária Desoner'!C22,'Ins SINAPI BA 05-2023 Desoner'!E:E) -> 440.1 | H22: =IF(J22="SERV",G22*(1+$H$5),G22*(1+$H$6)) -> 587.57751 | I22: =IF(J22="SERV",G22*F22*(1+$H$5),G22*F22*(1+$H$6)) -> 1175.15502 | J22: serv | K22: i
A24: 3 | D24: LIMPEZA DA REGIÃO A JUSANTE | I24: =SUM(I25) ->  | K24: ss
A25: 3.1 | D25: Remoção da vegetação a jusante | I25: =SUM(I26:I29) ->  | K25: s
A26: 3.1.1 | B26: SINAPI | C26: 98525 | D26: =PROPER(IF(K26="i",VLOOKUP(C26,'Ins SINAPI BA 05-2023 Desoner'!$A$8:$E$5189,2,0),VLOOKUP(C26,'Comp SINAPI BA 05-2023 Desoner'!$G$7:$K$7500,2,0))) -> Limpeza Mecanizada De Camada Vegetal, Vegetação E Pequenas Árvores (Diâmetro De Tronco Menor Que 0,20 M), Com Trator De Esteiras.Af_05/2018 | E26: =LOWER(IF(K26="i",VLOOKUP(C26,'Ins SINAPI BA 05-2023 Desoner'!$A$8:$E$5189,3,0),VLOOKUP(C26,'Comp SINAPI BA 05-2023 Desoner'!$G$7:$K$7500,3,0))) -> m2 | F26: ='Planilha Orçamentária'!F24 -> 10600 | G26: =SUMIFS('CPU DES'!$H:$H,'CPU DES'!$B:$B,'Planilha Orçamentária Desoner'!$A26,'CPU DES'!$I:$I,"ss")+SUMIFS('CPU DES'!$H:$H,'CPU DES'!$B:$B,'Planilha Orçamentária Desoner'!$A26,'CPU DES'!$I:$I,"mdo")+SUMIF('Comp SINAPI BA 05-2023 Desoner'!G:G,'Planilha Orçamentária Desoner'!C26,'Comp SINAPI BA 05-2023 Desoner'!K:K)+SUMIF('Ins SINAPI BA 05-2023 Desoner'!A:A,'Planilha Orçamentária Desoner'!C26,'Ins SINAPI BA 05-2023 Desoner'!E:E) -> 0.37 | H26: =IF(J26="SERV",G26*(1+$H$5),G26*(1+$H$6)) -> 0.493987 | I26: =IF(J26="SERV",G26*F26*(1+$H$5),G26*F26*(1+$H$6)) -> 5236.2622 | J26: serv | K26: s
A27: 3.1.2 | B27: EMBASA | C27: 02.04.04 | D27: CORTE DE ARVORE COM DESTOCAMENTO MANUAL,C/DIAMETRO ENTRE 15 E 30cm | E27: UN | F27: ='Planilha Orçamentária'!F25 -> 15 | G27: 60.7 | H27: =IF(J27="SERV",G27*(1+$H$5),G27*(1+$H$6)) -> 81.04057 | I27: =IF(J27="SERV",G27*F27*(1+$H$5),G27*F27*(1+$H$6)) -> 1215.60855 | J27: serv | K27: s
A28: 3.1.3 | B28: EMBASA | C28: 15.92.02 | D28: LIMPEZA E DESOBSTRUCAO DE REDES DE ESGOTO / DRENAGEM | E28: H | F28: ='Planilha Orçamentária'!#REF! ->  | G28: 160.18 | H28: =IF(J28="SERV",G28*(1+$H$5),G28*(1+$H$6)) -> 213.856318 | I28: =IF(J28="SERV",G28*F28*(1+$H$5),G28*F28*(1+$H$6)) ->  | J28: serv | K28: s
A29: 3.1.4 | B29: SINAPI | C29: 97912 | D29: =PROPER(IF(K29="i",VLOOKUP(C29,'Ins SINAPI BA 05-2023 Desoner'!$A$8:$E$5189,2,0),VLOOKUP(C29,'Comp SINAPI BA 05-2023 Desoner'!$G$7:$K$7500,2,0))) -> Transporte Com Caminhão Basculante De 6 M³, Em Via Urbana Em Leito Natural (Unidade: M3Xkm). Af_07/2020 | E29: =LOWER(IF(K29="i",VLOOKUP(C29,'Ins SINAPI BA 05-2023 Desoner'!$A$8:$E$5189,3,0),VLOOKUP(C29,'Comp SINAPI BA 05-2023 Desoner'!$G$7:$K$7500,3,0))) -> m3xkm | F29: ='Planilha Orçamentária'!#REF! ->  | G29: =SUMIFS('CPU DES'!$H:$H,'CPU DES'!$B:$B,'Planilha Orçamentária Desoner'!$A29,'CPU DES'!$I:$I,"ss")+SUMIFS('CPU DES'!$H:$H,'CPU DES'!$B:$B,'Planilha Orçamentária Desoner'!$A29,'CPU DES'!$I:$I,"mdo")+SUMIF('Comp SINAPI BA 05-2023 Desoner'!G:G,'Planilha Orçamentária Desoner'!C29,'Comp SINAPI BA 05-2023 Desoner'!K:K)+SUMIF('Ins SINAPI BA 05-2023 Desoner'!A:A,'Planilha Orçamentária Desoner'!C29,'Ins SINAPI BA 05-2023 Desoner'!E:E) -> 3.41 | H29: =IF(J29="SERV",G29*(1+$H$5),G29*(1+$H$6)) -> 4.552691 | I29: =IF(J29="SERV",G29*F29*(1+$H$5),G29*F29*(1+$H$6)) ->  | J29: serv | K29: s
A31: 4 | D31: OPERAÇÃO SUBAQUÁTICA | I31: =SUM(I32,I35) ->  | K31: ss
A32: 4.1 | D32: Inspeção e Laudo da região subaquática | I32: =SUM(I33:I34) -> 
A33: 4.1.1 | B33: PRÓPRIA | C33: CPU.03 | D33: Mobilização da Equipe, Camara Hiperbarica e todos os equipamentos de mergulho envolvidos na operação | E33: un | F33: ='Planilha Orçamentária'!#REF! ->  | G33: =SUMIFS(CPU!$H:$H,CPU!$B:$B,'Planilha Orçamentária'!#REF!,CPU!$I:$I,"ss")+SUMIFS(CPU!$H:$H,CPU!$B:$B,'Planilha Orçamentária'!#REF!,CPU!$I:$I,"mdo")+SUMIF('Comp SINAPI PE 02-2024 Onerado'!G:G,'Planilha Orçamentária'!#REF!,'Comp SINAPI PE 02-2024 Onerado'!K:K)+SUMIF('Ins SINAPI PE 02-2024 Onerado'!A:A,'Planilha Orçamentária'!#REF!,'Ins SINAPI PE 02-2024 Onerado'!E:E) -> 0 | H33: =IF(J33="SERV",G33*(1+$H$5),G33*(1+$H$6)) -> 0 | I33: =IF(J33="SERV",G33*F33*(1+$H$5),G33*F33*(1+$H$6)) ->  | J33: serv | K33: s
A34: 4.1.2 | B34: SICRO | C34: 4816024 | D34: Operação de mergulho dependente em profundidade de até 30 m - inclusive descompressão | E34: h | F34: ='Planilha Orçamentária'!#REF! ->  | G34: 255.2 | H34: =IF(K34="SERV",G34*(1+$H$5),G34*(1+$H$6)) -> 309.3024 | I34: =IF(J34="SERV",G34*F34*(1+$H$5),G34*F34*(1+$H$6)) ->  | J34: serv | K34: s
A35: 4.2 | D35: Vedação/Abertura da tomada d'água | I35: =SUM(I36:I37) -> 
A36: 4.2.1 | B36: PRÓPRIA | C36: CPU.04 | D36: Vedação da entrada da tomada d’água com chapas metálicas | E36: un | F36: ='Planilha Orçamentária'!#REF! ->  | G36: =SUMIFS(CPU!$H:$H,CPU!$B:$B,'Planilha Orçamentária'!#REF!,CPU!$I:$I,"ss")+SUMIFS(CPU!$H:$H,CPU!$B:$B,'Planilha Orçamentária'!#REF!,CPU!$I:$I,"mdo")+SUMIF('Comp SINAPI PE 02-2024 Onerado'!G:G,'Planilha Orçamentária'!#REF!,'Comp SINAPI PE 02-2024 Onerado'!K:K)+SUMIF('Ins SINAPI PE 02-2024 Onerado'!A:A,'Planilha Orçamentária'!#REF!,'Ins SINAPI PE 02-2024 Onerado'!E:E) -> 0 | H36: =IF(J36="SERV",G36*(1+$H$5),G36*(1+$H$6)) -> 0 | J36: serv | K36: s
A37: 4.2.2 | B37: PRÓPRIA | C37: CPU.05 | D37: Remoção da vedação da entrada da tomada d’água com chapas metálicas | E37: un | F37: ='Planilha Orçamentária'!#REF! ->  | G37: =SUMIFS(CPU!$H:$H,CPU!$B:$B,'Planilha Orçamentária'!#REF!,CPU!$I:$I,"ss")+SUMIFS(CPU!$H:$H,CPU!$B:$B,'Planilha Orçamentária'!#REF!,CPU!$I:$I,"mdo")+SUMIF('Comp SINAPI PE 02-2024 Onerado'!G:G,'Planilha Orçamentária'!#REF!,'Comp SINAPI PE 02-2024 Onerado'!K:K)+SUMIF('Ins SINAPI PE 02-2024 Onerado'!A:A,'Planilha Orçamentária'!#REF!,'Ins SINAPI PE 02-2024 Onerado'!E:E) -> 0 | H37: 0 | J37: serv | K37: s
A39: 5 | D39: MANUTENÇÃO NOS DISPOSITIVOS DE CONTROLE | I39: =SUM(I40,I47) -> 
A40: 5.1 | D40: Manutenção das válvulas | I40: =SUM(I41:I46) -> 
A41: 5.1.1 | B41: SINAPI | C41: 98524 | D41: =PROPER(IF(K41="i",VLOOKUP(C41,'Ins SINAPI BA 05-2023 Desoner'!$A$8:$E$5189,2,0),VLOOKUP(C41,'Comp SINAPI BA 05-2023 Desoner'!$G$7:$K$7500,2,0))) -> Limpeza Manual De Vegetação Em Terreno Com Enxada.Af_05/2018 | E41: =LOWER(IF(K41="i",VLOOKUP(C41,'Ins SINAPI BA 05-2023 Desoner'!$A$8:$E$5189,3,0),VLOOKUP(C41,'Comp SINAPI BA 05-2023 Desoner'!$G$7:$K$7500,3,0))) -> m2 | F41: ='Planilha Orçamentária'!#REF! ->  | G41: =SUMIFS('CPU DES'!$H:$H,'CPU DES'!$B:$B,'Planilha Orçamentária Desoner'!$A41,'CPU DES'!$I:$I,"ss")+SUMIFS('CPU DES'!$H:$H,'CPU DES'!$B:$B,'Planilha Orçamentária Desoner'!$A41,'CPU DES'!$I:$I,"mdo")+SUMIF('Comp SINAPI BA 05-2023 Desoner'!G:G,'Planilha Orçamentária Desoner'!C41,'Comp SINAPI BA 05-2023 Desoner'!K:K)+SUMIF('Ins SINAPI BA 05-2023 Desoner'!A:A,'Planilha Orçamentária Desoner'!C41,'Ins SINAPI BA 05-2023 Desoner'!E:E) -> 2.9 | H41: =IF(J41="SERV",G41*(1+$H$5),G41*(1+$H$6)) -> 3.87179 | I41: =IF(J41="SERV",G41*F41*(1+$H$5),G41*F41*(1+$H$6)) ->  | J41: serv | K41: s
A42: 5.1.2 | B42: EMBASA | C42: 12.99.10 | D42: DESMONT. DE PECAS, CONEXOES, VALVULAS, APARELHOS E ACESSORIOS DE FERRO FUNDIDO DUCTIL OU ACO CARBONO, JUNTA TRAVADA, EXTERNA MECANICA OU FLANGEADA C/ DIAMETROS DE 700 A 1200 MM | E42: kg | F42: ='Planilha Orçamentária'!#REF! ->  | G42: 1.21 | H42: =IF(J42="SERV",G42*(1+$H$5),G42*(1+$H$6)) -> 1.615471 | I42: =IF(J42="SERV",G42*F42*(1+$H$5),G42*F42*(1+$H$6)) ->  | J42: serv | K42: s
A43: 5.1.3 | B43: EMBASA | C43: 62.01.53 | D43: MANUTENCAO EM VALVULAS (VRP, NIVEL E ANTI-GOLPE), VENTOSAS E REGISTROS ACIMA DE 16" ATÉ 24" POLEGADAS | E43: un | F43: ='Planilha Orçamentária'!#REF! ->  | G43: 581.86 | H43: =IF(J43="SERV",G43*(1+$H$5),G43*(1+$H$6)) -> 776.841286 | J43: serv | K43: s
A44: 5.1.4 | B44: EMBASA | C44: M012309000/M012309045 | D44: PARAFUSOS C/ PORCA P/ VALVULA BORBOLETA C/ FLANGE PN 10 - AWWA / PBFW10 DN 700 48,900 kg | E44: PC | F44: ='Planilha Orçamentária'!#REF! ->  | G44: 5.36 | H44: 7.156136 | J44: serv | K44: s
A45: 5.1.5 | B45: EMBASA | C45: 15.07.46 | D45: (REVISADA) - PINTURA EPOXI EM SURPEFICIE METALICA, INCL. LIXAMENTO E FUNDO EPOXI ANTICORROSIVO, DUAS DEMAOS | E45: m² | F45: ='Planilha Orçamentária'!#REF! ->  | G45: 75.54 | H45: 100.853454 | J45: serv | K45: s
A46: 5.1.6 | B46: EMBASA | C46: 12.02.07 | D46: MONT. DE PECAS, CONEXOES, VALVULAS, APARELHOS E ACESSORIOS DE FERRO FUNDIDO DUCTIL OU ACO CARBONO, JUNTA TRAVADA, EXTERNA MECANICA OU FLANGEADA C/ DIAMETROSDE 700 A 1200 mm. | E46: kg | F46: ='Planilha Orçamentária'!#REF! ->  | G46: 1.21 | H46: 1.615471 | J46: serv | K46: s
A47: 5.2 | D47: Instalação de dispositivo de drenagem na caixa de válvulas | I47: =SUM(I48:I50) -> 
A48: 5.2.1 | B48: SINAPI | C48: 97627 | D48: =PROPER(IF(K48="i",VLOOKUP(C48,'Ins SINAPI BA 05-2023 Desoner'!$A$8:$E$5189,2,0),VLOOKUP(C48,'Comp SINAPI BA 05-2023 Desoner'!$G$7:$K$7500,2,0))) -> Demolição De Pilares E Vigas Em Concreto Armado, De Forma Mecanizada Com Martelete, Sem Reaproveitamento. Af_12/2017 | E48: =LOWER(IF(K48="i",VLOOKUP(C48,'Ins SINAPI BA 05-2023 Desoner'!$A$8:$E$5189,3,0),VLOOKUP(C48,'Comp SINAPI BA 05-2023 Desoner'!$G$7:$K$7500,3,0))) -> m3 | F48: ='Planilha Orçamentária'!#REF! ->  | G48: =SUMIFS('CPU DES'!$H:$H,'CPU DES'!$B:$B,'Planilha Orçamentária Desoner'!$A48,'CPU DES'!$I:$I,"ss")+SUMIFS('CPU DES'!$H:$H,'CPU DES'!$B:$B,'Planilha Orçamentária Desoner'!$A48,'CPU DES'!$I:$I,"mdo")+SUMIF('Comp SINAPI BA 05-2023 Desoner'!G:G,'Planilha Orçamentária Desoner'!C48,'Comp SINAPI BA 05-2023 Desoner'!K:K)+SUMIF('Ins SINAPI BA 05-2023 Desoner'!A:A,'Planilha Orçamentária Desoner'!C48,'Ins SINAPI BA 05-2023 Desoner'!E:E) -> 311.2 | H48: =IF(J48="SERV",G48*(1+$H$5),G48*(1+$H$6)) -> 415.48312 | I48: =IF(J48="SERV",G48*F48*(1+$H$5),G48*F48*(1+$H$6)) ->  | J48: serv | K48: s
A49: 5.2.2 | B49: SINAPI | C49: 89714 | D49: =PROPER(IF(K49="i",VLOOKUP(C49,'Ins SINAPI BA 05-2023 Desoner'!$A$8:$E$5189,2,0),VLOOKUP(C49,'Comp SINAPI BA 05-2023 Desoner'!$G$7:$K$7500,2,0))) -> Tubo Pvc, Serie Normal, Esgoto Predial, Dn 100 Mm, Fornecido E Instalado Em Ramal De Descarga Ou Ramal De Esgoto Sanitário. Af_08/2022 | E49: =LOWER(IF(K49="i",VLOOKUP(C49,'Ins SINAPI BA 05-2023 Desoner'!$A$8:$E$5189,3,0),VLOOKUP(C49,'Comp SINAPI BA 05-2023 Desoner'!$G$7:$K$7500,3,0))) -> m | F49: ='Planilha Orçamentária'!#REF! ->  | G49: =SUMIFS('CPU DES'!$H:$H,'CPU DES'!$B:$B,'Planilha Orçamentária Desoner'!$A49,'CPU DES'!$I:$I,"ss")+SUMIFS('CPU DES'!$H:$H,'CPU DES'!$B:$B,'Planilha Orçamentária Desoner'!$A49,'CPU DES'!$I:$I,"mdo")+SUMIF('Comp SINAPI BA 05-2023 Desoner'!G:G,'Planilha Orçamentária Desoner'!C49,'Comp SINAPI BA 05-2023 Desoner'!K:K)+SUMIF('Ins SINAPI BA 05-2023 Desoner'!A:A,'Planilha Orçamentária Desoner'!C49,'Ins SINAPI BA 05-2023 Desoner'!E:E) -> 36.26 | H49: =IF(J49="SERV",G49*(1+$H$5),G49*(1+$H$6)) -> 48.410726 | I49: =IF(J49="SERV",G49*F49*(1+$H$5),G49*F49*(1+$H$6)) ->  | J49: serv | K49: s
A50: 5.2.3 | B50: SINAPI | C50: 103682 | D50: =PROPER(IF(K50="i",VLOOKUP(C50,'Ins SINAPI BA 05-2023 Desoner'!$A$8:$E$5189,2,0),VLOOKUP(C50,'Comp SINAPI BA 05-2023 Desoner'!$G$7:$K$7500,2,0))) -> Concretagem De Vigas E Lajes, Fck=25 Mpa, Para Qualquer Tipo De Laje Com Baldes Em Edificação Térrea - Lançamento, Adensamento E Acabamento. Af_02/2022 | E50: =LOWER(IF(K50="i",VLOOKUP(C50,'Ins SINAPI BA 05-2023 Desoner'!$A$8:$E$5189,3,0),VLOOKUP(C50,'Comp SINAPI BA 05-2023 Desoner'!$G$7:$K$7500,3,0))) -> m3 | F50: ='Planilha Orçamentária'!#REF! ->  | G50: =SUMIFS('CPU DES'!$H:$H,'CPU DES'!$B:$B,'Planilha Orçamentária Desoner'!$A50,'CPU DES'!$I:$I,"ss")+SUMIFS('CPU DES'!$H:$H,'CPU DES'!$B:$B,'Planilha Orçamentária Desoner'!$A50,'CPU DES'!$I:$I,"mdo")+SUMIF('Comp SINAPI BA 05-2023 Desoner'!G:G,'Planilha Orçamentária Desoner'!C50,'Comp SINAPI BA 05-2023 Desoner'!K:K)+SUMIF('Ins SINAPI BA 05-2023 Desoner'!A:A,'Planilha Orçamentária Desoner'!C50,'Ins SINAPI BA 05-2023 Desoner'!E:E) -> 962.12 | H50: 1284.526412 | J50: serv | K50: s
A52: 6 | D52: RECUPERAÇÃO | I52: =SUM(I53,I63,I69) ->  | K52: ss
A53: 6.1 | D53: Paramento a jusante | I53: =SUM(I54:I62) -> 
A54: 6.1.1 | B54: SINAPI | C54: 41805 | D54: =PROPER(IF(K54="i",VLOOKUP(C54,'Ins SINAPI BA 05-2023 Desoner'!$A$8:$E$5189,2,0),VLOOKUP(C54,'Comp SINAPI BA 05-2023 Desoner'!$G$7:$K$7500,2,0))) -> Locacao De Andaime Suspenso Ou Balancim Manual, Capacidade De Carga Total De Aproximadamente 250 Kg/M2, Plataforma De 1,50 M X 0,80 M (C X L), Cabo De 45 M | E54: =LOWER(IF(K54="i",VLOOKUP(C54,'Ins SINAPI BA 05-2023 Desoner'!$A$8:$E$5189,3,0),VLOOKUP(C54,'Comp SINAPI BA 05-2023 Desoner'!$G$7:$K$7500,3,0))) -> mes | F54: ='Planilha Orçamentária'!#REF! ->  | G54: =SUMIFS('CPU DES'!$H:$H,'CPU DES'!$B:$B,'Planilha Orçamentária Desoner'!$A54,'CPU DES'!$I:$I,"ss")+SUMIFS('CPU DES'!$H:$H,'CPU DES'!$B:$B,'Planilha Orçamentária Desoner'!$A54,'CPU DES'!$I:$I,"mdo")+SUMIF('Comp SINAPI BA 05-2023 Desoner'!G:G,'Planilha Orçamentária Desoner'!C54,'Comp SINAPI BA 05-2023 Desoner'!K:K)+SUMIF('Ins SINAPI BA 05-2023 Desoner'!A:A,'Planilha Orçamentária Desoner'!C54,'Ins SINAPI BA 05-2023 Desoner'!E:E) -> 425 | H54: =IF(J54="SERV",G54*(1+$H$5),G54*(1+$H$6)) -> 567.4175 | I54: =IF(J54="SERV",G54*F54*(1+$H$5),G54*F54*(1+$H$6)) ->  | J54: serv | K54: i
A55: 6.1.2 | B55: SICRO | C55: 3806402 | D55: Limpeza em superfície de concreto com jateamento d'água sob pressão | E55: m2 | F55: ='Planilha Orçamentária'!#REF! ->  | G55: 2.3 | H55: =IF(J55="SERV",G55*(1+$H$5),G55*(1+$H$6)) -> 3.07073 | I55: =IF(J55="SERV",G55*F55*(1+$H$5),G55*F55*(1+$H$6)) ->  | J55: serv | K55: s
A56: 6.1.3 | B56: SICRO | C56: 3806413 | D56: Apicoamento mecanizado de concreto | E56: m2 | F56: =F55 ->  | G56: 20.4 | H56: =IF(J56="SERV",G56*(1+$H$5),G56*(1+$H$6)) -> 27.23604 | J56: serv | K56: s
A57: 6.1.4 | B57: SICRO | C57: 4915645 | D57: Injeção de adesivo estrutural à base de resina epóxi de baixa viscosidade para tratamento de fissuras em estruturas de concreto - fornecimento e aplicação mecanizada | E57: kg | F57: ='Planilha Orçamentária'!#REF! ->  | G57: 272.61 | H57: 363.961611 | J57: serv | K57: s
A58: 6.1.5 | B58: SINAPI | C58: 92264 | D58: =PROPER(IF(K58="i",VLOOKUP(C58,'Ins SINAPI BA 05-2023 Desoner'!$A$8:$E$5189,2,0),VLOOKUP(C58,'Comp SINAPI BA 05-2023 Desoner'!$G$7:$K$7500,2,0))) -> Fabricação De Fôrma Para Pilares E Estruturas Similares, Em Chapa De Madeira Compensada Plastificada, E = 18 Mm. Af_09/2020 | E58: =LOWER(IF(K58="i",VLOOKUP(C58,'Ins SINAPI BA 05-2023 Desoner'!$A$8:$E$5189,3,0),VLOOKUP(C58,'Comp SINAPI BA 05-2023 Desoner'!$G$7:$K$7500,3,0))) -> m2 | F58: ='Planilha Orçamentária'!#REF! ->  | G58: =SUMIFS('CPU DES'!$H:$H,'CPU DES'!$B:$B,'Planilha Orçamentária Desoner'!$A58,'CPU DES'!$I:$I,"ss")+SUMIFS('CPU DES'!$H:$H,'CPU DES'!$B:$B,'Planilha Orçamentária Desoner'!$A58,'CPU DES'!$I:$I,"mdo")+SUMIF('Comp SINAPI BA 05-2023 Desoner'!G:G,'Planilha Orçamentária Desoner'!C58,'Comp SINAPI BA 05-2023 Desoner'!K:K)+SUMIF('Ins SINAPI BA 05-2023 Desoner'!A:A,'Planilha Orçamentária Desoner'!C58,'Ins SINAPI BA 05-2023 Desoner'!E:E) -> 204.44 | H58: 272.947844 | J58: serv | K58: s
A59: 6.1.6 | B59: PRÓPRIA | C59: CPU.06 | D59: ARGAMASSA TRACO 1:3 (CIMENTO E AREIA), PREPARO MANUAL, INCLUSO ADITIVO IMPERMEABILIZANTE | E59: m3 | F59: ='Planilha Orçamentária'!#REF! ->  | G59: =SUMIFS(CPU!$H:$H,CPU!$B:$B,'Planilha Orçamentária'!#REF!,CPU!$I:$I,"ss")+SUMIFS(CPU!$H:$H,CPU!$B:$B,'Planilha Orçamentária'!#REF!,CPU!$I:$I,"mdo")+SUMIF('Comp SINAPI PE 02-2024 Onerado'!G:G,'Planilha Orçamentária'!#REF!,'Comp SINAPI PE 02-2024 Onerado'!K:K)+SUMIF('Ins SINAPI PE 02-2024 Onerado'!A:A,'Planilha Orçamentária'!#REF!,'Ins SINAPI PE 02-2024 Onerado'!E:E) -> 0 | H59: 0 | J59: serv | K59: s
A60: 6.1.7 | B60: SINAPI | C60: 97912 | D60: =PROPER(IF(K60="i",VLOOKUP(C60,'Ins SINAPI BA 05-2023 Desoner'!$A$8:$E$5189,2,0),VLOOKUP(C60,'Comp SINAPI BA 05-2023 Desoner'!$G$7:$K$7500,2,0))) -> Transporte Com Caminhão Basculante De 6 M³, Em Via Urbana Em Leito Natural (Unidade: M3Xkm). Af_07/2020 | E60: =LOWER(IF(K60="i",VLOOKUP(C60,'Ins SINAPI BA 05-2023 Desoner'!$A$8:$E$5189,3,0),VLOOKUP(C60,'Comp SINAPI BA 05-2023 Desoner'!$G$7:$K$7500,3,0))) -> m3xkm | F60: ='Planilha Orçamentária'!#REF! ->  | G60: =SUMIFS('CPU DES'!$H:$H,'CPU DES'!$B:$B,'Planilha Orçamentária Desoner'!$A60,'CPU DES'!$I:$I,"ss")+SUMIFS('CPU DES'!$H:$H,'CPU DES'!$B:$B,'Planilha Orçamentária Desoner'!$A60,'CPU DES'!$I:$I,"mdo")+SUMIF('Comp SINAPI BA 05-2023 Desoner'!G:G,'Planilha Orçamentária Desoner'!C60,'Comp SINAPI BA 05-2023 Desoner'!K:K)+SUMIF('Ins SINAPI BA 05-2023 Desoner'!A:A,'Planilha Orçamentária Desoner'!C60,'Ins SINAPI BA 05-2023 Desoner'!E:E) -> 3.41 | H60: =IF(J60="SERV",G60*(1+$H$5),G60*(1+$H$6)) -> 4.552691 | I60: =IF(J60="SERV",G60*F60*(1+$H$5),G60*F60*(1+$H$6)) ->  | J60: serv | K60: s
A61: 6.1.8 | B61: PRÓPRIA | C61: CPU.07 | D61: CURA QUÍMICA | E61: m2 | F61: ='Planilha Orçamentária'!#REF! ->  | G61: =SUMIFS(CPU!$H:$H,CPU!$B:$B,'Planilha Orçamentária'!#REF!,CPU!$I:$I,"ss")+SUMIFS(CPU!$H:$H,CPU!$B:$B,'Planilha Orçamentária'!#REF!,CPU!$I:$I,"mdo")+SUMIF('Comp SINAPI PE 02-2024 Onerado'!G:G,'Planilha Orçamentária'!#REF!,'Comp SINAPI PE 02-2024 Onerado'!K:K)+SUMIF('Ins SINAPI PE 02-2024 Onerado'!A:A,'Planilha Orçamentária'!#REF!,'Ins SINAPI PE 02-2024 Onerado'!E:E) -> 0 | H61: 0 | J61: serv | K61: s
A62: 6.1.9 | B62: SICRO | C62: 3808043 | D62: Pintura manual com nata de cimento - 3 demãos | E62: m2 | F62: ='Planilha Orçamentária'!#REF! ->  | G62: 3.79 | H62: 5.060029 | J62: serv | K62: s
A63: 6.2 | D63: Crista | I63: =SUM(I64:I68) -> 
A64: 6.2.1 | B64: SICRO | C64: 3806402 | D64: Limpeza em superfície de concreto com jateamento d'água sob pressão | E64: m2 | F64: ='Planilha Orçamentária'!#REF! ->  | G64: 2.3 | H64: =IF(J64="SERV",G64*(1+$H$5),G64*(1+$H$6)) -> 3.07073 | I64: =IF(J64="SERV",G64*F64*(1+$H$5),G64*F64*(1+$H$6)) ->  | J64: serv | K64: s
A65: 6.2.2 | B65: SICRO | C65: 4915645 | D65: Injeção de adesivo estrutural à base de resina epóxi de baixa viscosidade para tratamento de fissuras em estruturas de concreto - fornecimento e aplicação mecanizada | E65: kg | F65: ='Planilha Orçamentária'!#REF! ->  | G65: 272.61 | H65: =IF(J65="SERV",G65*(1+$H$5),G65*(1+$H$6)) -> 363.961611 | I65: =IF(J65="SERV",G65*F65*(1+$H$5),G65*F65*(1+$H$6)) ->  | J65: serv | K65: s
A66: 6.2.3 | B66: PRÓPRIA | C66: CPU.06 | D66: ARGAMASSA TRACO 1:3 (CIMENTO E AREIA), PREPARO MANUAL, INCLUSO ADITIVO IMPERMEABILIZANTE | E66: m3 | F66: ='Planilha Orçamentária'!#REF! ->  | G66: =G59 -> 0 | H66: =IF(J66="SERV",G66*(1+$H$5),G66*(1+$H$6)) -> 0 | J66: serv | K66: s
A67: 6.2.4 | B67: SINAPI | C67: 97912 | D67: =PROPER(IF(K67="i",VLOOKUP(C67,'Ins SINAPI BA 05-2023 Desoner'!$A$8:$E$5189,2,0),VLOOKUP(C67,'Comp SINAPI BA 05-2023 Desoner'!$G$7:$K$7500,2,0))) -> Transporte Com Caminhão Basculante De 6 M³, Em Via Urbana Em Leito Natural (Unidade: M3Xkm). Af_07/2020 | E67: =LOWER(IF(K67="i",VLOOKUP(C67,'Ins SINAPI PE 02-2024 Onerado'!$A$8:$E$5189,3,0),VLOOKUP(C67,'Comp SINAPI PE 02-2024 Onerado'!$G$7:$K$7500,3,0))) -> m3xkm | F67: ='Planilha Orçamentária'!#REF! ->  | G67: =SUMIFS('CPU DES'!$H:$H,'CPU DES'!$B:$B,'Planilha Orçamentária Desoner'!$A67,'CPU DES'!$I:$I,"ss")+SUMIFS('CPU DES'!$H:$H,'CPU DES'!$B:$B,'Planilha Orçamentária Desoner'!$A67,'CPU DES'!$I:$I,"mdo")+SUMIF('Comp SINAPI BA 05-2023 Desoner'!G:G,'Planilha Orçamentária Desoner'!C67,'Comp SINAPI BA 05-2023 Desoner'!K:K)+SUMIF('Ins SINAPI BA 05-2023 Desoner'!A:A,'Planilha Orçamentária Desoner'!C67,'Ins SINAPI BA 05-2023 Desoner'!E:E) -> 3.41 | H67: =IF(J67="SERV",G67*(1+$H$5),G67*(1+$H$6)) -> 4.552691 | I67: =IF(J67="SERV",G67*F67*(1+$H$5),G67*F67*(1+$H$6)) ->  | J67: serv | K67: s
A68: 6.2.5 | B68: PRÓPRIA | C68: CPU.07 | D68: CURA QUÍMICA | E68: m2 | F68: ='Planilha Orçamentária'!#REF! ->  | G68: =G61 -> 0 | H68: =IF(J68="SERV",G68*(1+$H$5),G68*(1+$H$6)) -> 0 | J68: serv | K68: s
A69: 6.3 | D69: Vertedouro | I69: =SUM(I70:I72) -> 
A70: 6.3.1 | B70: SICRO | C70: 3806402 | D70: Limpeza em superfície de concreto com jateamento d'água sob pressão | E70: m2 | F70: ='Planilha Orçamentária'!#REF! ->  | G70: 2.3 | H70: =IF(J70="SERV",G70*(1+$H$5),G70*(1+$H$6)) -> 3.07073 | I70: =IF(J70="SERV",G70*F70*(1+$H$5),G70*F70*(1+$H$6)) ->  | J70: serv | K70: s
A71: 6.3.2 | B71: SICRO | C71: 4915645 | D71: Injeção de adesivo estrutural à base de resina epóxi de baixa viscosidade para tratamento de fissuras em estruturas de concreto - fornecimento e aplicação mecanizada | E71: kg | F71: ='Planilha Orçamentária'!#REF! ->  | G71: 272.61 | H71: =IF(J71="SERV",G71*(1+$H$5),G71*(1+$H$6)) -> 363.961611 | I71: =IF(J71="SERV",G71*F71*(1+$H$5),G71*F71*(1+$H$6)) ->  | J71: serv | K71: s
A72: 6.3.3 | B72: SICRO | C72: 4915694 | D72: Limpeza, serragem e enchimento de fissuras niveladas com abertura entre 0,4 mm e 1,0 mm e profundidade de 25 mm em estruturas de concreto com selante elástico a frio (BASEADO SICRO 4915694) | E72: m | F72: ='Planilha Orçamentária'!#REF! ->  | G72: 27 | H72: 36.0477 | J72: serv | K72: s
A74: 7 | D74: DIQUE | I74: =SUM(I75,I82) -> 
A75: 7.1 | D75: Investigação do maciço | I75: =SUM(I76:I81) -> 
A76: 7.1.1 | B76: EMBASA | C76: 32.02.01 | D76: SONDAGEM A PERCUSSÃO | E76: m | F76: ='Planilha Orçamentária'!#REF! ->  | G76: 101.49 | H76: =IF(J76="SERV",G76*(1+$H$5),G76*(1+$H$6)) -> 135.499299 | I76: =IF(J76="SERV",G76*F76*(1+$H$5),G76*F76*(1+$H$6)) ->  | J76: serv | K76: s
A77: 7.1.2 | B77: EMBASA | C77: 34.01.43 | D77: ENSAIO DE PERMEABILIDADE COM CARGA CONSTANTE | E77: un | F77: ='Planilha Orçamentária'!#REF! ->  | G77: 501.25 | H77: =IF(J77="SERV",G77*(1+$H$5),G77*(1+$H$6)) -> 669.218875 | I77: =IF(J77="SERV",G77*F77*(1+$H$5),G77*F77*(1+$H$6)) ->  | J77: serv | K77: s
A78: 7.1.3 | B78: EMBASA | C78: 34.02.04 | D78: "ANALISE GRANULOMETRICA POR PENEIRAMENTO E SEDIMENTACAO EM "TOP SOIL" | E78: un | F78: ='Planilha Orçamentária'!#REF! ->  | G78: 223.64 | H78: 298.581764 | J78: serv | K78: s
A79: 7.1.4 | B79: EMBASA | C79: 34.01.16 | D79: MASSA ESPECIFICA REAL DOS GRAOS | E79: un | F79: ='Planilha Orçamentária'!#REF! ->  | G79: 65.78 | H79: 87.822878 | J79: serv | K79: s
A80: 7.1.5 | B80: EMBASA | C80: 34.01.07 | D80: DETERMINACAO DE LIMITE DE LIQUIDEZ (NBR - 06459) | E80: un | F80: ='Planilha Orçamentária'!#REF! ->  | G80: 86.09 | H80: 114.938759 | J80: serv | K80: s
A81: 7.1.6 | B81: EMBASA | C81: 34.01.10 | D81: DETERMINACAO DE LIMITE DE PLASTICIDADE (NBR - 07180) | E81: un | F81: ='Planilha Orçamentária'!#REF! ->  | G81: 77.48 | H81: 103.443548 | J81: serv | K81: s
A82: 7.2 | D82: Recuperação do maciço | I82: =SUM(I83:I85) -> 
A83: 7.2.1 | B83: SINAPI | C83: 93358 | D83: =PROPER(IF(K83="i",VLOOKUP(C83,'Ins SINAPI BA 05-2023 Desoner'!$A$8:$E$5189,2,0),VLOOKUP(C83,'Comp SINAPI BA 05-2023 Desoner'!$G$7:$K$7500,2,0))) -> Escavação Manual De Vala Com Profundidade Menor Ou Igual A 1,30 M. Af_02/2021 | E83: =LOWER(IF(K83="i",VLOOKUP(C83,'Ins SINAPI BA 05-2023 Desoner'!$A$8:$E$5189,3,0),VLOOKUP(C83,'Comp SINAPI BA 05-2023 Desoner'!$G$7:$K$7500,3,0))) -> m3 | F83: ='Planilha Orçamentária'!#REF! ->  | G83: =SUMIFS('CPU DES'!$H:$H,'CPU DES'!$B:$B,'Planilha Orçamentária Desoner'!$A83,'CPU DES'!$I:$I,"ss")+SUMIFS('CPU DES'!$H:$H,'CPU DES'!$B:$B,'Planilha Orçamentária Desoner'!$A83,'CPU DES'!$I:$I,"mdo")+SUMIF('Comp SINAPI BA 05-2023 Desoner'!G:G,'Planilha Orçamentária Desoner'!C83,'Comp SINAPI BA 05-2023 Desoner'!K:K)+SUMIF('Ins SINAPI BA 05-2023 Desoner'!A:A,'Planilha Orçamentária Desoner'!C83,'Ins SINAPI BA 05-2023 Desoner'!E:E) -> 77.73 | H83: =IF(J83="SERV",G83*(1+$H$5),G83*(1+$H$6)) -> 103.777323 | I83: =IF(J83="SERV",G83*F83*(1+$H$5),G83*F83*(1+$H$6)) ->  | J83: serv | K83: s
A84: 7.2.2 | B84: SINAPI | C84: 99814 | D84: =PROPER(IF(K84="i",VLOOKUP(C84,'Ins SINAPI BA 05-2023 Desoner'!$A$8:$E$5189,2,0),VLOOKUP(C84,'Comp SINAPI BA 05-2023 Desoner'!$G$7:$K$7500,2,0))) -> Limpeza De Superfície Com Jato De Alta Pressão. Af_04/2019 | E84: =LOWER(IF(K84="i",VLOOKUP(C84,'Ins SINAPI BA 05-2023 Desoner'!$A$8:$E$5189,3,0),VLOOKUP(C84,'Comp SINAPI BA 05-2023 Desoner'!$G$7:$K$7500,3,0))) -> m2 | F84: ='Planilha Orçamentária'!#REF! ->  | G84: =SUMIFS('CPU DES'!$H:$H,'CPU DES'!$B:$B,'Planilha Orçamentária Desoner'!$A84,'CPU DES'!$I:$I,"ss")+SUMIFS('CPU DES'!$H:$H,'CPU DES'!$B:$B,'Planilha Orçamentária Desoner'!$A84,'CPU DES'!$I:$I,"mdo")+SUMIF('Comp SINAPI BA 05-2023 Desoner'!G:G,'Planilha Orçamentária Desoner'!C84,'Comp SINAPI BA 05-2023 Desoner'!K:K)+SUMIF('Ins SINAPI BA 05-2023 Desoner'!A:A,'Planilha Orçamentária Desoner'!C84,'Ins SINAPI BA 05-2023 Desoner'!E:E) -> 1.77 | H84: 2.363127 | J84: serv | K84: s
A85: 7.2.3 | B85: SICRO | C85: 3816196 | D85: Injeção de nata de cimento | E85: m3 | F85: ='Planilha Orçamentária'!#REF! ->  | G85: 1205.45 | H85: 1609.396295 | J85: serv | K85: s
A87: 8 | D87: SERVIÇOS AUXILIARES | I87: =SUM(I88) -> 
A88: 8.1 | D88: Análise da qualidade da água | I88: =SUM(I89:I91) -> 
A89: 8.1.1 | B89: SEDOP | C89: PT0009 | D89: Analise fisico-quimica da agua | E89: un | F89: ='Planilha Orçamentária'!#REF! ->  | G89: 236.71 | H89: =IF(J89="SERV",G89*(1+$H$5),G89*(1+$H$6)) -> 316.031521 | I89: =IF(J89="SERV",G89*F89*(1+$H$5),G89*F89*(1+$H$6)) ->  | J89: serv | K89: s
A90: 8.1.2 | B90: SEDOP | C90: PT0010 | D90: Analise bacteriologica | E90: un | F90: ='Planilha Orçamentária'!#REF! ->  | G90: 210.75 | H90: 281.372325 | J90: serv | K90: s
A91: 8.1.3 | B91: SEDOP | C91: PT0019 | D91: Relatório de analises e testes | E91: un | F91: ='Planilha Orçamentária'!#REF! ->  | G91: 1511.88 | H91: 2018.510988 | J91: serv | K91: s
D93: TOTAL Sem BDI: | I93: =SUMPRODUCT(F11:F92,G11:G92) -> 
D94: BDI: | I94: =I93*H5 -> 
D95: TOTAL COM BDI: | I95: =SUM(I93:I94) -> 

Sheet CPU
B1: Ministério da Integração e do Desenvolvimento Regional
B2: Companhia de Desenvolvimento dos Vales do São Francisco e do Parnaíba
B4: COMPOSIÇÕES DE PREÇOS UNITÁRIOS - ORÇAMENTO NÃO DESONERADO
B5: OBRA: | C5: ='Planilha Orçamentária'!B5 -> SERVIÇOS DE MANUTENÇÃO E OBRAS CIVIS NA BARRAGEM TRANQUEIRA | F5: BDI (serv.): | G5: ='BDI serv'!D22 -> 0.2378
B6: LOCAL: | C6: ='Planilha Orçamentária'!B6 -> BARRAGEM TRANQUEIRA, DORMENTES-PE | F6: BDI (forn.): | G6: ='BDI forn'!E6 -> 0.136
B7: DATA BASE: | C7: 2024-02-01
B8: PRAZO: | C8: 120 DIAS
B10: REFERÊNCIA | C10: CÓDIGO | D10: DESCRIÇÃO | E10: UNIDADE | F10: ÍNDICE | G10: CUSTO UNITÁRIO | H10: PREÇO TOTAL
B11: ='Planilha Orçamentária'!A12 -> 1.1 | C11: =VLOOKUP($B11,'Planilha Orçamentária'!$A$11:$I$496,3,) -> CPU.01 | D11: =VLOOKUP($B11,'Planilha Orçamentária'!$A$11:$I$496,4,) -> Administração Local | E11: =VLOOKUP($B11,'Planilha Orçamentária'!$A$11:$I$449,5,) -> MÊS | H11: =SUM(H15,H14,H13,H12) -> 28900.34 | I11: S | J11: COMENTÁRIOS
B12: =B11 -> 1.1 | D12: MATERIAL | H12: 0 | I12: ss
B13: =B11 -> 1.1 | D13: EQUIPAMENTOS | H13: 0 | I13: ss
B14: =B11 -> 1.1 | D14: SERVIÇOS | H14: 0 | I14: ss
B15: =B11 -> 1.1 | D15: MÃO DE OBRA | H15: =SUM(H16:H18) -> 28900.34 | I15: mdo
B16: SINAPI | C16: 90778 | D16: =PROPER(IF(K16="i",VLOOKUP(C16,'Ins SINAPI PE 02-2024 Onerado'!$A$8:$E$5189,2,0),VLOOKUP(C16,'Comp SINAPI PE 02-2024 Onerado'!$G$7:$K$7500,2,0))) -> Engenheiro Civil De Obra Pleno Com Encargos Complementares | E16: =LOWER(IF(K16="i",VLOOKUP(C16,'Ins SINAPI PE 02-2024 Onerado'!$A$8:$E$5189,3,0),VLOOKUP(C16,'Comp SINAPI PE 02-2024 Onerado'!$G$7:$K$7500,3,0))) -> h | F16: =1.5*5*4 -> 30 | G16: =IF(I16="i",VLOOKUP(C16,'Ins SINAPI PE 02-2024 Onerado'!$A$8:$E$5189,5,0),VLOOKUP(C16,'Comp SINAPI PE 02-2024 Onerado'!$G$7:$K$7500,5,0)) -> 126.7 | H16: =ROUND(F16*G16,2) -> 3801 | I16: ca
B17: SINAPI | C17: 93572 | D17: =PROPER(IF(K17="i",VLOOKUP(C17,'Ins SINAPI PE 02-2024 Onerado'!$A$8:$E$51890,2,0),VLOOKUP(C17,'Comp SINAPI PE 02-2024 Onerado'!$G$7:$K$7500,2,0))) -> Encarregado Geral De Obras Com Encargos Complementares | E17: =LOWER(IF(K17="i",VLOOKUP(C17,'Ins SINAPI PE 02-2024 Onerado'!$A$8:$E$5189,3,0),VLOOKUP(C17,'Comp SINAPI PE 02-2024 Onerado'!$G$7:$K$7500,3,0))) -> mes | F17: 0.8 | G17: =IF(I17="i",VLOOKUP(C17,'Ins SINAPI PE 02-2024 Onerado'!$A$8:$E$5189,5,0),VLOOKUP(C17,'Comp SINAPI PE 02-2024 Onerado'!$G$7:$K$7500,5,0)) -> 6840.17 | H17: =ROUND(F17*G17,2) -> 5472.14 | I17: ca
B18: SINAPI-11/2023 | C18: 88326 | D18: VIGIA NOTURNO COM ENCARGOS COMPLEMENTARES | E18: h | F18: ='Memorial de cálculo'!H13 -> 720 | G18: 27.26 | H18: =ROUND(F18*G18,2) -> 19627.2 | I18: ca | J18: considerando 4 vigias intercalando em dupla na jornada de 12/36
B20: ='Planilha Orçamentária'!A16 -> 2.1.1 | C20: =VLOOKUP($B20,'Planilha Orçamentária'!$A$11:$I$496,3,) -> CPU.02 | D20: =VLOOKUP($B20,'Planilha Orçamentária'!$A$11:$I$496,4,) -> Mobilização e desmobilização de instalação do canteiro | E20: =VLOOKUP($B20,'Planilha Orçamentária'!$A$11:$I$449,5,) -> UN | F20: 1 | H20: =SUM(H21,H22,H28,H30) -> 3728.89 | I20: S | J20: mobilização e desmobilização de Petrolina a barragem
B21: =B20 -> 2.1.1 | D21: MATERIAL | H21: 0 | I21: ss
B22: =B20 -> 2.1.1 | D22: EQUIPAMENTOS | H22: =SUM(H23:H27) -> 2678.81 | I22: ss
B23: SICRO | C23: E9134 | D23: Miniônibus com capacidade para 30 passageiros - 111 Kw | E23: chp | F23: ='Memorial de cálculo'!H18 -> 3.413333333 | G23: 216.48 | H23: =ROUND(F23*G23,2) -> 738.92
B24: SICRO | C24: E9134 | D24: Miniônibus com capacidade para 30 passageiros - 111 Kw | E24: chi | F24: ='Memorial de cálculo'!H21 -> 4.586666667 | G24: 73.276 | H24: =ROUND(F24*G24,2) -> 336.09
B25: SINAPI | C25: 100946 | D25: =IF(I25="i",VLOOKUP(C25,'Ins SINAPI PE 02-2024 Onerado'!$A$8:$E$5189,2,0),VLOOKUP(C25,'Comp SINAPI PE 02-2024 Onerado'!$G$7:$K$7500,2,0)) -> TRANSPORTE COM CAMINHÃO CARROCERIA 9T, EM VIA URBANA EM REVESTIMENTO PRIMÁRIO (UNIDADE: TXKM). AF_07/2020 | E25: =IF(I25="i",VLOOKUP(C25,'Ins SINAPI PE 02-2024 Onerado'!$A$8:$E$5189,3,0),VLOOKUP(C25,'Comp SINAPI PE 02-2024 Onerado'!$G$7:$K$7500,3,0)) -> TXKM | F25: ='Memorial de cálculo'!H24 -> 60 | G25: =IF(I25="i",VLOOKUP(C25,'Ins SINAPI PE 02-2024 Onerado'!$A$8:$E$5189,5,0),VLOOKUP(C25,'Comp SINAPI PE 02-2024 Onerado'!$G$7:$K$7500,5,0)) -> 2.39 | H25: =ROUND(F25*G25,2) -> 143.4 | I25: ca | J25: considerando 5 toneladas de carga e metade da distância para Petrolina
B26: SINAPI | C26: 100947 | D26: =IF(I26="i",VLOOKUP(C26,'Ins SINAPI PE 02-2024 Onerado'!$A$8:$E$5189,2,0),VLOOKUP(C26,'Comp SINAPI PE 02-2024 Onerado'!$G$7:$K$7500,2,0)) -> TRANSPORTE COM CAMINHÃO CARROCERIA 9T, EM VIA URBANA PAVIMENTADA, DMT ATÉ 30KM (UNIDADE: TXKM). AF_07/2020 | E26: =IF(I26="i",VLOOKUP(C26,'Ins SINAPI PE 02-2024 Onerado'!$A$8:$E$5189,3,0),VLOOKUP(C26,'Comp SINAPI PE 02-2024 Onerado'!$G$7:$K$7500,3,0)) -> TXKM | F26: ='Memorial de cálculo'!H27 -> 300 | G26: =IF(I26="i",VLOOKUP(C26,'Ins SINAPI PE 02-2024 Onerado'!$A$8:$E$5189,5,0),VLOOKUP(C26,'Comp SINAPI PE 02-2024 Onerado'!$G$7:$K$7500,5,0)) -> 2.2 | H26: =ROUND(F26*G26,2) -> 660 | I26: ca
B27: SINAPI | C27: 100948 | D27: =IF(I27="i",VLOOKUP(C27,'Ins SINAPI PE 02-2024 Onerado'!$A$8:$E$5189,2,0),VLOOKUP(C27,'Comp SINAPI PE 02-2024 Onerado'!$G$7:$K$7500,2,0)) -> TRANSPORTE COM CAMINHÃO CARROCERIA 9T, EM VIA URBANA PAVIMENTADA, ADICIONAL PARA DMT EXCEDENTE A 30 KM (UNIDADE: TXKM). AF_07/2020 | E27: =IF(I27="i",VLOOKUP(C27,'Ins SINAPI PE 02-2024 Onerado'!$A$8:$E$5189,3,0),VLOOKUP(C27,'Comp SINAPI PE 02-2024 Onerado'!$G$7:$K$7500,3,0)) -> TXKM | F27: ='Memorial de cálculo'!H31 -> 920 | G27: =IF(I27="i",VLOOKUP(C27,'Ins SINAPI PE 02-2024 Onerado'!$A$8:$E$5189,5,0),VLOOKUP(C27,'Comp SINAPI PE 02-2024 Onerado'!$G$7:$K$7500,5,0)) -> 0.87 | H27: =ROUND(F27*G27,2) -> 800.4 | I27: ca
B28: =B20 -> 2.1.1 | D28: SERVIÇOS | H28: =H29 -> 720 | I28: ss
B29: COTAÇÃO | C29: CT.01 | D29: Hospedagem | E29: un | F29: 8 | G29: =Cotações!O$11 -> 90 | H29: =ROUND(F29*G29,2) -> 720 | J29: 4 pessoas em dois dias.
B30: =B20 -> 2.1.1 | D30: MÃO DE OBRA | H30: =H31 -> 330.08 | I30: ss
B31: SINAPI | C31: 88284 | D31: =PROPER(IF(K31="i",VLOOKUP(C31,'Ins SINAPI PE 02-2024 Onerado'!$A$8:$E$5189,2,0),VLOOKUP(C31,'Comp SINAPI PE 02-2024 Onerado'!$G$7:$K$7500,2,0))) -> Motorista De Veículo Leve Com Encargos Complementares | E31: =LOWER(IF(K31="i",VLOOKUP(C31,'Ins SINAPI PE 02-2024 Onerado'!$A$8:$E$5189,3,0),VLOOKUP(C31,'Comp SINAPI PE 02-2024 Onerado'!$G$7:$K$7500,3,0))) -> h | F31: 16 | G31: =IF(I31="i",VLOOKUP(C31,'Ins SINAPI PE 02-2024 Onerado'!$A$8:$E$5189,5,0),VLOOKUP(C31,'Comp SINAPI PE 02-2024 Onerado'!$G$7:$K$7500,5,0)) -> 20.63 | H31: =ROUND(F31*G31,2) -> 330.08 | I31: ca
I32: x
B33: ='Planilha Orçamentária'!A18 -> 2.2.1 | C33: =VLOOKUP($B33,'Planilha Orçamentária'!$A$11:$I$496,3,) -> CPU.03 | D33: =VLOOKUP($B33,'Planilha Orçamentária'!$A$11:$I$494,4,) -> Execução de canteiro de obras, inclusive, limpeza, refeitório, sanitários e central de formas | E33: =VLOOKUP($B33,'Planilha Orçamentária'!$A$11:$I$449,5,) -> M2 | H33: =SUM(H34,H35,H36,H43) -> 830.06 | I33: S
D34: MATERIAL | I34: ss
B35: =B33 -> 2.2.1 | D35: EQUIPAMENTOS | I35: ss
B36: =B33 -> 2.2.1 | D36: SERVIÇOS | H36: =SUM(H37:H42) -> 830.06 | I36: ss
B37: SINAPI | C37: 98524 | D37: =PROPER(IF(I37="i",VLOOKUP(C37,'Ins SINAPI PE 02-2024 Onerado'!$A$8:$E$5189,2,0),VLOOKUP(C37,'Comp SINAPI PE 02-2024 Onerado'!$G$7:$K$7500,2,0))) -> Limpeza Manual De Vegetação Em Terreno Com Enxada.Af_05/2018 | E37: =IF(I37="i",VLOOKUP(C37,'Ins SINAPI PE 02-2024 Onerado'!$A$8:$E$5189,3,0),VLOOKUP(C37,'Comp SINAPI PE 02-2024 Onerado'!$G$7:$K$7500,3,0)) -> M2 | F37: 1 | G37: =IF(I37="i",VLOOKUP(C37,'Ins SINAPI PE 02-2024 Onerado'!$A$8:$E$5189,5,0),VLOOKUP(C37,'Comp SINAPI PE 02-2024 Onerado'!$G$7:$K$7500,5,0)) -> 2.97 | H37: =ROUND(F37*G37,2) -> 2.97 | I37: ca
B38: SINAPI | C38: 94975 | D38: =PROPER(IF(I38="i",VLOOKUP(C38,'Ins SINAPI PE 02-2024 Onerado'!$A$8:$E$5189,2,0),VLOOKUP(C38,'Comp SINAPI PE 02-2024 Onerado'!$G$7:$K$7500,2,0))) -> Concreto Fck = 15Mpa, Traço 1:3,4:3,5 (Em Massa Seca De Cimento/ Areia Média/ Brita 1) - Preparo Manual. Af_05/2021 | E38: =IF(I38="i",VLOOKUP(C38,'Ins SINAPI PE 02-2024 Onerado'!$A$8:$E$5189,3,0),VLOOKUP(C38,'Comp SINAPI PE 02-2024 Onerado'!$G$7:$K$7500,3,0)) -> M3 | F38: 0.05 | G38: =IF(I38="i",VLOOKUP(C38,'Ins SINAPI PE 02-2024 Onerado'!$A$8:$E$5189,5,0),VLOOKUP(C38,'Comp SINAPI PE 02-2024 Onerado'!$G$7:$K$7500,5,0)) -> 487.54 | H38: 24.38 | I38: ca
B39: SINAPI | C39: 93210 | D39: Execução De Refeitório Em Canteiro De Obra Em Chapa De Madeira Compensada, Não Incluso Mobiliário E Equipamentos. Af_02/2016 | E39: M2 | F39: 0.26 | G39: 632.64 | H39: 164.49 | I39: ca
B40: SINAPI | C40: 93212 | D40: Execução De Sanitário E Vestiário Em Canteiro De Obra Em Chapa De Madeira Compensada, Não Incluso Mobiliário. Af_02/2016 | E40: M2 | F40: 0.32 | G40: 1038.41 | H40: 332.29 | I40: ca
B41: SINAPI | C41: 93583 | D41: Execução De Central De Fôrmas, Produção De Argamassa Ou Concreto Em Canteiro De Obra, Não Incluso Mobiliário E Equipamentos. Af_04/2016 | E41: M2 | F41: 0.42 | G41: 514.11 | H41: 215.93 | I41: ca
B42: COTAÇÃO | C42: CT.01 | D42: Hospedagem | E42: un | F42: 1 | G42: =Cotações!O$11 -> 90 | H42: =ROUND(F42*G42,2) -> 90 | I42: ca
B43: =B33 -> 2.2.1 | D43: MÃO DE OBRA | I43: mdo
B45: ='Planilha Orçamentária'!A20 -> 2.3.1 | C45: =VLOOKUP($B45,'Planilha Orçamentária'!$A$11:$I$496,3,) -> CPU.04 | D45: =VLOOKUP($B45,'Planilha Orçamentária'!$A$11:$I$496,4,) -> Placa De Obra Em Chapa De Aco Galvanizado | E45: =VLOOKUP($B45,'Planilha Orçamentária'!$A$11:$I$65,5) -> M2 | H45: =SUM(H46,H57,H52,H56) -> 398.19 | I45: S
B46: =B45 -> 2.3.1 | D46: MATERIAL | H46: =SUM(H47:H51) -> 330.88 | I46: SS
B47: SINAPI | C47: 4417 | D47: =PROPER(IF(I47="i",VLOOKUP(C47,'Ins SINAPI PE 02-2024 Onerado'!$A$8:$E$5189,2,0),VLOOKUP(C47,'Comp SINAPI PE 02-2024 Onerado'!$G$7:$K$7500,2,0))) -> Sarrafo Nao Aparelhado *2,5 X 7* Cm, Em Macaranduba/Massaranduba, Angelim, Peroba-Rosa Ou Equivalente Da Regiao - Bruta | E47: =IF(I47="i",VLOOKUP(C47,'Ins SINAPI PE 02-2024 Onerado'!$A$8:$E$5189,3,0),VLOOKUP(C47,'Comp SINAPI PE 02-2024 Onerado'!$G$7:$K$7500,3,0)) -> M | F47: 2 | G47: =IF(I47="i",VLOOKUP(C47,'Ins SINAPI PE 02-2024 Onerado'!$A$8:$E$5189,5,0),VLOOKUP(C47,'Comp SINAPI PE 02-2024 Onerado'!$G$7:$K$7500,5,0)) -> 8.02 | H47: =ROUND(F47*G47,2) -> 16.04 | I47: I
B48: SINAPI | C48: 4430 | D48: =PROPER(IF(I48="i",VLOOKUP(C48,'Ins SINAPI PE 02-2024 Onerado'!$A$8:$E$5189,2,0),VLOOKUP(C48,'Comp SINAPI PE 02-2024 Onerado'!$G$7:$K$7500,2,0))) -> Caibro Nao Aparelhado *5 X 6* Cm, Em Macaranduba/Massaranduba, Angelim Ou Equivalente Da Regiao - Bruta | E48: =IF(I48="i",VLOOKUP(C48,'Ins SINAPI PE 02-2024 Onerado'!$A$8:$E$5189,3,0),VLOOKUP(C48,'Comp SINAPI PE 02-2024 Onerado'!$G$7:$K$7500,3,0)) -> M | F48: 4 | G48: =IF(I48="i",VLOOKUP(C48,'Ins SINAPI PE 02-2024 Onerado'!$A$8:$E$5189,5,0),VLOOKUP(C48,'Comp SINAPI PE 02-2024 Onerado'!$G$7:$K$7500,5,0)) -> 14.75 | H48: =ROUND(F48*G48,2) -> 59 | I48: I
B49: SINAPI | C49: 4813 | D49: =PROPER(IF(I49="i",VLOOKUP(C49,'Ins SINAPI PE 02-2024 Onerado'!$A$8:$E$5189,2,0),VLOOKUP(C49,'Comp SINAPI PE 02-2024 Onerado'!$G$7:$K$7500,2,0))) -> Placa De Obra (Para Construcao Civil) Em Chapa Galvanizada *N. 22*, Adesivada, De *2,4 X 1,2* M (Sem Postes Para Fixacao) | E49: =IF(I49="i",VLOOKUP(C49,'Ins SINAPI PE 02-2024 Onerado'!$A$8:$E$5189,3,0),VLOOKUP(C49,'Comp SINAPI PE 02-2024 Onerado'!$G$7:$K$7500,3,0)) -> M2 | F49: 1 | G49: =IF(I49="i",VLOOKUP(C49,'Ins SINAPI PE 02-2024 Onerado'!$A$8:$E$5189,5,0),VLOOKUP(C49,'Comp SINAPI PE 02-2024 Onerado'!$G$7:$K$7500,5,0)) -> 250 | H49: 250 | I49: I
B50: SINAPI | C50: 5075 | D50: =PROPER(IF(I50="i",VLOOKUP(C50,'Ins SINAPI PE 02-2024 Onerado'!$A$8:$E$5189,2,0),VLOOKUP(C50,'Comp SINAPI PE 02-2024 Onerado'!$G$7:$K$7500,2,0))) -> Prego De Aco Polido Com Cabeca 18 X 30 (2 3/4 X 10) | E50: =IF(I50="i",VLOOKUP(C50,'Ins SINAPI PE 02-2024 Onerado'!$A$8:$E$5189,3,0),VLOOKUP(C50,'Comp SINAPI PE 02-2024 Onerado'!$G$7:$K$7500,3,0)) -> KG | F50: 0.11 | G50: =IF(I50="i",VLOOKUP(C50,'Ins SINAPI PE 02-2024 Onerado'!$A$8:$E$5189,5,0),VLOOKUP(C50,'Comp SINAPI PE 02-2024 Onerado'!$G$7:$K$7500,5,0)) -> 16.14 | H50: 1.78 | I50: I
B51: SINAPI | C51: 94962 | D51: =PROPER(IF(I51="i",VLOOKUP(C51,'Ins SINAPI PE 02-2024 Onerado'!$A$8:$E$5189,2,0),VLOOKUP(C51,'Comp SINAPI PE 02-2024 Onerado'!$G$7:$K$7500,2,0))) -> Concreto Magro Para Lastro, Traço 1:4,5:4,5 (Em Massa Seca De Cimento/ Areia Média/ Brita 1) - Preparo Mecânico Com Betoneira 400 L. Af_05/2021 | E51: =IF(I51="i",VLOOKUP(C51,'Ins SINAPI PE 02-2024 Onerado'!$A$8:$E$5189,3,0),VLOOKUP(C51,'Comp SINAPI PE 02-2024 Onerado'!$G$7:$K$7500,3,0)) -> M3 | F51: 0.01 | G51: =IF(I51="i",VLOOKUP(C51,'Ins SINAPI PE 02-2024 Onerado'!$A$8:$E$5189,5,0),VLOOKUP(C51,'Comp SINAPI PE 02-2024 Onerado'!$G$7:$K$7500,5,0)) -> 406.36 | H51: 4.06 | I51: ca
B52: =B45 -> 2.3.1 | D52: EQUIPAMENTOS | H52: =SUM(H53:H55) -> 1.65 | I52: SS
B53: SINAPI | C53: 100946 | D53: =PROPER(IF(I53="i",VLOOKUP(C53,'Ins SINAPI PE 02-2024 Onerado'!$A$8:$E$5189,2,0),VLOOKUP(C53,'Comp SINAPI PE 02-2024 Onerado'!$G$7:$K$7500,2,0))) -> Transporte Com Caminhão Carroceria 9T, Em Via Urbana Em Revestimento Primário (Unidade: Txkm). Af_07/2020 | E53: =IF(I53="i",VLOOKUP(C53,'Ins SINAPI PE 02-2024 Onerado'!$A$8:$E$5189,3,0),VLOOKUP(C53,'Comp SINAPI PE 02-2024 Onerado'!$G$7:$K$7500,3,0)) -> TXKM | F53: ='Memorial de cálculo'!G6*0.01 -> 0.06 | G53: =IF(I53="i",VLOOKUP(C53,'Ins SINAPI PE 02-2024 Onerado'!$A$8:$E$5189,5,0),VLOOKUP(C53,'Comp SINAPI PE 02-2024 Onerado'!$G$7:$K$7500,5,0)) -> 2.39 | H53: =ROUND(F53*G53,2) -> 0.14 | I53: ca | K53: Peso teórico de chapa de 1,25 mm -> 10kg/m² | N53: =10/1000 -> 0.01
B54: SINAPI | C54: 100947 | D54: =PROPER(IF(I54="i",VLOOKUP(C54,'Ins SINAPI PE 02-2024 Onerado'!$A$8:$E$5189,2,0),VLOOKUP(C54,'Comp SINAPI PE 02-2024 Onerado'!$G$7:$K$7500,2,0))) -> Transporte Com Caminhão Carroceria 9T, Em Via Urbana Pavimentada, Dmt Até 30Km (Unidade: Txkm). Af_07/2020 | E54: =IF(I54="i",VLOOKUP(C54,'Ins SINAPI PE 02-2024 Onerado'!$A$8:$E$5189,3,0),VLOOKUP(C54,'Comp SINAPI PE 02-2024 Onerado'!$G$7:$K$7500,3,0)) -> TXKM | F54: =(30)*0.01 -> 0.3 | G54: =IF(I54="i",VLOOKUP(C54,'Ins SINAPI PE 02-2024 Onerado'!$A$8:$E$5189,5,0),VLOOKUP(C54,'Comp SINAPI PE 02-2024 Onerado'!$G$7:$K$7500,5,0)) -> 2.2 | H54: 0.66 | I54: ca
B55: SINAPI | C55: 100948 | D55: =PROPER(IF(I55="i",VLOOKUP(C55,'Ins SINAPI PE 02-2024 Onerado'!$A$8:$E$5189,2,0),VLOOKUP(C55,'Comp SINAPI PE 02-2024 Onerado'!$G$7:$K$7500,2,0))) -> Transporte Com Caminhão Carroceria 9T, Em Via Urbana Pavimentada, Adicional Para Dmt Excedente A 30 Km (Unidade: Txkm). Af_07/2020 | E55: =IF(I55="i",VLOOKUP(C55,'Ins SINAPI PE 02-2024 Onerado'!$A$8:$E$5189,3,0),VLOOKUP(C55,'Comp SINAPI PE 02-2024 Onerado'!$G$7:$K$7500,3,0)) -> TXKM | F55: =('Memorial de cálculo'!G5-30)*0.01 -> 0.98 | G55: =IF(I55="i",VLOOKUP(C55,'Ins SINAPI PE 02-2024 Onerado'!$A$8:$E$5189,5,0),VLOOKUP(C55,'Comp SINAPI PE 02-2024 Onerado'!$G$7:$K$7500,5,0)) -> 0.87 | H55: =ROUND(F55*G55,2) -> 0.85 | I55: ca
B56: =B45 -> 2.3.1 | D56: SERVIÇOS | H56: 0 | I56: SS
B57: =B45 -> 2.3.1 | D57: MÃO DE OBRA | H57: =SUM(H58:H59) -> 65.66 | I57: ss
B58: SINAPI | C58: 88262 | D58: =PROPER(IF(I58="i",VLOOKUP(C58,'Ins SINAPI PE 02-2024 Onerado'!$A$8:$E$5189,2,0),VLOOKUP(C58,'Comp SINAPI PE 02-2024 Onerado'!$G$7:$K$7500,2,0))) -> Carpinteiro De Formas Com Encargos Complementares | E58: =IF(I58="i",VLOOKUP(C58,'Ins SINAPI PE 02-2024 Onerado'!$A$8:$E$5189,3,0),VLOOKUP(C58,'Comp SINAPI PE 02-2024 Onerado'!$G$7:$K$7500,3,0)) -> H | F58: 1 | G58: =IF(I58="i",VLOOKUP(C58,'Ins SINAPI PE 02-2024 Onerado'!$A$8:$E$5189,5,0),VLOOKUP(C58,'Comp SINAPI PE 02-2024 Onerado'!$G$7:$K$7500,5,0)) -> 25.1 | H58: =ROUND(F58*G58,2) -> 25.1 | I58: ca
B59: SINAPI | C59: 88316 | D59: =PROPER(IF(I59="i",VLOOKUP(C59,'Ins SINAPI PE 02-2024 Onerado'!$A$8:$E$5189,2,0),VLOOKUP(C59,'Comp SINAPI PE 02-2024 Onerado'!$G$7:$K$7500,2,0))) -> Servente Com Encargos Complementares | E59: =IF(I59="i",VLOOKUP(C59,'Ins SINAPI PE 02-2024 Onerado'!$A$8:$E$5189,3,0),VLOOKUP(C59,'Comp SINAPI PE 02-2024 Onerado'!$G$7:$K$7500,3,0)) -> H | F59: 2 | G59: =IF(I59="i",VLOOKUP(C59,'Ins SINAPI PE 02-2024 Onerado'!$A$8:$E$5189,5,0),VLOOKUP(C59,'Comp SINAPI PE 02-2024 Onerado'!$G$7:$K$7500,5,0)) -> 20.28 | H59: =ROUND(F59*G59,2) -> 40.56 | I59: ca
B61: ='Planilha Orçamentária'!A24 -> 3.1.1 | C61: =VLOOKUP($B61,'Planilha Orçamentária'!$A$11:$I$496,3,) -> CPU.05 | D61: =VLOOKUP($B61,'Planilha Orçamentária'!$A$11:$I$496,4,) -> Limpeza de vegetação | E61: =VLOOKUP($B61,'Planilha Orçamentária'!$A$11:$I$65,5) -> M2 | H61: =H62+H63+H64+H71 -> 9.51 | I61: S
B62: =B61 -> 3.1.1 | D62: MATERIAL | H62: 0 | I62: SS
B63: =B61 -> 3.1.1 | D63: EQUIPAMENTOS | H63: 0 | I63: SS
B64: =B61 -> 3.1.1 | D64: SERVIÇOS | H64: =SUM(H65:H70) -> 9.51 | I64: SS
B65: SINAPI | C65: 98524 | D65: =PROPER(IF(I65="i",VLOOKUP(C65,'Ins SINAPI PE 02-2024 Onerado'!$A$8:$E$5189,2,0),VLOOKUP(C65,'Comp SINAPI PE 02-2024 Onerado'!$G$7:$K$7500,2,0))) -> Limpeza Manual De Vegetação Em Terreno Com Enxada.Af_05/2018 | E65: =IF(I65="i",VLOOKUP(C65,'Ins SINAPI PE 02-2024 Onerado'!$A$8:$E$5189,3,0),VLOOKUP(C65,'Comp SINAPI PE 02-2024 Onerado'!$G$7:$K$7500,3,0)) -> M2 | F65: 1 | G65: =IF(I65="i",VLOOKUP(C65,'Ins SINAPI PE 02-2024 Onerado'!$A$8:$E$5189,5,0),VLOOKUP(C65,'Comp SINAPI PE 02-2024 Onerado'!$G$7:$K$7500,5,0)) -> 2.97 | H65: =ROUND(F65*G65,2) -> 2.97 | I65: ca
B66: COTAÇÃO | C66: CT.01 | D66: Hospedagem | E66: un | F66: =('Memorial de cálculo'!D47*'Memorial de cálculo'!H47+'Memorial de cálculo'!D48*'Memorial de cálculo'!H48) -> 0.01795 | G66: =Cotações!O11 -> 90 | H66: =ROUND(F66*G66,2) -> 1.62 | I66: ca
B67: SICRO | C67: E9134 | D67: Miniônibus com capacidade para 30 passageiros - 111 Kw | E67: chp | F67: =F66*'Memorial de cálculo'!H7*0.3 -> 0.0087955 | G67: 216.48 | H67: 1.9 | I67: ca
B68: SICRO | C68: E9134 | D68: Miniônibus com capacidade para 30 passageiros - 111 Kw | E68: chi | F68: =F66*(8-'Memorial de cálculo'!H7)*0.3 -> 0.0342845 | G68: 73.28 | H68: 2.51 | I68: ca
B69: SINAPI | C69: 97912 | D69: =PROPER(IF(I69="i",VLOOKUP(C69,'Ins SINAPI PE 02-2024 Onerado'!$A$8:$E$5189,2,0),VLOOKUP(C69,'Comp SINAPI PE 02-2024 Onerado'!$G$7:$K$7500,2,0))) -> Transporte Com Caminhão Basculante De 6 M³, Em Via Urbana Em Leito Natural (Unidade: M3Xkm). Af_07/2020 | E69: =IF(I69="i",VLOOKUP(C69,'Ins SINAPI PE 02-2024 Onerado'!$A$8:$E$5189,3,0),VLOOKUP(C69,'Comp SINAPI PE 02-2024 Onerado'!$G$7:$K$7500,3,0)) -> M3XKM | F69: =0.01*7.5 -> 0.075 | G69: =IF(I69="i",VLOOKUP(C69,'Ins SINAPI PE 02-2024 Onerado'!$A$8:$E$5189,5,0),VLOOKUP(C69,'Comp SINAPI PE 02-2024 Onerado'!$G$7:$K$7500,5,0)) -> 3.64 | H69: 0.27 | I69: ca | J69: Bota fora = raio de 15km
B70: SINAPI | C70: 97913 | D70: =PROPER(IF(I70="i",VLOOKUP(C70,'Ins SINAPI PE 02-2024 Onerado'!$A$8:$E$5189,2,0),VLOOKUP(C70,'Comp SINAPI PE 02-2024 Onerado'!$G$7:$K$7500,2,0))) -> Transporte Com Caminhão Basculante De 6 M³, Em Via Urbana Em Revestimento Primário (Unidade: M3Xkm). Af_07/2020 | E70: =IF(I70="i",VLOOKUP(C70,'Ins SINAPI PE 02-2024 Onerado'!$A$8:$E$5189,3,0),VLOOKUP(C70,'Comp SINAPI PE 02-2024 Onerado'!$G$7:$K$7500,3,0)) -> M3XKM | F70: =0.01*7.5 -> 0.075 | G70: =IF(I70="i",VLOOKUP(C70,'Ins SINAPI PE 02-2024 Onerado'!$A$8:$E$5189,5,0),VLOOKUP(C70,'Comp SINAPI PE 02-2024 Onerado'!$G$7:$K$7500,5,0)) -> 3.16 | H70: 0.24 | I70: ca
B71: =B61 -> 3.1.1 | D71: MÃO DE OBRA | I71: ss
I72: x
B73: ='Planilha Orçamentária'!A25 -> 3.1.2 | C73: =VLOOKUP($B73,'Planilha Orçamentária'!$A$11:$I$496,3,) -> CPU.06 | D73: =VLOOKUP($B73,'Planilha Orçamentária'!$A$11:$I$496,4,) -> Corte de tronco e remoção de raiz | E73: =VLOOKUP($B73,'Planilha Orçamentária'!$A$11:$I$65,5) -> UN | H73: =SUM(H74,H84,H75,H76) -> 361.17 | I73: S
B74: =B73 -> 3.1.2 | D74: MATERIAL | I74: ss
B75: =B73 -> 3.1.2 | D75: EQUIPAMENTOS | H75: 0 | I75: ss
B76: =B73 -> 3.1.2 | D76: SERVIÇOS | H76: =SUM(H77:H83) -> 361.17 | I76: ss
B77: SINAPI | C77: 98529 | D77: =PROPER(IF(I77="i",VLOOKUP(C77,'Ins SINAPI PE 02-2024 Onerado'!$A$8:$E$5189,2,0),VLOOKUP(C77,'Comp SINAPI PE 02-2024 Onerado'!$G$7:$K$7500,2,0))) -> Corte Raso E Recorte De Árvore Com Diâmetro De Tronco Maior Ou Igual A 0,20 M E Menor Que 0,40 M.Af_05/2018 | E77: =IF(I77="i",VLOOKUP(C77,'Ins SINAPI PE 02-2024 Onerado'!$A$8:$E$5189,3,0),VLOOKUP(C77,'Comp SINAPI PE 02-2024 Onerado'!$G$7:$K$7500,3,0)) -> UN | F77: 1 | G77: =IF(I77="i",VLOOKUP(C77,'Ins SINAPI PE 02-2024 Onerado'!$A$8:$E$5189,5,0),VLOOKUP(C77,'Comp SINAPI PE 02-2024 Onerado'!$G$7:$K$7500,5,0)) -> 64.06 | H77: =ROUND(F77*G77,2) -> 64.06 | I77: ca
B78: SINAPI | C78: 98526 | D78: =PROPER(IF(I78="i",VLOOKUP(C78,'Ins SINAPI PE 02-2024 Onerado'!$A$8:$E$5189,2,0),VLOOKUP(C78,'Comp SINAPI PE 02-2024 Onerado'!$G$7:$K$7500,2,0))) -> Remoção De Raízes Remanescentes De Tronco De Árvore Com Diâmetro Maior Ou Igual A 0,20 M E Menor Que 0,40 M.Af_05/2018 | E78: =IF(I78="i",VLOOKUP(C78,'Ins SINAPI PE 02-2024 Onerado'!$A$8:$E$5189,3,0),VLOOKUP(C78,'Comp SINAPI PE 02-2024 Onerado'!$G$7:$K$7500,3,0)) -> UN | F78: 1 | G78: =IF(I78="i",VLOOKUP(C78,'Ins SINAPI PE 02-2024 Onerado'!$A$8:$E$5189,5,0),VLOOKUP(C78,'Comp SINAPI PE 02-2024 Onerado'!$G$7:$K$7500,5,0)) -> 88.78 | H78: =ROUND(F78*G78,2) -> 88.78 | I78: ca
B79: COTAÇÃO | C79: CT.01 | D79: Hospedagem | E79: un | F79: ='Memorial de cálculo'!D52*'Memorial de cálculo'!H52+'Memorial de cálculo'!D53*'Memorial de cálculo'!H53 -> 0.38610375 | G79: =Cotações!O11 -> 90 | H79: =ROUND(F79*G79,2) -> 34.75 | I79: ca
B80: SICRO | C80: E9134 | D80: Miniônibus com capacidade para 30 passageiros - 111 Kw | E80: chp | F80: =F79*'Memorial de cálculo'!H7*0.5 -> 0.3153180625 | G80: 216.48 | H80: 68.26 | I80: ca
B81: SICRO | C81: E9134 | D81: Miniônibus com capacidade para 30 passageiros - 111 Kw | E81: chi | F81: =F79*(8-'Memorial de cálculo'!H7)*0.5 -> 1.229096938 | G81: 73.276 | H81: 90.06 | I81: ca
B82: SINAPI | C82: 93592 | D82: =PROPER(IF(I82="i",VLOOKUP(C82,'Ins SINAPI PE 02-2024 Onerado'!$A$8:$E$5189,2,0),VLOOKUP(C82,'Comp SINAPI PE 02-2024 Onerado'!$G$7:$K$7500,2,0))) -> Transporte Com Caminhão Basculante De 14 M³, Em Via Urbana Em Revestimento Primário (Unidade: M3Xkm). Af_07/2020 | E82: =IF(I82="i",VLOOKUP(C82,'Ins SINAPI PE 02-2024 Onerado'!$A$8:$E$5189,3,0),VLOOKUP(C82,'Comp SINAPI PE 02-2024 Onerado'!$G$7:$K$7500,3,0)) -> M3XKM | F82: =0.4*0.4*4*7.5 -> 4.8 | G82: =IF(I82="i",VLOOKUP(C82,'Ins SINAPI PE 02-2024 Onerado'!$A$8:$E$5189,5,0),VLOOKUP(C82,'Comp SINAPI PE 02-2024 Onerado'!$G$7:$K$7500,5,0)) -> 2.33 | H82: =ROUND(F82*G82,2) -> 11.18 | I82: ca | J82: Bota fora = raio de 15km
B83: SINAPI | C83: 93593 | D83: =PROPER(IF(I82="i",VLOOKUP(C82,'Ins SINAPI PE 02-2024 Onerado'!$A$8:$E$5189,2,0),VLOOKUP(C82,'Comp SINAPI PE 02-2024 Onerado'!$G$7:$K$7500,2,0))) -> Transporte Com Caminhão Basculante De 14 M³, Em Via Urbana Em Revestimento Primário (Unidade: M3Xkm). Af_07/2020 | E83: =IF(I83="i",VLOOKUP(C83,'Ins SINAPI PE 02-2024 Onerado'!$A$8:$E$5189,3,0),VLOOKUP(C83,'Comp SINAPI PE 02-2024 Onerado'!$G$7:$K$7500,3,0)) -> M3XKM | F83: =0.4*0.4*4*7.5 -> 4.8 | G83: =IF(I83="i",VLOOKUP(C83,'Ins SINAPI PE 02-2024 Onerado'!$A$8:$E$5189,5,0),VLOOKUP(C83,'Comp SINAPI PE 02-2024 Onerado'!$G$7:$K$7500,5,0)) -> 0.85 | H83: =ROUND(F83*G83,2) -> 4.08 | I83: ca | J83: Bota fora = raio de 15km
B84: =B70 -> SINAPI | D84: MÃO DE OBRA | I84: ss
B86: ='Planilha Orçamentária'!A29 -> 4.1.1 | C86: =VLOOKUP($B86,'Planilha Orçamentária'!$A$11:$I$496,3,) -> CPU.07 | D86: =VLOOKUP($B86,'Planilha Orçamentária'!$A$11:$I$496,4,) -> Recuperação do aterro da barragem, inclusive, escavação e compactação | E86: =VLOOKUP($B86,'Planilha Orçamentária'!$A$11:$I$496,5,) -> M3 | H86: =SUM(H87,H101,H89,H90) -> 256.87 | I86: S
B87: =B86 -> 4.1.1 | D87: MATERIAL | H87: =H88 -> 60.56 | I87: ss
B88: SINAPI | C88: 6081 | D88: =PROPER(IF(I88="i",VLOOKUP(C88,'Ins SINAPI PE 02-2024 Onerado'!$A$8:$E$5189,2,0),VLOOKUP(C88,'Comp SINAPI PE 02-2024 Onerado'!$G$7:$K$7500,2,0))) -> Argila Ou Barro Para Aterro/Reaterro (Com Transporte Ate 10 Km) | E88: =IF(I88="i",VLOOKUP(C88,'Ins SINAPI PE 02-2024 Onerado'!$A$8:$E$5189,3,0),VLOOKUP(C88,'Comp SINAPI PE 02-2024 Onerado'!$G$7:$K$7500,3,0)) -> M3 | F88: 1.1 | G88: =IF(I88="i",VLOOKUP(C88,'Ins SINAPI PE 02-2024 Onerado'!$A$8:$E$5189,5,0),VLOOKUP(C88,'Comp SINAPI PE 02-2024 Onerado'!$G$7:$K$7500,5,0)) -> 55.05 | H88: =ROUND(F88*G88,2) -> 60.56 | I88: i
B89: =B86 -> 4.1.1 | D89: EQUIPAMENTOS | H89: 0 | I89: ss
B90: =B86 -> 4.1.1 | D90: SERVIÇOS | H90: =SUM(H91:H100) -> 196.31 | I90: ss
B91: SINAPI | C91: 100951 | D91: =PROPER(IF(I91="i",VLOOKUP(C91,'Ins SINAPI PE 02-2024 Onerado'!$A$8:$E$5189,2,0),VLOOKUP(C91,'Comp SINAPI PE 02-2024 Onerado'!$G$7:$K$7500,2,0))) -> Transporte Com Caminhão Carroceria Com Guindauto (Munck), Momento Máximo De Carga 11,7 Tm, Em Via Urbana Em Revestimento Primário (Unidade: Txkm). Af_07/2020 | E91: =IF(I91="i",VLOOKUP(C91,'Ins SINAPI PE 02-2024 Onerado'!$A$8:$E$5189,3,0),VLOOKUP(C91,'Comp SINAPI PE 02-2024 Onerado'!$G$7:$K$7500,3,0)) -> TXKM | F91: =20*'Memorial de cálculo'!G6*2/'Memorial de cálculo'!H57 -> 0.48 | G91: =IF(I91="i",VLOOKUP(C91,'Ins SINAPI PE 02-2024 Onerado'!$A$8:$E$5189,5,0),VLOOKUP(C91,'Comp SINAPI PE 02-2024 Onerado'!$G$7:$K$7500,5,0)) -> 3.05 | H91: =ROUND(F91*G91,2) -> 1.46 | I91: ca
B92: SINAPI | C92: 101230 | D92: =PROPER(IF(I92="i",VLOOKUP(C92,'Ins SINAPI PE 02-2024 Onerado'!$A$8:$E$5189,2,0),VLOOKUP(C92,'Comp SINAPI PE 02-2024 Onerado'!$G$7:$K$7500,2,0))) -> Escavação Vertical Para Infraestrutura, Com Carga, Descarga E Transporte De Solo De 1ª Categoria, Com Escavadeira Hidráulica (Caçamba: 0,8 M³ / 111 Hp), Frota De 3 Caminhões Basculantes De 14 M³, Dmt Até 1 Km E Velocidade Média14 Km/H. Af_05/2020 | E92: =IF(I92="i",VLOOKUP(C92,'Ins SINAPI PE 02-2024 Onerado'!$A$8:$E$5189,3,0),VLOOKUP(C92,'Comp SINAPI PE 02-2024 Onerado'!$G$7:$K$7500,3,0)) -> M3 | F92: 0.7 | G92: =IF(I92="i",VLOOKUP(C92,'Ins SINAPI PE 02-2024 Onerado'!$A$8:$E$5189,5,0),VLOOKUP(C92,'Comp SINAPI PE 02-2024 Onerado'!$G$7:$K$7500,5,0)) -> 11.03 | H92: =ROUND(F92*G92,2) -> 7.72 | I92: ca | L92: =450/2250 -> 0.2
B93: SINAPI | C93: 100976 | D93: =PROPER(IF(I93="i",VLOOKUP(C93,'Ins SINAPI PE 02-2024 Onerado'!$A$8:$E$5189,2,0),VLOOKUP(C93,'Comp SINAPI PE 02-2024 Onerado'!$G$7:$K$7500,2,0))) -> Carga, Manobra E Descarga De Solos E Materiais Granulares Em Caminhão Basculante 18 M³ - Carga Com Pá Carregadeira (Caçamba De 1,7 A 2,8 M³ / 128 Hp) E Descarga Livre (Unidade: M3). Af_07/2020 | E93: =IF(I93="i",VLOOKUP(C93,'Ins SINAPI PE 02-2024 Onerado'!$A$8:$E$5189,3,0),VLOOKUP(C93,'Comp SINAPI PE 02-2024 Onerado'!$G$7:$K$7500,3,0)) -> M3 | F93: 1 | G93: =IF(I93="i",VLOOKUP(C93,'Ins SINAPI PE 02-2024 Onerado'!$A$8:$E$5189,5,0),VLOOKUP(C93,'Comp SINAPI PE 02-2024 Onerado'!$G$7:$K$7500,5,0)) -> 8.47 | H93: =ROUND(F93*G93,2) -> 8.47 | I93: ca
B94: SINAPI | C94: 93592 | D94: =PROPER(IF(I94="i",VLOOKUP(C94,'Ins SINAPI PE 02-2024 Onerado'!$A$8:$E$5189,2,0),VLOOKUP(C94,'Comp SINAPI PE 02-2024 Onerado'!$G$7:$K$7500,2,0))) -> Transporte Com Caminhão Basculante De 14 M³, Em Via Urbana Em Revestimento Primário (Unidade: M3Xkm). Af_07/2020 | E94: =IF(I94="i",VLOOKUP(C94,'Ins SINAPI PE 02-2024 Onerado'!$A$8:$E$5189,3,0),VLOOKUP(C94,'Comp SINAPI PE 02-2024 Onerado'!$G$7:$K$7500,3,0)) -> M3XKM | F94: ='Memorial de cálculo'!G6 -> 6 | G94: =IF(I94="i",VLOOKUP(C94,'Ins SINAPI PE 02-2024 Onerado'!$A$8:$E$5189,5,0),VLOOKUP(C94,'Comp SINAPI PE 02-2024 Onerado'!$G$7:$K$7500,5,0)) -> 2.33 | H94: =ROUND(F94*G94,2) -> 13.98 | I94: ca
B95: SINAPI | C95: 95876 | D95: =PROPER(IF(I95="i",VLOOKUP(C95,'Ins SINAPI PE 02-2024 Onerado'!$A$8:$E$5189,2,0),VLOOKUP(C95,'Comp SINAPI PE 02-2024 Onerado'!$G$7:$K$7500,2,0))) -> Transporte Com Caminhão Basculante De 14 M³, Em Via Urbana Pavimentada, Dmt Até 30 Km (Unidade: M3Xkm). Af_07/2020 | E95: =IF(I95="i",VLOOKUP(C95,'Ins SINAPI PE 02-2024 Onerado'!$A$8:$E$5189,3,0),VLOOKUP(C95,'Comp SINAPI PE 02-2024 Onerado'!$G$7:$K$7500,3,0)) -> M3XKM | F95: 30 | G95: =IF(I95="i",VLOOKUP(C95,'Ins SINAPI PE 02-2024 Onerado'!$A$8:$E$5189,5,0),VLOOKUP(C95,'Comp SINAPI PE 02-2024 Onerado'!$G$7:$K$7500,5,0)) -> 2.11 | H95: 63.3 | I95: ca
B96: SINAPI | C96: 93593 | D96: =PROPER(IF(I96="i",VLOOKUP(C96,'Ins SINAPI PE 02-2024 Onerado'!$A$8:$E$5189,2,0),VLOOKUP(C96,'Comp SINAPI PE 02-2024 Onerado'!$G$7:$K$7500,2,0))) -> Transporte Com Caminhão Basculante De 14 M³, Em Via Urbana Pavimentada, Adicional Para Dmt Excedente A 30 Km (Unidade: M3Xkm). Af_07/2020 | E96: =IF(I96="i",VLOOKUP(C96,'Ins SINAPI PE 02-2024 Onerado'!$A$8:$E$5189,3,0),VLOOKUP(C96,'Comp SINAPI PE 02-2024 Onerado'!$G$7:$K$7500,3,0)) -> M3XKM | F96: ='Memorial de cálculo'!G5-F95 -> 98 | G96: =IF(I96="i",VLOOKUP(C96,'Ins SINAPI PE 02-2024 Onerado'!$A$8:$E$5189,5,0),VLOOKUP(C96,'Comp SINAPI PE 02-2024 Onerado'!$G$7:$K$7500,5,0)) -> 0.85 | H96: =ROUND(F96*G96,2) -> 83.3 | I96: ca
B97: SINAPI | C97: 96385 | D97: =PROPER(IF(I97="i",VLOOKUP(C97,'Ins SINAPI PE 02-2024 Onerado'!$A$8:$E$5189,2,0),VLOOKUP(C97,'Comp SINAPI PE 02-2024 Onerado'!$G$7:$K$7500,2,0))) -> Execução E Compactação De Aterro Com Solo Predominantemente Argiloso - Exclusive Solo, Escavação, Carga E Transporte. Af_11/2019 | E97: =IF(I97="i",VLOOKUP(C97,'Ins SINAPI PE 02-2024 Onerado'!$A$8:$E$5189,3,0),VLOOKUP(C97,'Comp SINAPI PE 02-2024 Onerado'!$G$7:$K$7500,3,0)) -> M3 | F97: 1 | G97: =IF(I97="i",VLOOKUP(C97,'Ins SINAPI PE 02-2024 Onerado'!$A$8:$E$5189,5,0),VLOOKUP(C97,'Comp SINAPI PE 02-2024 Onerado'!$G$7:$K$7500,5,0)) -> 12.05 | H97: =ROUND(F97*G97,2) -> 12.05 | I97: ca
B98: COTAÇÃO | C98: CT.01 | D98: Hospedagem | E98: un | F98: ='Memorial de cálculo'!D59*'Memorial de cálculo'!H59+'Memorial de cálculo'!D60*'Memorial de cálculo'!H60+'Memorial de cálculo'!D61*'Memorial de cálculo'!H61 -> 0.006625 | G98: =Cotações!O11 -> 90 | H98: =ROUND(F98*G98,2) -> 0.6
B99: SICRO | C99: E9134 | D99: Miniônibus com capacidade para 30 passageiros - 111 Kw | E99: chp | F99: =F98*'Memorial de cálculo'!H7 -> 0.01082083333 | G99: 216.48 | H99: =ROUND(F99*G99,2) -> 2.34 | J99: considerando 60 km/h de média
B100: SICRO | C100: E9134 | D100: Miniônibus com capacidade para 30 passageiros - 111 Kw | E100: chi | F100: =F98*(8-'Memorial de cálculo'!H7) -> 0.04217916667 | G100: 73.276 | H100: =ROUND(F100*G100,2) -> 3.09
B101: =B83 -> SINAPI | D101: MÃO DE OBRA | H101: 0 | I101: ss
B103: ='Planilha Orçamentária'!A33 -> 5.1.1 | C103: =VLOOKUP($B103,'Planilha Orçamentária'!$A$11:$I$496,3,) -> CPU.08 | D103: =VLOOKUP($B103,'Planilha Orçamentária'!$A$11:$I$496,4,) -> Demolição de guias e sarjetas | E103: =VLOOKUP($B103,'Planilha Orçamentária'!$A$11:$I$496,5,) -> M | H103: =SUM(H104,H105,H106,H113) -> 35.22 | I103: S
B104: =B103 -> 5.1.1 | D104: MATERIAL | I104: ss
B105: =B103 -> 5.1.1 | D105: EQUIPAMENTOS | I105: ss
B106: =B103 -> 5.1.1 | D106: SERVIÇOS | H106: =SUM(H107:H112) -> 35.22 | I106: ss
B107: SINAPI | C107: 104797 | D107: =PROPER(IF(I107="i",VLOOKUP(C107,'Ins SINAPI PE 02-2024 Onerado'!$A$8:$E$5189,2,0),VLOOKUP(C107,'Comp SINAPI PE 02-2024 Onerado'!$G$7:$K$7500,2,0))) -> Remoçao De Guias Pré-Fabricadas De Concreto, De Forma Mecanizada, Com Reaproveitamento. Af_09/2023 | E107: =IF(I107="i",VLOOKUP(C107,'Ins SINAPI PE 02-2024 Onerado'!$A$8:$E$5189,3,0),VLOOKUP(C107,'Comp SINAPI PE 02-2024 Onerado'!$G$7:$K$7500,3,0)) -> M | F107: 1 | G107: =IF(I107="i",VLOOKUP(C107,'Ins SINAPI PE 02-2024 Onerado'!$A$8:$E$5189,5,0),VLOOKUP(C107,'Comp SINAPI PE 02-2024 Onerado'!$G$7:$K$7500,5,0)) -> 17.77 | H107: =ROUND(F107*G107,2) -> 17.77 | I107: ca
B108: SINAPI | C108: 100946 | D108: =PROPER(IF(I108="i",VLOOKUP(C108,'Ins SINAPI PE 02-2024 Onerado'!$A$8:$E$5189,2,0),VLOOKUP(C108,'Comp SINAPI PE 02-2024 Onerado'!$G$7:$K$7500,2,0))) -> Transporte Com Caminhão Carroceria 9T, Em Via Urbana Em Revestimento Primário (Unidade: Txkm). Af_07/2020 | E108: =IF(I108="i",VLOOKUP(C108,'Ins SINAPI PE 02-2024 Onerado'!$A$8:$E$5189,3,0),VLOOKUP(C108,'Comp SINAPI PE 02-2024 Onerado'!$G$7:$K$7500,3,0)) -> TXKM | F108: =57.5/1000*'Memorial de cálculo'!G7 -> 2.5875 | G108: =IF(I108="i",VLOOKUP(C108,'Ins SINAPI PE 02-2024 Onerado'!$A$8:$E$5189,5,0),VLOOKUP(C108,'Comp SINAPI PE 02-2024 Onerado'!$G$7:$K$7500,5,0)) -> 2.39 | H108: =ROUND(F108*G108,2) -> 6.18 | I108: ca | J108: : GUIA DE CALÇADA 1,00 X 0,30 X 0,10 : 57,5 kg (https://crepan.com.br/guias-de-concreto/)
B109: SINAPI | C109: 100947 | D109: =PROPER(IF(I109="i",VLOOKUP(C109,'Ins SINAPI PE 02-2024 Onerado'!$A$8:$E$5189,2,0),VLOOKUP(C109,'Comp SINAPI PE 02-2024 Onerado'!$G$7:$K$7500,2,0))) -> Transporte Com Caminhão Carroceria 9T, Em Via Urbana Pavimentada, Dmt Até 30Km (Unidade: Txkm). Af_07/2020 | E109: =IF(I109="i",VLOOKUP(C109,'Ins SINAPI PE 02-2024 Onerado'!$A$8:$E$5189,3,0),VLOOKUP(C109,'Comp SINAPI PE 02-2024 Onerado'!$G$7:$K$7500,3,0)) -> TXKM | F109: =57.5/1000*'Memorial de cálculo'!G8 -> 0.2875 | G109: =IF(I109="i",VLOOKUP(C109,'Ins SINAPI PE 02-2024 Onerado'!$A$8:$E$5189,5,0),VLOOKUP(C109,'Comp SINAPI PE 02-2024 Onerado'!$G$7:$K$7500,5,0)) -> 2.2 | H109: 0.63 | I109: ca
B110: COTAÇÃO | C110: CT.01 | D110: Hospedagem | E110: un | F110: ='Memorial de cálculo'!D66*'Memorial de cálculo'!H66+'Memorial de cálculo'!D67*'Memorial de cálculo'!H67 -> 0.0316375 | G110: =Cotações!O11 -> 90 | H110: =ROUND(F110*G110,2) -> 2.85
B111: SICRO | C111: E9134 | D111: Miniônibus com capacidade para 30 passageiros - 111 Kw | E111: chp | F111: =F110*'Memorial de cálculo'!H7*0.3 -> 0.015502375 | G111: 216.48 | H111: =ROUND(F111*G111,2) -> 3.36
B112: SICRO | C112: E9134 | D112: Miniônibus com capacidade para 30 passageiros - 111 Kw | E112: chi | F112: =F110*(8-'Memorial de cálculo'!H7)*0.3 -> 0.060427625 | G112: 73.276 | H112: =ROUND(F112*G112,2) -> 4.43
B113: =B103 -> 5.1.1 | D113: MÃO DE OBRA | I113: mdo
B115: ='Planilha Orçamentária'!A34 -> 5.1.2 | C115: =VLOOKUP($B115,'Planilha Orçamentária'!$A$11:$I$496,3,) -> CPU.09 | D115: =VLOOKUP($B115,'Planilha Orçamentária'!$A$11:$I$496,4,) -> Regularização e compactação da crista | E115: =VLOOKUP($B115,'Planilha Orçamentária'!$A$11:$I$496,5,) -> M2 | H115: =SUM(H116,H117,H118,H124) -> 4.73 | I115: S
B116: =B115 -> 5.1.2 | D116: MATERIAL | I116: ss
B117: =B115 -> 5.1.2 | D117: EQUIPAMENTOS | I117: ss
B118: =B115 -> 5.1.2 | D118: SERVIÇOS | H118: =SUM(H119:H123) -> 4.73 | I118: ss
B119: SINAPI | C119: 100576 | D119: =PROPER(IF(I119="i",VLOOKUP(C119,'Ins SINAPI PE 02-2024 Onerado'!$A$8:$E$5189,2,0),VLOOKUP(C119,'Comp SINAPI PE 02-2024 Onerado'!$G$7:$K$7500,2,0))) -> Regularização E Compactação De Subleito De Solo Predominantemente Argiloso. Af_11/2019 | E119: =IF(I119="i",VLOOKUP(C119,'Ins SINAPI PE 02-2024 Onerado'!$A$8:$E$5189,3,0),VLOOKUP(C119,'Comp SINAPI PE 02-2024 Onerado'!$G$7:$K$7500,3,0)) -> M2 | F119: 1 | G119: =IF(I119="i",VLOOKUP(C119,'Ins SINAPI PE 02-2024 Onerado'!$A$8:$E$5189,5,0),VLOOKUP(C119,'Comp SINAPI PE 02-2024 Onerado'!$G$7:$K$7500,5,0)) -> 2.62 | H119: =ROUND(F119*G119,2) -> 2.62 | I119: ca
B120: SINAPI | C120: 100952 | D120: =PROPER(IF(I120="i",VLOOKUP(C120,'Ins SINAPI PE 02-2024 Onerado'!$A$8:$E$5189,2,0),VLOOKUP(C120,'Comp SINAPI PE 02-2024 Onerado'!$G$7:$K$7500,2,0))) -> Transporte Com Caminhão Carroceria Com Guindauto (Munck), Momento Máximo De Carga 11,7 Tm, Em Via Urbana Pavimentada, Dmt Até 30Km (Unidade: Txkm). Af_07/2020 | E120: =IF(I120="i",VLOOKUP(C120,'Ins SINAPI PE 02-2024 Onerado'!$A$8:$E$5189,3,0),VLOOKUP(C120,'Comp SINAPI PE 02-2024 Onerado'!$G$7:$K$7500,3,0)) -> TXKM | F120: =20*'Memorial de cálculo'!G6*2/'Memorial de cálculo'!H69 -> 0.3428571429 | G120: =IF(I120="i",VLOOKUP(C120,'Ins SINAPI PE 02-2024 Onerado'!$A$8:$E$5189,5,0),VLOOKUP(C120,'Comp SINAPI PE 02-2024 Onerado'!$G$7:$K$7500,5,0)) -> 2.81 | H120: 0.96 | I120: ca
B121: COTAÇÃO | C121: CT.01 | D121: Hospedagem | E121: un | F121: ='Memorial de cálculo'!D71*'Memorial de cálculo'!H71+'Memorial de cálculo'!D72*'Memorial de cálculo'!H72 -> 0.0012625 | G121: =Cotações!O$11 -> 90 | H121: =ROUND(F121*G121,2) -> 0.11 | I121: ca
B122: SICRO | C122: E9134 | D122: Miniônibus com capacidade para 30 passageiros - 111 Kw | E122: chp | F122: =F121*'Memorial de cálculo'!H7 -> 0.002062083333 | G122: 216.48 | H122: =ROUND(F122*G122,2) -> 0.45 | I122: ca
B123: SICRO | C123: E9134 | D123: Miniônibus com capacidade para 30 passageiros - 111 Kw | E123: chi | F123: =F121*(8-'Memorial de cálculo'!H7) -> 0.008037916667 | G123: 73.276 | H123: =ROUND(F123*G123,2) -> 0.59 | I123: ca
B124: =B115 -> 5.1.2 | D124: MÃO DE OBRA | I124: mdo
B126: ='Planilha Orçamentária'!A36 -> 5.2.1 | C126: =VLOOKUP($B126,'Planilha Orçamentária'!$A$11:$I$496,3,) -> CPU.10 | D126: =VLOOKUP($B126,'Planilha Orçamentária'!$A$11:$I$496,4,) -> Guia e meio fio conjudados de concreto, moldada In Loco, 45cm base (15 cm Base da Guia +30 cm Base da Sarjeta) x 22 cm Altura | E126: =VLOOKUP($B126,'Planilha Orçamentária'!$A$11:$I$496,5,) -> M | H126: =SUM(H127,H128,H129,H138) -> 113.65 | I126: S
B127: =B126 -> 5.2.1 | D127: MATERIAL | H127: 0 | I127: ss
B128: =B126 -> 5.2.1 | D128: EQUIPAMENTOS | H128: 0 | I128: ss
B129: =B126 -> 5.2.1 | D129: SERVIÇOS | H129: =SUM(H130:H137) -> 113.65 | I129: ss
B130: SINAPI | C130: 94267 | D130: =IF(I130="i",VLOOKUP(C130,'Ins SINAPI PE 02-2024 Onerado'!$A$8:$E$5189,2,0),VLOOKUP(C130,'Comp SINAPI PE 02-2024 Onerado'!$G$7:$K$7500,2,0)) -> GUIA (MEIO-FIO) E SARJETA CONJUGADOS DE CONCRETO, MOLDADA IN LOCO EM TRECHO RETO COM EXTRUSORA, 45 CM BASE (15 CM BASE DA GUIA + 30 CM BASE DA SARJETA) X 22 CM ALTURA. AF_01/2024 | E130: =IF(I130="i",VLOOKUP(C130,'Ins SINAPI PE 02-2024 Onerado'!$A$8:$E$5189,3,0),VLOOKUP(C130,'Comp SINAPI PE 02-2024 Onerado'!$G$7:$K$7500,3,0)) -> M | F130: 1 | G130: =IF(I130="i",VLOOKUP(C130,'Ins SINAPI PE 02-2024 Onerado'!$A$8:$E$5189,5,0),VLOOKUP(C130,'Comp SINAPI PE 02-2024 Onerado'!$G$7:$K$7500,5,0)) -> 50.54 | H130: =ROUND(F130*G130,2) -> 50.54 | I130: ca
B131: SINAPI | C131: 88830 | D131: =IF(I131="i",VLOOKUP(C131,'Ins SINAPI PE 02-2024 Onerado'!$A$8:$E$5189,2,0),VLOOKUP(C131,'Comp SINAPI PE 02-2024 Onerado'!$G$7:$K$7500,2,0)) -> BETONEIRA CAPACIDADE NOMINAL DE 400 L, CAPACIDADE DE MISTURA 280 L, MOTOR ELÉTRICO TRIFÁSICO POTÊNCIA DE 2 CV, SEM CARREGADOR - CHP DIURNO. AF_05/2023 | E131: =IF(I131="i",VLOOKUP(C131,'Ins SINAPI PE 02-2024 Onerado'!$A$8:$E$5189,3,0),VLOOKUP(C131,'Comp SINAPI PE 02-2024 Onerado'!$G$7:$K$7500,3,0)) -> CHP | F131: 0.02 | G131: =IF(I131="i",VLOOKUP(C131,'Ins SINAPI PE 02-2024 Onerado'!$A$8:$E$5189,5,0),VLOOKUP(C131,'Comp SINAPI PE 02-2024 Onerado'!$G$7:$K$7500,5,0)) -> 2.06 | H131: =ROUND(F131*G131,2) -> 0.04 | I131: ca
B132: SINAPI | C132: 88831 | D132: =IF(I132="i",VLOOKUP(C132,'Ins SINAPI PE 02-2024 Onerado'!$A$8:$E$5189,2,0),VLOOKUP(C132,'Comp SINAPI PE 02-2024 Onerado'!$G$7:$K$7500,2,0)) -> BETONEIRA CAPACIDADE NOMINAL DE 400 L, CAPACIDADE DE MISTURA 280 L, MOTOR ELÉTRICO TRIFÁSICO POTÊNCIA DE 2 CV, SEM CARREGADOR - CHI DIURNO. AF_05/2023 | E132: =IF(I132="i",VLOOKUP(C132,'Ins SINAPI PE 02-2024 Onerado'!$A$8:$E$5189,3,0),VLOOKUP(C132,'Comp SINAPI PE 02-2024 Onerado'!$G$7:$K$7500,3,0)) -> CHI | F132: 0.09 | G132: =IF(I132="i",VLOOKUP(C132,'Ins SINAPI PE 02-2024 Onerado'!$A$8:$E$5189,5,0),VLOOKUP(C132,'Comp SINAPI PE 02-2024 Onerado'!$G$7:$K$7500,5,0)) -> 0.43 | H132: =ROUND(F132*G132,2) -> 0.04 | I132: ca
B133: SINAPI | C133: 100946 | D133: =IF(I133="i",VLOOKUP(C133,'Ins SINAPI PE 02-2024 Onerado'!$A$8:$E$5189,2,0),VLOOKUP(C133,'Comp SINAPI PE 02-2024 Onerado'!$G$7:$K$7500,2,0)) -> TRANSPORTE COM CAMINHÃO CARROCERIA 9T, EM VIA URBANA EM REVESTIMENTO PRIMÁRIO (UNIDADE: TXKM). AF_07/2020 | E133: =IF(I133="i",VLOOKUP(C133,'Ins SINAPI PE 02-2024 Onerado'!$A$8:$E$5189,3,0),VLOOKUP(C133,'Comp SINAPI PE 02-2024 Onerado'!$G$7:$K$7500,3,0)) -> TXKM | F133: =85*'Memorial de cálculo'!G8/'Memorial de cálculo'!H$74 -> 1.25 | G133: =IF(I133="i",VLOOKUP(C133,'Ins SINAPI PE 02-2024 Onerado'!$A$8:$E$5189,5,0),VLOOKUP(C133,'Comp SINAPI PE 02-2024 Onerado'!$G$7:$K$7500,5,0)) -> 2.39 | H133: =ROUND(F133*G133,2) -> 2.99 | I133: ca
B134: SINAPI | C134: 100947 | D134: =IF(I134="i",VLOOKUP(C134,'Ins SINAPI PE 02-2024 Onerado'!$A$8:$E$5189,2,0),VLOOKUP(C134,'Comp SINAPI PE 02-2024 Onerado'!$G$7:$K$7500,2,0)) -> TRANSPORTE COM CAMINHÃO CARROCERIA 9T, EM VIA URBANA PAVIMENTADA, DMT ATÉ 30KM (UNIDADE: TXKM). AF_07/2020 | E134: =IF(I134="i",VLOOKUP(C134,'Ins SINAPI PE 02-2024 Onerado'!$A$8:$E$5189,3,0),VLOOKUP(C134,'Comp SINAPI PE 02-2024 Onerado'!$G$7:$K$7500,3,0)) -> TXKM | F134: =85*'Memorial de cálculo'!G7/'Memorial de cálculo'!H$74 -> 11.25 | G134: =IF(I134="i",VLOOKUP(C134,'Ins SINAPI PE 02-2024 Onerado'!$A$8:$E$5189,5,0),VLOOKUP(C134,'Comp SINAPI PE 02-2024 Onerado'!$G$7:$K$7500,5,0)) -> 2.2 | H134: =ROUND(F134*G134,2) -> 24.75 | I134: ca
B135: COTAÇÃO | C135: CT.01 | D135: Hospedagem | E135: un | F135: ='Memorial de cálculo'!D76*'Memorial de cálculo'!H76+'Memorial de cálculo'!D77*'Memorial de cálculo'!H77+'Memorial de cálculo'!D78*'Memorial de cálculo'!H78 -> 0.105 | G135: =Cotações!O$11 -> 90 | H135: 9.45 | I135: ca
B136: SICRO | C136: E9134 | D136: Miniônibus com capacidade para 30 passageiros - 111 Kw | E136: chp | F136: =F135*'Memorial de cálculo'!H7*0.3 -> 0.05145 | G136: 216.48 | H136: =ROUND(F136*G136,2) -> 11.14 | I136: ca
B137: SICRO | C137: E9134 | D137: Miniônibus com capacidade para 30 passageiros - 111 Kw | E137: chi | F137: =F135*(8-'Memorial de cálculo'!H7)*0.3 -> 0.20055 | G137: 73.276 | H137: =ROUND(F137*G137,2) -> 14.7 | I137: ca
B138: =B126 -> 5.2.1 | D138: MÃO DE OBRA | H138: 0 | I138: mdo
B140: ='Planilha Orçamentária'!A38 -> 5.3.1 | C140: =VLOOKUP($B140,'Planilha Orçamentária'!$A$11:$I$496,3,) -> CPU.11 | D140: =VLOOKUP($B140,'Planilha Orçamentária'!$A$11:$I$496,4,) -> Execução e compactação para pavimentação de brita graduada simples tratada com cimento | E140: =VLOOKUP($B140,'Planilha Orçamentária'!$A$11:$I$496,5,) -> M3 | H140: =SUM(H141,H142,H143,H151) -> 363.2 | I140: S
B141: =B140 -> 5.3.1 | D141: MATERIAL | H141: 0 | I141: ss
B142: =B140 -> 5.3.1 | D142: EQUIPAMENTOS | H142: 0 | I142: ss
B143: =B140 -> 5.3.1 | D143: SERVIÇOS | H143: =SUM(H144:H150) -> 363.2 | I143: ss
B144: SINAPI | C144: 96397 | D144: =IF(I144="i",VLOOKUP(C144,'Ins SINAPI PE 02-2024 Onerado'!$A$8:$E$5189,2,0),VLOOKUP(C144,'Comp SINAPI PE 02-2024 Onerado'!$G$7:$K$7500,2,0)) -> EXECUÇÃO E COMPACTAÇÃO DE BASE E OU SUB BASE PARA PAVIMENTAÇÃO DE BRITA GRADUADA SIMPLES TRATADA COM CIMENTO - EXCLUSIVE CARGA E TRANSPORTE. AF_11/2019 | E144: =IF(I144="i",VLOOKUP(C144,'Ins SINAPI PE 02-2024 Onerado'!$A$8:$E$5189,3,0),VLOOKUP(C144,'Comp SINAPI PE 02-2024 Onerado'!$G$7:$K$7500,3,0)) -> M3 | F144: 1 | G144: =IF(I144="i",VLOOKUP(C144,'Ins SINAPI PE 02-2024 Onerado'!$A$8:$E$5189,5,0),VLOOKUP(C144,'Comp SINAPI PE 02-2024 Onerado'!$G$7:$K$7500,5,0)) -> 240.33 | H144: =ROUND(F144*G144,2) -> 240.33 | I144: ca
B145: SINAPI | C145: 100976 | D145: =IF(I145="i",VLOOKUP(C145,'Ins SINAPI PE 02-2024 Onerado'!$A$8:$E$5189,2,0),VLOOKUP(C145,'Comp SINAPI PE 02-2024 Onerado'!$G$7:$K$7500,2,0)) -> CARGA, MANOBRA E DESCARGA DE SOLOS E MATERIAIS GRANULARES EM CAMINHÃO BASCULANTE 18 M³ - CARGA COM PÁ CARREGADEIRA (CAÇAMBA DE 1,7 A 2,8 M³ / 128 HP) E DESCARGA LIVRE (UNIDADE: M3). AF_07/2020 | E145: =IF(I145="i",VLOOKUP(C145,'Ins SINAPI PE 02-2024 Onerado'!$A$8:$E$5189,3,0),VLOOKUP(C145,'Comp SINAPI PE 02-2024 Onerado'!$G$7:$K$7500,3,0)) -> M3 | F145: 1 | G145: =IF(I145="i",VLOOKUP(C145,'Ins SINAPI PE 02-2024 Onerado'!$A$8:$E$5189,5,0),VLOOKUP(C145,'Comp SINAPI PE 02-2024 Onerado'!$G$7:$K$7500,5,0)) -> 8.47 | H145: =ROUND(F145*G145,2) -> 8.47 | I145: ca
B146: SINAPI | C146: 95426 | D146: =IF(I146="i",VLOOKUP(C146,'Ins SINAPI PE 02-2024 Onerado'!$A$8:$E$5189,2,0),VLOOKUP(C146,'Comp SINAPI PE 02-2024 Onerado'!$G$7:$K$7500,2,0)) -> TRANSPORTE COM CAMINHÃO BASCULANTE DE 18 M³, EM VIA URBANA EM REVESTIMENTO PRIMÁRIO (UNIDADE: M3XKM). AF_07/2020 | E146: =IF(I146="i",VLOOKUP(C146,'Ins SINAPI PE 02-2024 Onerado'!$A$8:$E$5189,3,0),VLOOKUP(C146,'Comp SINAPI PE 02-2024 Onerado'!$G$7:$K$7500,3,0)) -> M3XKM | F146: ='Memorial de cálculo'!G$8 -> 5 | G146: =IF(I146="i",VLOOKUP(C146,'Ins SINAPI PE 02-2024 Onerado'!$A$8:$E$5189,5,0),VLOOKUP(C146,'Comp SINAPI PE 02-2024 Onerado'!$G$7:$K$7500,5,0)) -> 1.97 | H146: =ROUND(F146*G146,2) -> 9.85 | I146: ca
B147: SINAPI | C147: 95425 | D147: =IF(I147="i",VLOOKUP(C147,'Ins SINAPI PE 02-2024 Onerado'!$A$8:$E$5189,2,0),VLOOKUP(C147,'Comp SINAPI PE 02-2024 Onerado'!$G$7:$K$7500,2,0)) -> TRANSPORTE COM CAMINHÃO BASCULANTE DE 18 M³, EM VIA URBANA EM LEITO NATURAL (UNIDADE: M3XKM). AF_07/2020 | E147: =IF(I147="i",VLOOKUP(C147,'Ins SINAPI PE 02-2024 Onerado'!$A$8:$E$5189,3,0),VLOOKUP(C147,'Comp SINAPI PE 02-2024 Onerado'!$G$7:$K$7500,3,0)) -> M3XKM | F147: ='Memorial de cálculo'!G$7 -> 45 | G147: =IF(I147="i",VLOOKUP(C147,'Ins SINAPI PE 02-2024 Onerado'!$A$8:$E$5189,5,0),VLOOKUP(C147,'Comp SINAPI PE 02-2024 Onerado'!$G$7:$K$7500,5,0)) -> 2.29 | H147: =ROUND(F147*G147,2) -> 103.05 | I147: ca
B148: COTAÇÃO | C148: CT.01 | D148: Hospedagem | E148: un | F148: ='Memorial de cálculo'!H83+'Memorial de cálculo'!D84*'Memorial de cálculo'!H84 -> 0.005875 | G148: =Cotações!O$11 -> 90 | H148: =ROUND(F148*G148,2) -> 0.53 | I148: ca
B149: SICRO | C149: E9134 | D149: Miniônibus com capacidade para 30 passageiros - 111 Kw | E149: chp | F149: =F148*'Memorial de cálculo'!H7*0.2 -> 0.001919166667 | G149: 216.48 | H149: 0.42 | I149: ca
B150: SICRO | C150: E9134 | D150: Miniônibus com capacidade para 30 passageiros - 111 Kw | E150: chi | F150: =F148*(8-'Memorial de cálculo'!H7)*0.2 -> 0.007480833333 | G150: 73.276 | H150: 0.55 | I150: ca
B151: =B140 -> 5.3.1 | D151: MÃO DE OBRA | H151: 0 | I151: mdo
B153: ='Planilha Orçamentária'!A42 -> 6.1.1 | C153: =VLOOKUP($B153,'Planilha Orçamentária'!$A$11:$I$496,3,) -> CPU.12 | D153: =VLOOKUP($B153,'Planilha Orçamentária'!$A$11:$I$496,4,) -> Enrocamento c/ pedra de mão c/ fornecimento e assentamento | E153: =VLOOKUP($B153,'Planilha Orçamentária'!$A$11:$I$496,5,) -> M3 | H153: =SUM(H154,H156,H157,H163) -> 533.89 | I153: S
B154: =B153 -> 6.1.1 | D154: MATERIAL | H154: =SUM(H155:H155) -> 117.84 | I154: ss
B155: SINAPI | C155: 4730 | D155: =IF(I155="i",VLOOKUP(C155,'Ins SINAPI PE 02-2024 Onerado'!$A$8:$E$5189,2,0),VLOOKUP(C155,'Comp SINAPI PE 02-2024 Onerado'!$G$7:$K$7500,2,0)) -> PEDRA DE MAO OU PEDRA RACHAO PARA ARRIMO/FUNDACAO (POSTO PEDREIRA/FORNECEDOR, SEM FRETE) | E155: =IF(I155="i",VLOOKUP(C155,'Ins SINAPI PE 02-2024 Onerado'!$A$8:$E$5189,3,0),VLOOKUP(C155,'Comp SINAPI PE 02-2024 Onerado'!$G$7:$K$7500,3,0)) -> M3 | F155: 1.2 | G155: =IF(I155="i",VLOOKUP(C155,'Ins SINAPI PE 02-2024 Onerado'!$A$8:$E$5189,5,0),VLOOKUP(C155,'Comp SINAPI PE 02-2024 Onerado'!$G$7:$K$7500,5,0)) -> 98.2 | H155: =ROUND(F155*G155,2) -> 117.84 | I155: i | J155: INDICES COM BASE NA COMPOSIÇÃO DA SICRO
B156: =B153 -> 6.1.1 | D156: EQUIPAMENTOS | I156: ss
B157: =B153 -> 6.1.1 | D157: SERVIÇOS | H157: =SUM(H158:H162) -> 301.92 | I157: ss
B158: SINAPI | C158: 93589 | D158: =IF(I158="i",VLOOKUP(C158,'Ins SINAPI PE 02-2024 Onerado'!$A$8:$E$5189,2,0),VLOOKUP(C158,'Comp SINAPI PE 02-2024 Onerado'!$G$7:$K$7500,2,0)) -> TRANSPORTE COM CAMINHÃO BASCULANTE DE 10 M³, EM VIA URBANA EM REVESTIMENTO PRIMÁRIO (UNIDADE: M3XKM). AF_07/2020 | E158: =IF(I158="i",VLOOKUP(C158,'Ins SINAPI PE 02-2024 Onerado'!$A$8:$E$5189,3,0),VLOOKUP(C158,'Comp SINAPI PE 02-2024 Onerado'!$G$7:$K$7500,3,0)) -> M3XKM | F158: ='Memorial de cálculo'!G7*1 -> 45 | G158: =IF(I158="i",VLOOKUP(C158,'Ins SINAPI PE 02-2024 Onerado'!$A$8:$E$5189,5,0),VLOOKUP(C158,'Comp SINAPI PE 02-2024 Onerado'!$G$7:$K$7500,5,0)) -> 2.64 | H158: =ROUND(F158*G158,2) -> 118.8 | I158: ca
B159: SINAPI | C159: 100976 | D159: =IF(I159="i",VLOOKUP(C159,'Ins SINAPI PE 02-2024 Onerado'!$A$8:$E$5189,2,0),VLOOKUP(C159,'Comp SINAPI PE 02-2024 Onerado'!$G$7:$K$7500,2,0)) -> CARGA, MANOBRA E DESCARGA DE SOLOS E MATERIAIS GRANULARES EM CAMINHÃO BASCULANTE 18 M³ - CARGA COM PÁ CARREGADEIRA (CAÇAMBA DE 1,7 A 2,8 M³ / 128 HP) E DESCARGA LIVRE (UNIDADE: M3). AF_07/2020 | E159: =IF(I159="i",VLOOKUP(C159,'Ins SINAPI PE 02-2024 Onerado'!$A$8:$E$5189,3,0),VLOOKUP(C159,'Comp SINAPI PE 02-2024 Onerado'!$G$7:$K$7500,3,0)) -> M3 | F159: 1 | G159: =IF(I159="i",VLOOKUP(C159,'Ins SINAPI PE 02-2024 Onerado'!$A$8:$E$5189,5,0),VLOOKUP(C159,'Comp SINAPI PE 02-2024 Onerado'!$G$7:$K$7500,5,0)) -> 8.47 | H159: =ROUND(F159*G159,2) -> 8.47 | I159: ca
B160: COTAÇÃO | C160: CT.01 | D160: Hospedagem | E160: un | F160: ='Memorial de cálculo'!D89*'Memorial de cálculo'!H89+'Memorial de cálculo'!D90*'Memorial de cálculo'!H90 -> 0.6875 | G160: =Cotações!O$11 -> 90 | H160: =ROUND(F160*G160,2) -> 61.88
B161: SICRO | C161: E9134 | D161: Miniônibus com capacidade para 30 passageiros - 111 Kw | E161: chp | F161: =F160*'Memorial de cálculo'!H7*0.2 -> 0.2245833333 | G161: 216.48 | H161: 48.62
B162: SICRO | C162: E9134 | D162: Miniônibus com capacidade para 30 passageiros - 111 Kw | E162: chi | F162: =F160*(8-'Memorial de cálculo'!H7)*0.2 -> 0.8754166667 | G162: 73.276 | H162: =ROUND(F162*G162,2) -> 64.15
B163: =B153 -> 6.1.1 | D163: MÃO DE OBRA | H163: =SUM(H164:H165) -> 114.13 | I163: mdo
B164: SINAPI | C164: 88309 | D164: =IF(I164="i",VLOOKUP(C164,'Ins SINAPI PE 02-2024 Onerado'!$A$8:$E$5189,2,0),VLOOKUP(C164,'Comp SINAPI PE 02-2024 Onerado'!$G$7:$K$7500,2,0)) -> PEDREIRO COM ENCARGOS COMPLEMENTARES | E164: =IF(I164="i",VLOOKUP(C164,'Ins SINAPI PE 02-2024 Onerado'!$A$8:$E$5189,3,0),VLOOKUP(C164,'Comp SINAPI PE 02-2024 Onerado'!$G$7:$K$7500,3,0)) -> H | F164: 0.5 | G164: =IF(I164="i",VLOOKUP(C164,'Ins SINAPI PE 02-2024 Onerado'!$A$8:$E$5189,5,0),VLOOKUP(C164,'Comp SINAPI PE 02-2024 Onerado'!$G$7:$K$7500,5,0)) -> 25.46 | H164: =ROUND(F164*G164,2) -> 12.73 | I164: ca
B165: SINAPI | C165: 88316 | D165: =IF(I165="i",VLOOKUP(C165,'Ins SINAPI PE 02-2024 Onerado'!$A$8:$E$5189,2,0),VLOOKUP(C165,'Comp SINAPI PE 02-2024 Onerado'!$G$7:$K$7500,2,0)) -> SERVENTE COM ENCARGOS COMPLEMENTARES | E165: =IF(I165="i",VLOOKUP(C165,'Ins SINAPI PE 02-2024 Onerado'!$A$8:$E$5189,3,0),VLOOKUP(C165,'Comp SINAPI PE 02-2024 Onerado'!$G$7:$K$7500,3,0)) -> H | F165: 5 | G165: =IF(I165="i",VLOOKUP(C165,'Ins SINAPI PE 02-2024 Onerado'!$A$8:$E$5189,5,0),VLOOKUP(C165,'Comp SINAPI PE 02-2024 Onerado'!$G$7:$K$7500,5,0)) -> 20.28 | H165: =ROUND(F165*G165,2) -> 101.4 | I165: ca
B167: ='Planilha Orçamentária'!A46 -> 7.1.1 | C167: =VLOOKUP($B167,'Planilha Orçamentária'!$A$11:$I$496,3,) -> CPU.13 | D167: =VLOOKUP($B167,'Planilha Orçamentária'!$A$11:$I$496,4,) -> Recuperacao e instalação de novas canaletas e descida d'água - Fornecimento e instalação | E167: =VLOOKUP($B167,'Planilha Orçamentária'!$A$11:$I$496,5,) -> M | H167: =H168+H169+H170+H181 -> 149.86 | I167: s
B168: =B167 -> 7.1.1 | D168: MATERIAL | I168: ss
B169: =B167 -> 7.1.1 | D169: EQUIPAMENTOS | I169: ss
B170: =B167 -> 7.1.1 | D170: SERVIÇOS | H170: =SUM(H171:H180) -> 149.86 | I170: ss
B171: SINPAI | C171: 104796 | D171: =PROPER(IF(I171="i",VLOOKUP(C171,'Ins SINAPI PE 02-2024 Onerado'!$A$8:$E$5189,2,0),VLOOKUP(C171,'Comp SINAPI PE 02-2024 Onerado'!$G$7:$K$7500,2,0))) -> Demolição De Guias, Sarjetas Ou Sarjetões, De Forma Mecanizada, Sem Reaproveitamento. Af_09/2023 | E171: =IF(I171="i",VLOOKUP(C171,'Ins SINAPI PE 02-2024 Onerado'!$A$8:$E$5189,3,0),VLOOKUP(C171,'Comp SINAPI PE 02-2024 Onerado'!$G$7:$K$7500,3,0)) -> M | F171: 0.5 | G171: =IF(I171="i",VLOOKUP(C171,'Ins SINAPI PE 02-2024 Onerado'!$A$8:$E$5189,5,0),VLOOKUP(C171,'Comp SINAPI PE 02-2024 Onerado'!$G$7:$K$7500,5,0)) -> 14.2 | H171: =ROUND(F171*G171,2) -> 7.1 | I171: ca
B172: SINPAI | C172: 6081 | D172: =PROPER(IF(I172="i",VLOOKUP(C172,'Ins SINAPI PE 02-2024 Onerado'!$A$8:$E$5189,2,0),VLOOKUP(C172,'Comp SINAPI PE 02-2024 Onerado'!$G$7:$K$7500,2,0))) -> Argila Ou Barro Para Aterro/Reaterro (Com Transporte Ate 10 Km) | E172: =IF(I172="i",VLOOKUP(C172,'Ins SINAPI PE 02-2024 Onerado'!$A$8:$E$5189,3,0),VLOOKUP(C172,'Comp SINAPI PE 02-2024 Onerado'!$G$7:$K$7500,3,0)) -> M3 | F172: =0.5*0.5*0.5 -> 0.125 | G172: =IF(I172="i",VLOOKUP(C172,'Ins SINAPI PE 02-2024 Onerado'!$A$8:$E$5189,5,0),VLOOKUP(C172,'Comp SINAPI PE 02-2024 Onerado'!$G$7:$K$7500,5,0)) -> 55.05 | H172: =ROUND(F172*G172,2) -> 6.88 | I172: i
B173: SINPAI | C173: 104737 | D173: =PROPER(IF(I173="i",VLOOKUP(C173,'Ins SINAPI PE 02-2024 Onerado'!$A$8:$E$5189,2,0),VLOOKUP(C173,'Comp SINAPI PE 02-2024 Onerado'!$G$7:$K$7500,2,0))) -> Reaterro Manual De Valas, Com Placa Vibratória. Af_08/2023 | E173: =IF(I173="i",VLOOKUP(C173,'Ins SINAPI PE 02-2024 Onerado'!$A$8:$E$5189,3,0),VLOOKUP(C173,'Comp SINAPI PE 02-2024 Onerado'!$G$7:$K$7500,3,0)) -> M3 | F173: =F172 -> 0.125 | G173: =IF(I173="i",VLOOKUP(C173,'Ins SINAPI PE 02-2024 Onerado'!$A$8:$E$5189,5,0),VLOOKUP(C173,'Comp SINAPI PE 02-2024 Onerado'!$G$7:$K$7500,5,0)) -> 20.49 | H173: =ROUND(F173*G173,2) -> 2.56 | I173: ca
B174: SINPAI | C174: 102996 | D174: =PROPER(IF(I174="i",VLOOKUP(C174,'Ins SINAPI PE 02-2024 Onerado'!$A$8:$E$5189,2,0),VLOOKUP(C174,'Comp SINAPI PE 02-2024 Onerado'!$G$7:$K$7500,2,0))) -> Execução De Canaleta De Concreto Moldado In Loco, Espessura De 0,07 M, Geometria Trapezoidal (Dimensões Internas: B=0,9 M; B=0,246 M; H=0,3 M). Af_08/2021 | E174: =IF(I174="i",VLOOKUP(C174,'Ins SINAPI PE 02-2024 Onerado'!$A$8:$E$5189,3,0),VLOOKUP(C174,'Comp SINAPI PE 02-2024 Onerado'!$G$7:$K$7500,3,0)) -> M | F174: 1 | G174: =IF(I174="i",VLOOKUP(C174,'Ins SINAPI PE 02-2024 Onerado'!$A$8:$E$5189,5,0),VLOOKUP(C174,'Comp SINAPI PE 02-2024 Onerado'!$G$7:$K$7500,5,0)) -> 74.4 | H174: =ROUND(F174*G174,2) -> 74.4 | I174: ca | J174: índices baseados em SICRO 2003385 Entrada para descida d'água - EDA 01 - areia e brita comerciais
B175: SINPAI | C175: 92267 | D175: =PROPER(IF(I175="i",VLOOKUP(C175,'Ins SINAPI PE 02-2024 Onerado'!$A$8:$E$5189,2,0),VLOOKUP(C175,'Comp SINAPI PE 02-2024 Onerado'!$G$7:$K$7500,2,0))) -> Fabricação De Fôrma Para Lajes, Em Chapa De Madeira Compensada Resinada, E = 17 Mm. Af_09/2020 | E175: =IF(I175="i",VLOOKUP(C175,'Ins SINAPI PE 02-2024 Onerado'!$A$8:$E$5189,3,0),VLOOKUP(C175,'Comp SINAPI PE 02-2024 Onerado'!$G$7:$K$7500,3,0)) -> M2 | F175: =1*0.3*2 -> 0.6 | G175: =IF(I175="i",VLOOKUP(C175,'Ins SINAPI PE 02-2024 Onerado'!$A$8:$E$5189,5,0),VLOOKUP(C175,'Comp SINAPI PE 02-2024 Onerado'!$G$7:$K$7500,5,0)) -> 52.73 | H175: =ROUND(F175*G175,2) -> 31.64 | I175: ca
B176: SINPAI | C176: 100946 | D176: =PROPER(IF(I176="i",VLOOKUP(C176,'Ins SINAPI PE 02-2024 Onerado'!$A$8:$E$5189,2,0),VLOOKUP(C176,'Comp SINAPI PE 02-2024 Onerado'!$G$7:$K$7500,2,0))) -> Transporte Com Caminhão Carroceria 9T, Em Via Urbana Em Revestimento Primário (Unidade: Txkm). Af_07/2020 | E176: =IF(I176="i",VLOOKUP(C176,'Ins SINAPI PE 02-2024 Onerado'!$A$8:$E$5189,3,0),VLOOKUP(C176,'Comp SINAPI PE 02-2024 Onerado'!$G$7:$K$7500,3,0)) -> TXKM | F176: =0.08*'Memorial de cálculo'!G8 -> 0.4 | G176: =IF(I176="i",VLOOKUP(C176,'Ins SINAPI PE 02-2024 Onerado'!$A$8:$E$5189,5,0),VLOOKUP(C176,'Comp SINAPI PE 02-2024 Onerado'!$G$7:$K$7500,5,0)) -> 2.39 | H176: 0.96 | I176: ca | J176: 1 m de meia cana pesa aproximadamente 80 quilos
B177: SINPAI | C177: 100947 | D177: =PROPER(IF(I177="i",VLOOKUP(C177,'Ins SINAPI PE 02-2024 Onerado'!$A$8:$E$5189,2,0),VLOOKUP(C177,'Comp SINAPI PE 02-2024 Onerado'!$G$7:$K$7500,2,0))) -> Transporte Com Caminhão Carroceria 9T, Em Via Urbana Pavimentada, Dmt Até 30Km (Unidade: Txkm). Af_07/2020 | E177: =IF(I177="i",VLOOKUP(C177,'Ins SINAPI PE 02-2024 Onerado'!$A$8:$E$5189,3,0),VLOOKUP(C177,'Comp SINAPI PE 02-2024 Onerado'!$G$7:$K$7500,3,0)) -> TXKM | F177: =0.08*'Memorial de cálculo'!G7 -> 3.6 | G177: =IF(I177="i",VLOOKUP(C177,'Ins SINAPI PE 02-2024 Onerado'!$A$8:$E$5189,5,0),VLOOKUP(C177,'Comp SINAPI PE 02-2024 Onerado'!$G$7:$K$7500,5,0)) -> 2.2 | H177: =ROUND(F177*G177,2) -> 7.92 | I177: ca
B178: COTAÇÃO | C178: CT.01 | D178: Hospedagem | E178: un | F178: ='Memorial de cálculo'!D95*'Memorial de cálculo'!H95+'Memorial de cálculo'!D96*'Memorial de cálculo'!H96+'Memorial de cálculo'!D97*'Memorial de cálculo'!H97 -> 0.0724425 | G178: =Cotações!O$11 -> 90 | H178: 6.52 | I178: ca
B179: SICRO | C179: E9134 | D179: Miniônibus com capacidade para 30 passageiros - 111 Kw | E179: chp | F179: =F178*'Memorial de cálculo'!H7*0.2 -> 0.02366455 | G179: 216.48 | H179: 5.12 | I179: ca
B180: SICRO | C180: E9134 | D180: Miniônibus com capacidade para 30 passageiros - 111 Kw | E180: chi | F180: =F178*(8-'Memorial de cálculo'!H7)*0.2 -> 0.09224345 | G180: 73.276 | H180: =ROUND(F180*G180,2) -> 6.76 | I180: ca
B181: =B167 -> 7.1.1 | D181: MÃO DE OBRA | H181: 0 | I181: mdo
B183: ='Planilha Orçamentária'!A48 -> 7.2.1 | C183: =VLOOKUP($B183,'Planilha Orçamentária'!$A$11:$I$496,3,) -> CPU.14 | D183: =VLOOKUP($B183,'Planilha Orçamentária'!$A$11:$I$496,4,) -> Entrada para descida d'água | E183: =VLOOKUP($B183,'Planilha Orçamentária'!$A$11:$I$496,5,) -> UN | H183: =H184+H185+H186+H192 -> 77.99 | I183: s
B184: =B183 -> 7.2.1 | D184: MATERIAL | I184: ss
B185: =B183 -> 7.2.1 | D185: EQUIPAMENTOS | I185: ss
B186: =B183 -> 7.2.1 | D186: SERVIÇOS | H186: =SUM(H187:H191) -> 77.99 | I186: ss
B187: SINPAI | C187: 94964 | D187: =PROPER(IF(K187="i",VLOOKUP(C187,'Ins SINAPI PE 02-2024 Onerado'!$A$8:$E$5189,2,0),VLOOKUP(C187,'Comp SINAPI PE 02-2024 Onerado'!$G$7:$K$7500,2,0))) -> Concreto Fck = 20Mpa, Traço 1:2,7:3 (Em Massa Seca De Cimento/ Areia Média/ Brita 1) - Preparo Mecânico Com Betoneira 400 L. Af_05/2021 | E187: =IF(I187="i",VLOOKUP(C187,'Ins SINAPI PE 02-2024 Onerado'!$A$8:$E$5189,3,0),VLOOKUP(C187,'Comp SINAPI PE 02-2024 Onerado'!$G$7:$K$7500,3,0)) -> M3 | F187: 0.11 | G187: =IF(I187="i",VLOOKUP(C187,'Ins SINAPI PE 02-2024 Onerado'!$A$8:$E$5189,5,0),VLOOKUP(C187,'Comp SINAPI PE 02-2024 Onerado'!$G$7:$K$7500,5,0)) -> 483.26 | H187: =ROUND(F187*G187,2) -> 53.16 | I187: ca | J187: índices baseados em SICRO 2003385 Entrada para descida d'água - EDA 01 - areia e brita comerciais
B188: SINPAI | C188: 92268 | D188: =PROPER(IF(K188="i",VLOOKUP(C188,'Ins SINAPI PE 02-2024 Onerado'!$A$8:$E$5189,2,0),VLOOKUP(C188,'Comp SINAPI PE 02-2024 Onerado'!$G$7:$K$7500,2,0))) -> Fabricação De Fôrma Para Lajes, Em Chapa De Madeira Compensada Plastificada, E = 18 Mm. Af_09/2020 | E188: =IF(I188="i",VLOOKUP(C188,'Ins SINAPI PE 02-2024 Onerado'!$A$8:$E$5189,3,0),VLOOKUP(C188,'Comp SINAPI PE 02-2024 Onerado'!$G$7:$K$7500,3,0)) -> M2 | F188: 0.1 | G188: =IF(I188="i",VLOOKUP(C188,'Ins SINAPI PE 02-2024 Onerado'!$A$8:$E$5189,5,0),VLOOKUP(C188,'Comp SINAPI PE 02-2024 Onerado'!$G$7:$K$7500,5,0)) -> 88.55 | H188: 8.86 | I188: ca
B189: COTAÇÃO | C189: CT.01 | D189: Hospedagem | E189: un | F189: ='Memorial de cálculo'!D101*'Memorial de cálculo'!H101+'Memorial de cálculo'!D102*'Memorial de cálculo'!H102+'Memorial de cálculo'!D103*'Memorial de cálculo'!H103+'Memorial de cálculo'!D104*'Memorial de cálculo'!H104 -> 0.0574625 | G189: =Cotações!O$11 -> 90 | H189: 5.17 | I189: ca
B190: SICRO | C190: E9134 | D190: Miniônibus com capacidade para 30 passageiros - 111 Kw | E190: chp | F190: =F189*'Memorial de cálculo'!H7*0.2 -> 0.01877108333 | G190: 216.48 | H190: 4.06 | I190: ca
B191: SICRO | C191: E9134 | D191: Miniônibus com capacidade para 30 passageiros - 111 Kw | E191: chi | F191: =F189*(8-'Memorial de cálculo'!$H$6/60)*0.2 -> 0.09194 | G191: 73.276 | H191: =ROUND(F191*G191,2) -> 6.74 | I191: ca
B192: =B183 -> 7.2.1 | D192: MÃO DE OBRA | H192: 0 | I192: mdo
B194: ='Planilha Orçamentária'!A52 -> 8.1.1 | C194: =VLOOKUP($B194,'Planilha Orçamentária'!$A$11:$I$496,3,) -> CPU.15 | D194: =VLOOKUP($B194,'Planilha Orçamentária'!$A$11:$I$496,4,) -> Plantio de grama para proteção, inclusive adubação | E194: =VLOOKUP($B194,'Planilha Orçamentária'!$A$11:$I$496,5,) -> M2 | H194: =H195+H196+H197+H205 -> 29.78 | I194: s
B195: =B194 -> 8.1.1 | D195: MATERIAL | I195: ss
B196: =B194 -> 8.1.1 | D196: EQUIPAMENTOS | I196: ss
B197: =B194 -> 8.1.1 | D197: SERVIÇOS | H197: =SUM(H198:H204) -> 29.78 | I197: ss
B198: SINPAI | C198: 98520 | D198: =PROPER(IF(K198="i",VLOOKUP(C198,'Ins SINAPI PE 02-2024 Onerado'!$A$8:$E$5189,2,0),VLOOKUP(C198,'Comp SINAPI PE 02-2024 Onerado'!$G$7:$K$7500,2,0))) -> Aplicação De Adubo Em Solo. Af_05/2018 | E198: =IF(I198="i",VLOOKUP(C198,'Ins SINAPI PE 02-2024 Onerado'!$A$8:$E$5189,3,0),VLOOKUP(C198,'Comp SINAPI PE 02-2024 Onerado'!$G$7:$K$7500,3,0)) -> M2 | F198: 1 | G198: =IF(I198="i",VLOOKUP(C198,'Ins SINAPI PE 02-2024 Onerado'!$A$8:$E$5189,5,0),VLOOKUP(C198,'Comp SINAPI PE 02-2024 Onerado'!$G$7:$K$7500,5,0)) -> 4.51 | H198: =ROUND(F198*G198,2) -> 4.51 | I198: ca
B199: SINPAI | C199: 98504 | D199: =PROPER(IF(K199="i",VLOOKUP(C199,'Ins SINAPI PE 02-2024 Onerado'!$A$8:$E$5189,2,0),VLOOKUP(C199,'Comp SINAPI PE 02-2024 Onerado'!$G$7:$K$7500,2,0))) -> Plantio De Grama Batatais Em Placas. Af_05/2018 | E199: =IF(I199="i",VLOOKUP(C199,'Ins SINAPI PE 02-2024 Onerado'!$A$8:$E$5189,3,0),VLOOKUP(C199,'Comp SINAPI PE 02-2024 Onerado'!$G$7:$K$7500,3,0)) -> M2 | F199: 1 | G199: =IF(I199="i",VLOOKUP(C199,'Ins SINAPI PE 02-2024 Onerado'!$A$8:$E$5189,5,0),VLOOKUP(C199,'Comp SINAPI PE 02-2024 Onerado'!$G$7:$K$7500,5,0)) -> 20.06 | H199: 20.06 | I199: ca
B200: SINPAI | C200: 100946 | D200: =PROPER(IF(K200="i",VLOOKUP(C200,'Ins SINAPI PE 02-2024 Onerado'!$A$8:$E$5189,2,0),VLOOKUP(C200,'Comp SINAPI PE 02-2024 Onerado'!$G$7:$K$7500,2,0))) -> Transporte Com Caminhão Carroceria 9T, Em Via Urbana Em Revestimento Primário (Unidade: Txkm). Af_07/2020 | E200: =IF(I200="i",VLOOKUP(C200,'Ins SINAPI PE 02-2024 Onerado'!$A$8:$E$5189,3,0),VLOOKUP(C200,'Comp SINAPI PE 02-2024 Onerado'!$G$7:$K$7500,3,0)) -> TXKM | F200: =0.02*'Memorial de cálculo'!G8 -> 0.1 | G200: =IF(I200="i",VLOOKUP(C200,'Ins SINAPI PE 02-2024 Onerado'!$A$8:$E$5189,5,0),VLOOKUP(C200,'Comp SINAPI PE 02-2024 Onerado'!$G$7:$K$7500,5,0)) -> 2.39 | H200: =ROUND(F200*G200,2) -> 0.24 | I200: ca | K200: 1m² de tapete pesa 20 kg
B201: SINPAI | C201: 100947 | D201: =PROPER(IF(K201="i",VLOOKUP(C201,'Ins SINAPI PE 02-2024 Onerado'!$A$8:$E$5189,2,0),VLOOKUP(C201,'Comp SINAPI PE 02-2024 Onerado'!$G$7:$K$7500,2,0))) -> Transporte Com Caminhão Carroceria 9T, Em Via Urbana Pavimentada, Dmt Até 30Km (Unidade: Txkm). Af_07/2020 | E201: =IF(I201="i",VLOOKUP(C201,'Ins SINAPI PE 02-2024 Onerado'!$A$8:$E$5189,3,0),VLOOKUP(C201,'Comp SINAPI PE 02-2024 Onerado'!$G$7:$K$7500,3,0)) -> TXKM | F201: =0.02*'Memorial de cálculo'!G7 -> 0.9 | G201: =IF(I201="i",VLOOKUP(C201,'Ins SINAPI PE 02-2024 Onerado'!$A$8:$E$5189,5,0),VLOOKUP(C201,'Comp SINAPI PE 02-2024 Onerado'!$G$7:$K$7500,5,0)) -> 2.2 | H201: =ROUND(F201*G201,2) -> 1.98 | I201: ca
B202: COTAÇÃO | C202: CT.01 | D202: Hospedagem | E202: un | F202: ='Memorial de cálculo'!D109*'Memorial de cálculo'!H109+'Memorial de cálculo'!D110*'Memorial de cálculo'!H110+'Memorial de cálculo'!D111*'Memorial de cálculo'!H111 -> 0.01175 | G202: =Cotações!O$11 -> 90 | H202: =ROUND(F202*G202,2) -> 1.06 | I202: ca
B203: SICRO | C203: E9134 | D203: Miniônibus com capacidade para 30 passageiros - 111 Kw | E203: chp | F203: =F202*'Memorial de cálculo'!H7*0.2 -> 0.003838333333 | G203: 216.48 | H203: =ROUND(F203*G203,2) -> 0.83 | I203: ca
B204: SICRO | C204: E9134 | D204: Miniônibus com capacidade para 30 passageiros - 111 Kw | E204: chi | F204: =F202*(8-'Memorial de cálculo'!H7)*0.2 -> 0.01496166667 | G204: 73.276 | H204: =ROUND(F204*G204,2) -> 1.1 | I204: ca
B205: =B194 -> 8.1.1 | D205: MÃO DE OBRA | H205: 0 | I205: mdo
B207: ='Planilha Orçamentária'!A56 -> 9.1.1 | C207: =VLOOKUP($B207,'[1]Planilha Orçamentária'!$A$11:$I$494,3,) -> CPU.16 | D207: =VLOOKUP($B207,'Planilha Orçamentária'!$A$11:$I$1000,4,) -> Execução de Muro com Pedra argamassada com cimento e areia 1:3 | E207: =VLOOKUP($B207,'Planilha Orçamentária'!$A$11:$I$496,5,) -> m | H207: =H208+H209+H210+H220 -> 688.67 | I207: s
B208: =B207 -> 9.1.1 | D208: MATERIAL | I208: ss
B209: =B207 -> 9.1.1 | D209: EQUIPAMENTOS | I209: ss
B210: =B207 -> 9.1.1 | D210: SERVIÇOS | H210: =SUM(H211:H219) -> 688.67 | I210: ss
B211: SINPAI | C211: 101234 | D211: =PROPER(IF(K211="i",VLOOKUP(C211,'Ins SINAPI PE 02-2024 Onerado'!$A$8:$E$5189,2,0),VLOOKUP(C211,'Comp SINAPI PE 02-2024 Onerado'!$G$7:$K$7500,2,0))) -> Escavação Vertical Para Infraestrutura, Com Carga, Descarga E Transporte De Solo De 1ª Categoria, Com Escavadeira Hidráulica (Caçamba: 0,8 M³ / 111Hp), Frota De 5 Caminhões Basculantes De 14 M³, Dmt De 1,5 Km E Velocidade Média18 Km/H. Af_05/2020 | E211: =IF(I211="i",VLOOKUP(C211,'Ins SINAPI PE 02-2024 Onerado'!$A$8:$E$5189,3,0),VLOOKUP(C211,'Comp SINAPI PE 02-2024 Onerado'!$G$7:$K$7500,3,0)) -> M3 | F211: =1.5*0.4/2 -> 0.3 | G211: =IF(I211="i",VLOOKUP(C211,'Ins SINAPI PE 02-2024 Onerado'!$A$8:$E$5189,5,0),VLOOKUP(C211,'Comp SINAPI PE 02-2024 Onerado'!$G$7:$K$7500,5,0)) -> 17.11 | H211: =ROUND(F211*G211,2) -> 5.13 | I211: ca
B212: SINPAI | C212: 103800 | D212: =PROPER(IF(K212="i",VLOOKUP(C212,'Ins SINAPI PE 02-2024 Onerado'!$A$8:$E$5189,2,0),VLOOKUP(C212,'Comp SINAPI PE 02-2024 Onerado'!$G$7:$K$7500,2,0))) -> Pedra Argamassada Com Cimento E Areia 1:3, 40% De Argamassa Em Volume - Areia E Pedra De Mão Comerciais - Fornecimento E Assentamento. Af_08/2022 | E212: =IF(I212="i",VLOOKUP(C212,'Ins SINAPI PE 02-2024 Onerado'!$A$8:$E$5189,3,0),VLOOKUP(C212,'Comp SINAPI PE 02-2024 Onerado'!$G$7:$K$7500,3,0)) -> M3 | F212: =0.4*1.5 -> 0.6 | G212: =IF(I212="i",VLOOKUP(C212,'Ins SINAPI PE 02-2024 Onerado'!$A$8:$E$5189,5,0),VLOOKUP(C212,'Comp SINAPI PE 02-2024 Onerado'!$G$7:$K$7500,5,0)) -> 495.27 | H212: =ROUND(F212*G212,2) -> 297.16 | I212: ca
B213: SINPAI | C213: 96620 | D213: =PROPER(IF(K213="i",VLOOKUP(C213,'Ins SINAPI PE 02-2024 Onerado'!$A$8:$E$5189,2,0),VLOOKUP(C213,'Comp SINAPI PE 02-2024 Onerado'!$G$7:$K$7500,2,0))) -> Lastro De Concreto Magro, Aplicado Em Pisos, Lajes Sobre Solo Ou Radiers. Af_01/2024 | E213: =IF(I213="i",VLOOKUP(C213,'Ins SINAPI PE 02-2024 Onerado'!$A$8:$E$5189,3,0),VLOOKUP(C213,'Comp SINAPI PE 02-2024 Onerado'!$G$7:$K$7500,3,0)) -> M3 | F213: =0.4*0.1 -> 0.04 | G213: =IF(I213="i",VLOOKUP(C213,'Ins SINAPI PE 02-2024 Onerado'!$A$8:$E$5189,5,0),VLOOKUP(C213,'Comp SINAPI PE 02-2024 Onerado'!$G$7:$K$7500,5,0)) -> 722.53 | H213: 28.9 | I213: ca
B214: SINPAI | C214: 93358 | D214: =PROPER(IF(K214="i",VLOOKUP(C214,'Ins SINAPI PE 02-2024 Onerado'!$A$8:$E$5189,2,0),VLOOKUP(C214,'Comp SINAPI PE 02-2024 Onerado'!$G$7:$K$7500,2,0))) -> Escavação Manual De Vala Com Profundidade Menor Ou Igual A 1,30 M. Af_02/2021 | E214: =IF(I214="i",VLOOKUP(C214,'Ins SINAPI PE 02-2024 Onerado'!$A$8:$E$5189,3,0),VLOOKUP(C214,'Comp SINAPI PE 02-2024 Onerado'!$G$7:$K$7500,3,0)) -> M3 | F214: =0.4*0.2 -> 0.08 | G214: =IF(I214="i",VLOOKUP(C214,'Ins SINAPI PE 02-2024 Onerado'!$A$8:$E$5189,5,0),VLOOKUP(C214,'Comp SINAPI PE 02-2024 Onerado'!$G$7:$K$7500,5,0)) -> 80.22 | H214: 6.42 | I214: ca
B215: SINPAI | C215: 100946 | D215: =PROPER(IF(K215="i",VLOOKUP(C215,'Ins SINAPI PE 02-2024 Onerado'!$A$8:$E$5189,2,0),VLOOKUP(C215,'Comp SINAPI PE 02-2024 Onerado'!$G$7:$K$7500,2,0))) -> Transporte Com Caminhão Carroceria 9T, Em Via Urbana Em Revestimento Primário (Unidade: Txkm). Af_07/2020 | E215: =IF(I215="i",VLOOKUP(C215,'Ins SINAPI PE 02-2024 Onerado'!$A$8:$E$5189,3,0),VLOOKUP(C215,'Comp SINAPI PE 02-2024 Onerado'!$G$7:$K$7500,3,0)) -> TXKM | F215: ='Memorial de cálculo'!G8*(F212+F213)*1.8 -> 5.76 | G215: =IF(I215="i",VLOOKUP(C215,'Ins SINAPI PE 02-2024 Onerado'!$A$8:$E$5189,5,0),VLOOKUP(C215,'Comp SINAPI PE 02-2024 Onerado'!$G$7:$K$7500,5,0)) -> 2.39 | H215: =ROUND(F215*G215,2) -> 13.77 | I215: ca
... 75 more rows

Sheet CPU DES (hidden)
B1: Ministério da Integração e do Desenvolvimento Regional
B2: Companhia de Desenvolvimento dos Vales do São Francisco e do Parnaíba
B4: COMPOSIÇÕES DE PREÇOS UNITÁRIOS - ORÇAMENTO DESONERADO
B5: OBRA: | C5: SERVIÇOS DE MANUTENÇÃO E OBRAS CIVIS NA ESTRUTURA DA BARRAGEM E EQUIPAMENTO HIDROMECÂNICO | F5: BDI (serv.): | G5: ='BDI serv Desonerado'!D22 -> 0.3351
B6: LOCAL: | C6: BARRAGEM POÇO DO MAGRO, GUANAMBI/BA | F6: BDI (forn.): | G6: ='BDI forn Desonerado'!D22 -> 0.212
B7: DATA BASE: | C7: 2023-05-01
B8: PRAZO: | C8: 120 DIAS
B10: REFERÊNCIA | C10: CÓDIGO | D10: DESCRIÇÃO | E10: UNIDADE | F10: ÍNDICE | G10: CUSTO UNITÁRIO | H10: PREÇO TOTAL
B11: ='Planilha Orçamentária Desoner'!A12 -> 1.1 | C11: =VLOOKUP($B11,'Planilha Orçamentária Desoner'!$A$11:$I$504,3,) -> CPU.01 | D11: =VLOOKUP($B11,'Planilha Orçamentária Desoner'!$A$11:$I$504,4,) -> ADMINISTRAÇÃO LOCAL | E11: un | H11: =SUM(H15,H14,H13,H12) -> 7834.22 | I11: S
B12: =B11 -> 1.1 | D12: MATERIAL | I12: ss
B13: =B11 -> 1.1 | D13: EQUIPAMENTOS | H13: 0 | I13: ss
B14: =B11 -> 1.1 | D14: SERVIÇOS | I14: ss
B15: =B11 -> 1.1 | D15: MÃO DE OBRA | H15: =SUM(H16:H17) -> 7834.22 | I15: mdo
B16: SINAPI | C16: 90778 | D16: =PROPER(IF(I16="i",VLOOKUP(C16,'Ins SINAPI BA 05-2023 Desoner'!$A$8:$E$5189,2,0),VLOOKUP(C16,'Comp SINAPI BA 05-2023 Desoner'!$G$7:$K$7500,2,0))) -> Engenheiro Civil De Obra Pleno Com Encargos Complementares | E16: =LOWER(IF(I16="i",VLOOKUP(C16,'Ins SINAPI BA 05-2023 Desoner'!$A$8:$E$5189,3,0),VLOOKUP(C16,'Comp SINAPI BA 05-2023 Desoner'!$G$7:$K$7500,3,0))) -> h | F16: =CPU!F16 -> 30 | G16: =IF(I16="i",VLOOKUP(C16,'Ins SINAPI BA 05-2023 Desoner'!$A$8:$E$5189,5,0),VLOOKUP(C16,'Comp SINAPI BA 05-2023 Desoner'!$G$7:$K$7500,5,0)) -> 111.26 | H16: =ROUND(F16*G16,2) -> 3337.8 | I16: ca
B17: SINAPI | C17: 93572 | D17: =PROPER(IF(I17="i",VLOOKUP(C17,'Ins SINAPI BA 05-2023 Desoner'!$A$8:$E$5189,2,0),VLOOKUP(C17,'Comp SINAPI BA 05-2023 Desoner'!$G$7:$K$7500,2,0))) -> Encarregado Geral De Obras Com Encargos Complementares | E17: =LOWER(IF(I17="i",VLOOKUP(C17,'Ins SINAPI BA 05-2023 Desoner'!$A$8:$E$5189,3,0),VLOOKUP(C17,'Comp SINAPI BA 05-2023 Desoner'!$G$7:$K$7500,3,0))) -> mes | F17: =CPU!F17 -> 0.8 | G17: =IF(I17="i",VLOOKUP(C17,'Ins SINAPI BA 05-2023 Desoner'!$A$8:$E$5189,5,0),VLOOKUP(C17,'Comp SINAPI BA 05-2023 Desoner'!$G$7:$K$7500,5,0)) -> 5620.52 | H17: =ROUND(F17*G17,2) -> 4496.42 | I17: ca
I18: x
B19: ='Planilha Orçamentária Desoner'!A22 -> 2.2.1 | C19: =VLOOKUP($B19,'Planilha Orçamentária Desoner'!$A$11:$I$504,3,) -> CPU.02 | D19: =VLOOKUP($B19,'Planilha Orçamentária Desoner'!$A$11:$I$504,4,) -> PLACA DE OBRA EM CHAPA DE ACO GALVANIZADO | E19: m² | H19: =SUM(H20,H28,H26,H27) -> 440.1 | I19: S
B20: =B19 -> 2.2.1 | D20: MATERIAL | H20: =SUM(H21:H25) -> 373.64 | I20: SS
B21: SINAPI | C21: 4417 | D21: =PROPER(IF(I21="i",VLOOKUP(C21,'Ins SINAPI BA 05-2023 Desoner'!$A$8:$E$5189,2,0),VLOOKUP(C21,'Comp SINAPI BA 05-2023 Desoner'!$G$7:$K$7500,2,0))) -> Sarrafo Nao Aparelhado *2,5 X 7* Cm, Em Macaranduba, Angelim Ou Equivalente Da Regiao - Bruta | E21: =LOWER(IF(I21="i",VLOOKUP(C21,'Ins SINAPI BA 05-2023 Desoner'!$A$8:$E$5189,3,0),VLOOKUP(C21,'Comp SINAPI BA 05-2023 Desoner'!$G$7:$K$7500,3,0))) -> m | F21: =CPU!F47 -> 2 | G21: =IF(I21="i",VLOOKUP(C21,'Ins SINAPI BA 05-2023 Desoner'!$A$8:$E$5189,5,0),VLOOKUP(C21,'Comp SINAPI BA 05-2023 Desoner'!$G$7:$K$7500,5,0)) -> 7.18 | H21: =ROUND(F21*G21,2) -> 14.36 | I21: i
B22: SINAPI | C22: 4430 | D22: =PROPER(IF(I22="i",VLOOKUP(C22,'Ins SINAPI BA 05-2023 Desoner'!$A$8:$E$5189,2,0),VLOOKUP(C22,'Comp SINAPI BA 05-2023 Desoner'!$G$7:$K$7500,2,0))) -> Caibro Nao Aparelhado *5 X 6* Cm, Em Macaranduba, Angelim Ou Equivalente Da Regiao - Bruta | E22: =LOWER(IF(I22="i",VLOOKUP(C22,'Ins SINAPI BA 05-2023 Desoner'!$A$8:$E$5189,3,0),VLOOKUP(C22,'Comp SINAPI BA 05-2023 Desoner'!$G$7:$K$7500,3,0))) -> m | F22: =CPU!F48 -> 4 | G22: =IF(I22="i",VLOOKUP(C22,'Ins SINAPI BA 05-2023 Desoner'!$A$8:$E$5189,5,0),VLOOKUP(C22,'Comp SINAPI BA 05-2023 Desoner'!$G$7:$K$7500,5,0)) -> 13.2 | H22: =ROUND(F22*G22,2) -> 52.8 | I22: I
B23: SINAPI | C23: 4813 | D23: =PROPER(IF(I23="i",VLOOKUP(C23,'Ins SINAPI BA 05-2023 Desoner'!$A$8:$E$5189,2,0),VLOOKUP(C23,'Comp SINAPI BA 05-2023 Desoner'!$G$7:$K$7500,2,0))) -> Placa De Obra (Para Construcao Civil) Em Chapa Galvanizada *N. 22*, Adesivada, De *2,4 X 1,2* M (Sem Postes Para Fixacao) | E23: =LOWER(IF(I23="i",VLOOKUP(C23,'Ins SINAPI BA 05-2023 Desoner'!$A$8:$E$5189,3,0),VLOOKUP(C23,'Comp SINAPI BA 05-2023 Desoner'!$G$7:$K$7500,3,0))) -> m2 | F23: =CPU!F49 -> 1 | G23: =IF(I23="i",VLOOKUP(C23,'Ins SINAPI BA 05-2023 Desoner'!$A$8:$E$5189,5,0),VLOOKUP(C23,'Comp SINAPI BA 05-2023 Desoner'!$G$7:$K$7500,5,0)) -> 300 | H23: =ROUND(F23*G23,2) -> 300 | I23: I
B24: SINAPI | C24: 5075 | D24: =PROPER(IF(I24="i",VLOOKUP(C24,'Ins SINAPI BA 05-2023 Desoner'!$A$8:$E$5189,2,0),VLOOKUP(C24,'Comp SINAPI BA 05-2023 Desoner'!$G$7:$K$7500,2,0))) -> Prego De Aco Polido Com Cabeca 18 X 30 (2 3/4 X 10) | E24: =LOWER(IF(I24="i",VLOOKUP(C24,'Ins SINAPI BA 05-2023 Desoner'!$A$8:$E$5189,3,0),VLOOKUP(C24,'Comp SINAPI BA 05-2023 Desoner'!$G$7:$K$7500,3,0))) -> kg | F24: =CPU!F50 -> 0.11 | G24: =IF(I24="i",VLOOKUP(C24,'Ins SINAPI BA 05-2023 Desoner'!$A$8:$E$5189,5,0),VLOOKUP(C24,'Comp SINAPI BA 05-2023 Desoner'!$G$7:$K$7500,5,0)) -> 20.6 | H24: =ROUND(F24*G24,2) -> 2.27 | I24: I
B25: SINAPI | C25: 94962 | D25: =PROPER(IF(I25="i",VLOOKUP(C25,'Ins SINAPI BA 05-2023 Desoner'!$A$8:$E$5189,2,0),VLOOKUP(C25,'Comp SINAPI BA 05-2023 Desoner'!$G$7:$K$7500,2,0))) -> Concreto Magro Para Lastro, Traço 1:4,5:4,5 (Em Massa Seca De Cimento/ Areia Média/ Brita 1) - Preparo Mecânico Com Betoneira 400 L. Af_05/2021 | E25: =LOWER(IF(I25="i",VLOOKUP(C25,'Ins SINAPI BA 05-2023 Desoner'!$A$8:$E$5189,3,0),VLOOKUP(C25,'Comp SINAPI BA 05-2023 Desoner'!$G$7:$K$7500,3,0))) -> m3 | F25: =CPU!F51 -> 0.01 | G25: =IF(I25="i",VLOOKUP(C25,'Ins SINAPI BA 05-2023 Desoner'!$A$8:$E$5189,5,0),VLOOKUP(C25,'Comp SINAPI BA 05-2023 Desoner'!$G$7:$K$7500,5,0)) -> 421.32 | H25: =ROUND(F25*G25,2) -> 4.21 | I25: ca
B26: =B19 -> 2.2.1 | D26: EQUIPAMENTOS | H26: 0 | I26: SS
B27: =B19 -> 2.2.1 | D27: SERVIÇOS | H27: 0 | I27: SS
B28: =B19 -> 2.2.1 | D28: MÃO DE OBRA | H28: =SUM(H29:H30) -> 66.46 | I28: ss
B29: SINAPI | C29: 88262 | D29: =PROPER(IF(I29="i",VLOOKUP(C29,'Ins SINAPI BA 05-2023 Desoner'!$A$8:$E$5189,2,0),VLOOKUP(C29,'Comp SINAPI BA 05-2023 Desoner'!$G$7:$K$7500,2,0))) -> Carpinteiro De Formas Com Encargos Complementares | E29: =LOWER(IF(I29="i",VLOOKUP(C29,'Ins SINAPI BA 05-2023 Desoner'!$A$8:$E$5189,3,0),VLOOKUP(C29,'Comp SINAPI BA 05-2023 Desoner'!$G$7:$K$7500,3,0))) -> h | F29: =CPU!F58 -> 1 | G29: =IF(I29="i",VLOOKUP(C29,'Ins SINAPI BA 05-2023 Desoner'!$A$8:$E$5189,5,0),VLOOKUP(C29,'Comp SINAPI BA 05-2023 Desoner'!$G$7:$K$7500,5,0)) -> 27.16 | H29: =ROUND(F29*G29,2) -> 27.16 | I29: ca
B30: SINAPI | C30: 88316 | D30: =PROPER(IF(I30="i",VLOOKUP(C30,'Ins SINAPI BA 05-2023 Desoner'!$A$8:$E$5189,2,0),VLOOKUP(C30,'Comp SINAPI BA 05-2023 Desoner'!$G$7:$K$7500,2,0))) -> Servente Com Encargos Complementares | E30: =LOWER(IF(I30="i",VLOOKUP(C30,'Ins SINAPI BA 05-2023 Desoner'!$A$8:$E$5189,3,0),VLOOKUP(C30,'Comp SINAPI BA 05-2023 Desoner'!$G$7:$K$7500,3,0))) -> h | F30: =CPU!F59 -> 2 | G30: =IF(I30="i",VLOOKUP(C30,'Ins SINAPI BA 05-2023 Desoner'!$A$8:$E$5189,5,0),VLOOKUP(C30,'Comp SINAPI BA 05-2023 Desoner'!$G$7:$K$7500,5,0)) -> 19.65 | H30: =ROUND(F30*G30,2) -> 39.3 | I30: ca
B32: ='Planilha Orçamentária Desoner'!A33 -> 4.1.1 | C32: =VLOOKUP($B32,'Planilha Orçamentária Desoner'!$A$11:$I$504,3,) -> CPU.03 | D32: =VLOOKUP($B32,'Planilha Orçamentária Desoner'!$A$11:$I$504,4,) -> Mobilização da Equipe, Camara Hiperbarica e todos os equipamentos de mergulho envolvidos na operação | E32: un | F32: 1 | H32: =SUM(H33,H35,H37) ->  | I32: S
B33: =B32 -> 4.1.1 | D33: MATERIAL | H33: 0 | I33: ss
B34: =B32 -> 4.1.1 | D34: EQUIPAMENTOS | H34: 0 | I34: ss
B35: =B32 -> 4.1.1 | D35: SERVIÇOS | H35: =H36 ->  | I35: ss
B36: COTAÇÃO | C36: 2023-05-01 | D36: Mobilização e desmobilização da Equipe, Camara Hiperbarica e todos os equipamentos de mergulho envolvidos na operação | E36: un | F36: =CPU!#REF! ->  | G36: =2*(21000+22000+19400)/3 -> 41600 | H36: =ROUND(F36*G36,2) ->  | I36: ca
B37: =B32 -> 4.1.1 | D37: MÃO DE OBRA | H37: 0 | I37: ss
I38: x
B39: ='Planilha Orçamentária Desoner'!A36 -> 4.2.1 | C39: =VLOOKUP($B39,'Planilha Orçamentária Desoner'!$A$11:$I$504,3,) -> CPU.04 | D39: =VLOOKUP($B39,'Planilha Orçamentária Desoner'!$A$11:$I$504,4,) -> Vedação da entrada da tomada d’água com chapas metálicas | E39: un | F39: 1 | H39: =SUM(H40,H51,H53,H56) ->  | I39: S
B40: =B39 -> 4.2.1 | D40: MATERIAL | H40: =SUM(H41:H50) ->  | I40: ss
B41: CODEVASF | C41: DP | D41: DIÁRIA | E41: dia | F41: =CPU!F155 -> 1.2 | G41: 305.1 | H41: =ROUND(F41*G41,2) -> 366.12
B42: SICRO | C42: E9043 | D42: Embarcação de alumínio com comprimento de 6 m e motor de popa - 18,60 kW | E42: h | F42: =CPU!#REF! ->  | G42: 66.1577 | H42: =ROUND(F42*G42,2) -> 
B43: SICRO | C43: 2408149 | D43: Estrutura em chapa de aço ASTM A36 corte, solda e montagem - fornecimento e instalação | E43: kg | F43: =CPU!#REF! ->  | G43: 14.84 | H43: =ROUND(F43*G43,2) -> 
B44: SICRO | C44: E9243 | D44: Câmara hiperbárica com filtro, serpentina e reservatório de ar para mergulho raso - D= 1,80 m e H = 2,22 m. | E44: h | F44: =CPU!#REF! ->  | G44: 58.3517 | H44: =ROUND(F44*G44,2) -> 
B45: SICRO | C45: E9245 | D45: Estação transmissora de superfície para comunicação com fio | E45: h | F45: =CPU!#REF! ->  | G45: 0.7428
B46: SICRO | C46: E9242 | D46: Estação transmissora de superfície para televisionamento | E46: h | F46: =CPU!#REF! ->  | G46: 1.3333
B47: SICRO | C47: E9066 | D47: Grupo gerador - 14 kVA | E47: h | F47: =CPU!#REF! ->  | G47: 19.3801
B48: SICRO | C48: E9246 | D48: Painel de controle de ar com manômetros e pneufatômetros | E48: h | F48: =CPU!#REF! ->  | G48: 1.4255
B49: SICRO | C49: E9248 | D49: Sistema de ar comprimido para mergulho até 30 m com pressão de trabalho de 1,4 MPa - 7,46 kW | E49: h | F49: =CPU!#REF! ->  | G49: 15.0543
B50: SICRO | C50: E9058 | D50: Plataforma flutuante de 12 x 24 x 1,8 m com capacidade de 150 t | E50: h | F50: =CPU!#REF! ->  | G50: 40.3012 | H50: =ROUND(F50*G50,2) -> 
B51: =B39 -> 4.2.1 | D51: EQUIPAMENTOS | H51: =SUM(H52) ->  | I51: ss
B52: CODEVASF | D52: CAMINHONETE | E52: mes | F52: =CPU!#REF! ->  | G52: 5885.33 | H52: =ROUND(F52*G52,2) ->  | I52: I
B53: =B39 -> 4.2.1 | D53: SERVIÇOS | H53: =SUM(H54:H55) -> 597.77 | I53: ss
B54: SICRO | C54: 3807863 | D54: Chumbador para concreto D = 12,5 mm tipo tecbolt - fornecimento e instalação | E54: un | F54: =CPU!F158 -> 45 | G54: 13.2 | H54: =ROUND(F54*G54,2) -> 594
B55: SICRO | C55: 4915639 | D55: Limpeza em superfície de concreto com escova de aço | E55: m² | F55: =CPU!F159 -> 1 | G55: 3.77 | H55: =ROUND(F55*G55,2) -> 3.77
B56: =B39 -> 4.2.1 | D56: MÃO DE OBRA | H56: =SUM(H57:H59) ->  | I56: ss
B57: SICRO | C57: P9926 | D57: Mergulhador raso auxiliar de superfície | E57: h | F57: =CPU!F164 -> 0.5 | G57: 28.2203 | H57: =ROUND(F57*G57,2) -> 14.11
B58: EMBASA | C58: B010000113 | D58: MERGULHADOR PROFISSIONAL | E58: h | F58: =CPU!F165 -> 5 | G58: 76.19 | H58: =ROUND(F58*G58,2) -> 380.95
B59: SICRO | C59: P9922 | D59: Mergulhador raso dependente de emergência | E59: h | F59: =CPU!#REF! ->  | G59: 31.5522
B61: ='Planilha Orçamentária Desoner'!A37 -> 4.2.2 | C61: =VLOOKUP($B61,'Planilha Orçamentária Desoner'!$A$11:$I$504,3,) -> CPU.05 | D61: =VLOOKUP($B61,'Planilha Orçamentária Desoner'!$A$11:$I$504,4,) -> Remoção da vedação da entrada da tomada d’água com chapas metálicas | E61: un | F61: 1 | H61: =SUM(H62,H72,H74,H75) ->  | I61: S
B62: =B61 -> 4.2.2 | D62: MATERIAL | H62: =SUM(H63:H71) ->  | I62: ss
B63: CODEVASF | C63: DP | D63: DIÁRIA | E63: dia | F63: =CPU!#REF! ->  | G63: 305.1 | H63: =ROUND(F63*G63,2) -> 
B64: SICRO | C64: E9043 | D64: Embarcação de alumínio com comprimento de 6 m e motor de popa - 18,60 kW | E64: h | F64: =CPU!#REF! ->  | G64: 66.1577 | H64: =ROUND(F64*G64,2) -> 
B65: SICRO | C65: E9243 | D65: Câmara hiperbárica com filtro, serpentina e reservatório de ar para mergulho raso - D= 1,80 m e H = 2,22 m. | E65: h | F65: =CPU!#REF! ->  | G65: 58.3517 | H65: =ROUND(F65*G65,2) -> 
B66: SICRO | C66: E9245 | D66: Estação transmissora de superfície para comunicação com fio | E66: h | F66: =CPU!#REF! ->  | G66: 0.7428
B67: SICRO | C67: E9242 | D67: Estação transmissora de superfície para televisionamento | E67: h | F67: =CPU!#REF! ->  | G67: 1.3333
B68: SICRO | C68: E9066 | D68: Grupo gerador - 14 kVA | E68: h | F68: =CPU!#REF! ->  | G68: 19.3801
B69: SICRO | C69: E9246 | D69: Painel de controle de ar com manômetros e pneufatômetros | E69: h | F69: =CPU!#REF! ->  | G69: 1.4255
B70: SICRO | C70: E9248 | D70: Sistema de ar comprimido para mergulho até 30 m com pressão de trabalho de 1,4 MPa - 7,46 kW | E70: h | F70: =CPU!#REF! ->  | G70: 15.0543
B71: SICRO | C71: E9058 | D71: Plataforma flutuante de 12 x 24 x 1,8 m com capacidade de 150 t | E71: h | F71: =CPU!#REF! ->  | G71: 40.3012 | H71: =ROUND(F71*G71,2) -> 
B72: =B61 -> 4.2.2 | D72: EQUIPAMENTOS | H72: =SUM(H73) ->  | I72: ss
B73: CODEVASF | D73: CAMINHONETE | E73: mes | F73: =CPU!#REF! ->  | G73: 5885.33 | H73: =ROUND(F73*G73,2) ->  | I73: I
B74: =B61 -> 4.2.2 | D74: SERVIÇOS | H74: 0 | I74: ss
B75: =B61 -> 4.2.2 | D75: MÃO DE OBRA | H75: =SUM(H76:H78) ->  | I75: ss
B76: SICRO | C76: P9926 | D76: Mergulhador raso auxiliar de superfície | E76: h | F76: =CPU!#REF! ->  | G76: 28.2203 | H76: =ROUND(F76*G76,2) -> 
B77: EMBASA | C77: B010000113 | D77: MERGULHADOR PROFISSIONAL | E77: h | F77: =CPU!#REF! ->  | G77: 76.19
B78: SICRO | C78: P9922 | D78: Mergulhador raso dependente de emergência | E78: h | F78: =CPU!#REF! ->  | G78: 31.5522
B80: ='Planilha Orçamentária Desoner'!A59 -> 6.1.6 | C80: =VLOOKUP($B80,'Planilha Orçamentária Desoner'!$A$11:$I$504,3,) -> CPU.06 | D80: =VLOOKUP($B80,'Planilha Orçamentária Desoner'!$A$11:$I$504,4,) -> ARGAMASSA TRACO 1:3 (CIMENTO E AREIA), PREPARO MANUAL, INCLUSO ADITIVO IMPERMEABILIZANTE | E80: m3 | H80: =H81+H84+H86+H87 ->  | I80: s
B81: =B80 -> 6.1.6 | D81: MATERIAL | H81: =SUM(H82:H83) ->  | I81: ss
B82: SINAPI | C82: 88629 | D82: =PROPER(IF(I82="i",VLOOKUP(C82,'Ins SINAPI BA 05-2023 Desoner'!$A$8:$E$5189,2,0),VLOOKUP(C82,'Comp SINAPI BA 05-2023 Desoner'!$G$7:$K$7500,2,0))) -> Argamassa Traço 1:3 (Em Volume De Cimento E Areia Média Úmida), Preparo Manual. Af_08/2019 | E82: =LOWER(IF(I82="i",VLOOKUP(C82,'Ins SINAPI BA 05-2023 Desoner'!$A$8:$E$5189,3,0),VLOOKUP(C82,'Comp SINAPI BA 05-2023 Desoner'!$G$7:$K$7500,3,0))) -> m3 | F82: =CPU!#REF! ->  | G82: =IF(I82="i",VLOOKUP(C82,'Ins SINAPI BA 05-2023 Desoner'!$A$8:$E$5189,5,0),VLOOKUP(C82,'Comp SINAPI BA 05-2023 Desoner'!$G$7:$K$7500,5,0)) -> 693.49 | H82: =ROUND(F82*G82,2) ->  | I82: ca
B83: SINAPI | C83: 123 | D83: =PROPER(IF(I83="i",VLOOKUP(C83,'Ins SINAPI BA 05-2023 Desoner'!$A$8:$E$5189,2,0),VLOOKUP(C83,'Comp SINAPI BA 05-2023 Desoner'!$G$7:$K$7500,2,0))) -> Aditivo Impermeabilizante De Pega Normal Para Argamassas E Concretos Sem Armacao, Liquido E Isento De Cloretos | E83: =LOWER(IF(I83="i",VLOOKUP(C83,'Ins SINAPI BA 05-2023 Desoner'!$A$8:$E$5189,3,0),VLOOKUP(C83,'Comp SINAPI BA 05-2023 Desoner'!$G$7:$K$7500,3,0))) -> l | F83: =CPU!#REF! ->  | G83: =IF(I83="i",VLOOKUP(C83,'Ins SINAPI BA 05-2023 Desoner'!$A$8:$E$5189,5,0),VLOOKUP(C83,'Comp SINAPI BA 05-2023 Desoner'!$G$7:$K$7500,5,0)) -> 6.85 | H83: =ROUND(F83*G83,2) ->  | I83: i
B84: =B80 -> 6.1.6 | D84: EQUIPAMENTOS | H84: =H85 ->  | I84: ss
B85: SICRO | C85: E9121 | D85: Plataforma elevatória articulada elétrica com alcance de 6 m com capacidade de 500 kg - 1,5 kW | E85: h | F85: =CPU!#REF! ->  | G85: 36.3564 | H85: =ROUND(F85*G85,2) ->  | I85: ca
B86: =B80 -> 6.1.6 | D86: SERVIÇOS | H86: 0 | I86: ss
B87: =B80 -> 6.1.6 | D87: MÃO DE OBRA | H87: 0 | I87: mdo
B89: ='Planilha Orçamentária Desoner'!A61 -> 6.1.8 | C89: =VLOOKUP($B89,'Planilha Orçamentária Desoner'!$A$11:$I$504,3,) -> CPU.07 | D89: =VLOOKUP($B89,'Planilha Orçamentária Desoner'!$A$11:$I$504,4,) -> CURA QUÍMICA | E89: m2 | H89: =H90+H92+H94+H95 ->  | I89: s
B90: =B89 -> 6.1.8 | D90: MATERIAL | H90: =SUM(H91) ->  | I90: ss
B91: SICRO | C91: M2152 | D91: Aditivo de cura para concreto | E91: kg | F91: =CPU!#REF! ->  | G91: 7.7205 | H91: =ROUND(F91*G91,2) ->  | I91: ca
B92: =B89 -> 6.1.8 | D92: EQUIPAMENTOS | H92: =SUM(H93) ->  | I92: ss
B93: SICRO | C93: E9589 | D93: Máquina texturizadora e aplicadora de cura química em pavimento de concreto - 44,80 kW | E93: H | F93: =CPU!#REF! ->  | G93: 206.4583 | H93: =ROUND(F93*G93,2) ->  | I93: ca
B94: =B89 -> 6.1.8 | D94: SERVIÇOS | H94: 0 | I94: ss
B95: =B89 -> 6.1.8 | D95: MÃO DE OBRA | H95: =SUM(H96) -> 15.72 | I95: mdo
B96: SINAPI | C96: 88316 | D96: =PROPER(IF(I96="i",VLOOKUP(C96,'Ins SINAPI BA 05-2023 Desoner'!$A$8:$E$5189,2,0),VLOOKUP(C96,'Comp SINAPI BA 05-2023 Desoner'!$G$7:$K$7500,2,0))) -> Servente Com Encargos Complementares | E96: =LOWER(IF(I96="i",VLOOKUP(C96,'Ins SINAPI BA 05-2023 Desoner'!$A$8:$E$5189,3,0),VLOOKUP(C96,'Comp SINAPI BA 05-2023 Desoner'!$G$7:$K$7500,3,0))) -> h | F96: =CPU!F233 -> 0.8 | G96: =IF(I96="i",VLOOKUP(C96,'Ins SINAPI BA 05-2023 Desoner'!$A$8:$E$5189,5,0),VLOOKUP(C96,'Comp SINAPI BA 05-2023 Desoner'!$G$7:$K$7500,5,0)) -> 19.65 | H96: =ROUND(F96*G96,2) -> 15.72 | I96: ca

Sheet Equipe de Mergulho (hidden)
B2: Definições de acordo com a TABELA REFERÊNCIA | H2: TABELA REFERÊNCIA
B3: 20 | C3: m | D3: Profundidade
B4: 48 | C4: min | D4: Tempo de mergulho
B5: =B4/60 -> 0.8 | C5: h
B6: 8 | C6: un | D6: Qd de mergulhadores
B8: EQUIPE ADOTADA DE ACORDO COM A NR 15 - ATIVIDADES E OPERAÇÕES INSALUBRES (POR DIA)
B9: H | C9: QTD
B10: =$B$5 -> 0.8 | C10: 1 | D10: Mergulhador Profissional
B11: =$B$5 -> 0.8 | C11: 1 | D11: Mergulhador Profissional
B12: 0.8 | C12: 1 | D12: Mergulhador Profissional
B13: 0.8 | C13: 1 | D13: Mergulhador Profissional
B14: 0.8 | C14: 1 | D14: Mergulhador Profissional
B15: 0.8 | C15: 1 | D15: Mergulhador Profissional
B16: 0.8 | C16: 1 | D16: Mergulhador Profissional
B17: 0.8 | C17: 1 | D17: Mergulhador Profissional
B18: =B5*B6 -> 6.4 | C18: 1 | D18: Mergulhador raso auxiliar de superfície
B19: =B5*B6 -> 6.4 | C19: 1 | D19: Mergulhador raso auxiliar de superfície
B20: =B5*B6 -> 6.4 | C20: 1 | D20: Mergulhador raso dependente de emergência
B21: =MAX(B10:B20) -> 6.4 | C21: =SUM(C10:C20) -> 11 | D21: TOTAL
B23: Identificação | D23: Serviço | E23: Duração (dias) | F23: Total (h)
B24: =CPU!B153 -> 6.1.1 | C24: =CPU!C153 -> CPU.12 | D24: =CPU!D153 -> Enrocamento c/ pedra de mão c/ fornecimento e assentamento | E24: 2 | F24: =$B$21*E24 -> 12.8
B25: =CPU!#REF! ->  | C25: =CPU!#REF! ->  | D25: =CPU!#REF! ->  | E25: 2 | F25: =$B$21*E25 -> 12.8
D27: De acordo com a duração do serviço será atualizada a quantidade de diárias
D28: Duração | E28: 2
D29: Diária | E29: =E28-1 -> 1

Sheet Cronograma
A1: Ministério da Integração e do Desenvolvimento Regional
A2: Companhia de Desenvolvimento dos Vales do São Francisco e do Parnaíba
A4: CRONOGRAMA FÍSICO-FINANCEIRO ONERADO
A5: OBRA: | B5: =CPU!C5 -> SERVIÇOS DE MANUTENÇÃO E OBRAS CIVIS NA BARRAGEM TRANQUEIRA | F5: BDI (serv.): | G5: ='BDI serv'!D22 -> 0.2378
A6: LOCAL: | B6: =CPU!C6 -> BARRAGEM TRANQUEIRA, DORMENTES-PE | F6: BDI (forn.): | G6: ='BDI forn'!E6 -> 0.136
A7: DATA BASE: | B7: =CPU!C7 -> 2024-02-01
A8: PRAZO: | B8: =CPU!C8 -> 120 DIAS
A9: ITEM | B9: DESCRIÇÃO | C9: TOTAL POR ETAPA | D9: MESES | H9: TOTAL
D10: 1 | E10: 2 | F10: 3 | G10: 4
A11: 1 | B11: =VLOOKUP(A11,'Planilha Orçamentária'!$A$11:$D$498,4) -> ADMINISTRAÇÃO DA OBRA | C11: =SUMIF('Planilha Orçamentária'!$A$11:$A$498,A11,'Planilha Orçamentária'!$I$11:$I$498) -> 143091.3634 | D11: =$C11*D12 -> 37373.87645 | E11: 28545.56325 | F11: 37151.6803 | G11: 40020.24341 | H11: =SUM(D11:G11) -> 143091.3634 | I11: R$
C12: =C11/C11 -> 1 | D12: =D35 -> 0.2611889045 | E12: =D36-D35+E35 -> 0.1994918671 | F12: =E36-E35+F35 -> 0.2596360774 | G12: =1-SUM(D12:F12) -> 0.2796831511 | H12: =SUM(D12:G12) -> 1 | I12: %
A13: 2 | B13: =VLOOKUP(A13,'Planilha Orçamentária'!$A$11:$D$498,4) -> SERVIÇOS PRELIMINARES | C13: =SUMIF('Planilha Orçamentária'!$A$11:$A$498,A13,'Planilha Orçamentária'!$I$11:$I$498) -> 34883.65484 | D13: =$C13*D14 -> 34883.65484 | H13: =SUM(D13:G13) -> 34883.65484 | I13: R$
C14: =C13/C13 -> 1 | D14: 1 | H14: 1 | I14: %
A15: 3 | B15: =VLOOKUP(A15,'Planilha Orçamentária'!$A$11:$D$498,4) -> CORTE DA VEGETAÇÃO E REMOÇÃO DAS RAIZES | C15: =SUMIF('Planilha Orçamentária'!$A$11:$A$498,A15,'Planilha Orçamentária'!$I$11:$I$498) -> 131483.5102 | D15: =$C15*D16 -> 131483.5102 | H15: 131483.5102 | I15: R$
C16: =C15/C15 -> 1 | D16: 1 | H16: 1 | I16: %
A17: 4 | B17: =VLOOKUP(A17,'Planilha Orçamentária'!$A$11:$D$498,4) -> RECOMPOSIÇÃO DE EROSÕES NO ATERRO | C17: =SUMIF('Planilha Orçamentária'!$A$11:$A$498,A17,'Planilha Orçamentária'!$I$11:$I$498) -> 158976.843 | D17: =$C17*D18 -> 79488.4215 | E17: =$C17*E18 -> 79488.4215 | H17: 158976.843 | I17: R$
C18: =C17/C17 -> 1 | D18: 0.5 | E18: 0.5 | H18: 1 | I18: %
A19: 5 | B19: =VLOOKUP(A19,'Planilha Orçamentária'!$A$11:$D$498,4) -> REGULARIZAÇÃO E PAVIMENTAÇÃO DA CRISTA | C19: =SUMIF('Planilha Orçamentária'!$A$11:$A$498,A19,'Planilha Orçamentária'!$I$11:$I$498) -> 98220.42024 | E19: =$C19*E20 -> 49110.21012 | F19: =$C19*F20 -> 49110.21012 | H19: 98220.42024 | I19: R$
C20: =C19/C19 -> 1 | E20: 0.5 | F20: 0.5 | H20: 1 | I20: %
A21: 6 | B21: =VLOOKUP(A21,'Planilha Orçamentária'!$A$11:$D$498,4) -> MANUTENÇÃO NO TALUDE DE MONTANTE | C21: =SUMIF('Planilha Orçamentária'!$A$11:$A$498,A21,'Planilha Orçamentária'!$I$11:$I$498) -> 43616.03677 | E21: =$C21*E22 -> 21808.01839 | F21: =$C21*F22 -> 21808.01839 | H21: =SUM(E21:G21) -> 43616.03677 | I21: R$
C22: =C21/C21 -> 1 | E22: 0.5 | F22: 0.5 | H22: =SUM(E22:G22) -> 1 | I22: %
A23: 7 | B23: =VLOOKUP(A23,'Planilha Orçamentária'!$A$11:$D$498,4) -> DRENAGEM SUPERFICIAL DO TALUDE JUSANTE | C23: =SUMIF('Planilha Orçamentária'!$A$11:$A$498,A23,'Planilha Orçamentária'!$I$11:$I$498) -> 16346.43631 | F23: =$C23*F24 -> 16346.43631 | H23: 16346.43631 | I23: R$
C24: =C23/C23 -> 1 | F24: 1 | H24: 1 | I24: %
A25: 8 | B25: =VLOOKUP(A25,'Planilha Orçamentária'!$A$11:$D$498,4) -> PROTEÇÃO SUPERFICIAL DO TALUDE DE JUSANTE | C25: =SUMIF('Planilha Orçamentária'!$A$11:$A$498,A25,'Planilha Orçamentária'!$I$11:$I$498) -> 77409.5364 | F25: =$C25*F26 -> 77409.5364 | H25: =SUM(D25:G25) -> 77409.5364 | I25: R$
C26: =C25/C25 -> 1 | F26: 1 | H26: 1 | I26: %
A27: 9 | B27: =VLOOKUP(A27,'Planilha Orçamentária'!$A$11:$D$498,4) -> MURO DE ALVENARIA DE PEDRA ARGAMASSADA | C27: =SUMIF('Planilha Orçamentária'!$A$11:$A$498,A27,'Planilha Orçamentária'!$I$11:$I$498) -> 42621.7863 | F27: =$C27*F28 -> 21310.89315 | G27: =$C27*G28 -> 21310.89315 | H27: =SUM(D27:G27) -> 42621.7863 | I27: R$
C28: =C27/C27 -> 1 | F28: 0.5 | G28: 0.5 | H28: 1 | I28: %
A29: 10 | B29: =VLOOKUP(A29,'Planilha Orçamentária'!$A$11:$D$498,4) -> SERVIÇOS COMPLEMENTARES | C29: =SUMIF('Planilha Orçamentária'!$A$11:$A$498,A29,'Planilha Orçamentária'!$I$11:$I$498) -> 59726.52365 | F29: =$C29*F30 -> 29863.26182 | G29: =$C29*G30 -> 29863.26182 | H29: 59726.52365 | I29: R$
C30: =C29/C29 -> 1 | F30: 0.5 | G30: 0.5 | H30: 1 | I30: %
A31: 11 | B31: =VLOOKUP(A31,'Planilha Orçamentária'!$A$11:$D$498,4) -> RECUPERAÇÃO DAS ESTRUTURAS DO VERTEDOURO | C31: =SUMIF('Planilha Orçamentária'!$A$11:$A$498,A31,'Planilha Orçamentária'!$I$11:$I$498) -> 134918.0339 | G31: =$C31*G32 -> 134918.0339 | H31: =SUM(D31:G31) -> 134918.0339 | I31: R$
C32: =C31/C31 -> 1 | G32: 1 | H32: 1 | I32: %
B33: VALOR TOTAL: | C33: =SUMIF($I$11:$I$32,"R$",C$11:C$32) -> 941294.145 | D33: 283229.463 | E33: 178952.2133 | F33: 253000.0365 | G33: 226112.4322 | H33: 941294.145
B34: VALOR ACUMULADO: | D34: =D33 -> 283229.463 | E34: =E33+D34 -> 462181.6762 | F34: =F33+E34 -> 715181.7127 | G34: =G33+F34 -> 941294.145 | H34: =H33 -> 941294.145
B35: FÍSICO PARCIAL: | D35: =SUMIF($I$13:$I$32,"R$",D$13:D$32)/$C$33 -> 0.2611889045 | E35: =SUMIF($I$13:$I$32,"R$",E$13:E$32)/$C$33 -> 0.1597870876 | F35: 0.229310208 | G35: 0.1976982326 | H35: =H33/$C$33 -> 1
B36: AVANÇO FÍSICO: | D36: =D33/$C$33 -> 0.300893684 | E36: =E33/$C$33 -> 0.1901129569 | F36: =F33/$C$33 -> 0.2687789336 | G36: =G33/$C$33 -> 0.2402144255

Sheet Cronograma Desoner (hidden)
A1: Ministério da Integração e do Desenvolvimento Regional
A2: Companhia de Desenvolvimento dos Vales do São Francisco e do Parnaíba
A4: CRONOGRAMA FÍSICO-FINANCEIRO DESONERADO
A5: OBRA: | B5: =UPPER("SERVIÇOS DE MANUTENÇÃO E OBRAS CIVIS NA ESTRUTURA DA BARRAGEM E EQUIPAMENTO HIDROMECÂNICO") -> SERVIÇOS DE MANUTENÇÃO E OBRAS CIVIS NA ESTRUTURA DA BARRAGEM E EQUIPAMENTO HIDROMECÂNICO | F5: BDI (serv.): | G5: ='BDI serv Desonerado'!D22 -> 0.3351
A6: LOCAL: | B6: BARRAGEM POÇO DO MAGRO, GUANAMBI/BA | F6: BDI (forn.): | G6: ='BDI forn Desonerado'!D22 -> 0.212
A7: DATA BASE: | B7: 2023-05-01
A8: PRAZO: | B8: 120 DIAS
A9: ITEM | B9: DESCRIÇÃO | C9: TOTAL POR ETAPA | D9: MESES | H9: TOTAL
D10: 1 | E10: 2 | F10: 3 | G10: 4
A11: 1 | B11: =VLOOKUP(A11,'Planilha Orçamentária Desoner'!$A$11:$D$92,4) -> ADMINISTRAÇÃO LOCAL | C11: =SUMIF('Planilha Orçamentária Desoner'!$A$11:$A$92,A11,'Planilha Orçamentária Desoner'!$I$11:$I$92) -> 41837.86849 | D11: =$C11*D12 ->  | H11: =SUM(D11:G11) ->  | I11: R$
C12: =C11/C11 -> 1 | D12: =D37 ->  | E12: =D38-D37+E37 ->  | F12: =E38-E37+F37 ->  | G12: =1-SUM(D12:F12) ->  | I12: %
A13: 2 | B13: =VLOOKUP(A13,'Planilha Orçamentária Desoner'!$A$11:$D$92,4) -> SERVIÇOS PRELIMINARES | C13: =SUMIF('Planilha Orçamentária Desoner'!$A$11:$A$92,A13,'Planilha Orçamentária Desoner'!$I$11:$I$92) ->  | D13: =$C13*D14 ->  | I13: R$
C14: =C13/C13 ->  | D14: 1 | H14: 1 | I14: %
A15: 3 | B15: =VLOOKUP(A15,'Planilha Orçamentária Desoner'!$A$11:$D$92,4) -> LIMPEZA DA REGIÃO A JUSANTE | C15: =SUMIF('Planilha Orçamentária Desoner'!$A$11:$A$92,A15,'Planilha Orçamentária Desoner'!$I$11:$I$92) ->  | D15: =$C15*D16 ->  | I15: R$
C16: =C15/C15 ->  | D16: 1 | H16: 1 | I16: %
A17: 4.1 | B17: =VLOOKUP(A17,'Planilha Orçamentária Desoner'!$A$11:$D$92,4) -> Inspeção e Laudo da região subaquática | C17: =SUMIF('Planilha Orçamentária Desoner'!$A$11:$A$92,A17,'Planilha Orçamentária Desoner'!$I$11:$I$92) ->  | D17: =$C17*D18 ->  | I17: R$
C18: =C17/C17 ->  | D18: 1 | H18: 1 | I18: %
A19: 4.2 | B19: =VLOOKUP(A19,'Planilha Orçamentária Desoner'!$A$11:$D$92,4) -> Vedação/Abertura da tomada d'água | C19: =SUMIF('Planilha Orçamentária Desoner'!$A$11:$A$92,A19,'Planilha Orçamentária Desoner'!$I$11:$I$92) ->  | D19: =$C19*D20 ->  | E19: =$C19*E20 ->  | I19: R$
C20: =C19/C19 ->  | D20: 0.5 | E20: 0.5 | H20: 1 | I20: %
A21: 5 | B21: =VLOOKUP(A21,'Planilha Orçamentária Desoner'!$A$11:$D$92,4) -> MANUTENÇÃO NOS DISPOSITIVOS DE CONTROLE | C21: =SUMIF('Planilha Orçamentária Desoner'!$A$11:$A$92,A21,'Planilha Orçamentária Desoner'!$I$11:$I$92) ->  | E21: =$C21*E22 ->  | H21: =SUM(E21:G21) ->  | I21: R$
C22: =C21/C21 ->  | E22: 1 | H22: =SUM(E22:G22) -> 1 | I22: %
A23: 6.1 | B23: =VLOOKUP(A23,'Planilha Orçamentária Desoner'!$A$11:$D$92,4) -> Paramento a jusante | C23: =SUMIF('Planilha Orçamentária Desoner'!$A$11:$A$92,A23,'Planilha Orçamentária Desoner'!$I$11:$I$92) ->  | E23: =$C23*E24 ->  | F23: =$C23*F24 ->  | H23: =SUM(E23:G23) ->  | I23: R$
C24: =C23/C23 ->  | E24: 0.5 | F24: 0.5 | H24: 1 | I24: %
A25: 6.2 | B25: =VLOOKUP(A25,'Planilha Orçamentária Desoner'!$A$11:$D$92,4) -> Crista | C25: =SUMIF('Planilha Orçamentária Desoner'!$A$11:$A$92,A25,'Planilha Orçamentária Desoner'!$I$11:$I$92) ->  | F25: =$C25*F26 ->  | I25: R$
C26: =C25/C25 ->  | F26: 1 | H26: 1 | I26: %
A27: 6.3 | B27: =VLOOKUP(A27,'Planilha Orçamentária Desoner'!$A$11:$D$92,4) -> Vertedouro | C27: =SUMIF('Planilha Orçamentária Desoner'!$A$11:$A$92,A27,'Planilha Orçamentária Desoner'!$I$11:$I$92) ->  | F27: =$C27*F28 ->  | I27: R$
C28: =C27/C27 ->  | F28: 1 | H28: 1 | I28: %
A29: 7.1 | B29: =VLOOKUP(A29,'Planilha Orçamentária Desoner'!$A$11:$D$92,4) -> Investigação do maciço | C29: =SUMIF('Planilha Orçamentária Desoner'!$A$11:$A$92,A29,'Planilha Orçamentária Desoner'!$I$11:$I$92) ->  | F29: =$C29*F30 ->  | I29: R$
C30: =C29/C29 ->  | F30: 1 | H30: 1 | I30: %
A31: 7.2 | B31: =VLOOKUP(A31,'Planilha Orçamentária Desoner'!$A$11:$D$92,4) -> Recuperação do maciço | C31: =SUMIF('Planilha Orçamentária Desoner'!$A$11:$A$92,A31,'Planilha Orçamentária Desoner'!$I$11:$I$92) ->  | F31: =$C31*F32 ->  | I31: R$
C32: =C31/C31 ->  | F32: 1 | H32: 1 | I32: %
A33: 8 | B33: =VLOOKUP(A33,'Planilha Orçamentária Desoner'!$A$11:$D$92,4) -> SERVIÇOS AUXILIARES | C33: =SUMIF('Planilha Orçamentária Desoner'!$A$11:$A$92,A33,'Planilha Orçamentária Desoner'!$I$11:$I$92) ->  | G33: =$C33*G34 ->  | I33: R$
C34: =C33/C33 ->  | G34: 1 | H34: 1 | I34: %
B35: VALOR TOTAL: | C35: =SUMIF($I$11:$I$34,"R$",C$11:C$34) -> 
B36: VALOR ACUMULADO: | D36: =D35 ->  | E36: =E35+D36 ->  | H36: =H35 -> 
B37: FÍSICO PARCIAL: | D37: =SUMIF($I$13:$I$34,"R$",D$13:D$34)/$C$35 ->  | E37: =SUMIF($I$13:$I$34,"R$",E$13:E$34)/$C$35 ->  | F37: =SUMIF($I$13:$I$34,"R$",F$13:F$34)/$C$35 ->  | G37: =SUMIF($I$13:$I$34,"R$",G$13:G$34)/$C$35 ->  | H37: =H35/$C$35 -> 
B38: AVANÇO FÍSICO: | D38: =D35/$C$35 ->  | E38: =E35/$C$35 ->  | F38: =F35/$C$35 -> 

Sheet Memorial de cálculo
A1: Ministério da Integração e do Desenvolvimento Regional
A2: Companhia de desenvolvimento dos Vales do São Francisco e do Parnaíba
A4: MEMORIAL DE CÁLCULO
A5: OBRA: | B5: ='Planilha Orçamentária'!B5 -> SERVIÇOS DE MANUTENÇÃO E OBRAS CIVIS NA BARRAGEM TRANQUEIRA | D5: Via pavimentada - Petrolina para Barragem (km e h): | G5: 128 | H5: =1+(50/60) -> 1.833333333
A6: LOCAL: | B6: ='Planilha Orçamentária'!B6 -> BARRAGEM TRANQUEIRA, DORMENTES-PE | D6: Revest. Primario - Petrolina para Barragem (km e h): | G6: 6
A7: DATA BASE: | B7: ='Planilha Orçamentária'!B7 -> 2024-02-01 | D7: Via pavimentada - Barragem para Dormentes (km e h) | G7: 45 | H7: =49/60*2 -> 1.633333333
A8: PRAZO: | B8: ='Planilha Orçamentária'!B8 -> 120 DIAS | D8: Revest. primario - Barragem para Dormentes (km e h) | G8: 5
A9: ITEM | B9: DESCRIÇÃO | C9: UNID. | D9: PARÂMETRO 1 | E9: PARÂMETRO 2 | F9: PARÂMETRO 3 | G9: PARÂMETRO 4 | H9: TOTAL
A10: ='Planilha Orçamentária'!A12 -> 1.1 | B10: =VLOOKUP(A10,'Planilha Orçamentária'!$A$8:$E$5185,4,0) -> Administração Local | C10: =VLOOKUP(A10,'Planilha Orçamentária'!$A$8:$E$5185,5,0) -> MÊS | D10: QUANT.PESSOAS | E10: HORAS DIÁRIA | F10: DIAS TRABALHADOS NO MÊS | G10: MESES | H10: 4
B11: =CPU!D16 -> Engenheiro Civil De Obra Pleno Com Encargos Complementares | C11: =CPU!E16 -> h | D11: 1 | E11: 1.5 | F11: =4*5 -> 20 | H11: =D11*E11*F11 -> 30
B12: =CPU!D17 -> Encarregado Geral De Obras Com Encargos Complementares | C12: =CPU!E17 -> mes | D12: 1 | G12: 0.8 | H12: =D12*G12 -> 0.8
B13: =CPU!D18 -> VIGIA NOTURNO COM ENCARGOS COMPLEMENTARES | C13: =CPU!E18 -> h | D13: 4 | E13: 12 | F13: 15 | H13: =D13*E13*F13 -> 720
A15: ='Planilha Orçamentária'!A14 -> 2 | B15: =VLOOKUP(A15,'Planilha Orçamentária'!$A$8:$E$5185,4,0) -> SERVIÇOS PRELIMINARES
A17: ='Planilha Orçamentária'!A16 -> 2.1.1 | B17: =VLOOKUP(A17,'Planilha Orçamentária'!$A$8:$E$5185,4,0) -> Mobilização e desmobilização de instalação do canteiro | C17: =VLOOKUP(A17,'Planilha Orçamentária'!$A$8:$E$5185,5,0) -> UN | H17: 1
A18: E9134 | B18: Miniônibus com capacidade para 30 passageiros - 111 Kw | C18: chp | H18: =H20 -> 3.413333333
C19: Distancia (km) | D19: Velocidade média (Km/h) | E19: Tempo (h) | F19: N. viagens | H19: Total
C20: =G5 -> 128 | D20: 75 | E20: =C20/D20 -> 1.706666667 | F20: 2 | H20: =F20*E20 -> 3.413333333
A21: E9134 | B21: Miniônibus com capacidade para 30 passageiros - 111 Kw | C21: chi | H21: =H23 -> 4.586666667
C22: Diaria (h) | D22: Hora prod. | E22: Tempo (h) | H22: Total
C23: 8 | D23: =H20 -> 3.413333333 | E23: =C23-D23 -> 4.586666667 | H23: =E23 -> 4.586666667
A24: 100946 | B24: =PROPER(IF(G24="i",VLOOKUP(A24,'Ins SINAPI PE 02-2024 Onerado'!$A$8:$E$5189,2,0),VLOOKUP(A24,'Comp SINAPI PE 02-2024 Onerado'!$G$7:$K$7500,2,0))) -> Transporte Com Caminhão Carroceria 9T, Em Via Urbana Em Revestimento Primário (Unidade: Txkm). Af_07/2020 | C24: =IF(G24="i",VLOOKUP(A24,'Ins SINAPI PE 02-2024 Onerado'!$A$8:$E$5189,3,0),VLOOKUP(A24,'Comp SINAPI PE 02-2024 Onerado'!$G$7:$K$7500,3,0)) -> TXKM | H24: =$C$26*$D$26*$E$26 -> 60
C25: T | D25: km | E25: N. viagens
C26: 5 | D26: =G6 -> 6 | E26: 2
A27: 100947 | B27: =PROPER(IF(G27="i",VLOOKUP(A27,'Ins SINAPI PE 02-2024 Onerado'!$A$8:$E$5189,2,0),VLOOKUP(A27,'Comp SINAPI PE 02-2024 Onerado'!$G$7:$K$7500,2,0))) -> Transporte Com Caminhão Carroceria 9T, Em Via Urbana Pavimentada, Dmt Até 30Km (Unidade: Txkm). Af_07/2020 | C27: =IF(G27="i",VLOOKUP(A27,'Ins SINAPI PE 02-2024 Onerado'!$A$8:$E$5189,3,0),VLOOKUP(A27,'Comp SINAPI PE 02-2024 Onerado'!$G$7:$K$7500,3,0)) -> TXKM | H27: =$C$29*$D$29*$E$29 -> 300
C28: T | D28: km | E28: N. viagens
C29: 5 | D29: 30 | E29: 2
A31: 100948 | B31: =PROPER(IF(G31="i",VLOOKUP(A31,'Ins SINAPI PE 02-2024 Onerado'!$A$8:$E$5189,2,0),VLOOKUP(A31,'Comp SINAPI PE 02-2024 Onerado'!$G$7:$K$7500,2,0))) -> Transporte Com Caminhão Carroceria 9T, Em Via Urbana Pavimentada, Adicional Para Dmt Excedente A 30 Km (Unidade: Txkm). Af_07/2020 | C31: =IF(G31="i",VLOOKUP(A31,'Ins SINAPI PE 02-2024 Onerado'!$A$8:$E$5189,3,0),VLOOKUP(A31,'Comp SINAPI PE 02-2024 Onerado'!$G$7:$K$7500,3,0)) -> TXKM | H31: =$C$33*$D$33*$E$33 -> 920
C32: T | D32: km | E32: N. viagens
C33: 5 | D33: =G5-D29-D26 -> 92 | E33: 2
A34: CT.01 | B34: Hospedagem | C34: un | H34: 8
A36: ='Planilha Orçamentária'!A18 -> 2.2.1 | B36: =VLOOKUP(A36,'Planilha Orçamentária'!$A$8:$E$5185,4,0) -> Execução de canteiro de obras, inclusive, limpeza, refeitório, sanitários e central de formas | C36: =VLOOKUP(A36,'Planilha Orçamentária'!$A$8:$E$5185,5,0) -> M2 | H36: =SUM(H37:H39) -> 28.5
B37: Área do Refeitório Em Canteiro De Obra | C37: m2 | D37: 1 | E37: 3 | F37: 2.5 | H37: =D37*E37*F37 -> 7.5
B38: Área do Sanitário Em Canteiro De Obra | C38: m2 | D38: 1 | E38: 4.5 | F38: 2 | H38: =D38*E38*F38 -> 9
B39: Área da Central de Fôrmas Em Canteiro De Obra | C39: m2 | D39: 1 | E39: 4 | F39: 3 | H39: =D39*E39*F39 -> 12
A41: ='Planilha Orçamentária'!A20:A20 -> 2.3.1 | B41: =VLOOKUP(A41,'Planilha Orçamentária'!$A$8:$E$5185,4,0) -> Placa De Obra Em Chapa De Aco Galvanizado | C41: =VLOOKUP(A41,'Planilha Orçamentária'!$A$8:$E$5185,5,0) -> M2 | H41: =H42 -> 2
B42: Área da Placa | D42: 1 | E42: 2 | F42: 1 | H42: =D42*E42*F42 -> 2
A44: ='Planilha Orçamentária'!A23 -> 3.1 | B44: =VLOOKUP(A44,'Planilha Orçamentária'!$A$8:$E$5185,4,0) -> Remoção da vegetação
A45: ='Planilha Orçamentária'!A24 -> 3.1.1 | B45: =VLOOKUP(A45,'Planilha Orçamentária'!$A$8:$E$5185,4,0) -> Limpeza de vegetação | H45: 10600
B46: Mao de obra | D46: QUANT.PESSOAS | E46: RENDIMENTO (H/M2) | F46: m2 | G46: HORAS | H46: DIAS | I46: Dias totais
B47: Servente | C47: h | D47: 1 | E47: =0.0718/D47 -> 0.0718 | F47: 1 | G47: =F47*(E47) -> 0.0718 | H47: =G47/8 -> 0.008975 | I47: =H47*H45/5 -> 19.027
B48: Jardineiro | C48: h | D48: 1 | E48: =0.0718/D48 -> 0.0718 | F48: 1 | G48: =F48*(E48) -> 0.0718 | H48: =G48/8 -> 0.008975
A50: ='Planilha Orçamentária'!A25 -> 3.1.2 | B50: =VLOOKUP(A50,'Planilha Orçamentária'!$A$8:$E$5185,4,0) -> Corte de tronco e remoção de raiz | C50: =VLOOKUP(A50,'Planilha Orçamentária'!$A$8:$E$5185,5,0) -> UN | H50: 15
B51: Mão de obra | D51: QUANT.PESSOAS | E51: RENDIMENTO (H/un) | F51: un | G51: HORAS | H51: DIAS
B52: Servente | C52: h | D52: 1 | E52: =1.5444/D52 -> 1.5444 | F52: 1 | G52: =F52*(E52) -> 1.5444 | H52: =G52/8 -> 0.19305
B53: Jardineiro | C53: h | D53: 1 | E53: =1.54443/D53 -> 1.54443 | F53: 1 | G53: =F53*(E53) -> 1.54443 | H53: =G53/8 -> 0.19305375
A55: ='Planilha Orçamentária'!A27 -> 4 | B55: =VLOOKUP(A55,'Planilha Orçamentária'!$A$8:$E$5185,4,0) -> RECOMPOSIÇÃO DE EROSÕES NO ATERRO
A57: ='Planilha Orçamentária'!A29 -> 4.1.1 | B57: =VLOOKUP(A57,'Planilha Orçamentária'!$A$8:$E$5185,4,0) -> Recuperação do aterro da barragem, inclusive, escavação e compactação | C57: =VLOOKUP(A57,'Planilha Orçamentária'!$A$8:$E$5185,5,0) -> M3 | H57: 500
B58: Mao de obra | D58: QUANT.PESSOAS | E58: RENDIMENTO (H/M3) | F58: m3 | G58: HORAS | H58: DIAS
B59: Servente | D59: 1 | E59: =0.033/D59 -> 0.033 | F59: 1 | G59: =F59*(E59) -> 0.033 | H59: =G59/8 -> 0.004125
B60: Motorista | D60: 1 | E60: =(0.004)/D60 -> 0.004 | F60: 1 | G60: =F60*(E60) -> 0.004 | H60: =G60/8 -> 0.0005
B61: Operador de máquina | D61: 1 | E61: =(0.006+0.01)/D61 -> 0.016 | F61: 1 | G61: 0.016 | H61: =G61/8 -> 0.002 | I61: rolo compactador + motoniveladora
A63: ='Planilha Orçamentária'!A31 -> 5 | B63: =VLOOKUP(A63,'Planilha Orçamentária'!$A$8:$E$5185,4,0) -> REGULARIZAÇÃO E PAVIMENTAÇÃO DA CRISTA
A64: ='Planilha Orçamentária'!A33 -> 5.1.1 | B64: =VLOOKUP(A64,'Planilha Orçamentária'!$A$8:$E$5185,4,0) -> Demolição de guias e sarjetas | C64: =VLOOKUP(A64,'Planilha Orçamentária'!$A$8:$E$5185,5,0) -> M | H64: 340
A65: M.D.O | B65: Mao de obra | D65: QUANT.PESSOAS | E65: RENDIMENTO (H/M) | F65: m | G65: HORAS | H65: DIAS
B66: Pedreiro | D66: 1 | E66: =0.1759/D66 -> 0.1759 | F66: 1 | G66: =F66*(E66) -> 0.1759 | H66: =G66/8 -> 0.0219875 | I66: =H66*D66+H67*D67 -> 0.0316375
B67: Servente | D67: 1 | E67: =0.0772/D67 -> 0.0772 | F67: 1 | G67: =F67*(E67) -> 0.0772 | H67: =G67/8 -> 0.00965
A69: ='Planilha Orçamentária'!A34 -> 5.1.2 | B69: =VLOOKUP(A69,'Planilha Orçamentária'!$A$8:$E$5185,4,0) -> Regularização e compactação da crista | C69: =VLOOKUP(A69,'Planilha Orçamentária'!$A$8:$E$5185,5,0) -> M2 | H69: 700 | I69: =I66*336 -> 10.6302
B70: Mao de obra | D70: QUANT.PESSOAS | E70: RENDIMENTO (H/m2) | F70: m2 | G70: HORAS | H70: DIAS
B71: Servente | D71: 1 | E71: =(0.008)/D71 -> 0.008 | F71: 1 | G71: =F71*(E71) -> 0.008 | H71: =G71/8 -> 0.001
B72: Operador de máquina | D72: 1 | E72: =(0.0001+0.002)/D72 -> 0.0021 | F72: 1 | G72: =F72*(E72) -> 0.0021 | H72: 0.0002625
A74: ='Planilha Orçamentária'!A36 -> 5.2.1 | B74: =VLOOKUP(A74,'Planilha Orçamentária'!$A$8:$E$5185,4,0) -> Guia e meio fio conjudados de concreto, moldada In Loco, 45cm base (15 cm Base da Guia +30 cm Base da Sarjeta) x 22 cm Altura | C74: =VLOOKUP(A74,'Planilha Orçamentária'!$A$8:$E$5185,5,0) -> M | H74: 340
B75: Mao de obra | D75: QUANT.PESSOAS | E75: RENDIMENTO (H/m) | F75: m | G75: HORAS | H75: DIAS
B76: Ajudante | D76: 1 | E76: =0.109/D76 -> 0.109 | F76: 1 | G76: =F76*(E76) -> 0.109 | H76: =G76/8 -> 0.013625
B77: Pedreiro | D77: 1 | E77: =0.244/D77 -> 0.244 | F77: 1 | G77: =F77*(E77) -> 0.244 | H77: 0.0305
B78: Servente | D78: 1 | E78: =0.487/D78 -> 0.487 | F78: 1 | G78: =F78*(E78) -> 0.487 | H78: 0.060875
A80: ='Planilha Orçamentária'!A37 -> 5.3 | B80: =VLOOKUP(A80,'Planilha Orçamentária'!$A$8:$E$5185,4,0) -> Implantação de meio fio e Revestimento com BGTC
A81: ='Planilha Orçamentária'!A38 -> 5.3.1 | B81: =VLOOKUP(A81,'Planilha Orçamentária'!$A$8:$E$5185,4,0) -> Execução e compactação para pavimentação de brita graduada simples tratada com cimento | C81: =VLOOKUP(A81,'Planilha Orçamentária'!$A$8:$E$5185,5,0) -> M3 | H81: =H69*0.1 -> 70
B82: Mao de obra | D82: QUANT.PESSOAS | E82: RENDIMENTO (H/m) | F82: m³ | G82: HORAS | H82: DIAS
B83: Servente | D83: 1 | E83: =0.03/D83 -> 0.03 | F83: 1 | G83: =F83*(E83) -> 0.03 | H83: =G83/8 -> 0.00375
B84: Operador de máquina | D84: 1 | E84: =(0.009+0.008)/D84 -> 0.017 | F84: 1 | G84: =F84*(E84) -> 0.017 | H84: 0.002125
A86: ='Planilha Orçamentária'!A41 -> 6.1 | B86: =VLOOKUP(A86,'Planilha Orçamentária'!$A$8:$E$5185,4,0) -> Enrocamento c/ pedra de mão para proteção do talude
A87: ='Planilha Orçamentária'!A42 -> 6.1.1 | B87: =VLOOKUP(A87,'Planilha Orçamentária'!$A$8:$E$5185,4,0) -> Enrocamento c/ pedra de mão c/ fornecimento e assentamento | C87: =VLOOKUP(A87,'Planilha Orçamentária'!$A$8:$E$5185,5,0) -> M3 | H87: =2200*0.1*0.3 -> 66
B88: Mao de obra | D88: QUANT.PESSOAS | E88: RENDIMENTO (H/m3) | F88: m³ | G88: HORAS | H88: DIAS
B89: Pedreiro | D89: 1 | E89: =0.5/D89 -> 0.5 | F89: 1 | G89: =F89*(E89) -> 0.5 | H89: =G89/8 -> 0.0625
B90: Servente | D90: 1 | E90: =5/D90 -> 5 | F90: 1 | G90: =F90*(E90) -> 5 | H90: 0.625
A92: ='Planilha Orçamentária'!A44 -> 7 | B92: =VLOOKUP(A92,'Planilha Orçamentária'!$A$8:$E$5185,4,0) -> DRENAGEM SUPERFICIAL DO TALUDE JUSANTE
A93: ='Planilha Orçamentária'!A46 -> 7.1.1 | B93: =VLOOKUP(A93,'Planilha Orçamentária'!$A$8:$E$5185,4,0) -> Recuperacao e instalação de novas canaletas e descida d'água - Fornecimento e instalação | C93: =VLOOKUP(A93,'Planilha Orçamentária'!$A$8:$E$5185,5,0) -> M | H93: 85
B94: Mao de obra | D94: QUANT.PESSOAS | E94: RENDIMENTO (H/m) | F94: m | G94: HORAS | H94: DIAS
B95: Pedreiro | D95: 1 | E95: =0.2812/D95 -> 0.2812 | F95: 1 | G95: =F95*(E95) -> 0.2812 | H95: =G95/8 -> 0.03515
B96: Servente | D96: 1 | E96: =0.2812/D96 -> 0.2812 | F96: 1 | G96: =F96*(E96) -> 0.2812 | H96: 0.03515
B97: Servente (Da composição da argamassa) | D97: 1 | E97: =(8.57*0.002)/D97 -> 0.01714 | F97: 1 | G97: =F97*(E97) -> 0.01714 | H97: =G97/8 -> 0.0021425
A99: ='Planilha Orçamentária'!A48 -> 7.2.1 | B99: =VLOOKUP(A99,'Planilha Orçamentária'!$A$8:$E$5185,4,0) -> Entrada para descida d'água | C99: =VLOOKUP(A99,'Planilha Orçamentária'!$A$8:$E$5185,5,0) -> UN | H99: 6
B100: Mao de obra | D100: QUANT.PESSOAS | E100: RENDIMENTO (H/un) | F100: un | G100: HORAS | H100: DIAS
B101: Pedreiro | D101: 1 | E101: =2.53*0.11/D101 -> 0.2783 | F101: 1 | G101: =F101*(E101) -> 0.2783 | H101: =G101/8 -> 0.0347875
B102: Operador de betoneira | D102: 1 | E102: =1.64*0.11/D102 -> 0.1804 | F102: 1 | G102: =F102*(E102) -> 0.1804 | H102: 0.02255
B103: Ajudante de carpinteiro | D103: 1 | E103: =0.005*0.1/D103 -> 0.0005 | F103: 1 | G103: =F103*(E103) -> 0.0005 | H103: 6.25e-05
B104: Carpinteiro | D104: 1 | E104: =0.005*0.1/D104 -> 0.0005 | F104: 1 | G104: 0.0005 | H104: 6.25e-05
A106: ='Planilha Orçamentária'!A50 -> 8 | B106: =VLOOKUP(A106,'Planilha Orçamentária'!$A$8:$E$5185,4,0) -> PROTEÇÃO SUPERFICIAL DO TALUDE DE JUSANTE
A107: ='Planilha Orçamentária'!A52 -> 8.1.1 | B107: =VLOOKUP(A107,'Planilha Orçamentária'!$A$8:$E$5185,4,0) -> Plantio de grama para proteção, inclusive adubação | C107: =VLOOKUP(A107,'Planilha Orçamentária'!$A$8:$E$5185,5,0) -> M2 | H107: 2100
B108: Mao de obra | D108: QUANT.PESSOAS | E108: RENDIMENTO (H/m2) | F108: m2 | G108: HORAS | H108: DIAS
B109: Jardineiro | D109: 1 | E109: =0.004/D109 -> 0.004 | F109: 1 | G109: =F109*(E109) -> 0.004 | H109: =G109/8 -> 0.0005
B110: Servente | D110: 1 | E110: =0.015*2/D110 -> 0.03 | F110: 1 | G110: =F110*(E110) -> 0.03 | H110: 0.00375
B111: Pedreiro | D111: 1 | E111: =(0.06)/D111 -> 0.06 | F111: 1 | G111: =F111*(E111) -> 0.06 | H111: 0.0075
A113: ='Planilha Orçamentária'!A54 -> 9 | B113: =VLOOKUP(A113,'Planilha Orçamentária'!$A$8:$E$5185,4,0) -> MURO DE ALVENARIA DE PEDRA ARGAMASSADA
A114: ='Planilha Orçamentária'!A56 -> 9.1.1 | B114: =VLOOKUP(A114,'Planilha Orçamentária'!$A$8:$E$5185,4,0) -> Execução de Muro com Pedra argamassada com cimento e areia 1:3 | C114: =VLOOKUP(A114,'Planilha Orçamentária'!$A$8:$E$5185,5,0) -> m | H114: 50
B115: Mao de obra | D115: QUANT.PESSOAS | E115: RENDIMENTO (H/m3) | F115: m3 | G115: HORAS | H115: DIAS
B116: Pedreiro | D116: 1 | E116: =2.215/D116 -> 2.215 | F116: 1 | G116: =F116*(E116) -> 2.215 | H116: =G116/8 -> 0.276875
B117: Servente | D117: 1 | E117: =3.1/D117 -> 3.1 | F117: 1 | G117: =F117*(E117) -> 3.1 | H117: =G117/8 -> 0.3875
A119: ='Planilha Orçamentária'!A58 -> 10 | B119: =VLOOKUP(A119,'Planilha Orçamentária'!$A$8:$E$5185,4,0) -> SERVIÇOS COMPLEMENTARES
A120: ='Planilha Orçamentária'!A60 -> 10.1.1 | B120: =VLOOKUP(A120,'Planilha Orçamentária'!$A$8:$E$5185,4,0) -> PLACA DE OBRA EM CHAPA DE ACO GALVANIZADO | C120: =VLOOKUP(A120,'Planilha Orçamentária'!$A$8:$E$5185,5,0) -> M3 | H120: 4
B121: Mao de obra | D121: QUANT.PESSOAS | E121: RENDIMENTO (H/m2) | F121: m2 | G121: HORAS | H121: DIAS
B122: Carpinteiro | D122: 1 | E122: =1/D122 -> 1 | F122: 4 | G122: =F122*(E122) -> 4 | H122: =G122/8 -> 0.5
B123: Servente | D123: 1 | E123: =2/D123 -> 2 | F123: 4 | G123: =F123*(E123) -> 8 | H123: 1
A125: ='Planilha Orçamentária'!A62 -> 10.2.1 | B125: =VLOOKUP(A125,'Planilha Orçamentária'!$A$8:$E$5185,4,0) -> Instalação de mourões para medida de cota d’água | C125: =VLOOKUP(A125,'Planilha Orçamentária'!$A$8:$E$5185,5,0) -> UN | H125: 10
B126: Mao de obra | D126: QUANT.PESSOAS | E126: RENDIMENTO (H/m3) | F126: m3 | G126: HORAS | H126: DIAS
B127: TOPOGRAFO COM ENCARGOS COMPLEMENTARES | C127: H | D127: 1 | E127: =0.8/D127 -> 0.8 | F127: 1 | G127: =F127*(E127) -> 0.8 | H127: =G127/8 -> 0.1
B128: SERVENTE COM ENCARGOS COMPLEMENTARES | C128: H | D128: 1 | E128: =1.6/D128 -> 1.6 | F128: 1 | G128: =F128*(E128) -> 1.6 | H128: =G128/8 -> 0.2
A130: ='Planilha Orçamentária'!A64 -> 10.3.1 | B130: =VLOOKUP(A130,'Planilha Orçamentária'!$A$8:$E$5185,4,0) -> Instalação de cercas com mourões de concreto H=3, espaçamento 2,5m e cravado 0,5m, com 4 fios de arame farpado Nº14 classe 250 | C130: =VLOOKUP(A130,'Planilha Orçamentária'!$A$8:$E$5185,5,0) -> M | H130: 400
B131: Mao de obra | D131: QUANT.PESSOAS | E131: RENDIMENTO (H/m) | F131: m | G131: HORAS | H131: DIAS
B132: Pedreiro | D132: 1 | E132: =0.528/D132 -> 0.528 | F132: 1 | G132: =F132*(E132) -> 0.528 | H132: =G132/8 -> 0.066
B133: Servente | D133: 1 | E133: =0.528/D133 -> 0.528 | F133: 1 | G133: =F133*(E133) -> 0.528 | H133: 0.066
A135: ='Planilha Orçamentária'!A66 -> 11 | B135: =VLOOKUP(A135,'Planilha Orçamentária'!$A$8:$E$5185,4,0) -> RECUPERAÇÃO DAS ESTRUTURAS DO VERTEDOURO
A136: ='Planilha Orçamentária'!A68 -> 11.1.1 | B136: =VLOOKUP(A136,'Planilha Orçamentária'!$A$8:$E$5185,4,0) -> Recuperação da superfície de concreto da soleira | C136: =VLOOKUP(A136,'Planilha Orçamentária'!$A$8:$E$5185,5,0) -> M2 | H136: 65
B137: Mao de obra | D137: QUANT.PESSOAS | E137: RENDIMENTO (H/m2) | F137: m2 | G137: HORAS | H137: DIAS
B138: Pedreiro | C138: h | D138: 1 | E138: =2.29/D138 -> 2.29 | F138: 1 | G138: =F138*(E138) -> 2.29 | H138: =G138/8 -> 0.28625
B139: Servente | C139: h | D139: 1 | E139: =1.44/D139 -> 1.44 | F139: 1 | G139: =F139*(E139) -> 1.44 | H139: =G139/8 -> 0.18
A141: ='Planilha Orçamentária'!A70 -> 11.2.1 | B141: =VLOOKUP(A141,'Planilha Orçamentária'!$A$8:$E$5185,4,0) -> Recuperação da superficie de concreto do muro lateral | C141: =VLOOKUP(A141,'Planilha Orçamentária'!$A$8:$E$5185,5,0) -> M2 | H141: 55
B142: Mao de obra | D142: QUANT.PESSOAS | E142: RENDIMENTO (H/m2) | F142: m2 | G142: HORAS | H142: DIAS
B143: Pedreiro | C143: h | D143: 1 | E143: =2.29/D143 -> 2.29 | F143: 1 | G143: =F143*(E143) -> 2.29 | H143: =G143/8 -> 0.28625
B144: Servente | C144: h | D144: 1 | E144: =1.44/D144 -> 1.44 | F144: 1 | G144: =F144*(E144) -> 1.44 | H144: =G144/8 -> 0.18
A146: ='Planilha Orçamentária'!A72 -> 11.3.1 | B146: =VLOOKUP(A146,'Planilha Orçamentária'!$A$8:$E$5185,4,0) -> Regularização do terreno e lançamento de aterro e enrocamento | C146: =VLOOKUP(A146,'Planilha Orçamentária'!$A$8:$E$5185,5,0) -> M3 | H146: 80
B147: Mao de obra | D147: QUANT.PESSOAS | E147: RENDIMENTO (H/m2) | F147: m2 | G147: HORAS | H147: DIAS
B148: Operador de máquina | C148: h | D148: 1 | E148: =0.03/D148 -> 0.03 | F148: 1 | G148: =F148*(E148) -> 0.03 | H148: =G148/8 -> 0.00375
B149: Servente | C149: h | D149: 1 | E149: =(0.009+0.008)/D149 -> 0.017 | F149: 1 | G149: =F149*(E149) -> 0.017 | H149: =G149/8 -> 0.002125

Sheet Cotações (hidden)
A1: Ministério do Desenvolvimento Regional
A2: Companhia de Desenvolvimento dos Vales do São Francisco e do Parnaíba
A3: ='Planilha Orçamentária'!A3:I3 -> 0
A4: COTAÇÕES
A5: OBRA: | B5: ='Planilha Orçamentária'!B5:D5 -> SERVIÇOS DE MANUTENÇÃO E OBRAS CIVIS NA BARRAGEM TRANQUEIRA | K5: BDI (serv.): | L5: ='BDI serv'!D22 -> 0.2378
A6: LOCAL: | B6: ='Planilha Orçamentária'!B6 -> BARRAGEM TRANQUEIRA, DORMENTES-PE | K6: BDI (forn.): | L6: ='BDI forn'!E6 -> 0.136
A7: DATA BASE: | B7: ='Planilha Orçamentária'!B7:C7 -> 2024-02-01
A8: PRAZO: | B8: ='Planilha Orçamentária'!B8:C8 -> 120 DIAS
A9: ITEM | B9: EMPRESA | G9: ORÇADO POR | H9: DESCRIÇÃO / OBSERVAÇÃO | I9: UNID | J9: QUANT | K9: LINK OU LOCAL DO ARQUIVO | L9: VALOR
B10: DATA | C10: EMPRESA / CNPJ | D10: RESPONSÁVEL | E10: ENDEREÇO | F10: CONTATO | L10: MAT | M10: MDO | N10: TRANSPORTE | O10: TOTAL
A11: =CPU!#REF! ->  | B11: =CPU!#REF! ->  | O11: =AVERAGE(O12:O13) -> 90
A12: 1 | B12: 2024-01-22 | G12: Murilo - RHA | H12: Diária hotel | I12: un | J12: 1 | L12: 100 | O12: =SUM(L12:N12) -> 100
A13: 2 | B13: 2024-01-22 | G13: Murilo - RHA | H13: Diaria hotel | I13: un | J13: 1 | L13: 80 | O13: =SUM(L13:N13) -> 80
A14: =CPU!C222 -> CPU.17 | B14: Régua linimétrica | O14: =AVERAGE(O15:O17) -> 183
A15: 1 | B15: 2024-01-22 | C15: POLIMEDIÇÃO COMERCIAL | D15: Preço na loja online | E15: R. Arlete, 151 - Jardim Penha - São Paulo - SP | F15: Tel: (11) 4328-3003 WhatsApp: (11) 98575-6343 polimedicao@gmail.com | G15: Murilo - RHA | H15: Régua linimétrica em alumínio 2 X 70 X 1000MM | I15: un | J15: 1 | K15: https://www.polimedicao.com.br/product-page/r%C3%A9gua-linim%C3%A9trica-em-chapa-de-aluminio-2-x-70-x-1000mm | L15: 169 | O15: =SUM(L15:N15) -> 169
A16: 2 | B16: 2024-01-22 | C16: Gravametal | D16: Preço na loja online | E16: Rua Uniflor, 1012 - Emiliano Perneta Pinhais - Paraná - CEP: 83324-227 | F16: ☎ (41) 3403-0144 ✆ (41) 99672-9692 ✉ gravametal@gmail.com | G16: Murilo - RHA | H16: Régua linimétrica em alumínio 2 X 70 X 1000MM | I16: un | J16: 1 | K16: https://www.gravametal.com.br/product-page/r%C3%A9gua-linim%C3%A9trica-fluviom%C3%A9trica-1000x70x2mm | L16: 240 | O16: =SUM(L16:N16) -> 240
A17: 3 | B17: 2024-01-22 | C17: Hidromec | D17: Consulta via Whatsapp | E17: Rua Sacadura Cabral, 351 Saúde - Rio de Janeiro - RJ CEP: 20221-160 | F17: (21) 3622-8000 contato@hidromechc.com.br | G17: Murilo - RHA | H17: Régua linimétrica em alumínio 2 X 70 X 1000MM | I17: un | J17: 1 | K17: https://www.hidromechc.com.br/regua | L17: 140 | O17: 140
A18: 4 | B18: 2024-01-22 | C18: Agrosensores | G18: Murilo - RHA | H18: Régua linimétrica em alumínio 2 X 70 X 1000MM | I18: un | J18: 1 | K18: https://www.agrosensores.com.br/sensores/limnimetro/regua-limnimetrica-dualbase | N18: 89.53 | O18: 89.53

Sheet BDI serv
A1: Ministério da Integração e do Desenvolvimento Regional
A2: Companhia de Desenvolvimento dos Vales do São Francisco e do Parnaíba
A3: ='Planilha Orçamentária'!A3:I3 -> 0
A4: COMPOSIÇÃO DE BDI - SERVIÇOS - ONERADO
A5: OBRA: | B5: ='Planilha Orçamentária'!B5:D5 -> SERVIÇOS DE MANUTENÇÃO E OBRAS CIVIS NA BARRAGEM TRANQUEIRA | F5: BDI (serv.): | G5: =D22 -> 0.2378
A6: LOCAL: | B6: ='Planilha Orçamentária'!B6 -> BARRAGEM TRANQUEIRA, DORMENTES-PE | F6: BDI (forn.): | G6: ='BDI forn'!D22 -> 0.136
A7: DATA BASE: | B7: ='Planilha Orçamentária'!B7:C7 -> 2024-02-01
A8: PRAZO: | B8: ='Planilha Orçamentária'!B8:C8 -> 120 DIAS
A9: ITEM | B9: DESCRIÇÃO | C9: SIGLA | D9: % APLICADO | E9: REFERÊNCIA TCU (ACÓRDÃO Nº 2622/2013)
E10: 1º QUARTIL | F10: 2º QUARTIL | G10: 3º QUARTIL
A11: 1 | B11: ADMINISTRAÇÃO CENTRAL | C11: AC | D11: =E11 -> 0.04 | E11: 0.04 | F11: 0.0552 | G11: 0.0785
A12: 2 | B12: IMPOSTOS | C12: T | D12: =SUM(D13:D16) -> 0.0715
A13: 2.1 | B13: ISS (*) | D13: 0.035 | E13: - | F13: - | G13: -
A14: 2.2 | B14: PIS | D14: 0.0065 | E14: - | F14: - | G14: -
A15: 2.3 | B15: Cofins | D15: 0.03 | E15: - | F15: - | G15: -
A16: 2.4 | B16: Contribuição previdênciária sobre a receita bruta (CPRB) | E16: - | F16: - | G16: -
A17: 3 | B17: SEGURO, GARANTIA E RISCO | D17: =SUM(D18:D19) -> 0.0227
A18: 3.1 | B18: Seguro + Garantia | C18: S + G | D18: =E18 -> 0.0081 | E18: 0.0081 | F18: 0.0122 | G18: 0.0199
A19: 3.2 | B19: Risco | C19: R | D19: =E19 -> 0.0146 | E19: 0.0146 | F19: 0.0232 | G19: 0.0316
A20: 4 | B20: DESPESAS FINANCEIRAS | C20: DF | D20: =E20 -> 0.0094 | E20: 0.0094 | F20: 0.0102 | G20: 0.01363
A21: 5 | B21: LUCRO | C21: L | D21: =E21 -> 0.0714 | E21: 0.0714 | F21: 0.084 | G21: 0.1043
B22: BDI ADOTADO: | D22: =ROUND(((((1+D11+D17)*(1+D20)*(1+D21))/(1-D12))-1),4) -> 0.2378
A23: Considerações: O BDI foi calculado através da seguinte fórmula, regulamentada pelo Acórdão Nº 2622/2013 – TCU. * O percentual de ISSQN aqui utilizado refere-se ao município de Porteirinha/MG, conforme Lei Complementar 1899/2007 - Art. 1º (Item 7.02C). Conforme Art. 112, § 14, na base de cálculo do ISSQN considerou-se dedução do percentual abaixo discriminado.

Sheet BDI serv Desonerado (hidden)
A1: Ministério do Desenvolvimento Regional
A2: Companhia de Desenvolvimento dos Vales do São Francisco e do Parnaíba
A3: ='Planilha Orçamentária'!A3:I3 -> 0
A4: COMPOSIÇÃO DE BDI - SERVIÇOS - DESONERADO
A5: OBRA: | B5: =UPPER("SERVIÇOS DE MANUTENÇÃO E OBRAS CIVIS NA ESTRUTURA DA BARRAGEM E EQUIPAMENTO HIDROMECÂNICO") -> SERVIÇOS DE MANUTENÇÃO E OBRAS CIVIS NA ESTRUTURA DA BARRAGEM E EQUIPAMENTO HIDROMECÂNICO | D5: BDI (serv.): | E5: =D22 -> 0.3351
A6: LOCAL: | B6: BARRAGEM POÇO DO MAGRO, GUANAMBI/BA | D6: BDI (forn.): | E6: ='BDI forn Desonerado'!E6 -> 0.212
A7: DATA BASE: | B7: 2023-05-01
A8: PRAZO: | B8: 120 DIAS
A9: ITEM | B9: DESCRIÇÃO | C9: SIGLA | D9: % APLICADO | E9: REFERÊNCIA TCU (ACÓRDÃO Nº 2622/2013)
E10: 1º QUARTIL | F10: 2º QUARTIL | G10: 3º QUARTIL
A11: 1 | B11: ADMINISTRAÇÃO CENTRAL | C11: AC | D11: =E11 -> 0.04 | E11: 0.04 | F11: 0.0552 | G11: 0.0785
A12: 2 | B12: IMPOSTOS | C12: T | D12: =SUM(D13:D16) -> 0.1315
A13: 2.1 | B13: ISS (*) | D13: 0.05 | E13: - | F13: - | G13: -
A14: 2.2 | B14: PIS | D14: 0.0065 | E14: - | F14: - | G14: -
A15: 2.3 | B15: Cofins | D15: 0.03 | E15: - | F15: - | G15: -
A16: 2.4 | B16: Contribuição previdênciária sobre a receita bruta (CPRB) | D16: 0.045 | E16: - | F16: - | G16: -
A17: 3 | B17: SEGURO, GARANTIA E RISCO | D17: =SUM(D18:D19) -> 0.0313
A18: 3.1 | B18: Seguro + Garantia | C18: S + G | D18: =E18 -> 0.0081 | E18: 0.0081 | F18: 0.0122 | G18: 0.0199
A19: 3.2 | B19: Risco | C19: R | D19: =F19 -> 0.0232 | E19: 0.0146 | F19: 0.0232 | G19: 0.0316
A20: 4 | B20: DESPESAS FINANCEIRAS | C20: DF | D20: =F20 -> 0.0102 | E20: 0.0094 | F20: 0.0102 | G20: 0.01363
A21: 5 | B21: LUCRO | C21: L | D21: =E21 -> 0.0714 | E21: 0.0714 | F21: 0.084 | G21: 0.1043
B22: BDI ADOTADO: | D22: =ROUND(((((1+D11+D17)*(1+D20)*(1+D21))/(1-D12))-1),4) -> 0.3351
A23: Considerações: O BDI foi calculado através da seguinte fórmula, regulamentada pelo Acórdão Nº 2622/2013 – TCU. * O percentual de ISSQN aqui utilizado refere-se ao município de Porteirinha/MG, conforme Lei Complementar 1899/2007 - Art. 1º (Item 7.02C). Conforme Art. 112, § 14, na base de cálculo do ISSQN considerou-se dedução do percentual abaixo discriminado.

Sheet BDI forn
A1: Ministério do Desenvolvimento Regional
A2: Companhia de Desenvolvimento dos Vales do São Francisco e do Parnaíba
A3: ='Planilha Orçamentária'!A3:I3 -> 0
A4: COMPOSIÇÃO DE BDI - FORNECIMENTO - ONERADO
A5: OBRA: | B5: ='BDI serv'!B5:C5 -> SERVIÇOS DE MANUTENÇÃO E OBRAS CIVIS NA BARRAGEM TRANQUEIRA | D5: BDI (serv.): | E5: ='BDI serv'!D22 -> 0.2378
A6: LOCAL: | B6: ='BDI serv'!B6:C6 -> BARRAGEM TRANQUEIRA, DORMENTES-PE | D6: BDI (forn.): | E6: =D22 -> 0.136
A7: DATA BASE: | B7: ='BDI serv'!B7:C7 -> 2024-02-01
A8: PRAZO: | B8: ='BDI serv'!B8:C8 -> 120 DIAS
A9: ITEM | B9: DESCRIÇÃO | C9: SIGLA | D9: % APLICADO | E9: REFERÊNCIA TCU (ACÓRDÃO Nº 2622/2013)
E10: 1º QUARTIL | F10: 2º QUARTIL | G10: 3º QUARTIL
A11: 1 | B11: ADMINISTRAÇÃO CENTRAL | C11: AC | D11: 0.04 | E11: 0.015 | F11: 0.0345 | G11: 0.0449
A12: 2 | B12: IMPOSTOS | C12: T | D12: =SUM(D13:D16) -> 0.0365
A13: 2.1 | B13: ISS (*) | E13: - | F13: - | G13: -
A14: 2.2 | B14: PIS | D14: 0.0065 | E14: - | F14: - | G14: -
A15: 2.3 | B15: Cofins | D15: 0.03 | E15: - | F15: - | G15: -
A16: 2.4 | B16: Contribuição previdênciária sobre a receita bruta (CPRB) | E16: - | F16: - | G16: -
A17: 3 | B17: SEGURO, GARANTIA E RISCO | D17: =SUM(D18:D19) -> 0.0086
A18: 3.1 | B18: Seguro + Garantia | C18: S + G | D18: =E18 -> 0.003 | E18: 0.003 | F18: 0.0048 | G18: 0.0082
A19: 3.3 | B19: Risco | C19: R | D19: =E19 -> 0.0056 | E19: 0.0056 | F19: 0.0085 | G19: 0.0089
A20: 4 | B20: DESPESAS FINANCEIRAS | C20: DF | D20: =E20 -> 0.0085 | E20: 0.0085 | F20: 0.0085 | G20: 0.0111
A21: 5 | B21: LUCRO | C21: L | D21: =E21 -> 0.035 | E21: 0.035 | F21: 0.0511 | G21: 0.0622
B22: BDI ADOTADO: | D22: =ROUND(((((1+D11+D17)*(1+D20)*(1+D21))/(1-D12))-1),4) -> 0.136
A23: Considerações: O BDI foi calculado através da seguinte fórmula, regulamentada pelo Acórdão Nº 2622/2013 – TCU.

Sheet BDI forn Desonerado (hidden)
A1: Ministério do Desenvolvimento Regional
A2: Companhia de Desenvolvimento dos Vales do São Francisco e do Parnaíba
A3: ='Planilha Orçamentária'!A3:I3 -> 0
A4: COMPOSIÇÃO DE BDI - FORNECIMENTO - DESONERADO
A5: OBRA: | B5: =UPPER("SERVIÇOS DE MANUTENÇÃO E OBRAS CIVIS NA ESTRUTURA DA BARRAGEM E EQUIPAMENTO HIDROMECÂNICO") -> SERVIÇOS DE MANUTENÇÃO E OBRAS CIVIS NA ESTRUTURA DA BARRAGEM E EQUIPAMENTO HIDROMECÂNICO | D5: BDI (serv.): | E5: ='BDI serv Desonerado'!E5 -> 0.3351
A6: LOCAL: | B6: BARRAGEM POÇO DO MAGRO, GUANAMBI/BA | D6: BDI (forn.): | E6: =D22 -> 0.212
A7: DATA BASE: | B7: 2023-05-01
A8: PRAZO: | B8: 120 DIAS
A9: ITEM | B9: DESCRIÇÃO | C9: SIGLA | D9: % APLICADO | E9: REFERÊNCIA TCU (ACÓRDÃO Nº 2622/2013)
E10: 1º QUARTIL | F10: 2º QUARTIL | G10: 3º QUARTIL
A11: 1 | B11: ADMINISTRAÇÃO CENTRAL | C11: AC | D11: 0.04 | E11: 0.015 | F11: 0.0345 | G11: 0.0449
A12: 2 | B12: IMPOSTOS | C12: T | D12: =SUM(D13:D16) -> 0.0815
A13: 2.1 | B13: ISS (*) | E13: - | F13: - | G13: -
A14: 2.2 | B14: PIS | D14: 0.0065 | E14: - | F14: - | G14: -
A15: 2.3 | B15: Cofins | D15: 0.03 | E15: - | F15: - | G15: -
A16: 2.4 | B16: Contribuição previdênciária sobre a receita bruta (CPRB) | D16: 0.045 | E16: - | F16: - | G16: -
A17: 3 | B17: SEGURO, GARANTIA E RISCO | D17: =SUM(D18:D19) -> 0.0086
A18: 3.1 | B18: Seguro +Garantia | C18: S+G | D18: =E18 -> 0.003 | E18: 0.003 | F18: 0.0048 | G18: 0.0082
A19: 3.2 | B19: Risco | C19: R | D19: =E19 -> 0.0056 | E19: 0.0056 | F19: 0.0085 | G19: 0.0089
A20: 4 | B20: DESPESAS FINANCEIRAS | C20: DF | D20: 0.01 | E20: 0.0085 | F20: 0.0085 | G20: 0.0111
A21: 5 | B21: LUCRO | C21: L | D21: =F21 -> 0.0511 | E21: 0.035 | F21: 0.0511 | G21: 0.0622
B22: BDI ADOTADO: | D22: =ROUND(((((1+D11+D17)*(1+D20)*(1+D21))/(1-D12))-1),4) -> 0.212
A23: Considerações: O BDI foi calculado através da seguinte fórmula, regulamentada pelo Acórdão Nº 2622/2013 – TCU.

Sheet Encargos Sociais
A1: Ministério da Integração e do Desenvolvimento Regional
A2: Companhia de Desenvolvimento dos Vales do São Francisco e do Parnaíba
A3: ='Planilha Orçamentária'!A3:I3 -> 0
A4: COMPOSIÇÃO DE ENCARGOS SOCIAIS SOBRE A MÃO DE OBRA
A5: OBRA: | B5: ='Planilha Orçamentária'!B5:D5 -> SERVIÇOS DE MANUTENÇÃO E OBRAS CIVIS NA BARRAGEM TRANQUEIRA
A6: LOCAL: | B6: ='Planilha Orçamentária'!B6 -> BARRAGEM TRANQUEIRA, DORMENTES-PE
A7: DATA BASE: | B7: ='Planilha Orçamentária'!B7:C7 -> 2024-02-01
A8: PRAZO: | B8: ='Planilha Orçamentária'!B8:C8 -> 120 DIAS
A9: Encargos Sociais – Bahia VIGÊNCIA A PARTIR DE 12/2023
A10: ENCARGOS SOCIAIS SOBRE A MÃO DE OBRA
A11: CÓDIGO | B11: DESCRIÇÃO | C11: COM DESONERAÇÃO | E11: SEM DESONERAÇÃO
C12: HORISTA % | D12: MENSALISTA % | E12: HORISTA % | F12: MENSALISTA %
A13: GRUPO A
A14: A1 | B14: INSS | C14: 0 | D14: 0 | E14: 0.2 | F14: 0.2
A15: A2 | B15: SESI | C15: 0.015 | D15: 0.015 | E15: 0.015 | F15: 0.015
A16: A3 | B16: SENAI | C16: 0.01 | D16: 0.01 | E16: 0.01 | F16: 0.01
A17: A4 | B17: INCRA | C17: 0.002 | D17: 0.002 | E17: 0.002 | F17: 0.002
A18: A5 | B18: SEBRAE | C18: 0.006 | D18: 0.006 | E18: 0.006 | F18: 0.006
A19: A6 | B19: Salário Educação | C19: 0.025 | D19: 0.025 | E19: 0.025 | F19: 0.025
A20: A7 | B20: Seguro Contra Acidentes de Trabalho | C20: 0.03 | D20: 0.03 | E20: 0.03 | F20: 0.03
A21: A8 | B21: FGTS | C21: 0.08 | D21: 0.08 | E21: 0.08 | F21: 0.08
A22: A9 | B22: SECONCI | C22: 0 | D22: 0 | E22: 0 | F22: 0
A23: A | B23: Total | C23: 0.168 | D23: 0.168 | E23: 0.368 | F23: 0.368
A24: GRUPO B
A25: B1 | B25: Repouso Semanal Remunerado | C25: 0.1801 | D25: Não incide | E25: 0.1801 | F25: Não incide
A26: B2 | B26: Feriados | C26: 0.0432 | D26: Não incide | E26: 0.0432 | F26: Não incide
A27: B3 | B27: Auxílio - Enfermidade | C27: 0.0085 | D27: 0.0064 | E27: 0.0085 | F27: 0.0064
A28: B4 | B28: 13º Salário | C28: 0.1103 | D28: 0.0833 | E28: 0.1103 | F28: 0.0833
A29: B5 | B29: Licença Paternidade | C29: 0.0006 | D29: 0.0004 | E29: 0.0006 | F29: 0.0004
A30: B6 | B30: Faltas Justificadas | C30: 0.0074 | D30: 0.0056 | E30: 0.0074 | F30: 0.0056
A31: B7 | B31: Dias de Chuvas | C31: 0.0198 | D31: Não incide | E31: 0.0198 | F31: Não incide
A32: B8 | B32: Auxílio Acidente de Trabalho | C32: 0.001 | D32: 0.0008 | E32: 0.001 | F32: 0.0008
A33: B9 | B33: Férias Gozadas | C33: 0.109 | D33: 0.0824 | E33: 0.109 | F33: 0.0824
A34: B10 | B34: Salário Maternidade | C34: 0.0004 | D34: 0.0003 | E34: 0.0004 | F34: 0.0003
A35: B | B35: Total | C35: 0.4803 | D35: 0.1792 | E35: 0.4803 | F35: 0.1792
A36: GRUPO C
A37: C1 | B37: Aviso Prévio Indenizado | C37: 0.048 | D37: 0.0363 | E37: 0.048 | F37: 0.0363
A38: C2 | B38: Aviso Prévio Trabalhado | C38: 0.0011 | D38: 0.0009 | E38: 0.0011 | F38: 0.0009
A39: C3 | B39: Férias Indenizadas | C39: 0.0291 | D39: 0.022 | E39: 0.0291 | F39: 0.022
A40: C4 | B40: Depósito Rescisão Sem Justa Causa | C40: 0.0283 | D40: 0.0214 | E40: 0.0283 | F40: 0.0214
A41: C5 | B41: Indenização Adicional | C41: 0.004 | D41: 0.0031 | E41: 0.004 | F41: 0.0031
A42: C | B42: Total | C42: 0.1105 | D42: 0.0837 | E42: 0.1105 | F42: 0.0837
A43: GRUPO D
A44: D1 | B44: Reincidência de Grupo A sobre Grupo B | C44: 0.0807 | D44: 0.0301 | E44: 0.1768 | F44: 0.0659
A45: D2 | B45: Reincidência de Grupo A sobre Aviso Prévio Trabalhado e Reincidência do FGTS sobre Aviso Prévio Indenizado | C45: 0.004 | D45: 0.0031 | E45: 0.0042 | F45: 0.0032
A46: D | B46: Total | C46: 0.0847 | D46: 0.0332 | E46: 0.181 | F46: 0.0691
A47: TOTAL(A+B+C+D) | C47: =C23+C35+C42+C46 -> 0.8435 | D47: =D23+D35+D42+D46 -> 0.4641 | E47: =E23+E35+E42+E46 -> 1.1398 | F47: =F23+F35+F42+F46 -> 0.7
A48: Fonte: Informação Dias de Chuva – INMET

Sheet Comp SINAPI PE 02-2024 Onerado (hidden)
A1: PCI.817.01 - CUSTO DE COMPOSIÇÕES - SINTÉTICO DATA DE EMISSÃO: 19/03/2024 23:47:01 DATA DE RT: 19/03/2024
A2: ENCARGOS SOCIAIS SOBRE PREÇOS DA MÃO-DE-OBRA: 113,98%(HORA) 70,00%(MÊS)
A3: ABRANGÊNCIA : NACIONAL LOCALIDADE : RECIFE DATA DE PREÇO : 02/2024 REFERÊNCIA COLETA : MEDIANO
A5: DESCRICAO DA CLASSE | B5: SIGLA DA CLASSE | C5: DESCRICAO DO TIPO 1 | D5: SIGLA DO TIPO 1 | E5: CODIGO DO AGRUPADOR | F5: DESCRICAO DO AGRUPADOR | G5: CODIGO DA COMPOSICAO | H5: DESCRICAO DA COMPOSICAO | I5: UNIDADE | J5: ORIGEM DE PREÇO | K5: CUSTO TOTAL | L5: VINCULO
A7: ASSENTAMENTO DE TUBOS E PECAS | B7: ASTU | C7: FORNEC E/OU ASSENT DE TUBO DE FERRO FUNDIDO JUNTA ELASTICA | D7: 45 | G7: 97141 | H7: ASSENTAMENTO DE TUBO DE FERRO FUNDIDO PARA REDE DE ÁGUA, DN 80 MM, JUNTA ELÁSTICA, INSTALADO EM LOCAL COM NÍVEL ALTO DE INTERFERÊNCIAS (NÃO INCLUI FORNECIMENTO). AF_11/2017 | I7: M | J7: COEFICIENTE DE REPRESENTATIVIDADE | K7: 8.99 | L7: CAIXA REFERENCIAL
A8: ASSENTAMENTO DE TUBOS E PECAS | B8: ASTU | C8: FORNEC E/OU ASSENT DE TUBO DE FERRO FUNDIDO JUNTA ELASTICA | D8: 45 | G8: 97142 | H8: ASSENTAMENTO DE TUBO DE FERRO FUNDIDO PARA REDE DE ÁGUA, DN 100 MM, JUNTA ELÁSTICA, INSTALADO EM LOCAL COM NÍVEL ALTO DE INTERFERÊNCIAS (NÃO INCLUI FORNECIMENTO). AF_11/2017 | I8: M | J8: COEFICIENTE DE REPRESENTATIVIDADE | K8: 9.95 | L8: CAIXA REFERENCIAL
A9: ASSENTAMENTO DE TUBOS E PECAS | B9: ASTU | C9: FORNEC E/OU ASSENT DE TUBO DE FERRO FUNDIDO JUNTA ELASTICA | D9: 0045 | G9: 97143 | H9: ASSENTAMENTO DE TUBO DE FERRO FUNDIDO PARA REDE DE ÁGUA, DN 150 MM, JUNTA ELÁSTICA, INSTALADO EM LOCAL COM NÍVEL ALTO DE INTERFERÊNCIAS (NÃO INCLUI FORNECIMENTO). AF_11/2017 | I9: M | J9: COEFICIENTE DE REPRESENTATIVIDADE | K9: 12.38 | L9: CAIXA REFERENCIAL
A10: ASSENTAMENTO DE TUBOS E PECAS | B10: ASTU | C10: FORNEC E/OU ASSENT DE TUBO DE FERRO FUNDIDO JUNTA ELASTICA | D10: 0045 | G10: 97144 | H10: ASSENTAMENTO DE TUBO DE FERRO FUNDIDO PARA REDE DE ÁGUA, DN 200 MM, JUNTA ELÁSTICA, INSTALADO EM LOCAL COM NÍVEL ALTO DE INTERFERÊNCIAS (NÃO INCLUI FORNECIMENTO). AF_11/2017 | I10: M | J10: COEFICIENTE DE REPRESENTATIVIDADE | K10: 14.81 | L10: CAIXA REFERENCIAL
A11: ASSENTAMENTO DE TUBOS E PECAS | B11: ASTU | C11: FORNEC E/OU ASSENT DE TUBO DE FERRO FUNDIDO JUNTA ELASTICA | D11: 0045 | G11: 97145 | H11: ASSENTAMENTO DE TUBO DE FERRO FUNDIDO PARA REDE DE ÁGUA, DN 250 MM, JUNTA ELÁSTICA, INSTALADO EM LOCAL COM NÍVEL ALTO DE INTERFERÊNCIAS (NÃO INCLUI FORNECIMENTO). AF_11/2017 | I11: M | J11: COEFICIENTE DE REPRESENTATIVIDADE | K11: 17.26 | L11: CAIXA REFERENCIAL
A12: ASSENTAMENTO DE TUBOS E PECAS | B12: ASTU | C12: FORNEC E/OU ASSENT DE TUBO DE FERRO FUNDIDO JUNTA ELASTICA | D12: 0045 | G12: 97146 | H12: ASSENTAMENTO DE TUBO DE FERRO FUNDIDO PARA REDE DE ÁGUA, DN 300 MM, JUNTA ELÁSTICA, INSTALADO EM LOCAL COM NÍVEL ALTO DE INTERFERÊNCIAS (NÃO INCLUI FORNECIMENTO). AF_11/2017 | I12: M | J12: COEFICIENTE DE REPRESENTATIVIDADE | K12: 19.7 | L12: CAIXA REFERENCIAL
A13: ASSENTAMENTO DE TUBOS E PECAS | B13: ASTU | C13: FORNEC E/OU ASSENT DE TUBO DE FERRO FUNDIDO JUNTA ELASTICA | D13: 0045 | G13: 97147 | H13: ASSENTAMENTO DE TUBO DE FERRO FUNDIDO PARA REDE DE ÁGUA, DN 350 MM, JUNTA ELÁSTICA, INSTALADO EM LOCAL COM NÍVEL ALTO DE INTERFERÊNCIAS (NÃO INCLUI FORNECIMENTO). AF_11/2017 | I13: M | J13: COEFICIENTE DE REPRESENTATIVIDADE | K13: 22.14 | L13: CAIXA REFERENCIAL
A14: ASSENTAMENTO DE TUBOS E PECAS | B14: ASTU | C14: FORNEC E/OU ASSENT DE TUBO DE FERRO FUNDIDO JUNTA ELASTICA | D14: 0045 | G14: 97148 | H14: ASSENTAMENTO DE TUBO DE FERRO FUNDIDO PARA REDE DE ÁGUA, DN 400 MM, JUNTA ELÁSTICA, INSTALADO EM LOCAL COM NÍVEL ALTO DE INTERFERÊNCIAS (NÃO INCLUI FORNECIMENTO). AF_11/2017 | I14: M | J14: COEFICIENTE DE REPRESENTATIVIDADE | K14: 24.58 | L14: CAIXA REFERENCIAL
A15: ASSENTAMENTO DE TUBOS E PECAS | B15: ASTU | C15: FORNEC E/OU ASSENT DE TUBO DE FERRO FUNDIDO JUNTA ELASTICA | D15: 0045 | G15: 97149 | H15: ASSENTAMENTO DE TUBO DE FERRO FUNDIDO PARA REDE DE ÁGUA, DN 450 MM, JUNTA ELÁSTICA, INSTALADO EM LOCAL COM NÍVEL ALTO DE INTERFERÊNCIAS (NÃO INCLUI FORNECIMENTO). AF_11/2017 | I15: M | J15: COEFICIENTE DE REPRESENTATIVIDADE | K15: 27.07 | L15: CAIXA REFERENCIAL
A16: ASSENTAMENTO DE TUBOS E PECAS | B16: ASTU | C16: FORNEC E/OU ASSENT DE TUBO DE FERRO FUNDIDO JUNTA ELASTICA | D16: 0045 | G16: 97150 | H16: ASSENTAMENTO DE TUBO DE FERRO FUNDIDO PARA REDE DE ÁGUA, DN 500 MM, JUNTA ELÁSTICA, INSTALADO EM LOCAL COM NÍVEL ALTO DE INTERFERÊNCIAS (NÃO INCLUI FORNECIMENTO). AF_11/2017 | I16: M | J16: COEFICIENTE DE REPRESENTATIVIDADE | K16: 33.75 | L16: CAIXA REFERENCIAL
A17: ASSENTAMENTO DE TUBOS E PECAS | B17: ASTU | C17: FORNEC E/OU ASSENT DE TUBO DE FERRO FUNDIDO JUNTA ELASTICA | D17: 0045 | G17: 97151 | H17: ASSENTAMENTO DE TUBO DE FERRO FUNDIDO PARA REDE DE ÁGUA, DN 600 MM, JUNTA ELÁSTICA, INSTALADO EM LOCAL COM NÍVEL ALTO DE INTERFERÊNCIAS (NÃO INCLUI FORNECIMENTO). AF_11/2017 | I17: M | J17: COEFICIENTE DE REPRESENTATIVIDADE | K17: 39.28 | L17: CAIXA REFERENCIAL
A18: ASSENTAMENTO DE TUBOS E PECAS | B18: ASTU | C18: FORNEC E/OU ASSENT DE TUBO DE FERRO FUNDIDO JUNTA ELASTICA | D18: 0045 | G18: 97152 | H18: ASSENTAMENTO DE TUBO DE FERRO FUNDIDO PARA REDE DE ÁGUA, DN 700 MM, JUNTA ELÁSTICA, INSTALADO EM LOCAL COM NÍVEL ALTO DE INTERFERÊNCIAS (NÃO INCLUI FORNECIMENTO). AF_11/2017 | I18: M | J18: COEFICIENTE DE REPRESENTATIVIDADE | K18: 44.57 | L18: CAIXA REFERENCIAL
A19: ASSENTAMENTO DE TUBOS E PECAS | B19: ASTU | C19: FORNEC E/OU ASSENT DE TUBO DE FERRO FUNDIDO JUNTA ELASTICA | D19: 0045 | G19: 97153 | H19: ASSENTAMENTO DE TUBO DE FERRO FUNDIDO PARA REDE DE ÁGUA, DN 800 MM, JUNTA ELÁSTICA, INSTALADO EM LOCAL COM NÍVEL ALTO DE INTERFERÊNCIAS (NÃO INCLUI FORNECIMENTO). AF_11/2017 | I19: M | J19: COEFICIENTE DE REPRESENTATIVIDADE | K19: 50.02 | L19: CAIXA REFERENCIAL
A20: ASSENTAMENTO DE TUBOS E PECAS | B20: ASTU | C20: FORNEC E/OU ASSENT DE TUBO DE FERRO FUNDIDO JUNTA ELASTICA | D20: 0045 | G20: 97154 | H20: ASSENTAMENTO DE TUBO DE FERRO FUNDIDO PARA REDE DE ÁGUA, DN 900 MM, JUNTA ELÁSTICA, INSTALADO EM LOCAL COM NÍVEL ALTO DE INTERFERÊNCIAS (NÃO INCLUI FORNECIMENTO). AF_11/2017 | I20: M | J20: COEFICIENTE DE REPRESENTATIVIDADE | K20: 55.51 | L20: CAIXA REFERENCIAL
A21: ASSENTAMENTO DE TUBOS E PECAS | B21: ASTU | C21: FORNEC E/OU ASSENT DE TUBO DE FERRO FUNDIDO JUNTA ELASTICA | D21: 0045 | G21: 97155 | H21: ASSENTAMENTO DE TUBO DE FERRO FUNDIDO PARA REDE DE ÁGUA, DN 1000 MM, JUNTA ELÁSTICA, INSTALADO EM LOCAL COM NÍVEL ALTO DE INTERFERÊNCIAS (NÃO INCLUI FORNECIMENTO). AF_11/2017 | I21: M | J21: COEFICIENTE DE REPRESENTATIVIDADE | K21: 60.98 | L21: CAIXA REFERENCIAL
A22: ASSENTAMENTO DE TUBOS E PECAS | B22: ASTU | C22: FORNEC E/OU ASSENT DE TUBO DE FERRO FUNDIDO JUNTA ELASTICA | D22: 0045 | G22: 97156 | H22: ASSENTAMENTO DE TUBO DE FERRO FUNDIDO PARA REDE DE ÁGUA, DN 1200 MM, JUNTA ELÁSTICA, INSTALADO EM LOCAL COM NÍVEL ALTO DE INTERFERÊNCIAS (NÃO INCLUI FORNECIMENTO). AF_11/2017 | I22: M | J22: COEFICIENTE DE REPRESENTATIVIDADE | K22: 72.3 | L22: CAIXA REFERENCIAL
A23: ASSENTAMENTO DE TUBOS E PECAS | B23: ASTU | C23: FORNEC E/OU ASSENT DE TUBO DE FERRO FUNDIDO JUNTA ELASTICA | D23: 0045 | G23: 97157 | H23: ASSENTAMENTO DE TUBO DE FERRO FUNDIDO PARA REDE DE ÁGUA, DN 80 MM, JUNTA ELÁSTICA, INSTALADO EM LOCAL COM NÍVEL BAIXO DE INTERFERÊNCIAS (NÃO INCLUI FORNECIMENTO). AF_11/2017 | I23: M | J23: COEFICIENTE DE REPRESENTATIVIDADE | K23: 5.39 | L23: CAIXA REFERENCIAL
A24: ASSENTAMENTO DE TUBOS E PECAS | B24: ASTU | C24: FORNEC E/OU ASSENT DE TUBO DE FERRO FUNDIDO JUNTA ELASTICA | D24: 0045 | G24: 97158 | H24: ASSENTAMENTO DE TUBO DE FERRO FUNDIDO PARA REDE DE ÁGUA, DN 100 MM, JUNTA ELÁSTICA, INSTALADO EM LOCAL COM NÍVEL BAIXO DE INTERFERÊNCIAS (NÃO INCLUI FORNECIMENTO). AF_11/2017 | I24: M | J24: COEFICIENTE DE REPRESENTATIVIDADE | K24: 5.98 | L24: CAIXA REFERENCIAL
A25: ASSENTAMENTO DE TUBOS E PECAS | B25: ASTU | C25: FORNEC E/OU ASSENT DE TUBO DE FERRO FUNDIDO JUNTA ELASTICA | D25: 0045 | G25: 97159 | H25: ASSENTAMENTO DE TUBO DE FERRO FUNDIDO PARA REDE DE ÁGUA, DN 150 MM, JUNTA ELÁSTICA, INSTALADO EM LOCAL COM NÍVEL BAIXO DE INTERFERÊNCIAS (NÃO INCLUI FORNECIMENTO). AF_11/2017 | I25: M | J25: COEFICIENTE DE REPRESENTATIVIDADE | K25: 7.44 | L25: CAIXA REFERENCIAL
A26: ASSENTAMENTO DE TUBOS E PECAS | B26: ASTU | C26: FORNEC E/OU ASSENT DE TUBO DE FERRO FUNDIDO JUNTA ELASTICA | D26: 0045 | G26: 97160 | H26: ASSENTAMENTO DE TUBO DE FERRO FUNDIDO PARA REDE DE ÁGUA, DN 200 MM, JUNTA ELÁSTICA, INSTALADO EM LOCAL COM NÍVEL BAIXO DE INTERFERÊNCIAS (NÃO INCLUI FORNECIMENTO). AF_11/2017 | I26: M | J26: COEFICIENTE DE REPRESENTATIVIDADE | K26: 8.91 | L26: CAIXA REFERENCIAL
A27: ASSENTAMENTO DE TUBOS E PECAS | B27: ASTU | C27: FORNEC E/OU ASSENT DE TUBO DE FERRO FUNDIDO JUNTA ELASTICA | D27: 0045 | G27: 97161 | H27: ASSENTAMENTO DE TUBO DE FERRO FUNDIDO PARA REDE DE ÁGUA, DN 250 MM, JUNTA ELÁSTICA, INSTALADO EM LOCAL COM NÍVEL BAIXO DE INTERFERÊNCIAS (NÃO INCLUI FORNECIMENTO). AF_11/2017 | I27: M | J27: COEFICIENTE DE REPRESENTATIVIDADE | K27: 10.4 | L27: CAIXA REFERENCIAL
A28: ASSENTAMENTO DE TUBOS E PECAS | B28: ASTU | C28: FORNEC E/OU ASSENT DE TUBO DE FERRO FUNDIDO JUNTA ELASTICA | D28: 0045 | G28: 97162 | H28: ASSENTAMENTO DE TUBO DE FERRO FUNDIDO PARA REDE DE ÁGUA, DN 300 MM, JUNTA ELÁSTICA, INSTALADO EM LOCAL COM NÍVEL BAIXO DE INTERFERÊNCIAS (NÃO INCLUI FORNECIMENTO). AF_11/2017 | I28: M | J28: COEFICIENTE DE REPRESENTATIVIDADE | K28: 11.88 | L28: CAIXA REFERENCIAL
A29: ASSENTAMENTO DE TUBOS E PECAS | B29: ASTU | C29: FORNEC E/OU ASSENT DE TUBO DE FERRO FUNDIDO JUNTA ELASTICA | D29: 0045 | G29: 97163 | H29: ASSENTAMENTO DE TUBO DE FERRO FUNDIDO PARA REDE DE ÁGUA, DN 350 MM, JUNTA ELÁSTICA, INSTALADO EM LOCAL COM NÍVEL BAIXO DE INTERFERÊNCIAS (NÃO INCLUI FORNECIMENTO). AF_11/2017 | I29: M | J29: COEFICIENTE DE REPRESENTATIVIDADE | K29: 13.38 | L29: CAIXA REFERENCIAL
A30: ASSENTAMENTO DE TUBOS E PECAS | B30: ASTU | C30: FORNEC E/OU ASSENT DE TUBO DE FERRO FUNDIDO JUNTA ELASTICA | D30: 0045 | G30: 97164 | H30: ASSENTAMENTO DE TUBO DE FERRO FUNDIDO PARA REDE DE ÁGUA, DN 400 MM, JUNTA ELÁSTICA, INSTALADO EM LOCAL COM NÍVEL BAIXO DE INTERFERÊNCIAS (NÃO INCLUI FORNECIMENTO). AF_11/2017 | I30: M | J30: COEFICIENTE DE REPRESENTATIVIDADE | K30: 14.86 | L30: CAIXA REFERENCIAL
A31: ASSENTAMENTO DE TUBOS E PECAS | B31: ASTU | C31: FORNEC E/OU ASSENT DE TUBO DE FERRO FUNDIDO JUNTA ELASTICA | D31: 0045 | G31: 97165 | H31: ASSENTAMENTO DE TUBO DE FERRO FUNDIDO PARA REDE DE ÁGUA, DN 450 MM, JUNTA ELÁSTICA, INSTALADO EM LOCAL COM NÍVEL BAIXO DE INTERFERÊNCIAS (NÃO INCLUI FORNECIMENTO). AF_11/2017 | I31: M | J31: COEFICIENTE DE REPRESENTATIVIDADE | K31: 16.38 | L31: CAIXA REFERENCIAL
A32: ASSENTAMENTO DE TUBOS E PECAS | B32: ASTU | C32: FORNEC E/OU ASSENT DE TUBO DE FERRO FUNDIDO JUNTA ELASTICA | D32: 0045 | G32: 97166 | H32: ASSENTAMENTO DE TUBO DE FERRO FUNDIDO PARA REDE DE ÁGUA, DN 500 MM, JUNTA ELÁSTICA, INSTALADO EM LOCAL COM NÍVEL BAIXO DE INTERFERÊNCIAS (NÃO INCLUI FORNECIMENTO). AF_11/2017 | I32: M | J32: COEFICIENTE DE REPRESENTATIVIDADE | K32: 20.44 | L32: CAIXA REFERENCIAL
A33: ASSENTAMENTO DE TUBOS E PECAS | B33: ASTU | C33: FORNEC E/OU ASSENT DE TUBO DE FERRO FUNDIDO JUNTA ELASTICA | D33: 0045 | G33: 97167 | H33: ASSENTAMENTO DE TUBO DE FERRO FUNDIDO PARA REDE DE ÁGUA, DN 600 MM, JUNTA ELÁSTICA, INSTALADO EM LOCAL COM NÍVEL BAIXO DE INTERFERÊNCIAS (NÃO INCLUI FORNECIMENTO). AF_11/2017 | I33: M | J33: COEFICIENTE DE REPRESENTATIVIDADE | K33: 23.82 | L33: CAIXA REFERENCIAL
A34: ASSENTAMENTO DE TUBOS E PECAS | B34: ASTU | C34: FORNEC E/OU ASSENT DE TUBO DE FERRO FUNDIDO JUNTA ELASTICA | D34: 0045 | G34: 97168 | H34: ASSENTAMENTO DE TUBO DE FERRO FUNDIDO PARA REDE DE ÁGUA, DN 700 MM, JUNTA ELÁSTICA, INSTALADO EM LOCAL COM NÍVEL BAIXO DE INTERFERÊNCIAS (NÃO INCLUI FORNECIMENTO). AF_11/2017 | I34: M | J34: COEFICIENTE DE REPRESENTATIVIDADE | K34: 26.97 | L34: CAIXA REFERENCIAL
A35: ASSENTAMENTO DE TUBOS E PECAS | B35: ASTU | C35: FORNEC E/OU ASSENT DE TUBO DE FERRO FUNDIDO JUNTA ELASTICA | D35: 0045 | G35: 97169 | H35: ASSENTAMENTO DE TUBO DE FERRO FUNDIDO PARA REDE DE ÁGUA, DN 800 MM, JUNTA ELÁSTICA, INSTALADO EM LOCAL COM NÍVEL BAIXO DE INTERFERÊNCIAS (NÃO INCLUI FORNECIMENTO). AF_11/2017 | I35: M | J35: COEFICIENTE DE REPRESENTATIVIDADE | K35: 30.28 | L35: CAIXA REFERENCIAL
A36: ASSENTAMENTO DE TUBOS E PECAS | B36: ASTU | C36: FORNEC E/OU ASSENT DE TUBO DE FERRO FUNDIDO JUNTA ELASTICA | D36: 0045 | G36: 97170 | H36: ASSENTAMENTO DE TUBO DE FERRO FUNDIDO PARA REDE DE ÁGUA, DN 900 MM, JUNTA ELÁSTICA, INSTALADO EM LOCAL COM NÍVEL BAIXO DE INTERFERÊNCIAS (NÃO INCLUI FORNECIMENTO). AF_11/2017 | I36: M | J36: COEFICIENTE DE REPRESENTATIVIDADE | K36: 33.6 | L36: CAIXA REFERENCIAL
A37: ASSENTAMENTO DE TUBOS E PECAS | B37: ASTU | C37: FORNEC E/OU ASSENT DE TUBO DE FERRO FUNDIDO JUNTA ELASTICA | D37: 0045 | G37: 97171 | H37: ASSENTAMENTO DE TUBO DE FERRO FUNDIDO PARA REDE DE ÁGUA, DN 1000 MM, JUNTA ELÁSTICA, INSTALADO EM LOCAL COM NÍVEL BAIXO DE INTERFERÊNCIAS (NÃO INCLUI FORNECIMENTO). AF_11/2017 | I37: M | J37: COEFICIENTE DE REPRESENTATIVIDADE | K37: 36.94 | L37: CAIXA REFERENCIAL
A38: ASSENTAMENTO DE TUBOS E PECAS | B38: ASTU | C38: FORNEC E/OU ASSENT DE TUBO DE FERRO FUNDIDO JUNTA ELASTICA | D38: 0045 | G38: 97172 | H38: ASSENTAMENTO DE TUBO DE FERRO FUNDIDO PARA REDE DE ÁGUA, DN 1200 MM, JUNTA ELÁSTICA, INSTALADO EM LOCAL COM NÍVEL BAIXO DE INTERFERÊNCIAS (NÃO INCLUI FORNECIMENTO). AF_11/2017 | I38: M | J38: COEFICIENTE DE REPRESENTATIVIDADE | K38: 43.96 | L38: CAIXA REFERENCIAL
A39: ASSENTAMENTO DE TUBOS E PECAS | B39: ASTU | C39: FORNEC E/OU ASSENT DE TUBO DE ACO COM JUNTA SOLDADA | D39: 0046 | G39: 97173 | H39: ASSENTAMENTO DE TUBO DE AÇO CARBONO PARA REDE DE ÁGUA, DN 600 MM (24), JUNTA SOLDADA, INSTALADO EM LOCAL COM NÍVEL ALTO DE INTERFERÊNCIAS (NÃO INCLUI FORNECIMENTO). AF_11/2017 | I39: M | J39: COEFICIENTE DE REPRESENTATIVIDADE | K39: 36.26 | L39: CAIXA REFERENCIAL
A40: ASSENTAMENTO DE TUBOS E PECAS | B40: ASTU | C40: FORNEC E/OU ASSENT DE TUBO DE ACO COM JUNTA SOLDADA | D40: 0046 | G40: 97174 | H40: ASSENTAMENTO DE TUBO DE AÇO CARBONO PARA REDE DE ÁGUA, DN 700 MM (28), JUNTA SOLDADA, INSTALADO EM LOCAL COM NÍVEL ALTO DE INTERFERÊNCIAS (NÃO INCLUI FORNECIMENTO). AF_11/2017 | I40: M | J40: COEFICIENTE DE REPRESENTATIVIDADE | K40: 41.99 | L40: CAIXA REFERENCIAL
A41: ASSENTAMENTO DE TUBOS E PECAS | B41: ASTU | C41: FORNEC E/OU ASSENT DE TUBO DE ACO COM JUNTA SOLDADA | D41: 0046 | G41: 97175 | H41: ASSENTAMENTO DE TUBO DE AÇO CARBONO PARA REDE DE ÁGUA, DN 800 MM (32), JUNTA SOLDADA, INSTALADO EM LOCAL COM NÍVEL ALTO DE INTERFERÊNCIAS (NÃO INCLUI FORNECIMENTO). AF_11/2017 | I41: M | J41: COEFICIENTE DE REPRESENTATIVIDADE | K41: 47.7 | L41: CAIXA REFERENCIAL
A42: ASSENTAMENTO DE TUBOS E PECAS | B42: ASTU | C42: FORNEC E/OU ASSENT DE TUBO DE ACO COM JUNTA SOLDADA | D42: 0046 | G42: 97176 | H42: ASSENTAMENTO DE TUBO DE AÇO CARBONO PARA REDE DE ÁGUA, DN 900 MM (36), JUNTA SOLDADA, INSTALADO EM LOCAL COM NÍVEL ALTO DE INTERFERÊNCIAS (NÃO INCLUI FORNECIMENTO). AF_11/2017 | I42: M | J42: COEFICIENTE DE REPRESENTATIVIDADE | K42: 53.41 | L42: CAIXA REFERENCIAL
A43: ASSENTAMENTO DE TUBOS E PECAS | B43: ASTU | C43: FORNEC E/OU ASSENT DE TUBO DE ACO COM JUNTA SOLDADA | D43: 0046 | G43: 97177 | H43: ASSENTAMENTO DE TUBO DE AÇO CARBONO PARA REDE DE ÁGUA, DN 1000 MM (40) OU DN 1100 MM (44), JUNTA SOLDADA, INSTALADO EM LOCAL COM NÍVEL ALTO DE INTERFERÊNCIAS (NÃO INCLUI FORNECIMENTO). AF_11/2017 | I43: M | J43: COEFICIENTE DE REPRESENTATIVIDADE | K43: 64.86 | L43: CAIXA REFERENCIAL
A44: ASSENTAMENTO DE TUBOS E PECAS | B44: ASTU | C44: FORNEC E/OU ASSENT DE TUBO DE ACO COM JUNTA SOLDADA | D44: 0046 | G44: 97178 | H44: ASSENTAMENTO DE TUBO DE AÇO CARBONO PARA REDE DE ÁGUA, DN 1200 MM (48) OU DN 1300 MM (52), JUNTA SOLDADA, INSTALADO EM LOCAL COM NÍVEL ALTO DE INTERFERÊNCIAS (NÃO INCLUI FORNECIMENTO). AF_11/2017 | I44: M | J44: COEFICIENTE DE REPRESENTATIVIDADE | K44: 76.32 | L44: CAIXA REFERENCIAL
A45: ASSENTAMENTO DE TUBOS E PECAS | B45: ASTU | C45: FORNEC E/OU ASSENT DE TUBO DE ACO COM JUNTA SOLDADA | D45: 0046 | G45: 97179 | H45: ASSENTAMENTO DE TUBO DE AÇO CARBONO PARA REDE DE ÁGUA, DN 1400 MM (56'') OU DN 1500 MM (60), JUNTA SOLDADA, INSTALADO EM LOCAL COM NÍVEL ALTO DE INTERFERÊNCIAS (NÃO INCLUI FORNECIMENTO). AF_11/2017 | I45: M | J45: COEFICIENTE DE REPRESENTATIVIDADE | K45: 87.72 | L45: CAIXA REFERENCIAL
A46: ASSENTAMENTO DE TUBOS E PECAS | B46: ASTU | C46: FORNEC E/OU ASSENT DE TUBO DE ACO COM JUNTA SOLDADA | D46: 0046 | G46: 97180 | H46: ASSENTAMENTO DE TUBO DE AÇO CARBONO PARA REDE DE ÁGUA, DN 1600 MM (64) OU DN 1700 MM (68), JUNTA SOLDADA, INSTALADO EM LOCAL COM NÍVEL ALTO DE INTERFERÊNCIAS (NÃO INCLUI FORNECIMENTO). AF_11/2017 | I46: M | J46: COEFICIENTE DE REPRESENTATIVIDADE | K46: 99.18 | L46: CAIXA REFERENCIAL
A47: ASSENTAMENTO DE TUBOS E PECAS | B47: ASTU | C47: FORNEC E/OU ASSENT DE TUBO DE ACO COM JUNTA SOLDADA | D47: 0046 | G47: 97181 | H47: ASSENTAMENTO DE TUBO DE AÇO CARBONO PARA REDE DE ÁGUA, DN 1800 MM (72) OU DN 1900 MM (76), JUNTA SOLDADA, INSTALADO EM LOCAL COM NÍVEL ALTO DE INTERFERÊNCIAS (NÃO INCLUI FORNECIMENTO). AF_11/2017 | I47: M | J47: COEFICIENTE DE REPRESENTATIVIDADE | K47: 115.33 | L47: CAIXA REFERENCIAL
A48: ASSENTAMENTO DE TUBOS E PECAS | B48: ASTU | C48: FORNEC E/OU ASSENT DE TUBO DE ACO COM JUNTA SOLDADA | D48: 0046 | G48: 97182 | H48: ASSENTAMENTO DE TUBO DE AÇO CARBONO PARA REDE DE ÁGUA, DN 2000 MM (80) OU DN 2100 MM (84), JUNTA SOLDADA, INSTALADO EM LOCAL COM NÍVEL ALTO DE INTERFERÊNCIAS (NÃO INCLUI FORNECIMENTO). AF_11/2017 | I48: M | J48: COEFICIENTE DE REPRESENTATIVIDADE | K48: 127.28 | L48: CAIXA REFERENCIAL
A49: ASSENTAMENTO DE TUBOS E PECAS | B49: ASTU | C49: FORNEC E/OU ASSENT DE TUBO DE ACO COM JUNTA SOLDADA | D49: 0046 | G49: 97183 | H49: ASSENTAMENTO DE TUBO DE AÇO CARBONO PARA REDE DE ÁGUA, DN 600 MM (24), JUNTA SOLDADA, INSTALADO EM LOCAL COM NÍVEL BAIXO DE INTERFERÊNCIAS (NÃO INCLUI FORNECIMENTO). AF_11/2017 | I49: M | J49: COEFICIENTE DE REPRESENTATIVIDADE | K49: 28.62 | L49: CAIXA REFERENCIAL
A50: ASSENTAMENTO DE TUBOS E PECAS | B50: ASTU | C50: FORNEC E/OU ASSENT DE TUBO DE ACO COM JUNTA SOLDADA | D50: 0046 | G50: 97184 | H50: ASSENTAMENTO DE TUBO DE AÇO CARBONO PARA REDE DE ÁGUA, DN 700 MM (28), JUNTA SOLDADA, INSTALADO EM LOCAL COM NÍVEL BAIXO DE INTERFERÊNCIAS (NÃO INCLUI FORNECIMENTO). AF_11/2017 | I50: M | J50: COEFICIENTE DE REPRESENTATIVIDADE | K50: 33.19 | L50: CAIXA REFERENCIAL
A51: ASSENTAMENTO DE TUBOS E PECAS | B51: ASTU | C51: FORNEC E/OU ASSENT DE TUBO DE ACO COM JUNTA SOLDADA | D51: 0046 | G51: 97185 | H51: ASSENTAMENTO DE TUBO DE AÇO CARBONO PARA REDE DE ÁGUA, DN 800 MM (32), JUNTA SOLDADA, INSTALADO EM LOCAL COM NÍVEL BAIXO DE INTERFERÊNCIAS (NÃO INCLUI FORNECIMENTO). AF_11/2017 | I51: M | J51: COEFICIENTE DE REPRESENTATIVIDADE | K51: 37.76 | L51: CAIXA REFERENCIAL
A52: ASSENTAMENTO DE TUBOS E PECAS | B52: ASTU | C52: FORNEC E/OU ASSENT DE TUBO DE ACO COM JUNTA SOLDADA | D52: 0046 | G52: 97186 | H52: ASSENTAMENTO DE TUBO DE AÇO CARBONO PARA REDE DE ÁGUA, DN 900 MM (36), JUNTA SOLDADA, INSTALADO EM LOCAL COM NÍVEL BAIXO DE INTERFERÊNCIAS (NÃO INCLUI FORNECIMENTO). AF_11/2017 | I52: M | J52: COEFICIENTE DE REPRESENTATIVIDADE | K52: 42.34 | L52: CAIXA REFERENCIAL
A53: ASSENTAMENTO DE TUBOS E PECAS | B53: ASTU | C53: FORNEC E/OU ASSENT DE TUBO DE ACO COM JUNTA SOLDADA | D53: 0046 | G53: 97187 | H53: ASSENTAMENTO DE TUBO DE AÇO CARBONO PARA REDE DE ÁGUA, DN 1000 MM (40 ) OU DN 1100 MM (44 ), JUNTA SOLDADA, INSTALADO EM LOCAL COM NÍVEL BAIXO DE INTERFERÊNCIAS (NÃO INCLUI FORNECIMENTO). AF_11/2017 | I53: M | J53: COEFICIENTE DE REPRESENTATIVIDADE | K53: 51.49 | L53: CAIXA REFERENCIAL
A54: ASSENTAMENTO DE TUBOS E PECAS | B54: ASTU | C54: FORNEC E/OU ASSENT DE TUBO DE ACO COM JUNTA SOLDADA | D54: 0046 | G54: 97188 | H54: ASSENTAMENTO DE TUBO DE AÇO CARBONO PARA REDE DE ÁGUA, DN 1200 MM (48) OU DN 1300 MM (52), JUNTA SOLDADA, INSTALADO EM LOCAL COM NÍVEL BAIXO DE INTERFERÊNCIAS (NÃO INCLUI FORNECIMENTO). AF_11/2017 | I54: M | J54: COEFICIENTE DE REPRESENTATIVIDADE | K54: 60.65 | L54: CAIXA REFERENCIAL
A55: ASSENTAMENTO DE TUBOS E PECAS | B55: ASTU | C55: FORNEC E/OU ASSENT DE TUBO DE ACO COM JUNTA SOLDADA | D55: 0046 | G55: 97189 | H55: ASSENTAMENTO DE TUBO DE AÇO CARBONO PARA REDE DE ÁGUA, DN 1400 MM (56'') OU DN 1500 MM (60), JUNTA SOLDADA, INSTALADO EM LOCAL COM NÍVEL BAIXO DE INTERFERÊNCIAS (NÃO INCLUI FORNECIMENTO). AF_11/2017 | I55: M | J55: COEFICIENTE DE REPRESENTATIVIDADE | K55: 69.78 | L55: CAIXA REFERENCIAL
A56: ASSENTAMENTO DE TUBOS E PECAS | B56: ASTU | C56: FORNEC E/OU ASSENT DE TUBO DE ACO COM JUNTA SOLDADA | D56: 0046 | G56: 97190 | H56: ASSENTAMENTO DE TUBO DE AÇO CARBONO PARA REDE DE ÁGUA, DN 1600 MM (64) OU DN 1700 MM (68), JUNTA SOLDADA, INSTALADO EM LOCAL COM NÍVEL BAIXO DE INTERFERÊNCIAS (NÃO INCLUI FORNECIMENTO). AF_11/2017 | I56: M | J56: COEFICIENTE DE REPRESENTATIVIDADE | K56: 78.94 | L56: CAIXA REFERENCIAL
A57: ASSENTAMENTO DE TUBOS E PECAS | B57: ASTU | C57: FORNEC E/OU ASSENT DE TUBO DE ACO COM JUNTA SOLDADA | D57: 0046 | G57: 97191 | H57: ASSENTAMENTO DE TUBO DE AÇO CARBONO PARA REDE DE ÁGUA, DN 1800 MM (72) OU DN 1900 MM (76), JUNTA SOLDADA, INSTALADO EM LOCAL COM NÍVEL BAIXO DE INTERFERÊNCIAS (NÃO INCLUI FORNECIMENTO). AF_11/2017 | I57: M | J57: COEFICIENTE DE REPRESENTATIVIDADE | K57: 91.53 | L57: CAIXA REFERENCIAL
A58: ASSENTAMENTO DE TUBOS E PECAS | B58: ASTU | C58: FORNEC E/OU ASSENT DE TUBO DE ACO COM JUNTA SOLDADA | D58: 0046 | G58: 97192 | H58: ASSENTAMENTO DE TUBO DE AÇO CARBONO PARA REDE DE ÁGUA, DN 2000 MM (80) OU DN 2100 MM (84), JUNTA SOLDADA, INSTALADO EM LOCAL COM NÍVEL BAIXO DE INTERFERÊNCIAS (NÃO INCLUI FORNECIMENTO). AF_11/2017 | I58: M | J58: COEFICIENTE DE REPRESENTATIVIDADE | K58: 101.05 | L58: CAIXA REFERENCIAL
A59: ASSENTAMENTO DE TUBOS E PECAS | B59: ASTU | C59: FORNEC E/OU ASSENT DE TUBO DE PVC COM JUNTA ELASTICA | D59: 0048 | G59: 90694 | H59: TUBO DE PVC PARA REDE COLETORA DE ESGOTO DE PAREDE MACIÇA, DN 100 MM, JUNTA ELÁSTICA - FORNECIMENTO E ASSENTAMENTO. AF_01/2021 | I59: M | J59: COEFICIENTE DE REPRESENTATIVIDADE | K59: 41.16 | L59: CAIXA REFERENCIAL
A60: ASSENTAMENTO DE TUBOS E PECAS | B60: ASTU | C60: FORNEC E/OU ASSENT DE TUBO DE PVC COM JUNTA ELASTICA | D60: 0048 | G60: 90695 | H60: TUBO DE PVC PARA REDE COLETORA DE ESGOTO DE PAREDE MACIÇA, DN 150 MM, JUNTA ELÁSTICA - FORNECIMENTO E ASSENTAMENTO. AF_01/2021 | I60: M | J60: COEFICIENTE DE REPRESENTATIVIDADE | K60: 78.12 | L60: CAIXA REFERENCIAL
A61: ASSENTAMENTO DE TUBOS E PECAS | B61: ASTU | C61: FORNEC E/OU ASSENT DE TUBO DE PVC COM JUNTA ELASTICA | D61: 0048 | G61: 90696 | H61: TUBO DE PVC PARA REDE COLETORA DE ESGOTO DE PAREDE MACIÇA, DN 200 MM, JUNTA ELÁSTICA - FORNECIMENTO E ASSENTAMENTO. AF_01/2021 | I61: M | J61: COEFICIENTE DE REPRESENTATIVIDADE | K61: 130.42 | L61: CAIXA REFERENCIAL
A62: ASSENTAMENTO DE TUBOS E PECAS | B62: ASTU | C62: FORNEC E/OU ASSENT DE TUBO DE PVC COM JUNTA ELASTICA | D62: 0048 | G62: 90697 | H62: TUBO DE PVC PARA REDE COLETORA DE ESGOTO DE PAREDE MACIÇA, DN 250 MM, JUNTA ELÁSTICA - FORNECIMENTO E ASSENTAMENTO. AF_01/2021 | I62: M | J62: COEFICIENTE DE REPRESENTATIVIDADE | K62: 202.27 | L62: CAIXA REFERENCIAL
A63: ASSENTAMENTO DE TUBOS E PECAS | B63: ASTU | C63: FORNEC E/OU ASSENT DE TUBO DE PVC COM JUNTA ELASTICA | D63: 0048 | G63: 90698 | H63: TUBO DE PVC PARA REDE COLETORA DE ESGOTO DE PAREDE MACIÇA, DN 300 MM, JUNTA ELÁSTICA, FORNECIMENTO E ASSENTAMENTO. AF_01/2021 | I63: M | J63: COEFICIENTE DE REPRESENTATIVIDADE | K63: 309.06 | L63: CAIXA REFERENCIAL
A64: ASSENTAMENTO DE TUBOS E PECAS | B64: ASTU | C64: FORNEC E/OU ASSENT DE TUBO DE PVC COM JUNTA ELASTICA | D64: 0048 | G64: 90699 | H64: TUBO DE PVC PARA REDE COLETORA DE ESGOTO DE PAREDE MACIÇA, DN 350 MM, JUNTA ELÁSTICA - FORNECIMENTO E ASSENTAMENTO. AF_01/2021 | I64: M | J64: COEFICIENTE DE REPRESENTATIVIDADE | K64: 434.93 | L64: CAIXA REFERENCIAL
A65: ASSENTAMENTO DE TUBOS E PECAS | B65: ASTU | C65: FORNEC E/OU ASSENT DE TUBO DE PVC COM JUNTA ELASTICA | D65: 0048 | G65: 90700 | H65: TUBO DE PVC PARA REDE COLETORA DE ESGOTO DE PAREDE MACIÇA, DN 400 MM, JUNTA ELÁSTICA FORNECIMENTO E ASSENTAMENTO. AF_01/2021 | I65: M | J65: COEFICIENTE DE REPRESENTATIVIDADE | K65: 508.82 | L65: CAIXA REFERENCIAL
A66: ASSENTAMENTO DE TUBOS E PECAS | B66: ASTU | C66: FORNEC E/OU ASSENT DE TUBO DE PVC COM JUNTA ELASTICA | D66: 0048 | G66: 90701 | H66: TUBO DE PVC CORRUGADO DE DUPLA PAREDE PARA REDE COLETORA DE ESGOTO, DN 150 MM, JUNTA ELÁSTICA - FORNECIMENTO E ASSENTAMENTO. AF_01/2021 | I66: M | J66: COEFICIENTE DE REPRESENTATIVIDADE | K66: 62.24 | L66: CAIXA REFERENCIAL
A67: ASSENTAMENTO DE TUBOS E PECAS | B67: ASTU | C67: FORNEC E/OU ASSENT DE TUBO DE PVC COM JUNTA ELASTICA | D67: 0048 | G67: 90702 | H67: TUBO DE PVC CORRUGADO DE DUPLA PAREDE PARA REDE COLETORA DE ESGOTO, DN 200 MM, JUNTA ELÁSTICA - FORNECIMENTO E ASSENTAMENTO. AF_01/2021 | I67: M | J67: COEFICIENTE DE REPRESENTATIVIDADE | K67: 102.82 | L67: CAIXA REFERENCIAL
A68: ASSENTAMENTO DE TUBOS E PECAS | B68: ASTU | C68: FORNEC E/OU ASSENT DE TUBO DE PVC COM JUNTA ELASTICA | D68: 0048 | G68: 90703 | H68: TUBO DE PVC CORRUGADO DE DUPLA PAREDE PARA REDE COLETORA DE ESGOTO, DN 250 MM, JUNTA ELÁSTICA - FORNECIMENTO E ASSENTAMENTO. AF_01/2021 | I68: M | J68: COEFICIENTE DE REPRESENTATIVIDADE | K68: 162.13 | L68: CAIXA REFERENCIAL
A69: ASSENTAMENTO DE TUBOS E PECAS | B69: ASTU | C69: FORNEC E/OU ASSENT DE TUBO DE PVC COM JUNTA ELASTICA | D69: 0048 | G69: 90704 | H69: TUBO DE PVC CORRUGADO DE DUPLA PAREDE PARA REDE COLETORA DE ESGOTO, DN 300 MM, JUNTA ELÁSTICA - FORNECIMENTO E ASSENTAMENTO. AF_01/2021 | I69: M | J69: COEFICIENTE DE REPRESENTATIVIDADE | K69: 243.18 | L69: CAIXA REFERENCIAL
A70: ASSENTAMENTO DE TUBOS E PECAS | B70: ASTU | C70: FORNEC E/OU ASSENT DE TUBO DE PVC COM JUNTA ELASTICA | D70: 0048 | G70: 90705 | H70: TUBO DE PVC CORRUGADO DE DUPLA PAREDE PARA REDE COLETORA DE ESGOTO, DN 350 MM, JUNTA ELÁSTICA - FORNECIMENTO E ASSENTAMENTO. AF_01/2021 | I70: M | J70: COEFICIENTE DE REPRESENTATIVIDADE | K70: 313.81 | L70: CAIXA REFERENCIAL
A71: ASSENTAMENTO DE TUBOS E PECAS | B71: ASTU | C71: FORNEC E/OU ASSENT DE TUBO DE PVC COM JUNTA ELASTICA | D71: 0048 | G71: 90706 | H71: TUBO DE PVC CORRUGADO DE DUPLA PAREDE PARA REDE COLETORA DE ESGOTO, DN 400 MM, JUNTA ELÁSTICA - FORNECIMENTO E ASSENTAMENTO. AF_01/2021 | I71: M | J71: COEFICIENTE DE REPRESENTATIVIDADE | K71: 417.21 | L71: CAIXA REFERENCIAL
A72: ASSENTAMENTO DE TUBOS E PECAS | B72: ASTU | C72: FORNEC E/OU ASSENT DE TUBO DE PVC COM JUNTA ELASTICA | D72: 0048 | G72: 90708 | H72: TUBO DE PEAD CORRUGADO DE DUPLA PAREDE PARA REDE COLETORA DE ESGOTO, DN 600 MM, JUNTA ELÁSTICA INTEGRADA - FORNECIMENTO E ASSENTAMENTO. AF_01/2021 | I72: M | J72: COEFICIENTE DE REPRESENTATIVIDADE | K72: 1783.9 | L72: CAIXA REFERENCIAL
A73: ASSENTAMENTO DE TUBOS E PECAS | B73: ASTU | C73: FORNEC E/OU ASSENT DE TUBO DE PVC COM JUNTA ELASTICA | D73: 0048 | G73: 90724 | H73: JUNTA ARGAMASSADA ENTRE TUBO DN 100 MM E O POÇO DE VISITA/ CAIXA DE CONCRETO OU ALVENARIA EM REDES DE ESGOTO. AF_01/2021 | I73: UN | J73: COEFICIENTE DE REPRESENTATIVIDADE | K73: 22.89 | L73: CAIXA REFERENCIAL
A74: ASSENTAMENTO DE TUBOS E PECAS | B74: ASTU | C74: FORNEC E/OU ASSENT DE TUBO DE PVC COM JUNTA ELASTICA | D74: 0048 | G74: 90725 | H74: JUNTA ARGAMASSADA ENTRE TUBO DN 150 MM E O POÇO DE VISITA/ CAIXA DE CONCRETO OU ALVENARIA EM REDES DE ESGOTO. AF_01/2021 | I74: UN | J74: COEFICIENTE DE REPRESENTATIVIDADE | K74: 28.18 | L74: CAIXA REFERENCIAL
A75: ASSENTAMENTO DE TUBOS E PECAS | B75: ASTU | C75: FORNEC E/OU ASSENT DE TUBO DE PVC COM JUNTA ELASTICA | D75: 0048 | G75: 90726 | H75: JUNTA ARGAMASSADA ENTRE TUBO DN 200 MM E O POÇO/ CAIXA DE CONCRETO OU ALVENARIA EM REDES DE ESGOTO. AF_01/2021 | I75: UN | J75: COEFICIENTE DE REPRESENTATIVIDADE | K75: 33.55 | L75: CAIXA REFERENCIAL
A76: ASSENTAMENTO DE TUBOS E PECAS | B76: ASTU | C76: FORNEC E/OU ASSENT DE TUBO DE PVC COM JUNTA ELASTICA | D76: 0048 | G76: 90727 | H76: JUNTA ARGAMASSADA ENTRE TUBO DN 250 MM E O POÇO DE VISITA/ CAIXA DE CONCRETO OU ALVENARIA EM REDES DE ESGOTO. AF_01/2021 | I76: UN | J76: COEFICIENTE DE REPRESENTATIVIDADE | K76: 38.83 | L76: CAIXA REFERENCIAL
A77: ASSENTAMENTO DE TUBOS E PECAS | B77: ASTU | C77: FORNEC E/OU ASSENT DE TUBO DE PVC COM JUNTA ELASTICA | D77: 0048 | G77: 90728 | H77: JUNTA ARGAMASSADA ENTRE TUBO DN 300 MM E O POÇO DE VISITA/ CAIXA DE CONCRETO OU ALVENARIA EM REDES DE ESGOTO. AF_01/2021 | I77: UN | J77: COEFICIENTE DE REPRESENTATIVIDADE | K77: 44.12 | L77: CAIXA REFERENCIAL
A78: ASSENTAMENTO DE TUBOS E PECAS | B78: ASTU | C78: FORNEC E/OU ASSENT DE TUBO DE PVC COM JUNTA ELASTICA | D78: 0048 | G78: 90729 | H78: JUNTA ARGAMASSADA ENTRE TUBO DN 350 MM E O POÇO DE VISITA/ CAIXA DE CONCRETO OU ALVENARIA EM REDES DE ESGOTO. AF_01/2021 | I78: UN | J78: COEFICIENTE DE REPRESENTATIVIDADE | K78: 49.41 | L78: CAIXA REFERENCIAL
A79: ASSENTAMENTO DE TUBOS E PECAS | B79: ASTU | C79: FORNEC E/OU ASSENT DE TUBO DE PVC COM JUNTA ELASTICA | D79: 0048 | G79: 90730 | H79: JUNTA ARGAMASSADA ENTRE TUBO DN 400 MM E O POÇO DE VISITA/ CAIXA DE CONCRETO OU ALVENARIA EM REDES DE ESGOTO. AF_01/2021 | I79: UN | J79: COEFICIENTE DE REPRESENTATIVIDADE | K79: 54.7 | L79: CAIXA REFERENCIAL
A80: ASSENTAMENTO DE TUBOS E PECAS | B80: ASTU | C80: FORNEC E/OU ASSENT DE TUBO DE PVC COM JUNTA ELASTICA | D80: 0048 | G80: 90731 | H80: JUNTA ARGAMASSADA ENTRE TUBO DN 450 MM E O POÇO DE VISITA/ CAIXA DE CONCRETO OU ALVENARIA EM REDES DE ESGOTO. AF_01/2021 | I80: UN | J80: COEFICIENTE DE REPRESENTATIVIDADE | K80: 59.99 | L80: CAIXA REFERENCIAL
A81: ASSENTAMENTO DE TUBOS E PECAS | B81: ASTU | C81: FORNEC E/OU ASSENT DE TUBO DE PVC COM JUNTA ELASTICA | D81: 0048 | G81: 90732 | H81: JUNTA ARGAMASSADA ENTRE TUBO DN 600 MM E O POÇO DE VISITA/ CAIXA DE CONCRETO OU ALVENARIA EM REDES DE ESGOTO. AF_01/2021 | I81: UN | J81: COEFICIENTE DE REPRESENTATIVIDADE | K81: 75.87 | L81: CAIXA REFERENCIAL
A82: ASSENTAMENTO DE TUBOS E PECAS | B82: ASTU | C82: FORNEC E/OU ASSENT DE TUBO DE PVC COM JUNTA ELASTICA | D82: 0048 | G82: 90733 | H82: ASSENTAMENTO DE TUBO DE PVC PARA REDE COLETORA DE ESGOTO DE PAREDE MACIÇA, DN 100 MM, JUNTA ELÁSTICA (NÃO INCLUI FORNECIMENTO). AF_01/2021 | I82: M | J82: COEFICIENTE DE REPRESENTATIVIDADE | K82: 3.21 | L82: CAIXA REFERENCIAL
A83: ASSENTAMENTO DE TUBOS E PECAS | B83: ASTU | C83: FORNEC E/OU ASSENT DE TUBO DE PVC COM JUNTA ELASTICA | D83: 0048 | G83: 90734 | H83: ASSENTAMENTO DE TUBO DE PVC PARA REDE COLETORA DE ESGOTO DE PAREDE MACIÇA, DN 150 MM, JUNTA ELÁSTICA, (NÃO INCLUI FORNECIMENTO). AF_01/2021 | I83: M | J83: COEFICIENTE DE REPRESENTATIVIDADE | K83: 3.8 | L83: CAIXA REFERENCIAL
A84: ASSENTAMENTO DE TUBOS E PECAS | B84: ASTU | C84: FORNEC E/OU ASSENT DE TUBO DE PVC COM JUNTA ELASTICA | D84: 0048 | G84: 90735 | H84: ASSENTAMENTO DE TUBO DE PVC PARA REDE COLETORA DE ESGOTO DE PAREDE MACIÇA, DN 200 MM, JUNTA ELÁSTICA (NÃO INCLUI FORNECIMENTO). AF_01/2021 | I84: M | J84: COEFICIENTE DE REPRESENTATIVIDADE | K84: 4.39 | L84: CAIXA REFERENCIAL
A85: ASSENTAMENTO DE TUBOS E PECAS | B85: ASTU | C85: FORNEC E/OU ASSENT DE TUBO DE PVC COM JUNTA ELASTICA | D85: 0048 | G85: 90736 | H85: ASSENTAMENTO DE TUBO DE PVC PARA REDE COLETORA DE ESGOTO DE PAREDE MACIÇA, DN 250 MM, JUNTA ELÁSTICA (NÃO INCLUI FORNECIMENTO). AF_01/2021 | I85: M | J85: COEFICIENTE DE REPRESENTATIVIDADE | K85: 4.99 | L85: CAIXA REFERENCIAL
A86: ASSENTAMENTO DE TUBOS E PECAS | B86: ASTU | C86: FORNEC E/OU ASSENT DE TUBO DE PVC COM JUNTA ELASTICA | D86: 0048 | G86: 90737 | H86: ASSENTAMENTO DE TUBO DE PVC PARA REDE COLETORA DE ESGOTO DE PAREDE MACIÇA, DN 300 MM, JUNTA ELÁSTICA (NÃO INCLUI FORNECIMENTO). AF_01/2021 | I86: M | J86: COEFICIENTE DE REPRESENTATIVIDADE | K86: 5.58 | L86: CAIXA REFERENCIAL
A87: ASSENTAMENTO DE TUBOS E PECAS | B87: ASTU | C87: FORNEC E/OU ASSENT DE TUBO DE PVC COM JUNTA ELASTICA | D87: 0048 | G87: 90738 | H87: ASSENTAMENTO DE TUBO DE PVC PARA REDE COLETORA DE ESGOTO DE PAREDE MACIÇA, DN 350 MM, JUNTA ELÁSTICA (NÃO INCLUI FORNECIMENTO). AF_01/2021 | I87: M | J87: COEFICIENTE DE REPRESENTATIVIDADE | K87: 6.18 | L87: CAIXA REFERENCIAL
A88: ASSENTAMENTO DE TUBOS E PECAS | B88: ASTU | C88: FORNEC E/OU ASSENT DE TUBO DE PVC COM JUNTA ELASTICA | D88: 0048 | G88: 90739 | H88: ASSENTAMENTO DE TUBO DE PVC PARA REDE COLETORA DE ESGOTO DE PAREDE MACIÇA, DN 400 MM, JUNTA ELÁSTICA (NÃO INCLUI FORNECIMENTO). AF_01/2021 | I88: M | J88: COEFICIENTE DE REPRESENTATIVIDADE | K88: 9.51 | L88: CAIXA REFERENCIAL
A89: ASSENTAMENTO DE TUBOS E PECAS | B89: ASTU | C89: FORNEC E/OU ASSENT DE TUBO DE PVC COM JUNTA ELASTICA | D89: 0048 | G89: 90740 | H89: ASSENTAMENTO DE TUBO DE PVC CORRUGADO DE DUPLA PAREDE PARA REDE COLETORA DE ESGOTO, DN 150 MM, JUNTA ELÁSTICA (NÃO INCLUI FORNECIMENTO). AF_01/2021 | I89: M | J89: COEFICIENTE DE REPRESENTATIVIDADE | K89: 4.24 | L89: CAIXA REFERENCIAL
A90: ASSENTAMENTO DE TUBOS E PECAS | B90: ASTU | C90: FORNEC E/OU ASSENT DE TUBO DE PVC COM JUNTA ELASTICA | D90: 0048 | G90: 90741 | H90: ASSENTAMENTO DE TUBO DE PVC CORRUGADO DE DUPLA PAREDE PARA REDE COLETORA DE ESGOTO, DN 200 MM, JUNTA ELÁSTICA (NÃO INCLUI FORNECIMENTO). AF_01/2021 | I90: M | J90: COEFICIENTE DE REPRESENTATIVIDADE | K90: 4.83 | L90: CAIXA REFERENCIAL
A91: ASSENTAMENTO DE TUBOS E PECAS | B91: ASTU | C91: FORNEC E/OU ASSENT DE TUBO DE PVC COM JUNTA ELASTICA | D91: 0048 | G91: 90742 | H91: ASSENTAMENTO DE TUBO DE PVC CORRUGADO DE DUPLA PAREDE PARA REDE COLETORA DE ESGOTO, DN 250 MM, JUNTA ELÁSTICA (NÃO INCLUI FORNECIMENTO). AF_01/2021 | I91: M | J91: COEFICIENTE DE REPRESENTATIVIDADE | K91: 5.42 | L91: CAIXA REFERENCIAL
A92: ASSENTAMENTO DE TUBOS E PECAS | B92: ASTU | C92: FORNEC E/OU ASSENT DE TUBO DE PVC COM JUNTA ELASTICA | D92: 0048 | G92: 90743 | H92: ASSENTAMENTO DE TUBO DE PVC CORRUGADO DE DUPLA PAREDE PARA REDE COLETORA DE ESGOTO, DN 300 MM, JUNTA ELÁSTICA (NÃO INCLUI FORNECIMENTO). AF_01/2021 | I92: M | J92: COEFICIENTE DE REPRESENTATIVIDADE | K92: 6.01 | L92: CAIXA REFERENCIAL
A93: ASSENTAMENTO DE TUBOS E PECAS | B93: ASTU | C93: FORNEC E/OU ASSENT DE TUBO DE PVC COM JUNTA ELASTICA | D93: 0048 | G93: 90744 | H93: ASSENTAMENTO DE TUBO DE PVC CORRUGADO DE DUPLA PAREDE PARA REDE COLETORA DE ESGOTO, DN 350 MM, JUNTA ELÁSTICA (NÃO INCLUI FORNECIMENTO). AF_01/2021 | I93: M | J93: COEFICIENTE DE REPRESENTATIVIDADE | K93: 6.62 | L93: CAIXA REFERENCIAL
A94: ASSENTAMENTO DE TUBOS E PECAS | B94: ASTU | C94: FORNEC E/OU ASSENT DE TUBO DE PVC COM JUNTA ELASTICA | D94: 0048 | G94: 90745 | H94: ASSENTAMENTO DE TUBO DE PVC CORRUGADO DE DUPLA PAREDE PARA REDE COLETORA DE ESGOTO, DN 400 MM, JUNTA ELÁSTICA (NÃO INCLUI FORNECIMENTO). AF_01/2021 | I94: M | J94: COEFICIENTE DE REPRESENTATIVIDADE | K94: 10.61 | L94: CAIXA REFERENCIAL
A95: ASSENTAMENTO DE TUBOS E PECAS | B95: ASTU | C95: FORNEC E/OU ASSENT DE TUBO DE PVC COM JUNTA ELASTICA | D95: 0048 | G95: 90746 | H95: ASSENTAMENTO DE TUBO DE PEAD CORRUGADO DE DUPLA PAREDE PARA REDE COLETORA DE ESGOTO, DN 450 MM, JUNTA ELÁSTICA INTEGRADA (NÃO INCLUI FORNECIMENTO). AF_01/2021 | I95: M | J95: COEFICIENTE DE REPRESENTATIVIDADE | K95: 3.47 | L95: CAIXA REFERENCIAL
A96: ASSENTAMENTO DE TUBOS E PECAS | B96: ASTU | C96: FORNEC E/OU ASSENT DE TUBO DE PVC COM JUNTA ELASTICA | D96: 0048 | G96: 90747 | H96: ASSENTAMENTO DE TUBO DE PEAD CORRUGADO DE DUPLA PAREDE PARA REDE COLETORA DE ESGOTO, DN 600 MM, JUNTA ELÁSTICA INTEGRADA (NÃO INCLUI FORNECIMENTO). AF_01/2021 | I96: M | J96: COEFICIENTE DE REPRESENTATIVIDADE | K96: 17.31 | L96: CAIXA REFERENCIAL
A97: ASSENTAMENTO DE TUBOS E PECAS | B97: ASTU | C97: FORNEC E/OU ASSENT DE TUBO DE PVC COM JUNTA ELASTICA | D97: 0048 | G97: 94869 | H97: TUBO DE PEAD CORRUGADO DE DUPLA PAREDE PARA REDE COLETORA DE ESGOTO, DN 250 MM, JUNTA ELÁSTICA INTEGRADA - FORNECIMENTO E ASSENTAMENTO. AF_01/2021 | I97: M | J97: COEFICIENTE DE REPRESENTATIVIDADE | K97: 316.22 | L97: CAIXA REFERENCIAL
A98: ASSENTAMENTO DE TUBOS E PECAS | B98: ASTU | C98: FORNEC E/OU ASSENT DE TUBO DE PVC COM JUNTA ELASTICA | D98: 0048 | G98: 94870 | H98: ASSENTAMENTO DE TUBO DE PEAD CORRUGADO DE DUPLA PAREDE PARA REDE COLETORA DE ESGOTO, DN 250 MM, JUNTA ELÁSTICA INTEGRADA (NÃO INCLUI FORNECIMENTO). AF_01/2021 | I98: M | J98: COEFICIENTE DE REPRESENTATIVIDADE | K98: 1.74 | L98: CAIXA REFERENCIAL
A99: ASSENTAMENTO DE TUBOS E PECAS | B99: ASTU | C99: FORNEC E/OU ASSENT DE TUBO DE PVC COM JUNTA ELASTICA | D99: 0048 | G99: 94871 | H99: TUBO DE PEAD CORRUGADO DE DUPLA PAREDE PARA REDE COLETORA DE ESGOTO, DN 300 MM, JUNTA ELÁSTICA INTEGRADA - FORNECIMENTO E ASSENTAMENTO. AF_01/2021 | I99: M | J99: COEFICIENTE DE REPRESENTATIVIDADE | K99: 495.17 | L99: CAIXA REFERENCIAL
A100: ASSENTAMENTO DE TUBOS E PECAS | B100: ASTU | C100: FORNEC E/OU ASSENT DE TUBO DE PVC COM JUNTA ELASTICA | D100: 0048 | G100: 94872 | H100: ASSENTAMENTO DE TUBO DE PEAD CORRUGADO DE DUPLA PAREDE PARA REDE COLETORA DE ESGOTO, DN 300 MM, JUNTA ELÁSTICA INTEGRADA (NÃO INCLUI FORNECIMENTO). AF_01/2021 | I100: M | J100: COEFICIENTE DE REPRESENTATIVIDADE | K100: 2.47 | L100: CAIXA REFERENCIAL
A101: ASSENTAMENTO DE TUBOS E PECAS | B101: ASTU | C101: FORNEC E/OU ASSENT DE TUBO DE PVC COM JUNTA ELASTICA | D101: 0048 | G101: 94875 | H101: TUBO DE PEAD CORRUGADO DE DUPLA PAREDE PARA REDE COLETORA DE ESGOTO, DN 800 MM, JUNTA ELÁSTICA INTEGRADA - FORNECIMENTO E ASSENTAMENTO. AF_01/2021 | I101: M | J101: COEFICIENTE DE REPRESENTATIVIDADE | K101: 2899.42 | L101: CAIXA REFERENCIAL
A102: ASSENTAMENTO DE TUBOS E PECAS | B102: ASTU | C102: FORNEC E/OU ASSENT DE TUBO DE PVC COM JUNTA ELASTICA | D102: 0048 | G102: 94876 | H102: ASSENTAMENTO DE TUBO DE PEAD CORRUGADO DE DUPLA PAREDE PARA REDE COLETORA DE ESGOTO, DN 800 MM, JUNTA ELÁSTICA INTEGRADA (NÃO INCLUI FORNECIMENTO). AF_01/2021 | I102: M | J102: COEFICIENTE DE REPRESENTATIVIDADE | K102: 28.68 | L102: CAIXA REFERENCIAL
A103: ASSENTAMENTO DE TUBOS E PECAS | B103: ASTU | C103: FORNEC E/OU ASSENT DE TUBO DE PVC COM JUNTA ELASTICA | D103: 0048 | G103: 94878 | H103: ASSENTAMENTO DE TUBO DE PEAD CORRUGADO DE DUPLA PAREDE PARA REDE COLETORA DE ESGOTO, DN 900 MM, JUNTA ELÁSTICA INTEGRADA (NÃO INCLUI FORNECIMENTO). AF_01/2021 | I103: M | J103: COEFICIENTE DE REPRESENTATIVIDADE | K103: 33.24 | L103: CAIXA REFERENCIAL
A104: ASSENTAMENTO DE TUBOS E PECAS | B104: ASTU | C104: FORNEC E/OU ASSENT DE TUBO DE PVC COM JUNTA ELASTICA | D104: 0048 | G104: 94879 | H104: TUBO DE PEAD CORRUGADO DE DUPLA PAREDE PARA REDE COLETORA DE ESGOTO, DN 1000 MM, JUNTA ELÁSTICA INTEGRADA - FORNECIMENTO E ASSENTAMENTO. AF_01/2021 | I104: M | J104: COEFICIENTE DE REPRESENTATIVIDADE | K104: 4464.92 | L104: CAIXA REFERENCIAL
A105: ASSENTAMENTO DE TUBOS E PECAS | B105: ASTU | C105: FORNEC E/OU ASSENT DE TUBO DE PVC COM JUNTA ELASTICA | D105: 0048 | G105: 94880 | H105: ASSENTAMENTO DE TUBO DE PEAD CORRUGADO DE DUPLA PAREDE PARA REDE COLETORA DE ESGOTO, DN 1000 MM, JUNTA ELÁSTICA INTEGRADA (NÃO INCLUI FORNECIMENTO). AF_01/2021 | I105: M | J105: COEFICIENTE DE REPRESENTATIVIDADE | K105: 42.61 | L105: CAIXA REFERENCIAL
A106: ASSENTAMENTO DE TUBOS E PECAS | B106: ASTU | C106: FORNEC E/OU ASSENT DE TUBO DE PVC COM JUNTA ELASTICA | D106: 0048 | G106: 94881 | H106: TUBO DE PEAD CORRUGADO DE DUPLA PAREDE PARA REDE COLETORA DE ESGOTO, DN 1200 MM, JUNTA ELÁSTICA INTEGRADA - FORNECIMENTO E ASSENTAMENTO. AF_01/2021 | I106: M | J106: COEFICIENTE DE REPRESENTATIVIDADE | K106: 6161.54 | L106: CAIXA REFERENCIAL
A107: ASSENTAMENTO DE TUBOS E PECAS | B107: ASTU | C107: FORNEC E/OU ASSENT DE TUBO DE PVC COM JUNTA ELASTICA | D107: 0048 | G107: 94882 | H107: ASSENTAMENTO DE TUBO DE PEAD CORRUGADO DE DUPLA PAREDE PARA REDE COLETORA DE ESGOTO, DN 1200 MM, JUNTA ELÁSTICA INTEGRADA (NÃO INCLUI FORNECIMENTO). AF_01/2021 | I107: M | J107: COEFICIENTE DE REPRESENTATIVIDADE | K107: 49.63 | L107: CAIXA REFERENCIAL
A108: ASSENTAMENTO DE TUBOS E PECAS | B108: ASTU | C108: FORNEC E/OU ASSENT DE TUBO DE PVC COM JUNTA ELASTICA | D108: 0048 | G108: 94884 | H108: ASSENTAMENTO DE TUBO DE PEAD CORRUGADO DE DUPLA PAREDE PARA REDE COLETORA DE ESGOTO, DN 1500 MM, JUNTA ELÁSTICA INTEGRADA (NÃO INCLUI FORNECIMENTO). AF_01/2021 | I108: M | J108: COEFICIENTE DE REPRESENTATIVIDADE | K108: 63.86 | L108: CAIXA REFERENCIAL
A109: ASSENTAMENTO DE TUBOS E PECAS | B109: ASTU | C109: FORNEC E/OU ASSENT DE TUBO DE PVC COM JUNTA ELASTICA | D109: 0048 | G109: 97121 | H109: ASSENTAMENTO DE TUBO DE PVC PBA PARA REDE DE ÁGUA, DN 50 MM, JUNTA ELÁSTICA INTEGRADA, INSTALADO EM LOCAL COM NÍVEL ALTO DE INTERFERÊNCIAS (NÃO INCLUI FORNECIMENTO). AF_11/2017 | I109: M | J109: COEFICIENTE DE REPRESENTATIVIDADE | K109: 1.91 | L109: CAIXA REFERENCIAL
A110: ASSENTAMENTO DE TUBOS E PECAS | B110: ASTU | C110: FORNEC E/OU ASSENT DE TUBO DE PVC COM JUNTA ELASTICA | D110: 0048 | G110: 97122 | H110: ASSENTAMENTO DE TUBO DE PVC PBA PARA REDE DE ÁGUA, DN 75 MM, JUNTA ELÁSTICA INTEGRADA, INSTALADO EM LOCAL COM NÍVEL ALTO DE INTERFERÊNCIAS (NÃO INCLUI FORNECIMENTO). AF_11/2017 | I110: M | J110: COEFICIENTE DE REPRESENTATIVIDADE | K110: 2.65 | L110: CAIXA REFERENCIAL
A111: ASSENTAMENTO DE TUBOS E PECAS | B111: ASTU | C111: FORNEC E/OU ASSENT DE TUBO DE PVC COM JUNTA ELASTICA | D111: 0048 | G111: 97123 | H111: ASSENTAMENTO DE TUBO DE PVC PBA PARA REDE DE ÁGUA, DN 100 MM, JUNTA ELÁSTICA INTEGRADA, INSTALADO EM LOCAL COM NÍVEL ALTO DE INTERFERÊNCIAS (NÃO INCLUI FORNECIMENTO). AF_11/2017 | I111: M | J111: COEFICIENTE DE REPRESENTATIVIDADE | K111: 3.36 | L111: CAIXA REFERENCIAL
A112: ASSENTAMENTO DE TUBOS E PECAS | B112: ASTU | C112: FORNEC E/OU ASSENT DE TUBO DE PVC COM JUNTA ELASTICA | D112: 0048 | G112: 97124 | H112: ASSENTAMENTO DE TUBO DE PVC PBA PARA REDE DE ÁGUA, DN 50 MM, JUNTA ELÁSTICA INTEGRADA, INSTALADO EM LOCAL COM NÍVEL BAIXO DE INTERFERÊNCIAS (NÃO INCLUI FORNECIMENTO). AF_11/2017 | I112: M | J112: COEFICIENTE DE REPRESENTATIVIDADE | K112: 0.84 | L112: CAIXA REFERENCIAL
A113: ASSENTAMENTO DE TUBOS E PECAS | B113: ASTU | C113: FORNEC E/OU ASSENT DE TUBO DE PVC COM JUNTA ELASTICA | D113: 0048 | G113: 97125 | H113: ASSENTAMENTO DE TUBO DE PVC PBA PARA REDE DE ÁGUA, DN 75 MM, JUNTA ELÁSTICA INTEGRADA, INSTALADO EM LOCAL COM NÍVEL BAIXO DE INTERFERÊNCIAS (NÃO INCLUI FORNECIMENTO). AF_11/2017 | I113: M | J113: COEFICIENTE DE REPRESENTATIVIDADE | K113: 1.19 | L113: CAIXA REFERENCIAL
A114: ASSENTAMENTO DE TUBOS E PECAS | B114: ASTU | C114: FORNEC E/OU ASSENT DE TUBO DE PVC COM JUNTA ELASTICA | D114: 0048 | G114: 97126 | H114: ASSENTAMENTO DE TUBO DE PVC PBA PARA REDE DE ÁGUA, DN 100 MM, JUNTA ELÁSTICA INTEGRADA, INSTALADO EM LOCAL COM NÍVEL BAIXO DE INTERFERÊNCIAS (NÃO INCLUI FORNECIMENTO). AF_11/2017 | I114: M | J114: COEFICIENTE DE REPRESENTATIVIDADE | K114: 1.51 | L114: CAIXA REFERENCIAL
A115: ASSENTAMENTO DE TUBOS E PECAS | B115: ASTU | C115: FORNEC E/OU ASSENT DE TUBO DE PVC COM JUNTA ELASTICA | D115: 0048 | G115: 102264 | H115: TUBO DE PVC BRANCO PARA REDE COLETORA DE ESGOTO CONDOMINIAL DE PAREDE MACIÇA, DN 100 MM, JUNTA ELÁSTICA - FORNECIMENTO E ASSENTAMENTO. AF_01/2021 | I115: M | J115: COEFICIENTE DE REPRESENTATIVIDADE | K115: 18.18 | L115: CAIXA REFERENCIAL
A116: ASSENTAMENTO DE TUBOS E PECAS | B116: ASTU | C116: FORNEC E/OU ASSENT DE TUBO DE PVC COM JUNTA ELASTICA | D116: 0048 | G116: 102265 | H116: JUNTA ARGAMASSADA ENTRE TUBO DN 800 MM E O POÇO DE VISITA/ CAIXA DE CONCRETO OU ALVENARIA EM REDES DE ESGOTO. AF_01/2021 | I116: UN | J116: COEFICIENTE DE REPRESENTATIVIDADE | K116: 97.02 | L116: CAIXA REFERENCIAL
A117: ASSENTAMENTO DE TUBOS E PECAS | B117: ASTU | C117: FORNEC E/OU ASSENT DE TUBO DE PVC COM JUNTA ELASTICA | D117: 0048 | G117: 102266 | H117: JUNTA ARGAMASSADA ENTRE TUBO DN 900 MM E O POÇO DE VISITA/ CAIXA DE CONCRETO OU ALVENARIA EM REDES DE ESGOTO. AF_01/2021 | I117: UN | J117: COEFICIENTE DE REPRESENTATIVIDADE | K117: 107.6 | L117: CAIXA REFERENCIAL
A118: ASSENTAMENTO DE TUBOS E PECAS | B118: ASTU | C118: FORNEC E/OU ASSENT DE TUBO DE PVC COM JUNTA ELASTICA | D118: 0048 | G118: 102267 | H118: JUNTA ARGAMASSADA ENTRE TUBO DN 1000 MM E O POÇO DE VISITA/ CAIXA DE CONCRETO OU ALVENARIA EM REDES DE ESGOTO. AF_01/2021 | I118: UN | J118: COEFICIENTE DE REPRESENTATIVIDADE | K118: 123.54 | L118: CAIXA REFERENCIAL
A119: ASSENTAMENTO DE TUBOS E PECAS | B119: ASTU | C119: FORNEC E/OU ASSENT DE TUBO DE PVC COM JUNTA ELASTICA | D119: 0048 | G119: 102268 | H119: JUNTA ARGAMASSADA ENTRE TUBO DN 1200 MM E O POÇO DE VISITA/ CAIXA DE CONCRETO OU ALVENARIA EM REDES DE ESGOTO. AF_01/2021 | I119: UN | J119: COEFICIENTE DE REPRESENTATIVIDADE | K119: 139.4 | L119: CAIXA REFERENCIAL
A120: ASSENTAMENTO DE TUBOS E PECAS | B120: ASTU | C120: FORNEC E/OU ASSENT DE TUBO DE PVC COM JUNTA ELASTICA | D120: 0048 | G120: 102269 | H120: JUNTA ARGAMASSADA ENTRE TUBO DN 1500 MM E O POÇO DE VISITA/ CAIXA DE CONCRETO OU ALVENARIA EM REDES DE ESGOTO. AF_01/2021 | I120: UN | J120: COEFICIENTE DE REPRESENTATIVIDADE | K120: 171.14 | L120: CAIXA REFERENCIAL
A121: ASSENTAMENTO DE TUBOS E PECAS | B121: ASTU | C121: FORNEC E/OU ASSENT DE TUBO DE CONCRETO COM JUNTA ELASTICA | D121: 0051 | G121: 92833 | H121: TUBO DE CONCRETO PARA REDES COLETORAS DE ESGOTO SANITÁRIO, DIÂMETRO DE 300 MM, JUNTA ELÁSTICA, INSTALADO EM LOCAL COM BAIXO NÍVEL DE INTERFERÊNCIAS - FORNECIMENTO E ASSENTAMENTO. AF_12/2015 | I121: M | J121: COEFICIENTE DE REPRESENTATIVIDADE | K121: 171.77 | L121: CAIXA REFERENCIAL
A122: ASSENTAMENTO DE TUBOS E PECAS | B122: ASTU | C122: FORNEC E/OU ASSENT DE TUBO DE CONCRETO COM JUNTA ELASTICA | D122: 0051 | G122: 92834 | H122: ASSENTAMENTO DE TUBO DE CONCRETO PARA REDES COLETORAS DE ESGOTO SANITÁRIO, DIÂMETRO DE 300 MM, JUNTA ELÁSTICA, INSTALADO EM LOCAL COM BAIXO NÍVEL DE INTERFERÊNCIAS (NÃO INCLUI FORNECIMENTO). AF_12/2015 | I122: M | J122: COEFICIENTE DE REPRESENTATIVIDADE | K122: 9.38 | L122: CAIXA REFERENCIAL
A123: ASSENTAMENTO DE TUBOS E PECAS | B123: ASTU | C123: FORNEC E/OU ASSENT DE TUBO DE CONCRETO COM JUNTA ELASTICA | D123: 0051 | G123: 92835 | H123: TUBO DE CONCRETO PARA REDES COLETORAS DE ESGOTO SANITÁRIO, DIÂMETRO DE 400 MM, JUNTA ELÁSTICA, INSTALADO EM LOCAL COM BAIXO NÍVEL DE INTERFERÊNCIAS - FORNECIMENTO E ASSENTAMENTO. AF_12/2015 | I123: M | J123: COEFICIENTE DE REPRESENTATIVIDADE | K123: 181 | L123: CAIXA REFERENCIAL
A124: ASSENTAMENTO DE TUBOS E PECAS | B124: ASTU | C124: FORNEC E/OU ASSENT DE TUBO DE CONCRETO COM JUNTA ELASTICA | D124: 0051 | G124: 92836 | H124: ASSENTAMENTO DE TUBO DE CONCRETO PARA REDES COLETORAS DE ESGOTO SANITÁRIO, DIÂMETRO DE 400 MM, JUNTA ELÁSTICA, INSTALADO EM LOCAL COM BAIXO NÍVEL DE INTERFERÊNCIAS (NÃO INCLUI FORNECIMENTO). AF_12/2015 | I124: M | J124: COEFICIENTE DE REPRESENTATIVIDADE | K124: 11.98 | L124: CAIXA REFERENCIAL
A125: ASSENTAMENTO DE TUBOS E PECAS | B125: ASTU | C125: FORNEC E/OU ASSENT DE TUBO DE CONCRETO COM JUNTA ELASTICA | D125: 0051 | G125: 92837 | H125: TUBO DE CONCRETO PARA REDES COLETORAS DE ESGOTO SANITÁRIO, DIÂMETRO DE 500 MM, JUNTA ELÁSTICA, INSTALADO EM LOCAL COM BAIXO NÍVEL DE INTERFERÊNCIAS - FORNECIMENTO E ASSENTAMENTO. AF_12/2015 | I125: M | J125: COEFICIENTE DE REPRESENTATIVIDADE | K125: 315.51 | L125: CAIXA REFERENCIAL
A126: ASSENTAMENTO DE TUBOS E PECAS | B126: ASTU | C126: FORNEC E/OU ASSENT DE TUBO DE CONCRETO COM JUNTA ELASTICA | D126: 0051 | G126: 92838 | H126: ASSENTAMENTO DE TUBO DE CONCRETO PARA REDES COLETORAS DE ESGOTO SANITÁRIO, DIÂMETRO DE 500 MM, JUNTA ELÁSTICA, INSTALADO EM LOCAL COM BAIXO NÍVEL DE INTERFERÊNCIAS (NÃO INCLUI FORNECIMENTO). AF_12/2015 | I126: M | J126: COEFICIENTE DE REPRESENTATIVIDADE | K126: 14.36 | L126: CAIXA REFERENCIAL
A127: ASSENTAMENTO DE TUBOS E PECAS | B127: ASTU | C127: FORNEC E/OU ASSENT DE TUBO DE CONCRETO COM JUNTA ELASTICA | D127: 0051 | G127: 92839 | H127: TUBO DE CONCRETO PARA REDES COLETORAS DE ESGOTO SANITÁRIO, DIÂMETRO DE 600 MM, JUNTA ELÁSTICA, INSTALADO EM LOCAL COM BAIXO NÍVEL DE INTERFERÊNCIAS - FORNECIMENTO E ASSENTAMENTO. AF_12/2015 | I127: M | J127: COEFICIENTE DE REPRESENTATIVIDADE | K127: 385.7 | L127: CAIXA REFERENCIAL
A128: ASSENTAMENTO DE TUBOS E PECAS | B128: ASTU | C128: FORNEC E/OU ASSENT DE TUBO DE CONCRETO COM JUNTA ELASTICA | D128: 0051 | G128: 92840 | H128: ASSENTAMENTO DE TUBO DE CONCRETO PARA REDES COLETORAS DE ESGOTO SANITÁRIO, DIÂMETRO DE 600 MM, JUNTA ELÁSTICA, INSTALADO EM LOCAL COM BAIXO NÍVEL DE INTERFERÊNCIAS (NÃO INCLUI FORNECIMENTO). AF_12/2015 | I128: M | J128: COEFICIENTE DE REPRESENTATIVIDADE | K128: 17.03 | L128: CAIXA REFERENCIAL
A129: ASSENTAMENTO DE TUBOS E PECAS | B129: ASTU | C129: FORNEC E/OU ASSENT DE TUBO DE CONCRETO COM JUNTA ELASTICA | D129: 0051 | G129: 92841 | H129: TUBO DE CONCRETO PARA REDES COLETORAS DE ESGOTO SANITÁRIO, DIÂMETRO DE 700 MM, JUNTA ELÁSTICA, INSTALADO EM LOCAL COM BAIXO NÍVEL DE INTERFERÊNCIAS - FORNECIMENTO E ASSENTAMENTO. AF_12/2015 | I129: M | J129: COEFICIENTE DE REPRESENTATIVIDADE | K129: 502.39 | L129: CAIXA REFERENCIAL
A130: ASSENTAMENTO DE TUBOS E PECAS | B130: ASTU | C130: FORNEC E/OU ASSENT DE TUBO DE CONCRETO COM JUNTA ELASTICA | D130: 0051 | G130: 92842 | H130: ASSENTAMENTO DE TUBO DE CONCRETO PARA REDES COLETORAS DE ESGOTO SANITÁRIO, DIÂMETRO DE 700 MM, JUNTA ELÁSTICA, INSTALADO EM LOCAL COM BAIXO NÍVEL DE INTERFERÊNCIAS (NÃO INCLUI FORNECIMENTO). AF_12/2015 | I130: M | J130: COEFICIENTE DE REPRESENTATIVIDADE | K130: 19.43 | L130: CAIXA REFERENCIAL
A131: ASSENTAMENTO DE TUBOS E PECAS | B131: ASTU | C131: FORNEC E/OU ASSENT DE TUBO DE CONCRETO COM JUNTA ELASTICA | D131: 0051 | G131: 92843 | H131: TUBO DE CONCRETO PARA REDES COLETORAS DE ESGOTO SANITÁRIO, DIÂMETRO DE 800 MM, JUNTA ELÁSTICA, INSTALADO EM LOCAL COM BAIXO NÍVEL DE INTERFERÊNCIAS - FORNECIMENTO E ASSENTAMENTO. AF_12/2015 | I131: M | J131: COEFICIENTE DE REPRESENTATIVIDADE | K131: 522.85 | L131: CAIXA REFERENCIAL
A132: ASSENTAMENTO DE TUBOS E PECAS | B132: ASTU | C132: FORNEC E/OU ASSENT DE TUBO DE CONCRETO COM JUNTA ELASTICA | D132: 0051 | G132: 92844 | H132: ASSENTAMENTO DE TUBO DE CONCRETO PARA REDES COLETORAS DE ESGOTO SANITÁRIO, DIÂMETRO DE 800 MM, JUNTA ELÁSTICA, INSTALADO EM LOCAL COM BAIXO NÍVEL DE INTERFERÊNCIAS (NÃO INCLUI FORNECIMENTO). AF_12/2015 | I132: M | J132: COEFICIENTE DE REPRESENTATIVIDADE | K132: 22.11 | L132: CAIXA REFERENCIAL
A133: ASSENTAMENTO DE TUBOS E PECAS | B133: ASTU | C133: FORNEC E/OU ASSENT DE TUBO DE CONCRETO COM JUNTA ELASTICA | D133: 0051 | G133: 92845 | H133: TUBO DE CONCRETO PARA REDES COLETORAS DE ESGOTO SANITÁRIO, DIÂMETRO DE 900 MM, JUNTA ELÁSTICA, INSTALADO EM LOCAL COM BAIXO NÍVEL DE INTERFERÊNCIAS - FORNECIMENTO E ASSENTAMENTO. AF_12/2015 | I133: M | J133: COEFICIENTE DE REPRESENTATIVIDADE | K133: 768.89 | L133: CAIXA REFERENCIAL
A134: ASSENTAMENTO DE TUBOS E PECAS | B134: ASTU | C134: FORNEC E/OU ASSENT DE TUBO DE CONCRETO COM JUNTA ELASTICA | D134: 0051 | G134: 92846 | H134: ASSENTAMENTO DE TUBO DE CONCRETO PARA REDES COLETORAS DE ESGOTO SANITÁRIO, DIÂMETRO DE 900 MM, JUNTA ELÁSTICA, INSTALADO EM LOCAL COM BAIXO NÍVEL DE INTERFERÊNCIAS (NÃO INCLUI FORNECIMENTO). AF_12/2015 | I134: M | J134: COEFICIENTE DE REPRESENTATIVIDADE | K134: 24.49 | L134: CAIXA REFERENCIAL
A135: ASSENTAMENTO DE TUBOS E PECAS | B135: ASTU | C135: FORNEC E/OU ASSENT DE TUBO DE CONCRETO COM JUNTA ELASTICA | D135: 0051 | G135: 92847 | H135: TUBO DE CONCRETO PARA REDES COLETORAS DE ESGOTO SANITÁRIO, DIÂMETRO DE 1000 MM, JUNTA ELÁSTICA, INSTALADO EM LOCAL COM BAIXO NÍVEL DE INTERFERÊNCIAS - FORNECIMENTO E ASSENTAMENTO. AF_12/2015 | I135: M | J135: COEFICIENTE DE REPRESENTATIVIDADE | K135: 793.82 | L135: CAIXA REFERENCIAL
A136: ASSENTAMENTO DE TUBOS E PECAS | B136: ASTU | C136: FORNEC E/OU ASSENT DE TUBO DE CONCRETO COM JUNTA ELASTICA | D136: 0051 | G136: 92848 | H136: ASSENTAMENTO DE TUBO DE CONCRETO PARA REDES COLETORAS DE ESGOTO SANITÁRIO, DIÂMETRO DE 1000 MM, JUNTA ELÁSTICA, INSTALADO EM LOCAL COM BAIXO NÍVEL DE INTERFERÊNCIAS (NÃO INCLUI FORNECIMENTO). AF_12/2015 | I136: M | J136: COEFICIENTE DE REPRESENTATIVIDADE | K136: 27.17 | L136: CAIXA REFERENCIAL
A137: ASSENTAMENTO DE TUBOS E PECAS | B137: ASTU | C137: FORNEC E/OU ASSENT DE TUBO DE CONCRETO COM JUNTA ELASTICA | D137: 0051 | G137: 92849 | H137: TUBO DE CONCRETO PARA REDES COLETORAS DE ESGOTO SANITÁRIO, DIÂMETRO DE 300 MM, JUNTA ELÁSTICA, INSTALADO EM LOCAL COM ALTO NÍVEL DE INTERFERÊNCIAS - FORNECIMENTO E ASSENTAMENTO. AF_12/2015 | I137: M | J137: COEFICIENTE DE REPRESENTATIVIDADE | K137: 180.12 | L137: CAIXA REFERENCIAL
A138: ASSENTAMENTO DE TUBOS E PECAS | B138: ASTU | C138: FORNEC E/OU ASSENT DE TUBO DE CONCRETO COM JUNTA ELASTICA | D138: 0051 | G138: 92850 | H138: ASSENTAMENTO DE TUBO DE CONCRETO PARA REDES COLETORAS DE ESGOTO SANITÁRIO, DIÂMETRO DE 300 MM, JUNTA ELÁSTICA, INSTALADO EM LOCAL COM ALTO NÍVEL DE INTERFERÊNCIAS (NÃO INCLUI FORNECIMENTO). AF_12/2015 | I138: M | J138: COEFICIENTE DE REPRESENTATIVIDADE | K138: 17.73 | L138: CAIXA REFERENCIAL
A139: ASSENTAMENTO DE TUBOS E PECAS | B139: ASTU | C139: FORNEC E/OU ASSENT DE TUBO DE CONCRETO COM JUNTA ELASTICA | D139: 0051 | G139: 92851 | H139: TUBO DE CONCRETO PARA REDES COLETORAS DE ESGOTO SANITÁRIO, DIÂMETRO DE 400 MM, JUNTA ELÁSTICA, INSTALADO EM LOCAL COM ALTO NÍVEL DE INTERFERÊNCIAS - FORNECIMENTO E ASSENTAMENTO. AF_12/2015 | I139: M | J139: COEFICIENTE DE REPRESENTATIVIDADE | K139: 191.41 | L139: CAIXA REFERENCIAL
A140: ASSENTAMENTO DE TUBOS E PECAS | B140: ASTU | C140: FORNEC E/OU ASSENT DE TUBO DE CONCRETO COM JUNTA ELASTICA | D140: 0051 | G140: 92852 | H140: ASSENTAMENTO DE TUBO DE CONCRETO PARA REDES COLETORAS DE ESGOTO SANITÁRIO, DIÂMETRO DE 400 MM, JUNTA ELÁSTICA, INSTALADO EM LOCAL COM ALTO NÍVEL DE INTERFERÊNCIAS (NÃO INCLUI FORNECIMENTO). AF_12/2015 | I140: M | J140: COEFICIENTE DE REPRESENTATIVIDADE | K140: 22.39 | L140: CAIXA REFERENCIAL
A141: ASSENTAMENTO DE TUBOS E PECAS | B141: ASTU | C141: FORNEC E/OU ASSENT DE TUBO DE CONCRETO COM JUNTA ELASTICA | D141: 0051 | G141: 92853 | H141: TUBO DE CONCRETO PARA REDES COLETORAS DE ESGOTO SANITÁRIO, DIÂMETRO DE 500 MM, JUNTA ELÁSTICA, INSTALADO EM LOCAL COM ALTO NÍVEL DE INTERFERÊNCIAS - FORNECIMENTO E ASSENTAMENTO. AF_12/2015 | I141: M | J141: COEFICIENTE DE REPRESENTATIVIDADE | K141: 328.42 | L141: CAIXA REFERENCIAL
A142: ASSENTAMENTO DE TUBOS E PECAS | B142: ASTU | C142: FORNEC E/OU ASSENT DE TUBO DE CONCRETO COM JUNTA ELASTICA | D142: 0051 | G142: 92854 | H142: ASSENTAMENTO DE TUBO DE CONCRETO PARA REDES COLETORAS DE ESGOTO SANITÁRIO, DIÂMETRO DE 500 MM, JUNTA ELÁSTICA, INSTALADO EM LOCAL COM ALTO NÍVEL DE INTERFERÊNCIAS (NÃO INCLUI FORNECIMENTO). AF_12/2015 | I142: M | J142: COEFICIENTE DE REPRESENTATIVIDADE | K142: 27.27 | L142: CAIXA REFERENCIAL
A143: ASSENTAMENTO DE TUBOS E PECAS | B143: ASTU | C143: FORNEC E/OU ASSENT DE TUBO DE CONCRETO COM JUNTA ELASTICA | D143: 0051 | G143: 92855 | H143: TUBO DE CONCRETO PARA REDES COLETORAS DE ESGOTO SANITÁRIO, DIÂMETRO DE 600 MM, JUNTA ELÁSTICA, INSTALADO EM LOCAL COM ALTO NÍVEL DE INTERFERÊNCIAS - FORNECIMENTO E ASSENTAMENTO. AF_12/2015 | I143: M | J143: COEFICIENTE DE REPRESENTATIVIDADE | K143: 400.81 | L143: CAIXA REFERENCIAL
A144: ASSENTAMENTO DE TUBOS E PECAS | B144: ASTU | C144: FORNEC E/OU ASSENT DE TUBO DE CONCRETO COM JUNTA ELASTICA | D144: 0051 | G144: 92856 | H144: ASSENTAMENTO DE TUBO DE CONCRETO PARA REDES COLETORAS DE ESGOTO SANITÁRIO, DIÂMETRO DE 600 MM, JUNTA ELÁSTICA, INSTALADO EM LOCAL COM ALTO NÍVEL DE INTERFERÊNCIAS (NÃO INCLUI FORNECIMENTO). AF_12/2015 | I144: M | J144: COEFICIENTE DE REPRESENTATIVIDADE | K144: 32.14 | L144: CAIXA REFERENCIAL
A145: ASSENTAMENTO DE TUBOS E PECAS | B145: ASTU | C145: FORNEC E/OU ASSENT DE TUBO DE CONCRETO COM JUNTA ELASTICA | D145: 0051 | G145: 92857 | H145: TUBO DE CONCRETO PARA REDES COLETORAS DE ESGOTO SANITÁRIO, DIÂMETRO DE 700 MM, JUNTA ELÁSTICA, INSTALADO EM LOCAL COM ALTO NÍVEL DE INTERFERÊNCIAS - FORNECIMENTO E ASSENTAMENTO. AF_12/2015 | I145: M | J145: COEFICIENTE DE REPRESENTATIVIDADE | K145: 519.72 | L145: CAIXA REFERENCIAL
A146: ASSENTAMENTO DE TUBOS E PECAS | B146: ASTU | C146: FORNEC E/OU ASSENT DE TUBO DE CONCRETO COM JUNTA ELASTICA | D146: 0051 | G146: 92858 | H146: ASSENTAMENTO DE TUBO DE CONCRETO PARA REDES COLETORAS DE ESGOTO SANITÁRIO, DIÂMETRO DE 700 MM, JUNTA ELÁSTICA, INSTALADO EM LOCAL COM ALTO NÍVEL DE INTERFERÊNCIAS (NÃO INCLUI FORNECIMENTO). AF_12/2015 | I146: M | J146: COEFICIENTE DE REPRESENTATIVIDADE | K146: 36.76 | L146: CAIXA REFERENCIAL
A147: ASSENTAMENTO DE TUBOS E PECAS | B147: ASTU | C147: FORNEC E/OU ASSENT DE TUBO DE CONCRETO COM JUNTA ELASTICA | D147: 0051 | G147: 92859 | H147: TUBO DE CONCRETO PARA REDES COLETORAS DE ESGOTO SANITÁRIO, DIÂMETRO DE 800 MM, JUNTA ELÁSTICA, INSTALADO EM LOCAL COM ALTO NÍVEL DE INTERFERÊNCIAS - FORNECIMENTO E ASSENTAMENTO. AF_12/2015 | I147: M | J147: COEFICIENTE DE REPRESENTATIVIDADE | K147: 542.5 | L147: CAIXA REFERENCIAL
A148: ASSENTAMENTO DE TUBOS E PECAS | B148: ASTU | C148: FORNEC E/OU ASSENT DE TUBO DE CONCRETO COM JUNTA ELASTICA | D148: 0051 | G148: 92860 | H148: ASSENTAMENTO DE TUBO DE CONCRETO PARA REDES COLETORAS DE ESGOTO SANITÁRIO, DIÂMETRO DE 800 MM, JUNTA ELÁSTICA, INSTALADO EM LOCAL COM ALTO NÍVEL DE INTERFERÊNCIAS (NÃO INCLUI FORNECIMENTO). AF_12/2015 | I148: M | J148: COEFICIENTE DE REPRESENTATIVIDADE | K148: 41.76 | L148: CAIXA REFERENCIAL
A149: ASSENTAMENTO DE TUBOS E PECAS | B149: ASTU | C149: FORNEC E/OU ASSENT DE TUBO DE CONCRETO COM JUNTA ELASTICA | D149: 0051 | G149: 92861 | H149: TUBO DE CONCRETO PARA REDES COLETORAS DE ESGOTO SANITÁRIO, DIÂMETRO DE 900 MM, JUNTA ELÁSTICA, INSTALADO EM LOCAL COM ALTO NÍVEL DE INTERFERÊNCIAS - FORNECIMENTO E ASSENTAMENTO. AF_12/2015 | I149: M | J149: COEFICIENTE DE REPRESENTATIVIDADE | K149: 791.02 | L149: CAIXA REFERENCIAL
A150: ASSENTAMENTO DE TUBOS E PECAS | B150: ASTU | C150: FORNEC E/OU ASSENT DE TUBO DE CONCRETO COM JUNTA ELASTICA | D150: 0051 | G150: 92862 | H150: ASSENTAMENTO DE TUBO DE CONCRETO PARA REDES COLETORAS DE ESGOTO SANITÁRIO, DIÂMETRO DE 900 MM, JUNTA ELÁSTICA, INSTALADO EM LOCAL COM ALTO NÍVEL DE INTERFERÊNCIAS (NÃO INCLUI FORNECIMENTO). AF_12/2015 | I150: M | J150: COEFICIENTE DE REPRESENTATIVIDADE | K150: 46.62 | L150: CAIXA REFERENCIAL
A151: ASSENTAMENTO DE TUBOS E PECAS | B151: ASTU | C151: FORNEC E/OU ASSENT DE TUBO DE CONCRETO COM JUNTA ELASTICA | D151: 0051 | G151: 92863 | H151: TUBO DE CONCRETO PARA REDES COLETORAS DE ESGOTO SANITÁRIO, DIÂMETRO DE 1000 MM, JUNTA ELÁSTICA, INSTALADO EM LOCAL COM ALTO NÍVEL DE INTERFERÊNCIAS - FORNECIMENTO E ASSENTAMENTO. AF_12/2015 | I151: M | J151: COEFICIENTE DE REPRESENTATIVIDADE | K151: 818.13 | L151: CAIXA REFERENCIAL
A152: ASSENTAMENTO DE TUBOS E PECAS | B152: ASTU | C152: FORNEC E/OU ASSENT DE TUBO DE CONCRETO COM JUNTA ELASTICA | D152: 0051 | G152: 92864 | H152: ASSENTAMENTO DE TUBO DE CONCRETO PARA REDES COLETORAS DE ESGOTO SANITÁRIO, DIÂMETRO DE 1000 MM, JUNTA ELÁSTICA, INSTALADO EM LOCAL COM ALTO NÍVEL DE INTERFERÊNCIAS (NÃO INCLUI FORNECIMENTO). AF_12/2015 | I152: M | J152: COEFICIENTE DE REPRESENTATIVIDADE | K152: 51.48 | L152: CAIXA REFERENCIAL
A153: ASSENTAMENTO DE TUBOS E PECAS | B153: ASTU | C153: FORNEC E/OU ASSENT DE TUBO DE CONCRETO COM JUNTA ARGAMASSADA | D153: 0052 | G153: 92210 | H153: TUBO DE CONCRETO PARA REDES COLETORAS DE ÁGUAS PLUVIAIS, DIÂMETRO DE 400 MM, JUNTA RÍGIDA, INSTALADO EM LOCAL COM BAIXO NÍVEL DE INTERFERÊNCIAS - FORNECIMENTO E ASSENTAMENTO. AF_12/2015 | I153: M | J153: COEFICIENTE DE REPRESENTATIVIDADE | K153: 147.31 | L153: CAIXA REFERENCIAL
A154: ASSENTAMENTO DE TUBOS E PECAS | B154: ASTU | C154: FORNEC E/OU ASSENT DE TUBO DE CONCRETO COM JUNTA ARGAMASSADA | D154: 0052 | G154: 92211 | H154: TUBO DE CONCRETO PARA REDES COLETORAS DE ÁGUAS PLUVIAIS, DIÂMETRO DE 500 MM, JUNTA RÍGIDA, INSTALADO EM LOCAL COM BAIXO NÍVEL DE INTERFERÊNCIAS - FORNECIMENTO E ASSENTAMENTO. AF_12/2015 | I154: M | J154: COEFICIENTE DE REPRESENTATIVIDADE | K154: 177.23 | L154: CAIXA REFERENCIAL
A155: ASSENTAMENTO DE TUBOS E PECAS | B155: ASTU | C155: FORNEC E/OU ASSENT DE TUBO DE CONCRETO COM JUNTA ARGAMASSADA | D155: 0052 | G155: 92212 | H155: TUBO DE CONCRETO PARA REDES COLETORAS DE ÁGUAS PLUVIAIS, DIÂMETRO DE 600 MM, JUNTA RÍGIDA, INSTALADO EM LOCAL COM BAIXO NÍVEL DE INTERFERÊNCIAS - FORNECIMENTO E ASSENTAMENTO. AF_12/2015 | I155: M | J155: COEFICIENTE DE REPRESENTATIVIDADE | K155: 258.74 | L155: CAIXA REFERENCIAL
A156: ASSENTAMENTO DE TUBOS E PECAS | B156: ASTU | C156: FORNEC E/OU ASSENT DE TUBO DE CONCRETO COM JUNTA ARGAMASSADA | D156: 0052 | G156: 92213 | H156: TUBO DE CONCRETO PARA REDES COLETORAS DE ÁGUAS PLUVIAIS, DIÂMETRO DE 700 MM, JUNTA RÍGIDA, INSTALADO EM LOCAL COM BAIXO NÍVEL DE INTERFERÊNCIAS - FORNECIMENTO E ASSENTAMENTO. AF_12/2015 | I156: M | J156: COEFICIENTE DE REPRESENTATIVIDADE | K156: 336.56 | L156: CAIXA REFERENCIAL
A157: ASSENTAMENTO DE TUBOS E PECAS | B157: ASTU | C157: FORNEC E/OU ASSENT DE TUBO DE CONCRETO COM JUNTA ARGAMASSADA | D157: 0052 | G157: 92214 | H157: TUBO DE CONCRETO PARA REDES COLETORAS DE ÁGUAS PLUVIAIS, DIÂMETRO DE 800 MM, JUNTA RÍGIDA, INSTALADO EM LOCAL COM BAIXO NÍVEL DE INTERFERÊNCIAS - FORNECIMENTO E ASSENTAMENTO. AF_12/2015 | I157: M | J157: COEFICIENTE DE REPRESENTATIVIDADE | K157: 405.34 | L157: CAIXA REFERENCIAL
A158: ASSENTAMENTO DE TUBOS E PECAS | B158: ASTU | C158: FORNEC E/OU ASSENT DE TUBO DE CONCRETO COM JUNTA ARGAMASSADA | D158: 0052 | G158: 92215 | H158: TUBO DE CONCRETO PARA REDES COLETORAS DE ÁGUAS PLUVIAIS, DIÂMETRO DE 900 MM, JUNTA RÍGIDA, INSTALADO EM LOCAL COM BAIXO NÍVEL DE INTERFERÊNCIAS - FORNECIMENTO E ASSENTAMENTO. AF_12/2015 | I158: M | J158: COEFICIENTE DE REPRESENTATIVIDADE | K158: 465.23 | L158: CAIXA REFERENCIAL
A159: ASSENTAMENTO DE TUBOS E PECAS | B159: ASTU | C159: FORNEC E/OU ASSENT DE TUBO DE CONCRETO COM JUNTA ARGAMASSADA | D159: 0052 | G159: 92216 | H159: TUBO DE CONCRETO PARA REDES COLETORAS DE ÁGUAS PLUVIAIS, DIÂMETRO DE 1000 MM, JUNTA RÍGIDA, INSTALADO EM LOCAL COM BAIXO NÍVEL DE INTERFERÊNCIAS - FORNECIMENTO E ASSENTAMENTO. AF_12/2015 | I159: M | J159: COEFICIENTE DE REPRESENTATIVIDADE | K159: 489.53 | L159: CAIXA REFERENCIAL
A160: ASSENTAMENTO DE TUBOS E PECAS | B160: ASTU | C160: FORNEC E/OU ASSENT DE TUBO DE CONCRETO COM JUNTA ARGAMASSADA | D160: 0052 | G160: 92219 | H160: TUBO DE CONCRETO PARA REDES COLETORAS DE ÁGUAS PLUVIAIS, DIÂMETRO DE 400 MM, JUNTA RÍGIDA, INSTALADO EM LOCAL COM ALTO NÍVEL DE INTERFERÊNCIAS - FORNECIMENTO E ASSENTAMENTO. AF_12/2015 | I160: M | J160: COEFICIENTE DE REPRESENTATIVIDADE | K160: 157.73 | L160: CAIXA REFERENCIAL
A161: ASSENTAMENTO DE TUBOS E PECAS | B161: ASTU | C161: FORNEC E/OU ASSENT DE TUBO DE CONCRETO COM JUNTA ARGAMASSADA | D161: 0052 | G161: 92220 | H161: TUBO DE CONCRETO PARA REDES COLETORAS DE ÁGUAS PLUVIAIS, DIÂMETRO DE 500 MM, JUNTA RÍGIDA, INSTALADO EM LOCAL COM ALTO NÍVEL DE INTERFERÊNCIAS - FORNECIMENTO E ASSENTAMENTO. AF_12/2015 | I161: M | J161: COEFICIENTE DE REPRESENTATIVIDADE | K161: 190.13 | L161: CAIXA REFERENCIAL
A162: ASSENTAMENTO DE TUBOS E PECAS | B162: ASTU | C162: FORNEC E/OU ASSENT DE TUBO DE CONCRETO COM JUNTA ARGAMASSADA | D162: 0052 | G162: 92221 | H162: TUBO DE CONCRETO PARA REDES COLETORAS DE ÁGUAS PLUVIAIS, DIÂMETRO DE 600 MM, JUNTA RÍGIDA, INSTALADO EM LOCAL COM ALTO NÍVEL DE INTERFERÊNCIAS - FORNECIMENTO E ASSENTAMENTO. AF_12/2015 | I162: M | J162: COEFICIENTE DE REPRESENTATIVIDADE | K162: 273.86 | L162: CAIXA REFERENCIAL
A163: ASSENTAMENTO DE TUBOS E PECAS | B163: ASTU | C163: FORNEC E/OU ASSENT DE TUBO DE CONCRETO COM JUNTA ARGAMASSADA | D163: 0052 | G163: 92222 | H163: TUBO DE CONCRETO PARA REDES COLETORAS DE ÁGUAS PLUVIAIS, DIÂMETRO DE 700 MM, JUNTA RÍGIDA, INSTALADO EM LOCAL COM ALTO NÍVEL DE INTERFERÊNCIAS - FORNECIMENTO E ASSENTAMENTO. AF_12/2015 | I163: M | J163: COEFICIENTE DE REPRESENTATIVIDADE | K163: 354.14 | L163: CAIXA REFERENCIAL
A164: ASSENTAMENTO DE TUBOS E PECAS | B164: ASTU | C164: FORNEC E/OU ASSENT DE TUBO DE CONCRETO COM JUNTA ARGAMASSADA | D164: 0052 | G164: 92223 | H164: TUBO DE CONCRETO PARA REDES COLETORAS DE ÁGUAS PLUVIAIS, DIÂMETRO DE 800 MM, JUNTA RÍGIDA, INSTALADO EM LOCAL COM ALTO NÍVEL DE INTERFERÊNCIAS - FORNECIMENTO E ASSENTAMENTO. AF_12/2015 | I164: M | J164: COEFICIENTE DE REPRESENTATIVIDADE | K164: 425 | L164: CAIXA REFERENCIAL
A165: ASSENTAMENTO DE TUBOS E PECAS | B165: ASTU | C165: FORNEC E/OU ASSENT DE TUBO DE CONCRETO COM JUNTA ARGAMASSADA | D165: 0052 | G165: 92224 | H165: TUBO DE CONCRETO PARA REDES COLETORAS DE ÁGUAS PLUVIAIS, DIÂMETRO DE 900 MM, JUNTA RÍGIDA, INSTALADO EM LOCAL COM ALTO NÍVEL DE INTERFERÊNCIAS - FORNECIMENTO E ASSENTAMENTO. AF_12/2015 | I165: M | J165: COEFICIENTE DE REPRESENTATIVIDADE | K165: 487.04 | L165: CAIXA REFERENCIAL
A166: ASSENTAMENTO DE TUBOS E PECAS | B166: ASTU | C166: FORNEC E/OU ASSENT DE TUBO DE CONCRETO COM JUNTA ARGAMASSADA | D166: 0052 | G166: 92226 | H166: TUBO DE CONCRETO PARA REDES COLETORAS DE ÁGUAS PLUVIAIS, DIÂMETRO DE 1000 MM, JUNTA RÍGIDA, INSTALADO EM LOCAL COM ALTO NÍVEL DE INTERFERÊNCIAS - FORNECIMENTO E ASSENTAMENTO. AF_12/2015 | I166: M | J166: COEFICIENTE DE REPRESENTATIVIDADE | K166: 513.95 | L166: CAIXA REFERENCIAL
A167: ASSENTAMENTO DE TUBOS E PECAS | B167: ASTU | C167: FORNEC E/OU ASSENT DE TUBO DE CONCRETO COM JUNTA ARGAMASSADA | D167: 0052 | G167: 92808 | H167: ASSENTAMENTO DE TUBO DE CONCRETO PARA REDES COLETORAS DE ÁGUAS PLUVIAIS, DIÂMETRO DE 300 MM, JUNTA RÍGIDA, INSTALADO EM LOCAL COM BAIXO NÍVEL DE INTERFERÊNCIAS (NÃO INCLUI FORNECIMENTO). AF_12/2015 | I167: M | J167: COEFICIENTE DE REPRESENTATIVIDADE | K167: 42.22 | L167: CAIXA REFERENCIAL
A168: ASSENTAMENTO DE TUBOS E PECAS | B168: ASTU | C168: FORNEC E/OU ASSENT DE TUBO DE CONCRETO COM JUNTA ARGAMASSADA | D168: 0052 | G168: 92809 | H168: ASSENTAMENTO DE TUBO DE CONCRETO PARA REDES COLETORAS DE ÁGUAS PLUVIAIS, DIÂMETRO DE 400 MM, JUNTA RÍGIDA, INSTALADO EM LOCAL COM BAIXO NÍVEL DE INTERFERÊNCIAS (NÃO INCLUI FORNECIMENTO). AF_12/2015 | I168: M | J168: COEFICIENTE DE REPRESENTATIVIDADE | K168: 54.16 | L168: CAIXA REFERENCIAL
A169: ASSENTAMENTO DE TUBOS E PECAS | B169: ASTU | C169: FORNEC E/OU ASSENT DE TUBO DE CONCRETO COM JUNTA ARGAMASSADA | D169: 0052 | G169: 92810 | H169: ASSENTAMENTO DE TUBO DE CONCRETO PARA REDES COLETORAS DE ÁGUAS PLUVIAIS, DIÂMETRO DE 500 MM, JUNTA RÍGIDA, INSTALADO EM LOCAL COM BAIXO NÍVEL DE INTERFERÊNCIAS (NÃO INCLUI FORNECIMENTO). AF_12/2015 | I169: M | J169: COEFICIENTE DE REPRESENTATIVIDADE | K169: 65.91 | L169: CAIXA REFERENCIAL
A170: ASSENTAMENTO DE TUBOS E PECAS | B170: ASTU | C170: FORNEC E/OU ASSENT DE TUBO DE CONCRETO COM JUNTA ARGAMASSADA | D170: 0052 | G170: 92811 | H170: ASSENTAMENTO DE TUBO DE CONCRETO PARA REDES COLETORAS DE ÁGUAS PLUVIAIS, DIÂMETRO DE 600 MM, JUNTA RÍGIDA, INSTALADO EM LOCAL COM BAIXO NÍVEL DE INTERFERÊNCIAS (NÃO INCLUI FORNECIMENTO). AF_12/2015 | I170: M | J170: COEFICIENTE DE REPRESENTATIVIDADE | K170: 78.49 | L170: CAIXA REFERENCIAL
A171: ASSENTAMENTO DE TUBOS E PECAS | B171: ASTU | C171: FORNEC E/OU ASSENT DE TUBO DE CONCRETO COM JUNTA ARGAMASSADA | D171: 0052 | G171: 92812 | H171: ASSENTAMENTO DE TUBO DE CONCRETO PARA REDES COLETORAS DE ÁGUAS PLUVIAIS, DIÂMETRO DE 700 MM, JUNTA RÍGIDA, INSTALADO EM LOCAL COM BAIXO NÍVEL DE INTERFERÊNCIAS (NÃO INCLUI FORNECIMENTO). AF_12/2015 | I171: M | J171: COEFICIENTE DE REPRESENTATIVIDADE | K171: 90.89 | L171: CAIXA REFERENCIAL
A172: ASSENTAMENTO DE TUBOS E PECAS | B172: ASTU | C172: FORNEC E/OU ASSENT DE TUBO DE CONCRETO COM JUNTA ARGAMASSADA | D172: 0052 | G172: 92813 | H172: ASSENTAMENTO DE TUBO DE CONCRETO PARA REDES COLETORAS DE ÁGUAS PLUVIAIS, DIÂMETRO DE 800 MM, JUNTA RÍGIDA, INSTALADO EM LOCAL COM BAIXO NÍVEL DE INTERFERÊNCIAS (NÃO INCLUI FORNECIMENTO). AF_12/2015 | I172: M | J172: COEFICIENTE DE REPRESENTATIVIDADE | K172: 105.44 | L172: CAIXA REFERENCIAL
A173: ASSENTAMENTO DE TUBOS E PECAS | B173: ASTU | C173: FORNEC E/OU ASSENT DE TUBO DE CONCRETO COM JUNTA ARGAMASSADA | D173: 0052 | G173: 92814 | H173: ASSENTAMENTO DE TUBO DE CONCRETO PARA REDES COLETORAS DE ÁGUAS PLUVIAIS, DIÂMETRO DE 900 MM, JUNTA RÍGIDA, INSTALADO EM LOCAL COM BAIXO NÍVEL DE INTERFERÊNCIAS (NÃO INCLUI FORNECIMENTO). AF_12/2015 | I173: M | J173: COEFICIENTE DE REPRESENTATIVIDADE | K173: 120.65 | L173: CAIXA REFERENCIAL
A174: ASSENTAMENTO DE TUBOS E PECAS | B174: ASTU | C174: FORNEC E/OU ASSENT DE TUBO DE CONCRETO COM JUNTA ARGAMASSADA | D174: 0052 | G174: 92815 | H174: ASSENTAMENTO DE TUBO DE CONCRETO PARA REDES COLETORAS DE ÁGUAS PLUVIAIS, DIÂMETRO DE 1000 MM, JUNTA RÍGIDA, INSTALADO EM LOCAL COM BAIXO NÍVEL DE INTERFERÊNCIAS (NÃO INCLUI FORNECIMENTO). AF_12/2015 | I174: M | J174: COEFICIENTE DE REPRESENTATIVIDADE | K174: 138.13 | L174: CAIXA REFERENCIAL
A175: ASSENTAMENTO DE TUBOS E PECAS | B175: ASTU | C175: FORNEC E/OU ASSENT DE TUBO DE CONCRETO COM JUNTA ARGAMASSADA | D175: 0052 | G175: 92816 | H175: TUBO DE CONCRETO PARA REDES COLETORAS DE ÁGUAS PLUVIAIS, DIÂMETRO DE 1200 MM, JUNTA RÍGIDA, INSTALADO EM LOCAL COM BAIXO NÍVEL DE INTERFERÊNCIAS - FORNECIMENTO E ASSENTAMENTO. AF_12/2015 | I175: M | J175: COEFICIENTE DE REPRESENTATIVIDADE | K175: 697.68 | L175: CAIXA REFERENCIAL
A176: ASSENTAMENTO DE TUBOS E PECAS | B176: ASTU | C176: FORNEC E/OU ASSENT DE TUBO DE CONCRETO COM JUNTA ARGAMASSADA | D176: 0052 | G176: 92817 | H176: ASSENTAMENTO DE TUBO DE CONCRETO PARA REDES COLETORAS DE ÁGUAS PLUVIAIS, DIÂMETRO DE 1200 MM, JUNTA RÍGIDA, INSTALADO EM LOCAL COM BAIXO NÍVEL DE INTERFERÊNCIAS (NÃO INCLUI FORNECIMENTO). AF_12/2015 | I176: M | J176: COEFICIENTE DE REPRESENTATIVIDADE | K176: 172.85 | L176: CAIXA REFERENCIAL
A177: ASSENTAMENTO DE TUBOS E PECAS | B177: ASTU | C177: FORNEC E/OU ASSENT DE TUBO DE CONCRETO COM JUNTA ARGAMASSADA | D177: 0052 | G177: 92818 | H177: TUBO DE CONCRETO PARA REDES COLETORAS DE ÁGUAS PLUVIAIS, DIÂMETRO DE 1500 MM, JUNTA RÍGIDA, INSTALADO EM LOCAL COM BAIXO NÍVEL DE INTERFERÊNCIAS - FORNECIMENTO E ASSENTAMENTO. AF_12/2015 | I177: M | J177: COEFICIENTE DE REPRESENTATIVIDADE | K177: 993.04 | L177: CAIXA REFERENCIAL
A178: ASSENTAMENTO DE TUBOS E PECAS | B178: ASTU | C178: FORNEC E/OU ASSENT DE TUBO DE CONCRETO COM JUNTA ARGAMASSADA | D178: 0052 | G178: 92819 | H178: ASSENTAMENTO DE TUBO DE CONCRETO PARA REDES COLETORAS DE ÁGUAS PLUVIAIS, DIÂMETRO DE 1500 MM, JUNTA RÍGIDA, INSTALADO EM LOCAL COM BAIXO NÍVEL DE INTERFERÊNCIAS (NÃO INCLUI FORNECIMENTO). AF_12/2015 | I178: M | J178: COEFICIENTE DE REPRESENTATIVIDADE | K178: 232.67 | L178: CAIXA REFERENCIAL
A179: ASSENTAMENTO DE TUBOS E PECAS | B179: ASTU | C179: FORNEC E/OU ASSENT DE TUBO DE CONCRETO COM JUNTA ARGAMASSADA | D179: 0052 | G179: 92820 | H179: ASSENTAMENTO DE TUBO DE CONCRETO PARA REDES COLETORAS DE ÁGUAS PLUVIAIS, DIÂMETRO DE 300 MM, JUNTA RÍGIDA, INSTALADO EM LOCAL COM ALTO NÍVEL DE INTERFERÊNCIAS (NÃO INCLUI FORNECIMENTO). AF_12/2015 | I179: M | J179: COEFICIENTE DE REPRESENTATIVIDADE | K179: 50.36 | L179: CAIXA REFERENCIAL
A180: ASSENTAMENTO DE TUBOS E PECAS | B180: ASTU | C180: FORNEC E/OU ASSENT DE TUBO DE CONCRETO COM JUNTA ARGAMASSADA | D180: 0052 | G180: 92821 | H180: ASSENTAMENTO DE TUBO DE CONCRETO PARA REDES COLETORAS DE ÁGUAS PLUVIAIS, DIÂMETRO DE 400 MM, JUNTA RÍGIDA, INSTALADO EM LOCAL COM ALTO NÍVEL DE INTERFERÊNCIAS (NÃO INCLUI FORNECIMENTO). AF_12/2015 | I180: M | J180: COEFICIENTE DE REPRESENTATIVIDADE | K180: 64.58 | L180: CAIXA REFERENCIAL
A181: ASSENTAMENTO DE TUBOS E PECAS | B181: ASTU | C181: FORNEC E/OU ASSENT DE TUBO DE CONCRETO COM JUNTA ARGAMASSADA | D181: 0052 | G181: 92822 | H181: ASSENTAMENTO DE TUBO DE CONCRETO PARA REDES COLETORAS DE ÁGUAS PLUVIAIS, DIÂMETRO DE 500 MM, JUNTA RÍGIDA, INSTALADO EM LOCAL COM ALTO NÍVEL DE INTERFERÊNCIAS (NÃO INCLUI FORNECIMENTO). AF_12/2015 | I181: M | J181: COEFICIENTE DE REPRESENTATIVIDADE | K181: 78.81 | L181: CAIXA REFERENCIAL
A182: ASSENTAMENTO DE TUBOS E PECAS | B182: ASTU | C182: FORNEC E/OU ASSENT DE TUBO DE CONCRETO COM JUNTA ARGAMASSADA | D182: 0052 | G182: 92824 | H182: ASSENTAMENTO DE TUBO DE CONCRETO PARA REDES COLETORAS DE ÁGUAS PLUVIAIS, DIÂMETRO DE 600 MM, JUNTA RÍGIDA, INSTALADO EM LOCAL COM ALTO NÍVEL DE INTERFERÊNCIAS (NÃO INCLUI FORNECIMENTO). AF_12/2015 | I182: M | J182: COEFICIENTE DE REPRESENTATIVIDADE | K182: 93.61 | L182: CAIXA REFERENCIAL
A183: ASSENTAMENTO DE TUBOS E PECAS | B183: ASTU | C183: FORNEC E/OU ASSENT DE TUBO DE CONCRETO COM JUNTA ARGAMASSADA | D183: 0052 | G183: 92825 | H183: ASSENTAMENTO DE TUBO DE CONCRETO PARA REDES COLETORAS DE ÁGUAS PLUVIAIS, DIÂMETRO DE 700 MM, JUNTA RÍGIDA, INSTALADO EM LOCAL COM ALTO NÍVEL DE INTERFERÊNCIAS (NÃO INCLUI FORNECIMENTO). AF_12/2015 | I183: M | J183: COEFICIENTE DE REPRESENTATIVIDADE | K183: 108.47 | L183: CAIXA REFERENCIAL
A184: ASSENTAMENTO DE TUBOS E PECAS | B184: ASTU | C184: FORNEC E/OU ASSENT DE TUBO DE CONCRETO COM JUNTA ARGAMASSADA | D184: 0052 | G184: 92826 | H184: ASSENTAMENTO DE TUBO DE CONCRETO PARA REDES COLETORAS DE ÁGUAS PLUVIAIS, DIÂMETRO DE 800 MM, JUNTA RÍGIDA, INSTALADO EM LOCAL COM ALTO NÍVEL DE INTERFERÊNCIAS (NÃO INCLUI FORNECIMENTO). AF_12/2015 | I184: M | J184: COEFICIENTE DE REPRESENTATIVIDADE | K184: 125.1 | L184: CAIXA REFERENCIAL
A185: ASSENTAMENTO DE TUBOS E PECAS | B185: ASTU | C185: FORNEC E/OU ASSENT DE TUBO DE CONCRETO COM JUNTA ARGAMASSADA | D185: 0052 | G185: 92827 | H185: ASSENTAMENTO DE TUBO DE CONCRETO PARA REDES COLETORAS DE ÁGUAS PLUVIAIS, DIÂMETRO DE 900 MM, JUNTA RÍGIDA, INSTALADO EM LOCAL COM ALTO NÍVEL DE INTERFERÊNCIAS (NÃO INCLUI FORNECIMENTO). AF_12/2015 | I185: M | J185: COEFICIENTE DE REPRESENTATIVIDADE | K185: 142.46 | L185: CAIXA REFERENCIAL
A186: ASSENTAMENTO DE TUBOS E PECAS | B186: ASTU | C186: FORNEC E/OU ASSENT DE TUBO DE CONCRETO COM JUNTA ARGAMASSADA | D186: 0052 | G186: 92828 | H186: ASSENTAMENTO DE TUBO DE CONCRETO PARA REDES COLETORAS DE ÁGUAS PLUVIAIS, DIÂMETRO DE 1000 MM, JUNTA RÍGIDA, INSTALADO EM LOCAL COM ALTO NÍVEL DE INTERFERÊNCIAS (NÃO INCLUI FORNECIMENTO). AF_12/2015 | I186: M | J186: COEFICIENTE DE REPRESENTATIVIDADE | K186: 162.55 | L186: CAIXA REFERENCIAL
A187: ASSENTAMENTO DE TUBOS E PECAS | B187: ASTU | C187: FORNEC E/OU ASSENT DE TUBO DE CONCRETO COM JUNTA ARGAMASSADA | D187: 0052 | G187: 92829 | H187: TUBO DE CONCRETO PARA REDES COLETORAS DE ÁGUAS PLUVIAIS, DIÂMETRO DE 1200 MM, JUNTA RÍGIDA, INSTALADO EM LOCAL COM ALTO NÍVEL DE INTERFERÊNCIAS - FORNECIMENTO E ASSENTAMENTO. AF_12/2015 | I187: M | J187: COEFICIENTE DE REPRESENTATIVIDADE | K187: 726.48 | L187: CAIXA REFERENCIAL
A188: ASSENTAMENTO DE TUBOS E PECAS | B188: ASTU | C188: FORNEC E/OU ASSENT DE TUBO DE CONCRETO COM JUNTA ARGAMASSADA | D188: 0052 | G188: 92830 | H188: ASSENTAMENTO DE TUBO DE CONCRETO PARA REDES COLETORAS DE ÁGUAS PLUVIAIS, DIÂMETRO DE 1200 MM, JUNTA RÍGIDA, INSTALADO EM LOCAL COM ALTO NÍVEL DE INTERFERÊNCIAS (NÃO INCLUI FORNECIMENTO). AF_12/2015 | I188: M | J188: COEFICIENTE DE REPRESENTATIVIDADE | K188: 201.65 | L188: CAIXA REFERENCIAL
A189: ASSENTAMENTO DE TUBOS E PECAS | B189: ASTU | C189: FORNEC E/OU ASSENT DE TUBO DE CONCRETO COM JUNTA ARGAMASSADA | D189: 0052 | G189: 92831 | H189: TUBO DE CONCRETO PARA REDES COLETORAS DE ÁGUAS PLUVIAIS, DIÂMETRO DE 1500 MM, JUNTA RÍGIDA, INSTALADO EM LOCAL COM ALTO NÍVEL DE INTERFERÊNCIAS - FORNECIMENTO E ASSENTAMENTO. AF_12/2015 | I189: M | J189: COEFICIENTE DE REPRESENTATIVIDADE | K189: 1028.42 | L189: CAIXA REFERENCIAL
A190: ASSENTAMENTO DE TUBOS E PECAS | B190: ASTU | C190: FORNEC E/OU ASSENT DE TUBO DE CONCRETO COM JUNTA ARGAMASSADA | D190: 0052 | G190: 92832 | H190: ASSENTAMENTO DE TUBO DE CONCRETO PARA REDES COLETORAS DE ÁGUAS PLUVIAIS, DIÂMETRO DE 1500 MM, JUNTA RÍGIDA, INSTALADO EM LOCAL COM ALTO NÍVEL DE INTERFERÊNCIAS (NÃO INCLUI FORNECIMENTO). AF_12/2015 | I190: M | J190: COEFICIENTE DE REPRESENTATIVIDADE | K190: 268.05 | L190: CAIXA REFERENCIAL
A191: ASSENTAMENTO DE TUBOS E PECAS | B191: ASTU | C191: FORNEC E/OU ASSENT DE TUBO DE CONCRETO COM JUNTA ARGAMASSADA | D191: 0052 | G191: 95565 | H191: TUBO DE CONCRETO PARA REDES COLETORAS DE ÁGUAS PLUVIAIS, DIÂMETRO DE 300MM, JUNTA RÍGIDA, INSTALADO EM LOCAL COM BAIXO NÍVEL DE INTERFERÊNCIAS - FORNECIMENTO E ASSENTAMENTO. AF_12/2015 | I191: M | J191: COEFICIENTE DE REPRESENTATIVIDADE | K191: 124.76 | L191: CAIXA REFERENCIAL
A192: ASSENTAMENTO DE TUBOS E PECAS | B192: ASTU | C192: FORNEC E/OU ASSENT DE TUBO DE CONCRETO COM JUNTA ARGAMASSADA | D192: 0052 | G192: 95566 | H192: TUBO DE CONCRETO PARA REDES COLETORAS DE ÁGUAS PLUVIAIS, DIÂMETRO DE 300MM, JUNTA RÍGIDA, INSTALADO EM LOCAL COM ALTO NÍVEL DE INTERFERÊNCIAS - FORNECIMENTO E ASSENTAMENTO. AF_12/2015 | I192: M | J192: COEFICIENTE DE REPRESENTATIVIDADE | K192: 132.9 | L192: CAIXA REFERENCIAL
A193: ASSENTAMENTO DE TUBOS E PECAS | B193: ASTU | C193: FORNEC E/OU ASSENT DE TUBO DE CONCRETO COM JUNTA ARGAMASSADA | D193: 0052 | G193: 95567 | H193: TUBO DE CONCRETO (SIMPLES) PARA REDES COLETORAS DE ÁGUAS PLUVIAIS, DIÂMETRO DE 300 MM, JUNTA RÍGIDA, INSTALADO EM LOCAL COM BAIXO NÍVEL DE INTERFERÊNCIAS - FORNECIMENTO E ASSENTAMENTO. AF_12/2015 | I193: M | J193: ATRIBUÍDO SÃO PAULO | K193: 106.08 | L193: CAIXA REFERENCIAL
A194: ASSENTAMENTO DE TUBOS E PECAS | B194: ASTU | C194: FORNEC E/OU ASSENT DE TUBO DE CONCRETO COM JUNTA ARGAMASSADA | D194: 0052 | G194: 95568 | H194: TUBO DE CONCRETO (SIMPLES) PARA REDES COLETORAS DE ÁGUAS PLUVIAIS, DIÂMETRO DE 400 MM, JUNTA RÍGIDA, INSTALADO EM LOCAL COM BAIXO NÍVEL DE INTERFERÊNCIAS - FORNECIMENTO E ASSENTAMENTO. AF_12/2015 | I194: M | J194: ATRIBUÍDO SÃO PAULO | K194: 129.61 | L194: CAIXA REFERENCIAL
A195: ASSENTAMENTO DE TUBOS E PECAS | B195: ASTU | C195: FORNEC E/OU ASSENT DE TUBO DE CONCRETO COM JUNTA ARGAMASSADA | D195: 0052 | G195: 95569 | H195: TUBO DE CONCRETO (SIMPLES) PARA REDES COLETORAS DE ÁGUAS PLUVIAIS, DIÂMETRO DE 500 MM, JUNTA RÍGIDA, INSTALADO EM LOCAL COM BAIXO NÍVEL DE INTERFERÊNCIAS - FORNECIMENTO E ASSENTAMENTO. AF_12/2015 | I195: M | J195: ATRIBUÍDO SÃO PAULO | K195: 178.22 | L195: CAIXA REFERENCIAL
A196: ASSENTAMENTO DE TUBOS E PECAS | B196: ASTU | C196: FORNEC E/OU ASSENT DE TUBO DE CONCRETO COM JUNTA ARGAMASSADA | D196: 0052 | G196: 95570 | H196: TUBO DE CONCRETO (SIMPLES) PARA REDES COLETORAS DE ÁGUAS PLUVIAIS, DIÂMETRO DE 300 MM, JUNTA RÍGIDA, INSTALADO EM LOCAL COM ALTO NÍVEL DE INTERFERÊNCIAS - FORNECIMENTO E ASSENTAMENTO. AF_12/2015 | I196: M | J196: ATRIBUÍDO SÃO PAULO | K196: 114.22 | L196: CAIXA REFERENCIAL
A197: ASSENTAMENTO DE TUBOS E PECAS | B197: ASTU | C197: FORNEC E/OU ASSENT DE TUBO DE CONCRETO COM JUNTA ARGAMASSADA | D197: 0052 | G197: 95571 | H197: TUBO DE CONCRETO (SIMPLES) PARA REDES COLETORAS DE ÁGUAS PLUVIAIS, DIÂMETRO DE 400 MM, JUNTA RÍGIDA, INSTALADO EM LOCAL COM ALTO NÍVEL DE INTERFERÊNCIAS - FORNECIMENTO E ASSENTAMENTO. AF_12/2015 | I197: M | J197: ATRIBUÍDO SÃO PAULO | K197: 140.03 | L197: CAIXA REFERENCIAL
A198: ASSENTAMENTO DE TUBOS E PECAS | B198: ASTU | C198: FORNEC E/OU ASSENT DE TUBO DE CONCRETO COM JUNTA ARGAMASSADA | D198: 0052 | G198: 95572 | H198: TUBO DE CONCRETO (SIMPLES) PARA REDES COLETORAS DE ÁGUAS PLUVIAIS, DIÂMETRO DE 500 MM, JUNTA RÍGIDA, INSTALADO EM LOCAL COM ALTO NÍVEL DE INTERFERÊNCIAS - FORNECIMENTO E ASSENTAMENTO. AF_12/2015 | I198: M | J198: ATRIBUÍDO SÃO PAULO | K198: 191.12 | L198: CAIXA REFERENCIAL
A199: ASSENTAMENTO DE TUBOS E PECAS | B199: ASTU | C199: FORNEC E/OU ASSENT DE TUBO PVC DEFOFO COM JUNTA ELASTICA | D199: 0230 | G199: 97127 | H199: ASSENTAMENTO DE TUBO DE PVC DEFOFO OU PRFV OU RPVC PARA REDE DE ÁGUA, DN 150 MM, JUNTA ELÁSTICA INTEGRADA, INSTALADO EM LOCAL COM NÍVEL ALTO DE INTERFERÊNCIAS (NÃO INCLUI FORNECIMENTO). AF_11/2017 | I199: M | J199: COEFICIENTE DE REPRESENTATIVIDADE | K199: 4.82 | L199: CAIXA REFERENCIAL
A200: ASSENTAMENTO DE TUBOS E PECAS | B200: ASTU | C200: FORNEC E/OU ASSENT DE TUBO PVC DEFOFO COM JUNTA ELASTICA | D200: 0230 | G200: 97128 | H200: ASSENTAMENTO DE TUBO DE PVC DEFOFO OU PRFV OU RPVC PARA REDE DE ÁGUA, DN 200 MM, JUNTA ELÁSTICA INTEGRADA, INSTALADO EM LOCAL COM NÍVEL ALTO DE INTERFERÊNCIAS (NÃO INCLUI FORNECIMENTO). AF_11/2017 | I200: M | J200: COEFICIENTE DE REPRESENTATIVIDADE | K200: 10.62 | L200: CAIXA REFERENCIAL
A201: ASSENTAMENTO DE TUBOS E PECAS | B201: ASTU | C201: FORNEC E/OU ASSENT DE TUBO PVC DEFOFO COM JUNTA ELASTICA | D201: 0230 | G201: 97129 | H201: ASSENTAMENTO DE TUBO DE PVC DEFOFO OU PRFV OU RPVC PARA REDE DE ÁGUA, DN 250 MM, JUNTA ELÁSTICA INTEGRADA, INSTALADO EM LOCAL COM NÍVEL ALTO DE INTERFERÊNCIAS (NÃO INCLUI FORNECIMENTO). AF_11/2017 | I201: M | J201: COEFICIENTE DE REPRESENTATIVIDADE | K201: 13.07 | L201: CAIXA REFERENCIAL
A202: ASSENTAMENTO DE TUBOS E PECAS | B202: ASTU | C202: FORNEC E/OU ASSENT DE TUBO PVC DEFOFO COM JUNTA ELASTICA | D202: 0230 | G202: 97130 | H202: ASSENTAMENTO DE TUBO DE PVC DEFOFO OU PRFV OU RPVC PARA REDE DE ÁGUA, DN 300 MM, JUNTA ELÁSTICA INTEGRADA, INSTALADO EM LOCAL COM NÍVEL ALTO DE INTERFERÊNCIAS (NÃO INCLUI FORNECIMENTO). AF_11/2017 | I202: M | J202: COEFICIENTE DE REPRESENTATIVIDADE | K202: 15.51 | L202: CAIXA REFERENCIAL
... 7358 more rows

Sheet Comp SINAPI BA 05-2023 Desoner (hidden)
A1: PCI.817.01 - CUSTO DE COMPOSIÇÕES - SINTÉTICO DATA DE EMISSÃO: 20/06/2023 16:33:11 DATA DE RT: 20/06/2023
A2: ENCARGOS SOCIAIS DESONERADOS: 85,51%(HORA) 47,56%(MÊS)
A3: ABRANGÊNCIA : NACIONAL LOCALIDADE : SALVADOR DATA DE PREÇO : 05/2023 REFERÊNCIA COLETA : MEDIANO
A5: DESCRICAO DA CLASSE | B5: SIGLA DA CLASSE | C5: DESCRICAO DO TIPO 1 | D5: SIGLA DO TIPO 1 | E5: CODIGO DO AGRUPADOR | F5: DESCRICAO DO AGRUPADOR | G5: CODIGO DA COMPOSICAO | H5: DESCRICAO DA COMPOSICAO | I5: UNIDADE | J5: ORIGEM DE PREÇO | K5: CUSTO TOTAL | L5: VINCULO
A7: ASSENTAMENTO DE TUBOS E PECAS | B7: ASTU | C7: FORNEC E/OU ASSENT DE TUBO DE FERRO FUNDIDO JUNTA ELASTICA | D7: 45 | G7: 97141 | H7: ASSENTAMENTO DE TUBO DE FERRO FUNDIDO PARA REDE DE ÁGUA, DN 80 MM, JUNTA ELÁSTICA, INSTALADO EM LOCAL COM NÍVEL ALTO DE INTERFERÊNCIAS (NÃO INCLUI FORNECIMENTO). AF_11/2017 | I7: M | J7: COEFICIENTE DE REPRESENTATIVIDADE | K7: 10.52 | L7: CAIXA REFERENCIAL
A8: ASSENTAMENTO DE TUBOS E PECAS | B8: ASTU | C8: FORNEC E/OU ASSENT DE TUBO DE FERRO FUNDIDO JUNTA ELASTICA | D8: 45 | G8: 97142 | H8: ASSENTAMENTO DE TUBO DE FERRO FUNDIDO PARA REDE DE ÁGUA, DN 100 MM, JUNTA ELÁSTICA, INSTALADO EM LOCAL COM NÍVEL ALTO DE INTERFERÊNCIAS (NÃO INCLUI FORNECIMENTO). AF_11/2017 | I8: M | J8: COEFICIENTE DE REPRESENTATIVIDADE | K8: 11.78 | L8: CAIXA REFERENCIAL
A9: ASSENTAMENTO DE TUBOS E PECAS | B9: ASTU | C9: FORNEC E/OU ASSENT DE TUBO DE FERRO FUNDIDO JUNTA ELASTICA | D9: 45 | G9: 97143 | H9: ASSENTAMENTO DE TUBO DE FERRO FUNDIDO PARA REDE DE ÁGUA, DN 150 MM, JUNTA ELÁSTICA, INSTALADO EM LOCAL COM NÍVEL ALTO DE INTERFERÊNCIAS (NÃO INCLUI FORNECIMENTO). AF_11/2017 | I9: M | J9: COEFICIENTE DE REPRESENTATIVIDADE | K9: 14.89 | L9: CAIXA REFERENCIAL
A10: ASSENTAMENTO DE TUBOS E PECAS | B10: ASTU | C10: FORNEC E/OU ASSENT DE TUBO DE FERRO FUNDIDO JUNTA ELASTICA | D10: 45 | G10: 97144 | H10: ASSENTAMENTO DE TUBO DE FERRO FUNDIDO PARA REDE DE ÁGUA, DN 200 MM, JUNTA ELÁSTICA, INSTALADO EM LOCAL COM NÍVEL ALTO DE INTERFERÊNCIAS (NÃO INCLUI FORNECIMENTO). AF_11/2017 | I10: M | J10: COEFICIENTE DE REPRESENTATIVIDADE | K10: 17.99 | L10: CAIXA REFERENCIAL
A11: ASSENTAMENTO DE TUBOS E PECAS | B11: ASTU | C11: FORNEC E/OU ASSENT DE TUBO DE FERRO FUNDIDO JUNTA ELASTICA | D11: 45 | G11: 97145 | H11: ASSENTAMENTO DE TUBO DE FERRO FUNDIDO PARA REDE DE ÁGUA, DN 250 MM, JUNTA ELÁSTICA, INSTALADO EM LOCAL COM NÍVEL ALTO DE INTERFERÊNCIAS (NÃO INCLUI FORNECIMENTO). AF_11/2017 | I11: M | J11: COEFICIENTE DE REPRESENTATIVIDADE | K11: 21.12 | L11: CAIXA REFERENCIAL
A12: ASSENTAMENTO DE TUBOS E PECAS | B12: ASTU | C12: FORNEC E/OU ASSENT DE TUBO DE FERRO FUNDIDO JUNTA ELASTICA | D12: 45 | G12: 97146 | H12: ASSENTAMENTO DE TUBO DE FERRO FUNDIDO PARA REDE DE ÁGUA, DN 300 MM, JUNTA ELÁSTICA, INSTALADO EM LOCAL COM NÍVEL ALTO DE INTERFERÊNCIAS (NÃO INCLUI FORNECIMENTO). AF_11/2017 | I12: M | J12: COEFICIENTE DE REPRESENTATIVIDADE | K12: 24.26 | L12: CAIXA REFERENCIAL
A13: ASSENTAMENTO DE TUBOS E PECAS | B13: ASTU | C13: FORNEC E/OU ASSENT DE TUBO DE FERRO FUNDIDO JUNTA ELASTICA | D13: 45 | G13: 97147 | H13: ASSENTAMENTO DE TUBO DE FERRO FUNDIDO PARA REDE DE ÁGUA, DN 350 MM, JUNTA ELÁSTICA, INSTALADO EM LOCAL COM NÍVEL ALTO DE INTERFERÊNCIAS (NÃO INCLUI FORNECIMENTO). AF_11/2017 | I13: M | J13: COEFICIENTE DE REPRESENTATIVIDADE | K13: 27.4 | L13: CAIXA REFERENCIAL
A14: ASSENTAMENTO DE TUBOS E PECAS | B14: ASTU | C14: FORNEC E/OU ASSENT DE TUBO DE FERRO FUNDIDO JUNTA ELASTICA | D14: 45 | G14: 97148 | H14: ASSENTAMENTO DE TUBO DE FERRO FUNDIDO PARA REDE DE ÁGUA, DN 400 MM, JUNTA ELÁSTICA, INSTALADO EM LOCAL COM NÍVEL ALTO DE INTERFERÊNCIAS (NÃO INCLUI FORNECIMENTO). AF_11/2017 | I14: M | J14: COEFICIENTE DE REPRESENTATIVIDADE | K14: 30.51 | L14: CAIXA REFERENCIAL
A15: ASSENTAMENTO DE TUBOS E PECAS | B15: ASTU | C15: FORNEC E/OU ASSENT DE TUBO DE FERRO FUNDIDO JUNTA ELASTICA | D15: 45 | G15: 97149 | H15: ASSENTAMENTO DE TUBO DE FERRO FUNDIDO PARA REDE DE ÁGUA, DN 450 MM, JUNTA ELÁSTICA, INSTALADO EM LOCAL COM NÍVEL ALTO DE INTERFERÊNCIAS (NÃO INCLUI FORNECIMENTO). AF_11/2017 | I15: M | J15: COEFICIENTE DE REPRESENTATIVIDADE | K15: 33.67 | L15: CAIXA REFERENCIAL
A16: ASSENTAMENTO DE TUBOS E PECAS | B16: ASTU | C16: FORNEC E/OU ASSENT DE TUBO DE FERRO FUNDIDO JUNTA ELASTICA | D16: 45 | G16: 97150 | H16: ASSENTAMENTO DE TUBO DE FERRO FUNDIDO PARA REDE DE ÁGUA, DN 500 MM, JUNTA ELÁSTICA, INSTALADO EM LOCAL COM NÍVEL ALTO DE INTERFERÊNCIAS (NÃO INCLUI FORNECIMENTO). AF_11/2017 | I16: M | J16: COEFICIENTE DE REPRESENTATIVIDADE | K16: 41.04 | L16: CAIXA REFERENCIAL
A17: ASSENTAMENTO DE TUBOS E PECAS | B17: ASTU | C17: FORNEC E/OU ASSENT DE TUBO DE FERRO FUNDIDO JUNTA ELASTICA | D17: 45 | G17: 97151 | H17: ASSENTAMENTO DE TUBO DE FERRO FUNDIDO PARA REDE DE ÁGUA, DN 600 MM, JUNTA ELÁSTICA, INSTALADO EM LOCAL COM NÍVEL ALTO DE INTERFERÊNCIAS (NÃO INCLUI FORNECIMENTO). AF_11/2017 | I17: M | J17: COEFICIENTE DE REPRESENTATIVIDADE | K17: 47.93 | L17: CAIXA REFERENCIAL
A18: ASSENTAMENTO DE TUBOS E PECAS | B18: ASTU | C18: FORNEC E/OU ASSENT DE TUBO DE FERRO FUNDIDO JUNTA ELASTICA | D18: 45 | G18: 97152 | H18: ASSENTAMENTO DE TUBO DE FERRO FUNDIDO PARA REDE DE ÁGUA, DN 700 MM, JUNTA ELÁSTICA, INSTALADO EM LOCAL COM NÍVEL ALTO DE INTERFERÊNCIAS (NÃO INCLUI FORNECIMENTO). AF_11/2017 | I18: M | J18: COEFICIENTE DE REPRESENTATIVIDADE | K18: 54.61 | L18: CAIXA REFERENCIAL
A19: ASSENTAMENTO DE TUBOS E PECAS | B19: ASTU | C19: FORNEC E/OU ASSENT DE TUBO DE FERRO FUNDIDO JUNTA ELASTICA | D19: 45 | G19: 97153 | H19: ASSENTAMENTO DE TUBO DE FERRO FUNDIDO PARA REDE DE ÁGUA, DN 800 MM, JUNTA ELÁSTICA, INSTALADO EM LOCAL COM NÍVEL ALTO DE INTERFERÊNCIAS (NÃO INCLUI FORNECIMENTO). AF_11/2017 | I19: M | J19: COEFICIENTE DE REPRESENTATIVIDADE | K19: 61.4 | L19: CAIXA REFERENCIAL
A20: ASSENTAMENTO DE TUBOS E PECAS | B20: ASTU | C20: FORNEC E/OU ASSENT DE TUBO DE FERRO FUNDIDO JUNTA ELASTICA | D20: 45 | G20: 97154 | H20: ASSENTAMENTO DE TUBO DE FERRO FUNDIDO PARA REDE DE ÁGUA, DN 900 MM, JUNTA ELÁSTICA, INSTALADO EM LOCAL COM NÍVEL ALTO DE INTERFERÊNCIAS (NÃO INCLUI FORNECIMENTO). AF_11/2017 | I20: M | J20: COEFICIENTE DE REPRESENTATIVIDADE | K20: 68.25 | L20: CAIXA REFERENCIAL
A21: ASSENTAMENTO DE TUBOS E PECAS | B21: ASTU | C21: FORNEC E/OU ASSENT DE TUBO DE FERRO FUNDIDO JUNTA ELASTICA | D21: 45 | G21: 97155 | H21: ASSENTAMENTO DE TUBO DE FERRO FUNDIDO PARA REDE DE ÁGUA, DN 1000 MM, JUNTA ELÁSTICA, INSTALADO EM LOCAL COM NÍVEL ALTO DE INTERFERÊNCIAS (NÃO INCLUI FORNECIMENTO). AF_11/2017 | I21: M | J21: COEFICIENTE DE REPRESENTATIVIDADE | K21: 75.09 | L21: CAIXA REFERENCIAL
A22: ASSENTAMENTO DE TUBOS E PECAS | B22: ASTU | C22: FORNEC E/OU ASSENT DE TUBO DE FERRO FUNDIDO JUNTA ELASTICA | D22: 45 | G22: 97156 | H22: ASSENTAMENTO DE TUBO DE FERRO FUNDIDO PARA REDE DE ÁGUA, DN 1200 MM, JUNTA ELÁSTICA, INSTALADO EM LOCAL COM NÍVEL ALTO DE INTERFERÊNCIAS (NÃO INCLUI FORNECIMENTO). AF_11/2017 | I22: M | J22: COEFICIENTE DE REPRESENTATIVIDADE | K22: 89.2 | L22: CAIXA REFERENCIAL
A23: ASSENTAMENTO DE TUBOS E PECAS | B23: ASTU | C23: FORNEC E/OU ASSENT DE TUBO DE FERRO FUNDIDO JUNTA ELASTICA | D23: 45 | G23: 97157 | H23: ASSENTAMENTO DE TUBO DE FERRO FUNDIDO PARA REDE DE ÁGUA, DN 80 MM, JUNTA ELÁSTICA, INSTALADO EM LOCAL COM NÍVEL BAIXO DE INTERFERÊNCIAS (NÃO INCLUI FORNECIMENTO). AF_11/2017 | I23: M | J23: COEFICIENTE DE REPRESENTATIVIDADE | K23: 6.3 | L23: CAIXA REFERENCIAL
A24: ASSENTAMENTO DE TUBOS E PECAS | B24: ASTU | C24: FORNEC E/OU ASSENT DE TUBO DE FERRO FUNDIDO JUNTA ELASTICA | D24: 45 | G24: 97158 | H24: ASSENTAMENTO DE TUBO DE FERRO FUNDIDO PARA REDE DE ÁGUA, DN 100 MM, JUNTA ELÁSTICA, INSTALADO EM LOCAL COM NÍVEL BAIXO DE INTERFERÊNCIAS (NÃO INCLUI FORNECIMENTO). AF_11/2017 | I24: M | J24: COEFICIENTE DE REPRESENTATIVIDADE | K24: 7.08 | L24: CAIXA REFERENCIAL
A25: ASSENTAMENTO DE TUBOS E PECAS | B25: ASTU | C25: FORNEC E/OU ASSENT DE TUBO DE FERRO FUNDIDO JUNTA ELASTICA | D25: 45 | G25: 97159 | H25: ASSENTAMENTO DE TUBO DE FERRO FUNDIDO PARA REDE DE ÁGUA, DN 150 MM, JUNTA ELÁSTICA, INSTALADO EM LOCAL COM NÍVEL BAIXO DE INTERFERÊNCIAS (NÃO INCLUI FORNECIMENTO). AF_11/2017 | I25: M | J25: COEFICIENTE DE REPRESENTATIVIDADE | K25: 8.97 | L25: CAIXA REFERENCIAL
A26: ASSENTAMENTO DE TUBOS E PECAS | B26: ASTU | C26: FORNEC E/OU ASSENT DE TUBO DE FERRO FUNDIDO JUNTA ELASTICA | D26: 45 | G26: 97160 | H26: ASSENTAMENTO DE TUBO DE FERRO FUNDIDO PARA REDE DE ÁGUA, DN 200 MM, JUNTA ELÁSTICA, INSTALADO EM LOCAL COM NÍVEL BAIXO DE INTERFERÊNCIAS (NÃO INCLUI FORNECIMENTO). AF_11/2017 | I26: M | J26: COEFICIENTE DE REPRESENTATIVIDADE | K26: 10.82 | L26: CAIXA REFERENCIAL
A27: ASSENTAMENTO DE TUBOS E PECAS | B27: ASTU | C27: FORNEC E/OU ASSENT DE TUBO DE FERRO FUNDIDO JUNTA ELASTICA | D27: 45 | G27: 97161 | H27: ASSENTAMENTO DE TUBO DE FERRO FUNDIDO PARA REDE DE ÁGUA, DN 250 MM, JUNTA ELÁSTICA, INSTALADO EM LOCAL COM NÍVEL BAIXO DE INTERFERÊNCIAS (NÃO INCLUI FORNECIMENTO). AF_11/2017 | I27: M | J27: COEFICIENTE DE REPRESENTATIVIDADE | K27: 12.75 | L27: CAIXA REFERENCIAL
A28: ASSENTAMENTO DE TUBOS E PECAS | B28: ASTU | C28: FORNEC E/OU ASSENT DE TUBO DE FERRO FUNDIDO JUNTA ELASTICA | D28: 45 | G28: 97162 | H28: ASSENTAMENTO DE TUBO DE FERRO FUNDIDO PARA REDE DE ÁGUA, DN 300 MM, JUNTA ELÁSTICA, INSTALADO EM LOCAL COM NÍVEL BAIXO DE INTERFERÊNCIAS (NÃO INCLUI FORNECIMENTO). AF_11/2017 | I28: M | J28: COEFICIENTE DE REPRESENTATIVIDADE | K28: 14.65 | L28: CAIXA REFERENCIAL
A29: ASSENTAMENTO DE TUBOS E PECAS | B29: ASTU | C29: FORNEC E/OU ASSENT DE TUBO DE FERRO FUNDIDO JUNTA ELASTICA | D29: 45 | G29: 97163 | H29: ASSENTAMENTO DE TUBO DE FERRO FUNDIDO PARA REDE DE ÁGUA, DN 350 MM, JUNTA ELÁSTICA, INSTALADO EM LOCAL COM NÍVEL BAIXO DE INTERFERÊNCIAS (NÃO INCLUI FORNECIMENTO). AF_11/2017 | I29: M | J29: COEFICIENTE DE REPRESENTATIVIDADE | K29: 16.56 | L29: CAIXA REFERENCIAL
A30: ASSENTAMENTO DE TUBOS E PECAS | B30: ASTU | C30: FORNEC E/OU ASSENT DE TUBO DE FERRO FUNDIDO JUNTA ELASTICA | D30: 45 | G30: 97164 | H30: ASSENTAMENTO DE TUBO DE FERRO FUNDIDO PARA REDE DE ÁGUA, DN 400 MM, JUNTA ELÁSTICA, INSTALADO EM LOCAL COM NÍVEL BAIXO DE INTERFERÊNCIAS (NÃO INCLUI FORNECIMENTO). AF_11/2017 | I30: M | J30: COEFICIENTE DE REPRESENTATIVIDADE | K30: 18.45 | L30: CAIXA REFERENCIAL
A31: ASSENTAMENTO DE TUBOS E PECAS | B31: ASTU | C31: FORNEC E/OU ASSENT DE TUBO DE FERRO FUNDIDO JUNTA ELASTICA | D31: 45 | G31: 97165 | H31: ASSENTAMENTO DE TUBO DE FERRO FUNDIDO PARA REDE DE ÁGUA, DN 450 MM, JUNTA ELÁSTICA, INSTALADO EM LOCAL COM NÍVEL BAIXO DE INTERFERÊNCIAS (NÃO INCLUI FORNECIMENTO). AF_11/2017 | I31: M | J31: COEFICIENTE DE REPRESENTATIVIDADE | K31: 20.39 | L31: CAIXA REFERENCIAL
A32: ASSENTAMENTO DE TUBOS E PECAS | B32: ASTU | C32: FORNEC E/OU ASSENT DE TUBO DE FERRO FUNDIDO JUNTA ELASTICA | D32: 45 | G32: 97166 | H32: ASSENTAMENTO DE TUBO DE FERRO FUNDIDO PARA REDE DE ÁGUA, DN 500 MM, JUNTA ELÁSTICA, INSTALADO EM LOCAL COM NÍVEL BAIXO DE INTERFERÊNCIAS (NÃO INCLUI FORNECIMENTO). AF_11/2017 | I32: M | J32: COEFICIENTE DE REPRESENTATIVIDADE | K32: 24.88 | L32: CAIXA REFERENCIAL
A33: ASSENTAMENTO DE TUBOS E PECAS | B33: ASTU | C33: FORNEC E/OU ASSENT DE TUBO DE FERRO FUNDIDO JUNTA ELASTICA | D33: 45 | G33: 97167 | H33: ASSENTAMENTO DE TUBO DE FERRO FUNDIDO PARA REDE DE ÁGUA, DN 600 MM, JUNTA ELÁSTICA, INSTALADO EM LOCAL COM NÍVEL BAIXO DE INTERFERÊNCIAS (NÃO INCLUI FORNECIMENTO). AF_11/2017 | I33: M | J33: COEFICIENTE DE REPRESENTATIVIDADE | K33: 29.08 | L33: CAIXA REFERENCIAL
A34: ASSENTAMENTO DE TUBOS E PECAS | B34: ASTU | C34: FORNEC E/OU ASSENT DE TUBO DE FERRO FUNDIDO JUNTA ELASTICA | D34: 45 | G34: 97168 | H34: ASSENTAMENTO DE TUBO DE FERRO FUNDIDO PARA REDE DE ÁGUA, DN 700 MM, JUNTA ELÁSTICA, INSTALADO EM LOCAL COM NÍVEL BAIXO DE INTERFERÊNCIAS (NÃO INCLUI FORNECIMENTO). AF_11/2017 | I34: M | J34: COEFICIENTE DE REPRESENTATIVIDADE | K34: 33.06 | L34: CAIXA REFERENCIAL
A35: ASSENTAMENTO DE TUBOS E PECAS | B35: ASTU | C35: FORNEC E/OU ASSENT DE TUBO DE FERRO FUNDIDO JUNTA ELASTICA | D35: 45 | G35: 97169 | H35: ASSENTAMENTO DE TUBO DE FERRO FUNDIDO PARA REDE DE ÁGUA, DN 800 MM, JUNTA ELÁSTICA, INSTALADO EM LOCAL COM NÍVEL BAIXO DE INTERFERÊNCIAS (NÃO INCLUI FORNECIMENTO). AF_11/2017 | I35: M | J35: COEFICIENTE DE REPRESENTATIVIDADE | K35: 37.17 | L35: CAIXA REFERENCIAL
A36: ASSENTAMENTO DE TUBOS E PECAS | B36: ASTU | C36: FORNEC E/OU ASSENT DE TUBO DE FERRO FUNDIDO JUNTA ELASTICA | D36: 45 | G36: 97170 | H36: ASSENTAMENTO DE TUBO DE FERRO FUNDIDO PARA REDE DE ÁGUA, DN 900 MM, JUNTA ELÁSTICA, INSTALADO EM LOCAL COM NÍVEL BAIXO DE INTERFERÊNCIAS (NÃO INCLUI FORNECIMENTO). AF_11/2017 | I36: M | J36: COEFICIENTE DE REPRESENTATIVIDADE | K36: 41.31 | L36: CAIXA REFERENCIAL
A37: ASSENTAMENTO DE TUBOS E PECAS | B37: ASTU | C37: FORNEC E/OU ASSENT DE TUBO DE FERRO FUNDIDO JUNTA ELASTICA | D37: 45 | G37: 97171 | H37: ASSENTAMENTO DE TUBO DE FERRO FUNDIDO PARA REDE DE ÁGUA, DN 1000 MM, JUNTA ELÁSTICA, INSTALADO EM LOCAL COM NÍVEL BAIXO DE INTERFERÊNCIAS (NÃO INCLUI FORNECIMENTO). AF_11/2017 | I37: M | J37: COEFICIENTE DE REPRESENTATIVIDADE | K37: 45.49 | L37: CAIXA REFERENCIAL
A38: ASSENTAMENTO DE TUBOS E PECAS | B38: ASTU | C38: FORNEC E/OU ASSENT DE TUBO DE FERRO FUNDIDO JUNTA ELASTICA | D38: 45 | G38: 97172 | H38: ASSENTAMENTO DE TUBO DE FERRO FUNDIDO PARA REDE DE ÁGUA, DN 1200 MM, JUNTA ELÁSTICA, INSTALADO EM LOCAL COM NÍVEL BAIXO DE INTERFERÊNCIAS (NÃO INCLUI FORNECIMENTO). AF_11/2017 | I38: M | J38: COEFICIENTE DE REPRESENTATIVIDADE | K38: 54.23 | L38: CAIXA REFERENCIAL
A39: ASSENTAMENTO DE TUBOS E PECAS | B39: ASTU | C39: FORNEC E/OU ASSENT DE TUBO DE ACO COM JUNTA SOLDADA | D39: 46 | G39: 97173 | H39: ASSENTAMENTO DE TUBO DE AÇO CARBONO PARA REDE DE ÁGUA, DN 600 MM (24), JUNTA SOLDADA, INSTALADO EM LOCAL COM NÍVEL ALTO DE INTERFERÊNCIAS (NÃO INCLUI FORNECIMENTO). AF_11/2017 | I39: M | J39: COEFICIENTE DE REPRESENTATIVIDADE | K39: 43.01 | L39: CAIXA REFERENCIAL
A40: ASSENTAMENTO DE TUBOS E PECAS | B40: ASTU | C40: FORNEC E/OU ASSENT DE TUBO DE ACO COM JUNTA SOLDADA | D40: 46 | G40: 97174 | H40: ASSENTAMENTO DE TUBO DE AÇO CARBONO PARA REDE DE ÁGUA, DN 700 MM (28), JUNTA SOLDADA, INSTALADO EM LOCAL COM NÍVEL ALTO DE INTERFERÊNCIAS (NÃO INCLUI FORNECIMENTO). AF_11/2017 | I40: M | J40: COEFICIENTE DE REPRESENTATIVIDADE | K40: 49.69 | L40: CAIXA REFERENCIAL
A41: ASSENTAMENTO DE TUBOS E PECAS | B41: ASTU | C41: FORNEC E/OU ASSENT DE TUBO DE ACO COM JUNTA SOLDADA | D41: 46 | G41: 97175 | H41: ASSENTAMENTO DE TUBO DE AÇO CARBONO PARA REDE DE ÁGUA, DN 800 MM (32), JUNTA SOLDADA, INSTALADO EM LOCAL COM NÍVEL ALTO DE INTERFERÊNCIAS (NÃO INCLUI FORNECIMENTO). AF_11/2017 | I41: M | J41: COEFICIENTE DE REPRESENTATIVIDADE | K41: 56.38 | L41: CAIXA REFERENCIAL
A42: ASSENTAMENTO DE TUBOS E PECAS | B42: ASTU | C42: FORNEC E/OU ASSENT DE TUBO DE ACO COM JUNTA SOLDADA | D42: 46 | G42: 97176 | H42: ASSENTAMENTO DE TUBO DE AÇO CARBONO PARA REDE DE ÁGUA, DN 900 MM (36), JUNTA SOLDADA, INSTALADO EM LOCAL COM NÍVEL ALTO DE INTERFERÊNCIAS (NÃO INCLUI FORNECIMENTO). AF_11/2017 | I42: M | J42: COEFICIENTE DE REPRESENTATIVIDADE | K42: 63.06 | L42: CAIXA REFERENCIAL
A43: ASSENTAMENTO DE TUBOS E PECAS | B43: ASTU | C43: FORNEC E/OU ASSENT DE TUBO DE ACO COM JUNTA SOLDADA | D43: 46 | G43: 97177 | H43: ASSENTAMENTO DE TUBO DE AÇO CARBONO PARA REDE DE ÁGUA, DN 1000 MM (40) OU DN 1100 MM (44), JUNTA SOLDADA, INSTALADO EM LOCAL COM NÍVEL ALTO DE INTERFERÊNCIAS (NÃO INCLUI FORNECIMENTO). AF_11/2017 | I43: M | J43: COEFICIENTE DE REPRESENTATIVIDADE | K43: 76.43 | L43: CAIXA REFERENCIAL
A44: ASSENTAMENTO DE TUBOS E PECAS | B44: ASTU | C44: FORNEC E/OU ASSENT DE TUBO DE ACO COM JUNTA SOLDADA | D44: 46 | G44: 97178 | H44: ASSENTAMENTO DE TUBO DE AÇO CARBONO PARA REDE DE ÁGUA, DN 1200 MM (48) OU DN 1300 MM (52), JUNTA SOLDADA, INSTALADO EM LOCAL COM NÍVEL ALTO DE INTERFERÊNCIAS (NÃO INCLUI FORNECIMENTO). AF_11/2017 | I44: M | J44: COEFICIENTE DE REPRESENTATIVIDADE | K44: 89.81 | L44: CAIXA REFERENCIAL
A45: ASSENTAMENTO DE TUBOS E PECAS | B45: ASTU | C45: FORNEC E/OU ASSENT DE TUBO DE ACO COM JUNTA SOLDADA | D45: 46 | G45: 97179 | H45: ASSENTAMENTO DE TUBO DE AÇO CARBONO PARA REDE DE ÁGUA, DN 1400 MM (56'') OU DN 1500 MM (60), JUNTA SOLDADA, INSTALADO EM LOCAL COM NÍVEL ALTO DE INTERFERÊNCIAS (NÃO INCLUI FORNECIMENTO). AF_11/2017 | I45: M | J45: COEFICIENTE DE REPRESENTATIVIDADE | K45: 103.18 | L45: CAIXA REFERENCIAL
A46: ASSENTAMENTO DE TUBOS E PECAS | B46: ASTU | C46: FORNEC E/OU ASSENT DE TUBO DE ACO COM JUNTA SOLDADA | D46: 46 | G46: 97180 | H46: ASSENTAMENTO DE TUBO DE AÇO CARBONO PARA REDE DE ÁGUA, DN 1600 MM (64) OU DN 1700 MM (68), JUNTA SOLDADA, INSTALADO EM LOCAL COM NÍVEL ALTO DE INTERFERÊNCIAS (NÃO INCLUI FORNECIMENTO). AF_11/2017 | I46: M | J46: COEFICIENTE DE REPRESENTATIVIDADE | K46: 116.55 | L46: CAIXA REFERENCIAL
A47: ASSENTAMENTO DE TUBOS E PECAS | B47: ASTU | C47: FORNEC E/OU ASSENT DE TUBO DE ACO COM JUNTA SOLDADA | D47: 46 | G47: 97181 | H47: ASSENTAMENTO DE TUBO DE AÇO CARBONO PARA REDE DE ÁGUA, DN 1800 MM (72) OU DN 1900 MM (76), JUNTA SOLDADA, INSTALADO EM LOCAL COM NÍVEL ALTO DE INTERFERÊNCIAS (NÃO INCLUI FORNECIMENTO). AF_11/2017 | I47: M | J47: COEFICIENTE DE REPRESENTATIVIDADE | K47: 134.18 | L47: CAIXA REFERENCIAL
A48: ASSENTAMENTO DE TUBOS E PECAS | B48: ASTU | C48: FORNEC E/OU ASSENT DE TUBO DE ACO COM JUNTA SOLDADA | D48: 46 | G48: 97182 | H48: ASSENTAMENTO DE TUBO DE AÇO CARBONO PARA REDE DE ÁGUA, DN 2000 MM (80) OU DN 2100 MM (84), JUNTA SOLDADA, INSTALADO EM LOCAL COM NÍVEL ALTO DE INTERFERÊNCIAS (NÃO INCLUI FORNECIMENTO). AF_11/2017 | I48: M | J48: COEFICIENTE DE REPRESENTATIVIDADE | K48: 147.99 | L48: CAIXA REFERENCIAL
A49: ASSENTAMENTO DE TUBOS E PECAS | B49: ASTU | C49: FORNEC E/OU ASSENT DE TUBO DE ACO COM JUNTA SOLDADA | D49: 46 | G49: 97183 | H49: ASSENTAMENTO DE TUBO DE AÇO CARBONO PARA REDE DE ÁGUA, DN 600 MM (24), JUNTA SOLDADA, INSTALADO EM LOCAL COM NÍVEL BAIXO DE INTERFERÊNCIAS (NÃO INCLUI FORNECIMENTO). AF_11/2017 | I49: M | J49: COEFICIENTE DE REPRESENTATIVIDADE | K49: 34.76 | L49: CAIXA REFERENCIAL
A50: ASSENTAMENTO DE TUBOS E PECAS | B50: ASTU | C50: FORNEC E/OU ASSENT DE TUBO DE ACO COM JUNTA SOLDADA | D50: 46 | G50: 97184 | H50: ASSENTAMENTO DE TUBO DE AÇO CARBONO PARA REDE DE ÁGUA, DN 700 MM (28), JUNTA SOLDADA, INSTALADO EM LOCAL COM NÍVEL BAIXO DE INTERFERÊNCIAS (NÃO INCLUI FORNECIMENTO). AF_11/2017 | I50: M | J50: COEFICIENTE DE REPRESENTATIVIDADE | K50: 40.27 | L50: CAIXA REFERENCIAL
A51: ASSENTAMENTO DE TUBOS E PECAS | B51: ASTU | C51: FORNEC E/OU ASSENT DE TUBO DE ACO COM JUNTA SOLDADA | D51: 46 | G51: 97185 | H51: ASSENTAMENTO DE TUBO DE AÇO CARBONO PARA REDE DE ÁGUA, DN 800 MM (32), JUNTA SOLDADA, INSTALADO EM LOCAL COM NÍVEL BAIXO DE INTERFERÊNCIAS (NÃO INCLUI FORNECIMENTO). AF_11/2017 | I51: M | J51: COEFICIENTE DE REPRESENTATIVIDADE | K51: 45.76 | L51: CAIXA REFERENCIAL
A52: ASSENTAMENTO DE TUBOS E PECAS | B52: ASTU | C52: FORNEC E/OU ASSENT DE TUBO DE ACO COM JUNTA SOLDADA | D52: 46 | G52: 97186 | H52: ASSENTAMENTO DE TUBO DE AÇO CARBONO PARA REDE DE ÁGUA, DN 900 MM (36), JUNTA SOLDADA, INSTALADO EM LOCAL COM NÍVEL BAIXO DE INTERFERÊNCIAS (NÃO INCLUI FORNECIMENTO). AF_11/2017 | I52: M | J52: COEFICIENTE DE REPRESENTATIVIDADE | K52: 51.27 | L52: CAIXA REFERENCIAL
A53: ASSENTAMENTO DE TUBOS E PECAS | B53: ASTU | C53: FORNEC E/OU ASSENT DE TUBO DE ACO COM JUNTA SOLDADA | D53: 46 | G53: 97187 | H53: ASSENTAMENTO DE TUBO DE AÇO CARBONO PARA REDE DE ÁGUA, DN 1000 MM (40 ) OU DN 1100 MM (44 ), JUNTA SOLDADA, INSTALADO EM LOCAL COM NÍVEL BAIXO DE INTERFERÊNCIAS (NÃO INCLUI FORNECIMENTO). AF_11/2017 | I53: M | J53: COEFICIENTE DE REPRESENTATIVIDADE | K53: 62.27 | L53: CAIXA REFERENCIAL
A54: ASSENTAMENTO DE TUBOS E PECAS | B54: ASTU | C54: FORNEC E/OU ASSENT DE TUBO DE ACO COM JUNTA SOLDADA | D54: 46 | G54: 97188 | H54: ASSENTAMENTO DE TUBO DE AÇO CARBONO PARA REDE DE ÁGUA, DN 1200 MM (48) OU DN 1300 MM (52), JUNTA SOLDADA, INSTALADO EM LOCAL COM NÍVEL BAIXO DE INTERFERÊNCIAS (NÃO INCLUI FORNECIMENTO). AF_11/2017 | I54: M | J54: COEFICIENTE DE REPRESENTATIVIDADE | K54: 73.28 | L54: CAIXA REFERENCIAL
A55: ASSENTAMENTO DE TUBOS E PECAS | B55: ASTU | C55: FORNEC E/OU ASSENT DE TUBO DE ACO COM JUNTA SOLDADA | D55: 46 | G55: 97189 | H55: ASSENTAMENTO DE TUBO DE AÇO CARBONO PARA REDE DE ÁGUA, DN 1400 MM (56'') OU DN 1500 MM (60), JUNTA SOLDADA, INSTALADO EM LOCAL COM NÍVEL BAIXO DE INTERFERÊNCIAS (NÃO INCLUI FORNECIMENTO). AF_11/2017 | I55: M | J55: COEFICIENTE DE REPRESENTATIVIDADE | K55: 84.29 | L55: CAIXA REFERENCIAL
A56: ASSENTAMENTO DE TUBOS E PECAS | B56: ASTU | C56: FORNEC E/OU ASSENT DE TUBO DE ACO COM JUNTA SOLDADA | D56: 46 | G56: 97190 | H56: ASSENTAMENTO DE TUBO DE AÇO CARBONO PARA REDE DE ÁGUA, DN 1600 MM (64) OU DN 1700 MM (68), JUNTA SOLDADA, INSTALADO EM LOCAL COM NÍVEL BAIXO DE INTERFERÊNCIAS (NÃO INCLUI FORNECIMENTO). AF_11/2017 | I56: M | J56: COEFICIENTE DE REPRESENTATIVIDADE | K56: 95.29 | L56: CAIXA REFERENCIAL
A57: ASSENTAMENTO DE TUBOS E PECAS | B57: ASTU | C57: FORNEC E/OU ASSENT DE TUBO DE ACO COM JUNTA SOLDADA | D57: 46 | G57: 97191 | H57: ASSENTAMENTO DE TUBO DE AÇO CARBONO PARA REDE DE ÁGUA, DN 1800 MM (72) OU DN 1900 MM (76), JUNTA SOLDADA, INSTALADO EM LOCAL COM NÍVEL BAIXO DE INTERFERÊNCIAS (NÃO INCLUI FORNECIMENTO). AF_11/2017 | I57: M | J57: COEFICIENTE DE REPRESENTATIVIDADE | K57: 109.36 | L57: CAIXA REFERENCIAL
A58: ASSENTAMENTO DE TUBOS E PECAS | B58: ASTU | C58: FORNEC E/OU ASSENT DE TUBO DE ACO COM JUNTA SOLDADA | D58: 46 | G58: 97192 | H58: ASSENTAMENTO DE TUBO DE AÇO CARBONO PARA REDE DE ÁGUA, DN 2000 MM (80) OU DN 2100 MM (84), JUNTA SOLDADA, INSTALADO EM LOCAL COM NÍVEL BAIXO DE INTERFERÊNCIAS (NÃO INCLUI FORNECIMENTO). AF_11/2017 | I58: M | J58: COEFICIENTE DE REPRESENTATIVIDADE | K58: 120.67 | L58: CAIXA REFERENCIAL
A59: ASSENTAMENTO DE TUBOS E PECAS | B59: ASTU | C59: FORNEC E/OU ASSENT DE TUBO DE PVC COM JUNTA ELASTICA | D59: 48 | G59: 90694 | H59: TUBO DE PVC PARA REDE COLETORA DE ESGOTO DE PAREDE MACIÇA, DN 100 MM, JUNTA ELÁSTICA - FORNECIMENTO E ASSENTAMENTO. AF_01/2021 | I59: M | J59: COEFICIENTE DE REPRESENTATIVIDADE | K59: 46.98 | L59: CAIXA REFERENCIAL
A60: ASSENTAMENTO DE TUBOS E PECAS | B60: ASTU | C60: FORNEC E/OU ASSENT DE TUBO DE PVC COM JUNTA ELASTICA | D60: 48 | G60: 90695 | H60: TUBO DE PVC PARA REDE COLETORA DE ESGOTO DE PAREDE MACIÇA, DN 150 MM, JUNTA ELÁSTICA - FORNECIMENTO E ASSENTAMENTO. AF_01/2021 | I60: M | J60: COEFICIENTE DE REPRESENTATIVIDADE | K60: 88.28 | L60: CAIXA REFERENCIAL
A61: ASSENTAMENTO DE TUBOS E PECAS | B61: ASTU | C61: FORNEC E/OU ASSENT DE TUBO DE PVC COM JUNTA ELASTICA | D61: 48 | G61: 90696 | H61: TUBO DE PVC PARA REDE COLETORA DE ESGOTO DE PAREDE MACIÇA, DN 200 MM, JUNTA ELÁSTICA - FORNECIMENTO E ASSENTAMENTO. AF_01/2021 | I61: M | J61: COEFICIENTE DE REPRESENTATIVIDADE | K61: 146.61 | L61: CAIXA REFERENCIAL
A62: ASSENTAMENTO DE TUBOS E PECAS | B62: ASTU | C62: FORNEC E/OU ASSENT DE TUBO DE PVC COM JUNTA ELASTICA | D62: 48 | G62: 90697 | H62: TUBO DE PVC PARA REDE COLETORA DE ESGOTO DE PAREDE MACIÇA, DN 250 MM, JUNTA ELÁSTICA - FORNECIMENTO E ASSENTAMENTO. AF_01/2021 | I62: M | J62: COEFICIENTE DE REPRESENTATIVIDADE | K62: 226.65 | L62: CAIXA REFERENCIAL
A63: ASSENTAMENTO DE TUBOS E PECAS | B63: ASTU | C63: FORNEC E/OU ASSENT DE TUBO DE PVC COM JUNTA ELASTICA | D63: 48 | G63: 90698 | H63: TUBO DE PVC PARA REDE COLETORA DE ESGOTO DE PAREDE MACIÇA, DN 300 MM, JUNTA ELÁSTICA, FORNECIMENTO E ASSENTAMENTO. AF_01/2021 | I63: M | J63: COEFICIENTE DE REPRESENTATIVIDADE | K63: 345.53 | L63: CAIXA REFERENCIAL
A64: ASSENTAMENTO DE TUBOS E PECAS | B64: ASTU | C64: FORNEC E/OU ASSENT DE TUBO DE PVC COM JUNTA ELASTICA | D64: 48 | G64: 90699 | H64: TUBO DE PVC PARA REDE COLETORA DE ESGOTO DE PAREDE MACIÇA, DN 350 MM, JUNTA ELÁSTICA - FORNECIMENTO E ASSENTAMENTO. AF_01/2021 | I64: M | J64: COEFICIENTE DE REPRESENTATIVIDADE | K64: 485.59 | L64: CAIXA REFERENCIAL
A65: ASSENTAMENTO DE TUBOS E PECAS | B65: ASTU | C65: FORNEC E/OU ASSENT DE TUBO DE PVC COM JUNTA ELASTICA | D65: 48 | G65: 90700 | H65: TUBO DE PVC PARA REDE COLETORA DE ESGOTO DE PAREDE MACIÇA, DN 400 MM, JUNTA ELÁSTICA FORNECIMENTO E ASSENTAMENTO. AF_01/2021 | I65: M | J65: COEFICIENTE DE REPRESENTATIVIDADE | K65: 565.57 | L65: CAIXA REFERENCIAL
A66: ASSENTAMENTO DE TUBOS E PECAS | B66: ASTU | C66: FORNEC E/OU ASSENT DE TUBO DE PVC COM JUNTA ELASTICA | D66: 48 | G66: 90701 | H66: TUBO DE PVC CORRUGADO DE DUPLA PAREDE PARA REDE COLETORA DE ESGOTO, DN 150 MM, JUNTA ELÁSTICA - FORNECIMENTO E ASSENTAMENTO. AF_01/2021 | I66: M | J66: COEFICIENTE DE REPRESENTATIVIDADE | K66: 70.3 | L66: CAIXA REFERENCIAL
A67: ASSENTAMENTO DE TUBOS E PECAS | B67: ASTU | C67: FORNEC E/OU ASSENT DE TUBO DE PVC COM JUNTA ELASTICA | D67: 48 | G67: 90702 | H67: TUBO DE PVC CORRUGADO DE DUPLA PAREDE PARA REDE COLETORA DE ESGOTO, DN 200 MM, JUNTA ELÁSTICA - FORNECIMENTO E ASSENTAMENTO. AF_01/2021 | I67: M | J67: COEFICIENTE DE REPRESENTATIVIDADE | K67: 115.35 | L67: CAIXA REFERENCIAL
A68: ASSENTAMENTO DE TUBOS E PECAS | B68: ASTU | C68: FORNEC E/OU ASSENT DE TUBO DE PVC COM JUNTA ELASTICA | D68: 48 | G68: 90703 | H68: TUBO DE PVC CORRUGADO DE DUPLA PAREDE PARA REDE COLETORA DE ESGOTO, DN 250 MM, JUNTA ELÁSTICA - FORNECIMENTO E ASSENTAMENTO. AF_01/2021 | I68: M | J68: COEFICIENTE DE REPRESENTATIVIDADE | K68: 180.34 | L68: CAIXA REFERENCIAL
A69: ASSENTAMENTO DE TUBOS E PECAS | B69: ASTU | C69: FORNEC E/OU ASSENT DE TUBO DE PVC COM JUNTA ELASTICA | D69: 48 | G69: 90704 | H69: TUBO DE PVC CORRUGADO DE DUPLA PAREDE PARA REDE COLETORA DE ESGOTO, DN 300 MM, JUNTA ELÁSTICA - FORNECIMENTO E ASSENTAMENTO. AF_01/2021 | I69: M | J69: COEFICIENTE DE REPRESENTATIVIDADE | K69: 268.28 | L69: CAIXA REFERENCIAL
A70: ASSENTAMENTO DE TUBOS E PECAS | B70: ASTU | C70: FORNEC E/OU ASSENT DE TUBO DE PVC COM JUNTA ELASTICA | D70: 48 | G70: 90705 | H70: TUBO DE PVC CORRUGADO DE DUPLA PAREDE PARA REDE COLETORA DE ESGOTO, DN 350 MM, JUNTA ELÁSTICA - FORNECIMENTO E ASSENTAMENTO. AF_01/2021 | I70: M | J70: COEFICIENTE DE REPRESENTATIVIDADE | K70: 348.08 | L70: CAIXA REFERENCIAL
A71: ASSENTAMENTO DE TUBOS E PECAS | B71: ASTU | C71: FORNEC E/OU ASSENT DE TUBO DE PVC COM JUNTA ELASTICA | D71: 48 | G71: 90706 | H71: TUBO DE PVC CORRUGADO DE DUPLA PAREDE PARA REDE COLETORA DE ESGOTO, DN 400 MM, JUNTA ELÁSTICA - FORNECIMENTO E ASSENTAMENTO. AF_01/2021 | I71: M | J71: COEFICIENTE DE REPRESENTATIVIDADE | K71: 459.5 | L71: CAIXA REFERENCIAL
A72: ASSENTAMENTO DE TUBOS E PECAS | B72: ASTU | C72: FORNEC E/OU ASSENT DE TUBO DE PVC COM JUNTA ELASTICA | D72: 48 | G72: 90708 | H72: TUBO DE PEAD CORRUGADO DE DUPLA PAREDE PARA REDE COLETORA DE ESGOTO, DN 600 MM, JUNTA ELÁSTICA INTEGRADA - FORNECIMENTO E ASSENTAMENTO. AF_01/2021 | I72: M | J72: COEFICIENTE DE REPRESENTATIVIDADE | K72: 824.6 | L72: CAIXA REFERENCIAL
A73: ASSENTAMENTO DE TUBOS E PECAS | B73: ASTU | C73: FORNEC E/OU ASSENT DE TUBO DE PVC COM JUNTA ELASTICA | D73: 48 | G73: 90724 | H73: JUNTA ARGAMASSADA ENTRE TUBO DN 100 MM E O POÇO DE VISITA/ CAIXA DE CONCRETO OU ALVENARIA EM REDES DE ESGOTO. AF_01/2021 | I73: UN | J73: COEFICIENTE DE REPRESENTATIVIDADE | K73: 33.78 | L73: CAIXA REFERENCIAL
A74: ASSENTAMENTO DE TUBOS E PECAS | B74: ASTU | C74: FORNEC E/OU ASSENT DE TUBO DE PVC COM JUNTA ELASTICA | D74: 48 | G74: 90725 | H74: JUNTA ARGAMASSADA ENTRE TUBO DN 150 MM E O POÇO DE VISITA/ CAIXA DE CONCRETO OU ALVENARIA EM REDES DE ESGOTO. AF_01/2021 | I74: UN | J74: COEFICIENTE DE REPRESENTATIVIDADE | K74: 41.5 | L74: CAIXA REFERENCIAL
A75: ASSENTAMENTO DE TUBOS E PECAS | B75: ASTU | C75: FORNEC E/OU ASSENT DE TUBO DE PVC COM JUNTA ELASTICA | D75: 48 | G75: 90726 | H75: JUNTA ARGAMASSADA ENTRE TUBO DN 200 MM E O POÇO/ CAIXA DE CONCRETO OU ALVENARIA EM REDES DE ESGOTO. AF_01/2021 | I75: UN | J75: COEFICIENTE DE REPRESENTATIVIDADE | K75: 49.29 | L75: CAIXA REFERENCIAL
A76: ASSENTAMENTO DE TUBOS E PECAS | B76: ASTU | C76: FORNEC E/OU ASSENT DE TUBO DE PVC COM JUNTA ELASTICA | D76: 48 | G76: 90727 | H76: JUNTA ARGAMASSADA ENTRE TUBO DN 250 MM E O POÇO DE VISITA/ CAIXA DE CONCRETO OU ALVENARIA EM REDES DE ESGOTO. AF_01/2021 | I76: UN | J76: COEFICIENTE DE REPRESENTATIVIDADE | K76: 57.02 | L76: CAIXA REFERENCIAL
A77: ASSENTAMENTO DE TUBOS E PECAS | B77: ASTU | C77: FORNEC E/OU ASSENT DE TUBO DE PVC COM JUNTA ELASTICA | D77: 48 | G77: 90728 | H77: JUNTA ARGAMASSADA ENTRE TUBO DN 300 MM E O POÇO DE VISITA/ CAIXA DE CONCRETO OU ALVENARIA EM REDES DE ESGOTO. AF_01/2021 | I77: UN | J77: COEFICIENTE DE REPRESENTATIVIDADE | K77: 64.74 | L77: CAIXA REFERENCIAL
A78: ASSENTAMENTO DE TUBOS E PECAS | B78: ASTU | C78: FORNEC E/OU ASSENT DE TUBO DE PVC COM JUNTA ELASTICA | D78: 48 | G78: 90729 | H78: JUNTA ARGAMASSADA ENTRE TUBO DN 350 MM E O POÇO DE VISITA/ CAIXA DE CONCRETO OU ALVENARIA EM REDES DE ESGOTO. AF_01/2021 | I78: UN | J78: COEFICIENTE DE REPRESENTATIVIDADE | K78: 72.46 | L78: CAIXA REFERENCIAL
A79: ASSENTAMENTO DE TUBOS E PECAS | B79: ASTU | C79: FORNEC E/OU ASSENT DE TUBO DE PVC COM JUNTA ELASTICA | D79: 48 | G79: 90730 | H79: JUNTA ARGAMASSADA ENTRE TUBO DN 400 MM E O POÇO DE VISITA/ CAIXA DE CONCRETO OU ALVENARIA EM REDES DE ESGOTO. AF_01/2021 | I79: UN | J79: COEFICIENTE DE REPRESENTATIVIDADE | K79: 80.19 | L79: CAIXA REFERENCIAL
A80: ASSENTAMENTO DE TUBOS E PECAS | B80: ASTU | C80: FORNEC E/OU ASSENT DE TUBO DE PVC COM JUNTA ELASTICA | D80: 48 | G80: 90731 | H80: JUNTA ARGAMASSADA ENTRE TUBO DN 450 MM E O POÇO DE VISITA/ CAIXA DE CONCRETO OU ALVENARIA EM REDES DE ESGOTO. AF_01/2021 | I80: UN | J80: COEFICIENTE DE REPRESENTATIVIDADE | K80: 87.91 | L80: CAIXA REFERENCIAL
A81: ASSENTAMENTO DE TUBOS E PECAS | B81: ASTU | C81: FORNEC E/OU ASSENT DE TUBO DE PVC COM JUNTA ELASTICA | D81: 48 | G81: 90732 | H81: JUNTA ARGAMASSADA ENTRE TUBO DN 600 MM E O POÇO DE VISITA/ CAIXA DE CONCRETO OU ALVENARIA EM REDES DE ESGOTO. AF_01/2021 | I81: UN | J81: COEFICIENTE DE REPRESENTATIVIDADE | K81: 111.07 | L81: CAIXA REFERENCIAL
A82: ASSENTAMENTO DE TUBOS E PECAS | B82: ASTU | C82: FORNEC E/OU ASSENT DE TUBO DE PVC COM JUNTA ELASTICA | D82: 48 | G82: 90733 | H82: ASSENTAMENTO DE TUBO DE PVC PARA REDE COLETORA DE ESGOTO DE PAREDE MACIÇA, DN 100 MM, JUNTA ELÁSTICA (NÃO INCLUI FORNECIMENTO). AF_01/2021 | I82: M | J82: COEFICIENTE DE REPRESENTATIVIDADE | K82: 4.8 | L82: CAIXA REFERENCIAL
A83: ASSENTAMENTO DE TUBOS E PECAS | B83: ASTU | C83: FORNEC E/OU ASSENT DE TUBO DE PVC COM JUNTA ELASTICA | D83: 48 | G83: 90734 | H83: ASSENTAMENTO DE TUBO DE PVC PARA REDE COLETORA DE ESGOTO DE PAREDE MACIÇA, DN 150 MM, JUNTA ELÁSTICA, (NÃO INCLUI FORNECIMENTO). AF_01/2021 | I83: M | J83: COEFICIENTE DE REPRESENTATIVIDADE | K83: 5.7 | L83: CAIXA REFERENCIAL
A84: ASSENTAMENTO DE TUBOS E PECAS | B84: ASTU | C84: FORNEC E/OU ASSENT DE TUBO DE PVC COM JUNTA ELASTICA | D84: 48 | G84: 90735 | H84: ASSENTAMENTO DE TUBO DE PVC PARA REDE COLETORA DE ESGOTO DE PAREDE MACIÇA, DN 200 MM, JUNTA ELÁSTICA (NÃO INCLUI FORNECIMENTO). AF_01/2021 | I84: M | J84: COEFICIENTE DE REPRESENTATIVIDADE | K84: 6.58 | L84: CAIXA REFERENCIAL
A85: ASSENTAMENTO DE TUBOS E PECAS | B85: ASTU | C85: FORNEC E/OU ASSENT DE TUBO DE PVC COM JUNTA ELASTICA | D85: 48 | G85: 90736 | H85: ASSENTAMENTO DE TUBO DE PVC PARA REDE COLETORA DE ESGOTO DE PAREDE MACIÇA, DN 250 MM, JUNTA ELÁSTICA (NÃO INCLUI FORNECIMENTO). AF_01/2021 | I85: M | J85: COEFICIENTE DE REPRESENTATIVIDADE | K85: 7.47 | L85: CAIXA REFERENCIAL
A86: ASSENTAMENTO DE TUBOS E PECAS | B86: ASTU | C86: FORNEC E/OU ASSENT DE TUBO DE PVC COM JUNTA ELASTICA | D86: 48 | G86: 90737 | H86: ASSENTAMENTO DE TUBO DE PVC PARA REDE COLETORA DE ESGOTO DE PAREDE MACIÇA, DN 300 MM, JUNTA ELÁSTICA (NÃO INCLUI FORNECIMENTO). AF_01/2021 | I86: M | J86: COEFICIENTE DE REPRESENTATIVIDADE | K86: 8.36 | L86: CAIXA REFERENCIAL
A87: ASSENTAMENTO DE TUBOS E PECAS | B87: ASTU | C87: FORNEC E/OU ASSENT DE TUBO DE PVC COM JUNTA ELASTICA | D87: 48 | G87: 90738 | H87: ASSENTAMENTO DE TUBO DE PVC PARA REDE COLETORA DE ESGOTO DE PAREDE MACIÇA, DN 350 MM, JUNTA ELÁSTICA (NÃO INCLUI FORNECIMENTO). AF_01/2021 | I87: M | J87: COEFICIENTE DE REPRESENTATIVIDADE | K87: 9.25 | L87: CAIXA REFERENCIAL
A88: ASSENTAMENTO DE TUBOS E PECAS | B88: ASTU | C88: FORNEC E/OU ASSENT DE TUBO DE PVC COM JUNTA ELASTICA | D88: 48 | G88: 90739 | H88: ASSENTAMENTO DE TUBO DE PVC PARA REDE COLETORA DE ESGOTO DE PAREDE MACIÇA, DN 400 MM, JUNTA ELÁSTICA (NÃO INCLUI FORNECIMENTO). AF_01/2021 | I88: M | J88: COEFICIENTE DE REPRESENTATIVIDADE | K88: 10.84 | L88: CAIXA REFERENCIAL
A89: ASSENTAMENTO DE TUBOS E PECAS | B89: ASTU | C89: FORNEC E/OU ASSENT DE TUBO DE PVC COM JUNTA ELASTICA | D89: 48 | G89: 90740 | H89: ASSENTAMENTO DE TUBO DE PVC CORRUGADO DE DUPLA PAREDE PARA REDE COLETORA DE ESGOTO, DN 150 MM, JUNTA ELÁSTICA (NÃO INCLUI FORNECIMENTO). AF_01/2021 | I89: M | J89: COEFICIENTE DE REPRESENTATIVIDADE | K89: 6.35 | L89: CAIXA REFERENCIAL
A90: ASSENTAMENTO DE TUBOS E PECAS | B90: ASTU | C90: FORNEC E/OU ASSENT DE TUBO DE PVC COM JUNTA ELASTICA | D90: 48 | G90: 90741 | H90: ASSENTAMENTO DE TUBO DE PVC CORRUGADO DE DUPLA PAREDE PARA REDE COLETORA DE ESGOTO, DN 200 MM, JUNTA ELÁSTICA (NÃO INCLUI FORNECIMENTO). AF_01/2021 | I90: M | J90: COEFICIENTE DE REPRESENTATIVIDADE | K90: 7.23 | L90: CAIXA REFERENCIAL
A91: ASSENTAMENTO DE TUBOS E PECAS | B91: ASTU | C91: FORNEC E/OU ASSENT DE TUBO DE PVC COM JUNTA ELASTICA | D91: 48 | G91: 90742 | H91: ASSENTAMENTO DE TUBO DE PVC CORRUGADO DE DUPLA PAREDE PARA REDE COLETORA DE ESGOTO, DN 250 MM, JUNTA ELÁSTICA (NÃO INCLUI FORNECIMENTO). AF_01/2021 | I91: M | J91: COEFICIENTE DE REPRESENTATIVIDADE | K91: 8.12 | L91: CAIXA REFERENCIAL
A92: ASSENTAMENTO DE TUBOS E PECAS | B92: ASTU | C92: FORNEC E/OU ASSENT DE TUBO DE PVC COM JUNTA ELASTICA | D92: 48 | G92: 90743 | H92: ASSENTAMENTO DE TUBO DE PVC CORRUGADO DE DUPLA PAREDE PARA REDE COLETORA DE ESGOTO, DN 300 MM, JUNTA ELÁSTICA (NÃO INCLUI FORNECIMENTO). AF_01/2021 | I92: M | J92: COEFICIENTE DE REPRESENTATIVIDADE | K92: 9.02 | L92: CAIXA REFERENCIAL
A93: ASSENTAMENTO DE TUBOS E PECAS | B93: ASTU | C93: FORNEC E/OU ASSENT DE TUBO DE PVC COM JUNTA ELASTICA | D93: 48 | G93: 90744 | H93: ASSENTAMENTO DE TUBO DE PVC CORRUGADO DE DUPLA PAREDE PARA REDE COLETORA DE ESGOTO, DN 350 MM, JUNTA ELÁSTICA (NÃO INCLUI FORNECIMENTO). AF_01/2021 | I93: M | J93: COEFICIENTE DE REPRESENTATIVIDADE | K93: 9.9 | L93: CAIXA REFERENCIAL
A94: ASSENTAMENTO DE TUBOS E PECAS | B94: ASTU | C94: FORNEC E/OU ASSENT DE TUBO DE PVC COM JUNTA ELASTICA | D94: 48 | G94: 90745 | H94: ASSENTAMENTO DE TUBO DE PVC CORRUGADO DE DUPLA PAREDE PARA REDE COLETORA DE ESGOTO, DN 400 MM, JUNTA ELÁSTICA (NÃO INCLUI FORNECIMENTO). AF_01/2021 | I94: M | J94: COEFICIENTE DE REPRESENTATIVIDADE | K94: 12.1 | L94: CAIXA REFERENCIAL
A95: ASSENTAMENTO DE TUBOS E PECAS | B95: ASTU | C95: FORNEC E/OU ASSENT DE TUBO DE PVC COM JUNTA ELASTICA | D95: 48 | G95: 90746 | H95: ASSENTAMENTO DE TUBO DE PEAD CORRUGADO DE DUPLA PAREDE PARA REDE COLETORA DE ESGOTO, DN 450 MM, JUNTA ELÁSTICA INTEGRADA (NÃO INCLUI FORNECIMENTO). AF_01/2021 | I95: M | J95: COEFICIENTE DE REPRESENTATIVIDADE | K95: 5.19 | L95: CAIXA REFERENCIAL
A96: ASSENTAMENTO DE TUBOS E PECAS | B96: ASTU | C96: FORNEC E/OU ASSENT DE TUBO DE PVC COM JUNTA ELASTICA | D96: 48 | G96: 90747 | H96: ASSENTAMENTO DE TUBO DE PEAD CORRUGADO DE DUPLA PAREDE PARA REDE COLETORA DE ESGOTO, DN 600 MM, JUNTA ELÁSTICA INTEGRADA (NÃO INCLUI FORNECIMENTO). AF_01/2021 | I96: M | J96: COEFICIENTE DE REPRESENTATIVIDADE | K96: 19.3 | L96: CAIXA REFERENCIAL
A97: ASSENTAMENTO DE TUBOS E PECAS | B97: ASTU | C97: FORNEC E/OU ASSENT DE TUBO DE PVC COM JUNTA ELASTICA | D97: 48 | G97: 94869 | H97: TUBO DE PEAD CORRUGADO DE DUPLA PAREDE PARA REDE COLETORA DE ESGOTO, DN 250 MM, JUNTA ELÁSTICA INTEGRADA - FORNECIMENTO E ASSENTAMENTO. AF_01/2021 | I97: M | J97: COEFICIENTE DE REPRESENTATIVIDADE | K97: 145.44 | L97: CAIXA REFERENCIAL
A98: ASSENTAMENTO DE TUBOS E PECAS | B98: ASTU | C98: FORNEC E/OU ASSENT DE TUBO DE PVC COM JUNTA ELASTICA | D98: 48 | G98: 94870 | H98: ASSENTAMENTO DE TUBO DE PEAD CORRUGADO DE DUPLA PAREDE PARA REDE COLETORA DE ESGOTO, DN 250 MM, JUNTA ELÁSTICA INTEGRADA (NÃO INCLUI FORNECIMENTO). AF_01/2021 | I98: M | J98: COEFICIENTE DE REPRESENTATIVIDADE | K98: 2.29 | L98: CAIXA REFERENCIAL
A99: ASSENTAMENTO DE TUBOS E PECAS | B99: ASTU | C99: FORNEC E/OU ASSENT DE TUBO DE PVC COM JUNTA ELASTICA | D99: 48 | G99: 94871 | H99: TUBO DE PEAD CORRUGADO DE DUPLA PAREDE PARA REDE COLETORA DE ESGOTO, DN 300 MM, JUNTA ELÁSTICA INTEGRADA - FORNECIMENTO E ASSENTAMENTO. AF_01/2021 | I99: M | J99: COEFICIENTE DE REPRESENTATIVIDADE | K99: 227.63 | L99: CAIXA REFERENCIAL
A100: ASSENTAMENTO DE TUBOS E PECAS | B100: ASTU | C100: FORNEC E/OU ASSENT DE TUBO DE PVC COM JUNTA ELASTICA | D100: 48 | G100: 94872 | H100: ASSENTAMENTO DE TUBO DE PEAD CORRUGADO DE DUPLA PAREDE PARA REDE COLETORA DE ESGOTO, DN 300 MM, JUNTA ELÁSTICA INTEGRADA (NÃO INCLUI FORNECIMENTO). AF_01/2021 | I100: M | J100: COEFICIENTE DE REPRESENTATIVIDADE | K100: 3.35 | L100: CAIXA REFERENCIAL
A101: ASSENTAMENTO DE TUBOS E PECAS | B101: ASTU | C101: FORNEC E/OU ASSENT DE TUBO DE PVC COM JUNTA ELASTICA | D101: 48 | G101: 94875 | H101: TUBO DE PEAD CORRUGADO DE DUPLA PAREDE PARA REDE COLETORA DE ESGOTO, DN 800 MM, JUNTA ELÁSTICA INTEGRADA - FORNECIMENTO E ASSENTAMENTO. AF_01/2021 | I101: M | J101: COEFICIENTE DE REPRESENTATIVIDADE | K101: 1338.84 | L101: CAIXA REFERENCIAL
